Workbook

Sheet Itens ARP 2021
A3: Número-SF | B3: Grupo ARP | C3: Grande Área | D3: Categoria | E3: Linha | F3: Discriminação | G3: Und. | H3: Qtd. | I3: Preço Unitário | J3: Custo Direto | K3: BDI (%) | L3: Preço Unitário c/ BDI | M3: Custo Total
A4: SF-00001 | B4: Grupo 01 | C4: Serviços de Apoio | D4: Serviços Técnicos | E4: - | F4: Engenheiro(a) /Arquiteto(a) júnior | G4: hh | H4: 3000
A5: SF-00002 | B5: Grupo 01 | C5: Serviços de Apoio | D5: Serviços Técnicos | E5: - | F5: Mestre de obras | G5: hh | H5: 6000
A6: SF-00004 | B6: Grupo 01 | C6: Serviços de Apoio | D6: Serviços Técnicos | E6: - | F6: Projetos de segurança do trabalho | G6: un | H6: 10
A7: SF-00005 | B7: Grupo 01 | C7: Serviços de Apoio | D7: Serviços Preliminares | E7: - | F7: Demolição de alvenarias | G7: m3 | H7: 100
A8: SF-00006 | B8: Grupo 01 | C8: Serviços de Apoio | D8: Serviços Preliminares | E8: - | F8: Demolição de concreto simples | G8: m3 | H8: 20
A9: SF-00007 | B9: Grupo 01 | C9: Serviços de Apoio | D9: Serviços Preliminares | E9: - | F9: Demolição de contrapiso | G9: m2 | H9: 400
A10: SF-00008 | B10: Grupo 01 | C10: Serviços de Apoio | D10: Serviços Preliminares | E10: - | F10: Demolição de fechamento ou parede em gesso acartonado | G10: m2 | H10: 200
A11: SF-00009 | B11: Grupo 01 | C11: Serviços de Apoio | D11: Serviços Preliminares | E11: - | F11: Demolição de forro de gesso | G11: m2 | H11: 3000
A12: SF-00010 | B12: Grupo 01 | C12: Serviços de Apoio | D12: Serviços Preliminares | E12: - | F12: Demolição de infraestrutura elétrica (eletrodutos, eletrocalhas, cabos) | G12: m | H12: 4000
A13: SF-00011 | B13: Grupo 01 | C13: Serviços de Apoio | D13: Serviços Preliminares | E13: - | F13: Demolição de revestimento cerâmico, granito, mármore ou granitina | G13: m2 | H13: 340
A14: SF-00012 | B14: Grupo 01 | C14: Serviços de Apoio | D14: Serviços Preliminares | E14: - | F14: Demolição de revestimento em argamassa | G14: m2 | H14: 1000
A15: SF-00013 | B15: Grupo 01 | C15: Serviços de Apoio | D15: Serviços Preliminares | E15: - | F15: Demolição de tubulação hidrossanitária embutida com conexões e acessórios | G15: m | H15: 100
A16: SF-00014 | B16: Grupo 01 | C16: Serviços de Apoio | D16: Serviços Preliminares | E16: - | F16: Demolição em concreto armado | G16: m3 | H16: 10
A17: SF-00015 | B17: Grupo 01 | C17: Serviços de Apoio | D17: Serviços Preliminares | E17: - | F17: Locação de caçambas | G17: un | H17: 110
A18: SF-00016 | B18: Grupo 01 | C18: Serviços de Apoio | D18: Serviços Preliminares | E18: - | F18: Remoção de armários | G18: m2 | H18: 240
A19: SF-00017 | B19: Grupo 01 | C19: Serviços de Apoio | D19: Serviços Preliminares | E19: - | F19: Remoção de bancadas | G19: m2 | H19: 40
A20: SF-00018 | B20: Grupo 01 | C20: Serviços de Apoio | D20: Serviços Preliminares | E20: - | F20: Remoção de batentes de madeira | G20: un | H20: 50
A21: SF-00019 | B21: Grupo 01 | C21: Serviços de Apoio | D21: Serviços Preliminares | E21: - | F21: Remoção de canaleta em alumínio | G21: m | H21: 200
A22: SF-00020 | B22: Grupo 01 | C22: Serviços de Apoio | D22: Serviços Preliminares | E22: - | F22: Remoção de carpete | G22: m2 | H22: 300
A23: SF-00021 | B23: Grupo 01 | C23: Serviços de Apoio | D23: Serviços Preliminares | E23: - | F23: Remoção de cortinas | G23: m | H23: 50
A24: SF-00022 | B24: Grupo 01 | C24: Serviços de Apoio | D24: Serviços Preliminares | E24: - | F24: Remoção de difusores, grelhas e acessórios de climatização | G24: un | H24: 120
A25: SF-00023 | B25: Grupo 01 | C25: Serviços de Apoio | D25: Serviços Preliminares | E25: - | F25: Remoção de divisória de mármore ou granito | G25: m2 | H25: 40
A26: SF-00024 | B26: Grupo 01 | C26: Serviços de Apoio | D26: Serviços Preliminares | E26: - | F26: Remoção de divisórias de MDF e gesso acartonado | G26: m2 | H26: 1500
A27: SF-00025 | B27: Grupo 01 | C27: Serviços de Apoio | D27: Serviços Preliminares | E27: - | F27: Remoção de dutos/tubulações | G27: m | H27: 1500
A28: SF-00026 | B28: Grupo 01 | C28: Serviços de Apoio | D28: Serviços Preliminares | E28: - | F28: Remoção de esquadrias metálicas | G28: m2 | H28: 70
A29: SF-00027 | B29: Grupo 01 | C29: Serviços de Apoio | D29: Serviços Preliminares | E29: - | F29: Remoção de exaustor | G29: un | H29: 15
A30: SF-00028 | B30: Grupo 01 | C30: Serviços de Apoio | D30: Serviços Preliminares | E30: - | F30: Remoção de fechadura/puxador de porta | G30: un | H30: 101
A31: SF-00029 | B31: Grupo 01 | C31: Serviços de Apoio | D31: Serviços Preliminares | E31: - | F31: Remoção de folha de porta e dobradiças / pivôs | G31: un | H31: 82
A32: SF-00030 | B32: Grupo 01 | C32: Serviços de Apoio | D32: Serviços Preliminares | E32: - | F32: Remoção de laminado melamínico (LDAP), em PVC ou vinílico | G32: m2 | H32: 1000
A33: SF-00031 | B33: Grupo 01 | C33: Serviços de Apoio | D33: Serviços Preliminares | E33: - | F33: Remoção de louças | G33: un | H33: 80
A34: SF-00032 | B34: Grupo 01 | C34: Serviços de Apoio | D34: Serviços Preliminares | E34: - | F34: Remoção de luminária | G34: un | H34: 500
A35: SF-00033 | B35: Grupo 01 | C35: Serviços de Apoio | D35: Serviços Preliminares | E35: - | F35: Remoção de metais e acessórios | G35: un | H35: 300
A36: SF-00034 | B36: Grupo 01 | C36: Serviços de Apoio | D36: Serviços Preliminares | E36: - | F36: Remoção de painéis de vidro temperado | G36: m2 | H36: 586
A37: SF-00035 | B37: Grupo 01 | C37: Serviços de Apoio | D37: Serviços Preliminares | E37: - | F37: Remoção de película | G37: m2 | H37: 196
A38: SF-00036 | B38: Grupo 01 | C38: Serviços de Apoio | D38: Serviços Preliminares | E38: - | F38: Remoção de persianas | G38: m | H38: 400
A39: SF-00037 | B39: Grupo 01 | C39: Serviços de Apoio | D39: Serviços Preliminares | E39: - | F39: Remoção de pintura ou textura | G39: m2 | H39: 4000
A40: SF-00038 | B40: Grupo 01 | C40: Serviços de Apoio | D40: Serviços Preliminares | E40: - | F40: Remoção de placas de forro | G40: m2 | H40: 500
A41: SF-00039 | B41: Grupo 01 | C41: Serviços de Apoio | D41: Serviços Preliminares | E41: - | F41: Remoção de quadros de elétricos ou de telecomunicações | G41: un | H41: 30
A42: SF-00040 | B42: Grupo 01 | C42: Serviços de Apoio | D42: Serviços Preliminares | E42: - | F42: Remoção de revestimento acústico | G42: m2 | H42: 300
A43: SF-00041 | B43: Grupo 01 | C43: Serviços de Apoio | D43: Serviços Preliminares | E43: - | F43: Remoção de rodapé/rodabanca de mármore ou granito | G43: m | H43: 350
A44: SF-00042 | B44: Grupo 01 | C44: Serviços de Apoio | D44: Serviços Preliminares | E44: - | F44: Remoção de rodapés de madeira | G44: m2 | H44: 10
A45: SF-00043 | B45: Grupo 01 | C45: Serviços de Apoio | D45: Serviços Preliminares | E45: - | F45: Remoção de soleira de mármore ou granito | G45: m | H45: 20
A46: SF-00044 | B46: Grupo 01 | C46: Serviços de Apoio | D46: Serviços Preliminares | E46: - | F46: Remoção de split/fancolete/ACJ (equipamento unitário) | G46: un | H46: 150
A47: SF-00045 | B47: Grupo 01 | C47: Serviços de Apoio | D47: Serviços Preliminares | E47: - | F47: Remoção de vidro comum / espelho | G47: m2 | H47: 60
A48: SF-00046 | B48: Grupo 01 | C48: Serviços de Apoio | D48: Serviços Preliminares | E48: - | F48: Retirada de entulhos | G48: m3 | H48: 410
A49: SF-00047 | B49: Grupo 01 | C49: Serviços de Apoio | D49: Segurança do Trabalho | E49: - | F49: Absorvedor de energia para linha de vida | G49: un | H49: 5
A50: SF-00048 | B50: Grupo 01 | C50: Serviços de Apoio | D50: Segurança do Trabalho | E50: - | F50: Andaime fachadeiro | G50: m2 x mês | H50: 400
A51: SF-00049 | B51: Grupo 01 | C51: Serviços de Apoio | D51: Segurança do Trabalho | E51: - | F51: Andaime tubular (aluguel/mês) | G51: m x mês | H51: 70
A52: SF-00050 | B52: Grupo 01 | C52: Serviços de Apoio | D52: Segurança do Trabalho | E52: - | F52: Cabo de aço com 8 mm de diâmetro galvanizado para linha de vida | G52: m | H52: 280
A53: SF-00051 | B53: Grupo 01 | C53: Serviços de Apoio | D53: Segurança do Trabalho | E53: - | F53: Corda de poliamida 12 mm tipo bombeiro, para trabalho em altura | G53: m | H53: 84
A54: SF-00052 | B54: Grupo 01 | C54: Serviços de Apoio | D54: Segurança do Trabalho | E54: - | F54: Ensaio de ponto de ancoragem existente | G54: un | H54: 20
A55: SF-00057 | B55: Grupo 01 | C55: Serviços de Apoio | D55: Segurança do Trabalho | E55: - | F55: Isolamento de obra com tela plástica com malha de 5mm e estrutura de madeira pontaleteada | G55: m2 | H55: 200
A56: SF-00058 | B56: Grupo 01 | C56: Serviços de Apoio | D56: Segurança do Trabalho | E56: - | F56: Suporte intermediário curvo para linha de vida | G56: un | H56: 5
A57: SF-00060 | B57: Grupo 01 | C57: Serviços de Apoio | D57: Segurança do Trabalho | E57: - | F57: Kit para montagem de dois olhais | G57: un | H57: 5
A58: SF-00061 | B58: Grupo 01 | C58: Serviços de Apoio | D58: Segurança do Trabalho | E58: - | F58: Manilha com travamento por porca e cupilha | G58: un | H58: 14
A59: SF-00062 | B59: Grupo 01 | C59: Serviços de Apoio | D59: Segurança do Trabalho | E59: - | F59: Pilar de ancoragem para linha de vida | G59: un | H59: 14
A60: SF-00065 | B60: Grupo 01 | C60: Serviços de Apoio | D60: Segurança do Trabalho | E60: - | F60: Placa de ancoragem para montagem no pilar | G60: un | H60: 10
A61: SF-00066 | B61: Grupo 01 | C61: Serviços de Apoio | D61: Segurança do Trabalho | E61: - | F61: Ponto de ancoragem | G61: un | H61: 25
A62: SF-00068 | B62: Grupo 01 | C62: Serviços de Apoio | D62: Segurança do Trabalho | E62: - | F62: Sistema Guarda-corpo-Rodapé (GcR) metálico | G62: m x mês | H62: 280
A63: SF-00069 | B63: Grupo 01 | C63: Serviços de Apoio | D63: Segurança do Trabalho | E63: - | F63: Suporte intermediário para linha de vida | G63: un | H63: 15
A64: SF-00070 | B64: Grupo 01 | C64: Serviços de Apoio | D64: Segurança do Trabalho | E64: - | F64: Tapume | G64: m2 | H64: 300
A65: SF-00071 | B65: Grupo 01 | C65: Serviços de Apoio | D65: Segurança do Trabalho | E65: - | F65: Trole para linha de vida horizontal | G65: un | H65: 5
A66: SF-00073 | B66: Grupo 01 | C66: Serviços de Apoio | D66: Limpeza | E66: - | F66: Limpeza final de obra | G66: m2 | H66: 10000
A67: SF-00074 | B67: Grupo 01 | C67: Civil | D67: Furos, Rasgos e Escariação | E67: - | F67: Abertura/fechamento rasgo em alvenaria | G67: m | H67: 3000
A68: SF-00075 | B68: Grupo 01 | C68: Civil | D68: Furos, Rasgos e Escariação | E68: - | F68: Furo em concreto de até 75mm de diâmetro | G68: un | H68: 25
A69: SF-00076 | B69: Grupo 01 | C69: Civil | D69: Furos, Rasgos e Escariação | E69: - | F69: Furo em concreto para diâmetros maiores que 75mm | G69: un | H69: 40
A70: SF-00077 | B70: Grupo 01 | C70: Civil | D70: Estrutural | E70: - | F70: Concreto virado em betoneira, fck = 15 MPa | G70: m3 | H70: 10
A71: SF-00078 | B71: Grupo 01 | C71: Civil | D71: Estrutural | E71: - | F71: Concreto virado em betoneira, fck = 25MPa | G71: m3 | H71: 10
A72: SF-00079 | B72: Grupo 01 | C72: Civil | D72: Estrutural | E72: - | F72: Escoramento metálico | G72: m2 x mês | H72: 100
A73: SF-00081 | B73: Grupo 01 | C73: Civil | D73: Estrutural | E73: - | F73: Forma para estruturas de concreto | G73: m2 | H73: 100
A74: SF-00082 | B74: Grupo 01 | C74: Civil | D74: Estrutural | E74: - | F74: Verga/contraverga/cinta em bloco de concreto canaleta 11,5 x 19 x 39 cm | G74: m | H74: 50
A75: SF-00083 | B75: Grupo 01 | C75: Civil | D75: Impermeabilização | E75: - | F75: Impermeabilização de superfície com revestimento bicomponente semi flexível | G75: m2 | H75: 500
A76: SF-00084 | B76: Grupo 01 | C76: Civil | D76: Vedações | E76: - | F76: Alvenaria de vedação | G76: m2 | H76: 500
A77: SF-00085 | B77: Grupo 01 | C77: Civil | D77: Vedações | E77: - | F77: Fechamento ou shaft em gesso acartonado tipo drywall | G77: m2 | H77: 50
A78: SF-00086 | B78: Grupo 01 | C78: Civil | D78: Vedações | E78: - | F78: Fixação (encunhamento) de Alvenaria de Vedação | G78: m | H78: 300
A79: SF-00087 | B79: Grupo 01 | C79: Civil | D79: Vedações | E79: - | F79: Parede em gesso acartonado (drywall) | G79: m2 | H79: 1000
A80: SF-00088 | B80: Grupo 01 | C80: Civil | D80: Vedações | E80: - | F80: Reparos superficiais em painéis de gesso acartonado | G80: m2 | H80: 20
A81: SF-00089 | B81: Grupo 01 | C81: Civil | D81: Vedações | E81: - | F81: Sóculo h=10 cm | G81: m2 | H81: 40
A82: SF-00090 | B82: Grupo 01 | C82: Civil | D82: Revestimentos | E82: - | F82: Chapisco colante industrializado em vigas e pilares | G82: m2 | H82: 40
A83: SF-00091 | B83: Grupo 01 | C83: Civil | D83: Revestimentos | E83: - | F83: Chapisco com argamassa traço 1:3 | G83: m2 | H83: 1000
A84: SF-00092 | B84: Grupo 01 | C84: Civil | D84: Revestimentos | E84: - | F84: Gesso cola | G84: m2 | H84: 440
A85: SF-00093 | B85: Grupo 01 | C85: Civil | D85: Revestimentos | E85: - | F85: Reboco com argamassa industrializada e=2,0 cm | G85: m2 | H85: 1000
A86: SF-00094 | B86: Grupo 01 | C86: Civil | D86: Revestimentos | E86: - | F86: Regularização com argamassa industrializada e=0,5 cm | G86: m2 | H86: 200
A87: SF-00095 | B87: Grupo 01 | C87: Civil | D87: Revestimentos | E87: - | F87: Tratamento de trincas superficiais | G87: m | H87: 100
A88: SF-00096 | B88: Grupo 01 | C88: Civil | D88: Pinturas | E88: - | F88: Aplicação de fundo selador base água | G88: m2 | H88: 5400
A89: SF-00097 | B89: Grupo 01 | C89: Civil | D89: Pinturas | E89: - | F89: Fundo anticorrosivo e de aderência (base água) | G89: m2 | H89: 400
A90: SF-00098 | B90: Grupo 01 | C90: Civil | D90: Pinturas | E90: - | F90: Massa acrílica | G90: m2 | H90: 1000
A91: SF-00099 | B91: Grupo 01 | C91: Civil | D91: Pinturas | E91: - | F91: Massa corrida | G91: m2 | H91: 3000
A92: SF-00100 | B92: Grupo 01 | C92: Civil | D92: Pinturas | E92: - | F92: Pintura com tinta látex acrílica Premium (paredes) | G92: m2 | H92: 9000
A93: SF-00101 | B93: Grupo 01 | C93: Civil | D93: Pinturas | E93: - | F93: Pintura em verniz sintético | G93: m2 | H93: 300
A94: SF-00102 | B94: Grupo 01 | C94: Civil | D94: Pinturas | E94: - | F94: Pintura esmalte acetinado (metais e madeiras) | G94: m2 | H94: 500
A95: SF-00103 | B95: Grupo 01 | C95: Civil | D95: Pinturas | E95: - | F95: Pintura tinta látex acrílica standard (tetos) | G95: m2 | H95: 6000
A96: SF-00104 | B96: Grupo 01 | C96: Civil | D96: Pisos, Revestimentos e Pavimentação | E96: Administrativa | F96: Cerâmica para revestimento de superfícies internas ou externas – Linha Administrativa | G96: m2 | H96: 150
A97: SF-00105 | B97: Grupo 01 | C97: Civil | D97: Pisos, Revestimentos e Pavimentação | E97: - | F97: Contrapiso em argamassa | G97: m2 | H97: 60
A98: SF-00106 | B98: Grupo 01 | C98: Civil | D98: Pisos, Revestimentos e Pavimentação | E98: - | F98: Contrapiso em argamassa (e=2cm) ou Regularização de contrapiso existente | G98: m2 | H98: 550
A99: SF-00107 | B99: Grupo 01 | C99: Civil | D99: Pisos, Revestimentos e Pavimentação | E99: - | F99: Granito cinza andorinha para piso | G99: m2 | H99: 800
A100: SF-00108 | B100: Grupo 01 | C100: Civil | D100: Pisos, Revestimentos e Pavimentação | E100: - | F100: Granito Cinza Andorinha para rodapé | G100: m2 | H100: 200
A101: SF-00109 | B101: Grupo 01 | C101: Civil | D101: Pisos, Revestimentos e Pavimentação | E101: - | F101: Granito Cinza Andorinha para soleira e peitoril | G101: m2 | H101: 20
A102: SF-00110 | B102: Grupo 01 | C102: Civil | D102: Pisos, Revestimentos e Pavimentação | E102: - | F102: Granito Preto São Gabriel para piso | G102: m2 | H102: 30
A103: SF-00111 | B103: Grupo 01 | C103: Civil | D103: Pisos, Revestimentos e Pavimentação | E103: - | F103: Granito Preto São Gabriel para rodapé | G103: m2 | H103: 3
A104: SF-00112 | B104: Grupo 01 | C104: Civil | D104: Pisos, Revestimentos e Pavimentação | E104: - | F104: Granito Preto São Gabriel para soleira e peitoril | G104: m2 | H104: 2
A105: SF-00113 | B105: Grupo 01 | C105: Civil | D105: Pisos, Revestimentos e Pavimentação | E105: - | F105: Instalação de rodapé de madeira reaproveitado | G105: m | H105: 70
A106: SF-00114 | B106: Grupo 01 | C106: Civil | D106: Pisos, Revestimentos e Pavimentação | E106: - | F106: Mármore Bege Bahia para piso e parede | G106: m2 | H106: 10
A107: SF-00115 | B107: Grupo 01 | C107: Civil | D107: Pisos, Revestimentos e Pavimentação | E107: - | F107: Mármore Branco Especial para piso e parede | G107: m2 | H107: 40
A108: SF-00116 | B108: Grupo 01 | C108: Civil | D108: Pisos, Revestimentos e Pavimentação | E108: - | F108: Rodapé de madeira | G108: m | H108: 70
A109: SF-00117 | B109: Grupo 01 | C109: Civil | D109: Mármores e Granitos | E109: - | F109: Acabamento abaulado em placas de granito ou mármore reaproveitadas | G109: m | H109: 20
A110: SF-00118 | B110: Grupo 01 | C110: Civil | D110: Mármores e Granitos | E110: - | F110: Acabamento em meia esquadria em placas de granito ou mármore reaproveitadas | G110: m | H110: 20
A111: SF-00119 | B111: Grupo 01 | C111: Civil | D111: Mármores e Granitos | E111: - | F111: Acabamento reto em placas de granito ou mármore reaproveitadas | G111: m | H111: 20
A112: SF-00120 | B112: Grupo 01 | C112: Civil | D112: Mármores e Granitos | E112: - | F112: Corte de peça de granito ou mármore reaproveitada | G112: m | H112: 20
A113: SF-00121 | B113: Grupo 01 | C113: Civil | D113: Mármores e Granitos | E113: - | F113: Corte em placas de granito ou mármore reaproveitadas, para instalação de cubas | G113: un | H113: 20
A114: SF-00122 | B114: Grupo 01 | C114: Civil | D114: Mármores e Granitos | E114: - | F114: Furo em placas de granito ou mármore reaproveitadas, para instalação de torneira ou misturador | G114: un | H114: 20
A115: SF-00123 | B115: Grupo 01 | C115: Civil | D115: Mármores e Granitos | E115: - | F115: Granito Cinza Andorinha 20mm para rodabancada | G115: m2 | H115: 120
A116: SF-00124 | B116: Grupo 01 | C116: Civil | D116: Mármores e Granitos | E116: - | F116: Granito Cinza Andorinha 20mm para bancadas | G116: m2 | H116: 50
A117: SF-00125 | B117: Grupo 01 | C117: Civil | D117: Mármores e Granitos | E117: - | F117: Granito Cinza Andorinha 20mm para divisória | G117: m2 | H117: 100
A118: SF-00126 | B118: Grupo 01 | C118: Civil | D118: Mármores e Granitos | E118: - | F118: Granito Preto São Gabriel 20mm para rodabancada | G118: m2 | H118: 30
A119: SF-00127 | B119: Grupo 01 | C119: Civil | D119: Mármores e Granitos | E119: - | F119: Granito Preto São Gabriel 20mm para bancadas | G119: m2 | H119: 8
A120: SF-00128 | B120: Grupo 01 | C120: Civil | D120: Mármores e Granitos | E120: - | F120: Instalação de bancada de granito ou mármore reaproveitada | G120: m2 | H120: 30
A121: SF-00129 | B121: Grupo 01 | C121: Civil | D121: Mármores e Granitos | E121: - | F121: Instalação de rodapé/rodabanca reaproveitado, de mármore ou granito | G121: m2 | H121: 20
A122: SF-00130 | B122: Grupo 01 | C122: Civil | D122: Mármores e Granitos | E122: - | F122: Instalação de soleira ou peitoril, de mármore ou granito, reaproveitados | G122: m2 | H122: 10
A123: SF-00131 | B123: Grupo 01 | C123: Civil | D123: Mármores e Granitos | E123: - | F123: Mármore Branco Especial 20mm para rodabancada | G123: m2 | H123: 1
A124: SF-00132 | B124: Grupo 01 | C124: Civil | D124: Divisórias | E124: - | F124: Divisória em gesso acartonado revestido - Painel liso cego - Ed. Anexo I | G124: m2 | H124: 500
A125: SF-00133 | B125: Grupo 01 | C125: Civil | D125: Divisórias | E125: - | F125: Divisória em gesso acartonado revestido - Painel liso, painel de vidro e bandeira – ed. Anexo I | G125: m2 | H125: 300
A126: SF-00134 | B126: Grupo 01 | C126: Civil | D126: Divisórias | E126: - | F126: Divisória MDF com painel liso cego e bandeira | G126: m2 | H126: 900
A127: SF-00135 | B127: Grupo 01 | C127: Civil | D127: Divisórias | E127: - | F127: Divisória MDF com painel liso, painel de vidro e bandeira | G127: m2 | H127: 900
A128: SF-00136 | B128: Grupo 01 | C128: Civil | D128: Divisórias | E128: - | F128: Divisória MDF com painel paginado cego e bandeira - Interlegis | G128: m2 | H128: 200
A129: SF-00137 | B129: Grupo 01 | C129: Civil | D129: Divisórias | E129: - | F129: Divisória MDF com painel paginado, painel de vidro e bandeira - Interlegis | G129: m2 | H129: 200
A130: SF-00138 | B130: Grupo 01 | C130: Civil | D130: Divisórias | E130: - | F130: Instalação de divisória e porta de divisória com dobradiça reaproveitadas | G130: m2 | H130: 700
A131: SF-00139 | B131: Grupo 01 | C131: Civil | D131: Forros | E131: - | F131: Alçapão em forro de gesso acartonado | G131: m2 | H131: 100
A132: SF-00140 | B132: Grupo 01 | C132: Civil | D132: Forros | E132: - | F132: Forro de PVC em réguas de 100 x 6000mm | G132: m2 | H132: 50
A133: SF-00141 | B133: Grupo 01 | C133: Civil | D133: Forros | E133: - | F133: Forro de PVC em réguas de 100 x 6000mm, sem estrutura | G133: m2 | H133: 100
A134: SF-00142 | B134: Grupo 01 | C134: Civil | D134: Forros | E134: - | F134: Forro de PVC modular em placas | G134: m2 | H134: 20
A135: SF-00143 | B135: Grupo 01 | C135: Civil | D135: Forros | E135: - | F135: Forro em chapas metálicas | G135: m2 | H135: 500
A136: SF-00144 | B136: Grupo 01 | C136: Civil | D136: Forros | E136: - | F136: Forro em gesso acartonado monolítico | G136: m2 | H136: 2500
A137: SF-00145 | B137: Grupo 01 | C137: Civil | D137: Forros | E137: - | F137: Forro em gesso acartonado monolítico, sem estrutura | G137: m2 | H137: 2300
A138: SF-00146 | B138: Grupo 01 | C138: Civil | D138: Forros | E138: - | F138: Forro mineral modulado | G138: m2 | H138: 300
A139: SF-00147 | B139: Grupo 01 | C139: Civil | D139: Forros | E139: - | F139: Forro mineral modulado, sem estrutura | G139: m2 | H139: 100
A140: SF-00148 | B140: Grupo 01 | C140: Civil | D140: Forros | E140: - | F140: Instalação de forro de PVC reaproveitado | G140: m2 | H140: 100
A141: SF-00149 | B141: Grupo 01 | C141: Civil | D141: Forros | E141: - | F141: Instalação de forro mineral reaproveitado | G141: m2 | H141: 100
A142: SF-00150 | B142: Grupo 01 | C142: Civil | D142: Forros | E142: - | F142: Tabica metálica em forro de gesso acartonado | G142: m | H142: 2500
A143: SF-00151 | B143: Grupo 01 | C143: Civil | D143: Carpete | E143: - | F143: Instalação de revestimento de piso têxtil (carpete) reaproveitado | G143: m2 | H143: 400
A144: SF-00154 | B144: Grupo 01 | C144: Civil | D144: Vidro Comum | E144: - | F144: Espelho cristal, e=5 mm | G144: m2 | H144: 130
A145: SF-00155 | B145: Grupo 01 | C145: Civil | D145: Vidro Comum Reaproveitado | E145: - | F145: Instalação de vidro reaproveitado | G145: m2 | H145: 50
A146: SF-00159 | B146: Grupo 01 | C146: Civil | D146: Vidro Tremperado Reaproveitado | E146: - | F146: Instalação de painéis de vidro temperado reaproveitados | G146: m2 | H146: 70
A147: SF-00161 | B147: Grupo 01 | C147: Civil | D147: Persianas Reaproveitada | E147: - | F147: Instalação de persianas reaproveitadas | G147: m | H147: 800
A148: SF-00165 | B148: Grupo 01 | C148: Civil | D148: Película | E148: - | F148: Película jateada | G148: m2 | H148: 80
A149: SF-00166 | B149: Grupo 01 | C149: Hidrossanitário | D149: Tubos | E149: - | F149: Tubo de ligação para bacia sanitária | G149: un | H149: 15
A150: SF-00167 | B150: Grupo 01 | C150: Hidrossanitário | D150: Tubos | E150: - | F150: Tubo PVC esgoto ou aguas pluviais predial DN 100mm | G150: m | H150: 215
A151: SF-00168 | B151: Grupo 01 | C151: Hidrossanitário | D151: Tubos | E151: - | F151: Tubo PVC esgoto ou aguas pluviais predial DN 40mm | G151: m | H151: 80
A152: SF-00169 | B152: Grupo 01 | C152: Hidrossanitário | D152: Tubos | E152: - | F152: Tubo PVC esgoto ou aguas pluviais predial DN 50mm | G152: m | H152: 80
A153: SF-00170 | B153: Grupo 01 | C153: Hidrossanitário | D153: Tubos | E153: - | F153: Tubo PVC esgoto ou aguas pluviais predial DN 75mm | G153: m | H153: 100
A154: SF-00171 | B154: Grupo 01 | C154: Hidrossanitário | D154: Tubos | E154: - | F154: Tubo PVC soldavel agua fria DN 25mm | G154: m | H154: 300
A155: SF-00172 | B155: Grupo 01 | C155: Hidrossanitário | D155: Tubos | E155: - | F155: Tubo PVC soldavel agua fria DN 32mm | G155: m | H155: 200
A156: SF-00173 | B156: Grupo 01 | C156: Hidrossanitário | D156: Tubos | E156: - | F156: Tubo PVC soldavel agua fria DN 40mm | G156: m | H156: 100
A157: SF-00174 | B157: Grupo 01 | C157: Hidrossanitário | D157: Tubos | E157: - | F157: Tubo PVC soldavel agua fria DN 50mm | G157: m | H157: 100
A158: SF-00175 | B158: Grupo 01 | C158: Hidrossanitário | D158: Registros e Válvulas | E158: - | F158: Base registro gaveta 3/4" | G158: un | H158: 60
A159: SF-00176 | B159: Grupo 01 | C159: Hidrossanitário | D159: Ralos e Caixas | E159: - | F159: Caixa sifonada de PVC DN 150mm | G159: un | H159: 45
A160: SF-00177 | B160: Grupo 01 | C160: Hidrossanitário | D160: Ralos e Caixas | E160: - | F160: Caixa sifonada de PVC DN 250mm | G160: un | H160: 45
A161: SF-00178 | B161: Grupo 01 | C161: Hidrossanitário | D161: Ralos e Caixas | E161: - | F161: Grelha quadrada para ralo 10x10cm | G161: un | H161: 45
A162: SF-00179 | B162: Grupo 01 | C162: Hidrossanitário | D162: Ralos e Caixas | E162: - | F162: Grelha quadrada para ralo 15x15cm | G162: un | H162: 45
A163: SF-00180 | B163: Grupo 01 | C163: Hidrossanitário | D163: Ralos e Caixas | E163: - | F163: Ralo seco PVC DN 100x40mm | G163: un | H163: 45
A164: SF-00181 | B164: Grupo 01 | C164: Hidrossanitário | D164: Louças | E164: Administrativa | F164: Assento para bacia convencional - Linha Administrativa | G164: un | H164: 45
A165: SF-00182 | B165: Grupo 01 | C165: Hidrossanitário | D165: Louças | E165: Administrativa | F165: Bacia convencional – Linha Administrativa | G165: un | H165: 45
A166: SF-00183 | B166: Grupo 01 | C166: Hidrossanitário | D166: Louças | E166: - | F166: Bacia convencional com saída horizontal | G166: un | H166: 10
A167: SF-00184 | B167: Grupo 01 | C167: Hidrossanitário | D167: Louças | E167: - | F167: Cuba oval de embutir | G167: un | H167: 45
A168: SF-00185 | B168: Grupo 01 | C168: Hidrossanitário | D168: Louças | E168: - | F168: Cuba retangular em aço inox | G168: un | H168: 30
A169: SF-00186 | B169: Grupo 01 | C169: Hidrossanitário | D169: Louças | E169: - | F169: Cuba semiencaixe quadrada com mesa | G169: un | H169: 15
A170: SF-00187 | B170: Grupo 01 | C170: Hidrossanitário | D170: Louças | E170: - | F170: Instalação de lavatório reaproveitado | G170: un | H170: 30
A171: SF-00188 | B171: Grupo 01 | C171: Hidrossanitário | D171: Louças | E171: - | F171: Instalação de mictório reaproveitado | G171: un | H171: 30
A172: SF-00189 | B172: Grupo 01 | C172: Hidrossanitário | D172: Louças | E172: - | F172: Instalação de vaso sanitário reaproveitado | G172: un | H172: 30
A173: SF-00190 | B173: Grupo 01 | C173: Hidrossanitário | D173: Louças | E173: - | F173: Lavatório suspenso | G173: un | H173: 10
A174: SF-00191 | B174: Grupo 01 | C174: Hidrossanitário | D174: Louças | E174: Administrativa | F174: Mictório – Linha Administrativa | G174: un | H174: 20
A175: SF-00192 | B175: Grupo 01 | C175: Hidrossanitário | D175: Louças | E175: - | F175: Tanque 38 litros | G175: un | H175: 25
A176: SF-00193 | B176: Grupo 01 | C176: Hidrossanitário | D176: Metais | E176: - | F176: Acabamento para registro GD | G176: un | H176: 35
A177: SF-00194 | B177: Grupo 01 | C177: Hidrossanitário | D177: Metais | E177: - | F177: Acabamento para registro PQ | G177: un | H177: 70
A178: SF-00195 | B178: Grupo 01 | C178: Hidrossanitário | D178: Metais | E178: - | F178: Ducha higiênica | G178: un | H178: 60
A179: SF-00196 | B179: Grupo 01 | C179: Hidrossanitário | D179: Metais | E179: - | F179: Instalação de metais e acessórios reaproveitados | G179: un | H179: 200
A180: SF-00197 | B180: Grupo 01 | C180: Hidrossanitário | D180: Metais | E180: - | F180: Ligação flexível 1/2” x 40 cm | G180: un | H180: 80
A181: SF-00198 | B181: Grupo 01 | C181: Hidrossanitário | D181: Metais | E181: - | F181: Sifão articulado para cozinha | G181: un | H181: 50
A182: SF-00199 | B182: Grupo 01 | C182: Hidrossanitário | D182: Metais | E182: - | F182: Sifão para lavatório 1 1/2" | G182: un | H182: 60
A183: SF-00200 | B183: Grupo 01 | C183: Hidrossanitário | D183: Metais | E183: - | F183: Sifão para tanque | G183: un | H183: 25
A184: SF-00202 | B184: Grupo 01 | C184: Hidrossanitário | D184: Metais | E184: - | F184: Torneira de mesa para cozinha bica móvel | G184: un | H184: 40
A185: SF-00203 | B185: Grupo 01 | C185: Hidrossanitário | D185: Metais | E185: - | F185: Torneira de mesa para lavatório – Linha Acessibilidade | G185: un | H185: 10
A186: SF-00204 | B186: Grupo 01 | C186: Hidrossanitário | D186: Metais | E186: - | F186: Torneira de mesa para lavatório bica alta | G186: un | H186: 75
A187: SF-00205 | B187: Grupo 01 | C187: Hidrossanitário | D187: Metais | E187: - | F187: Torneira de mesa para lavatório bica baixa | G187: un | H187: 75
A188: SF-00206 | B188: Grupo 01 | C188: Hidrossanitário | D188: Metais | E188: Administrativa | F188: Torneira de mesa para lavatório com fechamento automático – Linha Administrativa | G188: un | H188: 60
A189: SF-00207 | B189: Grupo 01 | C189: Hidrossanitário | D189: Metais | E189: - | F189: Torneira de parede para cozinha | G189: un | H189: 35
A190: SF-00208 | B190: Grupo 01 | C190: Hidrossanitário | D190: Metais | E190: - | F190: Torneira de parede para tanque | G190: un | H190: 25
A191: SF-00209 | B191: Grupo 01 | C191: Hidrossanitário | D191: Metais | E191: Acessibilidade | F191: Acabamento para válvula de descarga 1 1/2” – Linha Acessibilidade | G191: un | H191: 10
A192: SF-00210 | B192: Grupo 01 | C192: Hidrossanitário | D192: Metais | E192: - | F192: Acabamento para válvula de descarga 1 1/2” | G192: un | H192: 65
A193: SF-00211 | B193: Grupo 01 | C193: Hidrossanitário | D193: Metais | E193: Acessibilidade | F193: Acabamento para válvula de descarga 1 1/4” – Linha Acessibilidade | G193: un | H193: 10
A194: SF-00212 | B194: Grupo 01 | C194: Hidrossanitário | D194: Metais | E194: - | F194: Acabamento para válvula de descarga 1 1/4” | G194: un | H194: 65
A195: SF-00213 | B195: Grupo 01 | C195: Hidrossanitário | D195: Metais | E195: - | F195: Válvula de escoamento para lavatório e bidê | G195: un | H195: 65
A196: SF-00214 | B196: Grupo 01 | C196: Hidrossanitário | D196: Metais | E196: - | F196: Válvula de escoamento para tanque | G196: un | H196: 25
A197: SF-00215 | B197: Grupo 01 | C197: Hidrossanitário | D197: Metais | E197: Administrativa | F197: Válvula descarga para mictório – Linha Administrativa | G197: un | H197: 40
A198: SF-00216 | B198: Grupo 01 | C198: Hidrossanitário | D198: Acessibilidade | E198: - | F198: Alarme de emergência para sanitários PNE | G198: un | H198: 15
A199: SF-00217 | B199: Grupo 01 | C199: Hidrossanitário | D199: Acessibilidade | E199: - | F199: Barra de apoio 40cm – Linha Acessibilidade | G199: un | H199: 25
A200: SF-00218 | B200: Grupo 01 | C200: Hidrossanitário | D200: Acessibilidade | E200: - | F200: Barra de apoio 70cm – Linha Acessibilidade | G200: un | H200: 20
A201: SF-00219 | B201: Grupo 01 | C201: Hidrossanitário | D201: Acessibilidade | E201: - | F201: Barra de apoio 80cm – Linha Acessibilidade | G201: un | H201: 25
A202: SF-00220 | B202: Grupo 01 | C202: Hidrossanitário | D202: Acessibilidade | E202: - | F202: Barra de apoio lateral fixa 30cm – Linha Acessibilidade | G202: un | H202: 25
... 226 more rows

Sheet Cálculo de Hh (hidden)
A1: Número-SF | B1: Discriminação | C1: Qtd. | E1: Composição do Hh direto | AJ1: Cálculo Hh indireto
C2: 2021 | D2: 2020 | E2: Engenheiro civil de obra júnior com encargos complementares | F2: Mestre de obras com encargos complementares | G2: Engenheiro Civil de Obra Pleno | H2: Engenheiro de Segurança do Trabalho | I2: Pedreiro com Encargos Complementares | J2: Servente com Encargos Complementares | K2: Gesseiro com encargos complementares | L2: Eletricista com encargos complementares | M2: Azulejista ou ladrilhista com encargos complementares | N2: Encanador ou Bombeiro Hidráulico com Encargos Complementares | O2: Carpinteiro de esquadria com encargos complementares | P2: Ajudante especializado com encargos complementares | Q2: Ajudante de operação em geral com encargos complementares | R2: Marmorista/graniteiro com encargos complementares | S2: Montador de estrutura metálica com encargos complementares | T2: Auxiliar de eletricista com encargos complementares | U2: Montador eletromecânico com encargos complementares | V2: Vidraceiro com encargos complementares | W2: Ajudante de carpinteiro com encargos complementares | X2: Carpinteiro de formas com encargos complementares | Y2: Pintor com encargos complementares | Z2: Auxiliar de encanador ou bombeiro hidráulico com encargos complementares | AA2: Operador de betoneira estacionária/misturador com encargos complementares | AB2: Impermeabilizador com encargos complementares | AC2: Ajudante de Pedreiro com Encargos Complementares | AD2: Marceneiro com encargos complementares | AE2: Serralheiro com encargos complementares | AF2: Auxiliar de serralheiro com encargos complementares | AG2: Subtotal Profissional | AH2: Subtotal Auxiliar | AI2: Total Hh | AJ2: Hh Total Engenheiro | AK2: Hh Total Mestre | AL2: Coef. Engenheiro | AM2: Coef. Mestre | AN2: Coef. Engenheiro / HhD | AO2: Coef. Mestre / HhD
A3: SF-00001 | B3: =VLOOKUP(A3,'Itens ARP 2021'!$A$4:$M$425,6,FALSE) -> Engenheiro(a) /Arquiteto(a) júnior | C3: =AJ446 ->  | D3: 3000 | AG3: =SUM(I3,K3,L3,M3,N3,O3,R3,S3,U3,V3,X3,Y3,AA3,AB3,AD3,AE3) -> 0 | AH3: =SUM(P3,Q3,T3,W3,Z3,AC3,AF3)+J3 -> 0 | AI3: =AG3+AH3 -> 0 | AJ3: 0 | AK3: 0 | AL3: 0 | AM3: 0 | AN3: 0 | AO3: 0
A4: SF-00002 | B4: =VLOOKUP(A4,'Itens ARP 2021'!$A$4:$M$425,6,FALSE) -> Mestre de obras | C4: =AK446 ->  | D4: 6000 | AG4: 0 | AH4: 0 | AI4: =AG4+AH4 -> 0 | AJ4: 0 | AK4: 0 | AL4: 0 | AM4: 0 | AN4: 0 | AO4: 0
A5: SF-00003 | B5: =VLOOKUP(A5,'Itens ARP 2021'!$A$4:$M$425,6,FALSE) ->  | C5: =VLOOKUP(A5,'Itens ARP 2021'!$A$4:$M$425,8,FALSE) ->  | D5: 10 | G5: =C5*16 ->  | AG5: 0 | AH5: 0 | AI5: 0 | AJ5: 0 | AK5: 0 | AL5: 0 | AM5: 0 | AN5: 0 | AO5: 0 | AR5: Código de cores
A6: SF-00004 | B6: =VLOOKUP(A6,'Itens ARP 2021'!$A$4:$M$425,6,FALSE) -> Projetos de segurança do trabalho | C6: =VLOOKUP(A6,'Itens ARP 2021'!$A$4:$M$425,8,FALSE) -> 10 | D6: 6 | H6: =C6*20 -> 200 | AG6: 0 | AH6: 0 | AI6: 0 | AJ6: 0 | AK6: 0 | AL6: 0 | AM6: 0 | AN6: 0 | AO6: 0
A7: SF-00005 | B7: =VLOOKUP(A7,'Itens ARP 2021'!$A$4:$M$425,6,FALSE) -> Demolição de alvenarias | C7: =VLOOKUP(A7,'Itens ARP 2021'!$A$4:$M$425,8,FALSE) -> 100 | D7: 50 | E7: =IFERROR(AL7*C7,0) -> 7.470358915 | F7: =IFERROR(AM7*C7,0) -> 14.94071783 | I7: =C7*0.225 -> 22.5 | J7: =C7*2.3248 -> 232.48 | AG7: 22.5 | AH7: 232.48 | AI7: 254.98 | AJ7: =C7*AL7 -> 7.470358915 | AK7: =C7*AM7 -> 14.94071783 | AL7: 0.07470358915 | AM7: 0.1494071783 | AN7: =AL7/AI7 -> 0.0002929782303 | AO7: =AM7/AI7 -> 0.0005859564605 | AS7: Não contribui para Hh indireto
A8: SF-00006 | B8: =VLOOKUP(A8,'Itens ARP 2021'!$A$4:$M$425,6,FALSE) -> Demolição de concreto simples | C8: =VLOOKUP(A8,'Itens ARP 2021'!$A$4:$M$425,8,FALSE) -> 20 | D8: 20 | E8: 8.379177386 | F8: 16.75835477 | I8: =C8*1.3 -> 26 | J8: =C8*13 -> 260 | AG8: 26 | AH8: 260 | AI8: 286 | AJ8: 8.379177386 | AK8: 16.75835477 | AL8: 0.4189588693 | AM8: 0.8379177386 | AN8: 0.001464891151 | AO8: 0.002929782303
A9: SF-00007 | B9: =VLOOKUP(A9,'Itens ARP 2021'!$A$4:$M$425,6,FALSE) -> Demolição de contrapiso | C9: =VLOOKUP(A9,'Itens ARP 2021'!$A$4:$M$425,8,FALSE) -> 400 | D9: 634 | E9: 8.203390447 | F9: 16.40678089 | J9: =C9*0.7 -> 280 | AG9: 0 | AH9: 280 | AI9: 280 | AJ9: 8.203390447 | AK9: 16.40678089 | AL9: 0.02050847612 | AM9: 0.04101695224 | AN9: 7.324455757e-05 | AO9: 0.0001464891151 | AS9: Hh direto estimado por analogia
A10: SF-00008 | B10: =VLOOKUP(A10,'Itens ARP 2021'!$A$4:$M$425,6,FALSE) -> Demolição de fechamento ou parede em gesso acartonado | C10: =VLOOKUP(A10,'Itens ARP 2021'!$A$4:$M$425,8,FALSE) -> 200 | D10: 100 | E10: 2.059636959 | F10: 4.119273918 | J10: =C10*0.3515 -> 70.3 | AG10: 0 | AH10: 70.3 | AI10: 70.3 | AJ10: 2.059636959 | AK10: 4.119273918 | AL10: 0.01029818479 | AM10: 0.02059636959 | AN10: 0.0001464891151 | AO10: 0.0002929782303
A11: SF-00009 | B11: =VLOOKUP(A11,'Itens ARP 2021'!$A$4:$M$425,6,FALSE) -> Demolição de forro de gesso | C11: =VLOOKUP(A11,'Itens ARP 2021'!$A$4:$M$425,8,FALSE) -> 3000 | D11: 3300 | E11: 18.58067936 | F11: 37.16135873 | J11: =C11*0.1401 -> 420.3 | K11: =C11*0.0713 -> 213.9 | AG11: 213.9 | AH11: 420.3 | AI11: 634.2 | AJ11: 18.58067936 | AK11: 37.16135873 | AL11: 0.006193559788 | AM11: 0.01238711958 | AN11: 9.765941009e-06 | AO11: 1.953188202e-05 | AS11: Dados não disponíveis pelo SEORC - estimado por consulta ao SINAPI
A12: SF-00010 | B12: =VLOOKUP(A12,'Itens ARP 2021'!$A$4:$M$425,6,FALSE) -> Demolição de infraestrutura elétrica (eletrodutos, eletrocalhas, cabos) | C12: =VLOOKUP(A12,'Itens ARP 2021'!$A$4:$M$425,8,FALSE) -> 4000 | D12: 5000 | E12: 16.64116348 | F12: 33.28232696 | J12: =C12*0.094 -> 376 | L12: =C12*0.048 -> 192 | AG12: 192 | AH12: 376 | AI12: 568 | AJ12: 16.64116348 | AK12: 33.28232696 | AL12: 0.00416029087 | AM12: 0.00832058174 | AN12: 7.324455757e-06 | AO12: 1.464891151e-05
A13: SF-00011 | B13: =VLOOKUP(A13,'Itens ARP 2021'!$A$4:$M$425,6,FALSE) -> Demolição de revestimento cerâmico, granito, mármore ou granitina | C13: =VLOOKUP(A13,'Itens ARP 2021'!$A$4:$M$425,8,FALSE) -> 340 | D13: 340 | E13: 4.011399333 | F13: 8.022798666 | J13: =C13*0.2972 -> 101.048 | M13: =C13*0.1055 -> 35.87 | AG13: 35.87 | AH13: 101.048 | AI13: 136.918 | AJ13: 4.011399333 | AK13: 8.022798666 | AL13: 0.01179823333 | AM13: 0.02359646667 | AN13: 8.617006772e-05 | AO13: 0.0001723401354 | AS13: Hh indireto calculado a partir da média histórica 2020
A14: SF-00012 | B14: =VLOOKUP(A14,'Itens ARP 2021'!$A$4:$M$425,6,FALSE) -> Demolição de revestimento em argamassa | C14: =VLOOKUP(A14,'Itens ARP 2021'!$A$4:$M$425,8,FALSE) -> 1000 | D14: 2000 | E14: 4.180799346 | F14: 8.361598692 | I14: =C14*0.0374 -> 37.4 | J14: =C14*0.1053 -> 105.3 | AG14: 37.4 | AH14: 105.3 | AI14: 142.7 | AJ14: 4.180799346 | AK14: 8.361598692 | AL14: 0.004180799346 | AM14: 0.008361598692 | AN14: 2.929782303e-05 | AO14: 5.859564605e-05
A15: SF-00013 | B15: =VLOOKUP(A15,'Itens ARP 2021'!$A$4:$M$425,6,FALSE) -> Demolição de tubulação hidrossanitária embutida com conexões e acessórios | C15: =VLOOKUP(A15,'Itens ARP 2021'!$A$4:$M$425,8,FALSE) -> 100 | D15: 100 | E15: 0.06181840659 | F15: 0.1236368132 | J15: =C15*0.014 -> 1.4 | N15: =C15*0.0071 -> 0.71 | AG15: 0.71 | AH15: 1.4 | AI15: 2.11 | AJ15: 0.06181840659 | AK15: 0.1236368132 | AL15: 0.0006181840659 | AM15: 0.001236368132 | AN15: 0.0002929782303 | AO15: 0.0005859564605
A16: SF-00014 | B16: =VLOOKUP(A16,'Itens ARP 2021'!$A$4:$M$425,6,FALSE) -> Demolição em concreto armado | C16: =VLOOKUP(A16,'Itens ARP 2021'!$A$4:$M$425,8,FALSE) -> 10 | D16: 10 | E16: 2.113867229 | F16: 4.227734458 | I16: =C16*0.6366 -> 6.366 | J16: =C16*6.5785 -> 65.785 | AG16: 6.366 | AH16: 65.785 | AI16: 72.151 | AJ16: 2.113867229 | AK16: 4.227734458 | AL16: 0.2113867229 | AM16: 0.4227734458 | AN16: 0.002929782303 | AO16: 0.005859564605
A17: SF-00015 | B17: =VLOOKUP(A17,'Itens ARP 2021'!$A$4:$M$425,6,FALSE) -> Locação de caçambas | C17: =VLOOKUP(A17,'Itens ARP 2021'!$A$4:$M$425,8,FALSE) -> 110 | D17: 110 | E17: 0 | F17: 0 | AG17: 0 | AH17: 0 | AI17: 0 | AJ17: 0 | AK17: 0 | AL17: 0 | AM17: 0 | AN17: 0 | AO17: 0 | AR17: Cálculo coeficientes médios c/ base 2020
A18: SF-00016 | B18: =VLOOKUP(A18,'Itens ARP 2021'!$A$4:$M$425,6,FALSE) -> Remoção de armários | C18: =VLOOKUP(A18,'Itens ARP 2021'!$A$4:$M$425,8,FALSE) -> 240 | D18: 240 | E18: 4.922034268 | F18: 9.844068537 | J18: =C18*0.35 -> 84 | O18: =C18*0.35 -> 84 | AG18: 84 | AH18: 84 | AI18: 168 | AJ18: =C18*AL18 -> 4.922034268 | AK18: =C18*AM18 -> 9.844068537 | AL18: 0.02050847612 | AM18: 0.04101695224 | AN18: 0.0001220742626 | AO18: 0.0002441485252
A19: SF-00017 | B19: =VLOOKUP(A19,'Itens ARP 2021'!$A$4:$M$425,6,FALSE) -> Remoção de bancadas | C19: =VLOOKUP(A19,'Itens ARP 2021'!$A$4:$M$425,8,FALSE) -> 40 | D19: 40 | E19: 1.347699859 | F19: 2.695399718 | I19: =C19*0.15 -> 6 | J19: =C19*1 -> 40 | AG19: 6 | AH19: 40 | AI19: 46 | AJ19: 1.347699859 | AK19: 2.695399718 | AL19: 0.03369249648 | AM19: 0.06738499296 | AN19: 0.0007324455757 | AO19: 0.001464891151 | AR19: Dados obtidos por meio de rateio: | AV19: AL3:AM391
A20: SF-00018 | B20: =VLOOKUP(A20,'Itens ARP 2021'!$A$4:$M$425,6,FALSE) -> Remoção de batentes de madeira | C20: =VLOOKUP(A20,'Itens ARP 2021'!$A$4:$M$425,8,FALSE) -> 50 | D20: 43 | E20: 0.3996076572 | F20: 0.7992153143 | I20: =C20*0.09205 -> 4.6025 | J20: =C20*0.18074 -> 9.037 | AG20: 4.6025 | AH20: 9.037 | AI20: 13.6395 | AJ20: 0.3996076572 | AK20: 0.7992153143 | AL20: 0.007992153143 | AM20: 0.01598430629 | AN20: 0.0005859564605 | AO20: 0.001171912921
A21: SF-00019 | B21: =VLOOKUP(A21,'Itens ARP 2021'!$A$4:$M$425,6,FALSE) -> Remoção de canaleta em alumínio | C21: =VLOOKUP(A21,'Itens ARP 2021'!$A$4:$M$425,8,FALSE) -> 200 | D21: 300 | E21: 1.318402036 | F21: 2.636804072 | J21: =C21*0.15 -> 30 | L21: =C21*0.075 -> 15 | AG21: 15 | AH21: 30 | AI21: 45 | AJ21: 1.318402036 | AK21: 2.636804072 | AL21: 0.006592010181 | AM21: 0.01318402036 | AN21: 0.0001464891151 | AO21: 0.0002929782303 | AR21: Coeficientes HhI normalizados por HhD | AV21: AN3:AO391
A22: SF-00020 | B22: =VLOOKUP(A22,'Itens ARP 2021'!$A$4:$M$425,6,FALSE) -> Remoção de carpete | C22: =VLOOKUP(A22,'Itens ARP 2021'!$A$4:$M$425,8,FALSE) -> 300 | D22: 400 | E22: 0.9668281599 | F22: 1.93365632 | I22: =C22*0.01 -> 3 | J22: =C22*0.1 -> 30 | AG22: 3 | AH22: 30 | AI22: 33 | AJ22: 0.9668281599 | AK22: 1.93365632 | AL22: 0.003222760533 | AM22: 0.006445521066 | AN22: 9.765941009e-05 | AO22: 0.0001953188202
A23: SF-00021 | B23: =VLOOKUP(A23,'Itens ARP 2021'!$A$4:$M$425,6,FALSE) -> Remoção de cortinas | C23: =VLOOKUP(A23,'Itens ARP 2021'!$A$4:$M$425,8,FALSE) -> 50 | D23: 50 | E23: 0.2490314957 | F23: 0.4980629915 | P23: =C23*0.17 -> 8.5 | AG23: 0 | AH23: 8.5 | AI23: 8.5 | AJ23: 0.2490314957 | AK23: 0.4980629915 | AL23: 0.004980629915 | AM23: 0.009961259829 | AN23: 0.0005859564605 | AO23: 0.001171912921 | AR23: Coef. Engenheiro / HhD | AU23: (médio) | AV23: 0.01704746509 | AW23: = | AX23: =100*AV23 -> 1.704746509 | AY23: %
A24: SF-00022 | B24: =VLOOKUP(A24,'Itens ARP 2021'!$A$4:$M$425,6,FALSE) -> Remoção de difusores, grelhas e acessórios de climatização | C24: =VLOOKUP(A24,'Itens ARP 2021'!$A$4:$M$425,8,FALSE) -> 120 | D24: 120 | E24: 4.218886516 | F24: 8.437773032 | J24: =C24*0.6 -> 72 | Q24: =C24*0.6 -> 72 | AG24: 0 | AH24: 144 | AI24: 144 | AJ24: 4.218886516 | AK24: 8.437773032 | AL24: 0.03515738763 | AM24: 0.07031477526 | AN24: 0.0002441485252 | AO24: 0.0004882970504
A25: SF-00023 | B25: =VLOOKUP(A25,'Itens ARP 2021'!$A$4:$M$425,6,FALSE) -> Remoção de divisória de mármore ou granito | C25: =VLOOKUP(A25,'Itens ARP 2021'!$A$4:$M$425,8,FALSE) -> 40 | D25: 60 | E25: 2.109443258 | F25: 4.218886516 | J25: =C25*1.2 -> 48 | R25: =C25*0.6 -> 24 | AG25: 24 | AH25: 48 | AI25: 72 | AJ25: 2.109443258 | AK25: 4.218886516 | AL25: 0.05273608145 | AM25: 0.1054721629 | AN25: 0.0007324455757 | AO25: 0.001464891151 | AR25: Coef. Mestre / HhD | AU25: (médio) | AV25: 0.03409493018 | AW25: = | AX25: =100*AV25 -> 3.409493018 | AY25: %
A26: SF-00024 | B26: =VLOOKUP(A26,'Itens ARP 2021'!$A$4:$M$425,6,FALSE) -> Remoção de divisórias de MDF e gesso acartonado | C26: =VLOOKUP(A26,'Itens ARP 2021'!$A$4:$M$425,8,FALSE) -> 1500 | D26: 1387 | E26: 52.73608145 | F26: 105.4721629 | O26: =C26*1.2 -> 1800 | AG26: 1800 | AH26: 0 | AI26: 1800 | AJ26: 52.73608145 | AK26: 105.4721629 | AL26: 0.03515738763 | AM26: 0.07031477526 | AN26: 1.953188202e-05 | AO26: 3.906376404e-05
A27: SF-00025 | B27: =VLOOKUP(A27,'Itens ARP 2021'!$A$4:$M$425,6,FALSE) -> Remoção de dutos/tubulações | C27: =VLOOKUP(A27,'Itens ARP 2021'!$A$4:$M$425,8,FALSE) -> 1500 | D27: 2000 | E27: 20.87469891 | F27: 41.74939781 | J27: =C27*0.3 -> 450 | N27: =C27*0.175 -> 262.5 | AG27: 262.5 | AH27: 450 | AI27: 712.5 | AJ27: 20.87469891 | AK27: 41.74939781 | AL27: 0.01391646594 | AM27: 0.02783293188 | AN27: 1.953188202e-05 | AO27: 3.906376404e-05 | AR27: NOTAS IMPORTANTES:
A28: SF-00026 | B28: =VLOOKUP(A28,'Itens ARP 2021'!$A$4:$M$425,6,FALSE) -> Remoção de esquadrias metálicas | C28: =VLOOKUP(A28,'Itens ARP 2021'!$A$4:$M$425,8,FALSE) -> 70 | D28: 100 | E28: 1.127966187 | F28: 2.255932373 | I28: =C28*0.05 -> 3.5 | J28: =C28*0.5 -> 35 | AG28: 3.5 | AH28: 35 | AI28: 38.5 | AJ28: 1.127966187 | AK28: 2.255932373 | AL28: 0.01611380266 | AM28: 0.03222760533 | AN28: 0.0004185403289 | AO28: 0.0008370806579 | AR28: COEFICIENTES MÉDIOS FORAM CALCULADOS PROPORCIONALMENTE AOS QUANTITATIVOS FÍSICOS ORIGINAIS DE 2020
A29: SF-00027 | B29: =VLOOKUP(A29,'Itens ARP 2021'!$A$4:$M$425,6,FALSE) -> Remoção de exaustor | C29: =VLOOKUP(A29,'Itens ARP 2021'!$A$4:$M$425,8,FALSE) -> 15 | D29: 20 | E29: 0.4394673454 | F29: 0.8789346908 | I29: =C29*0.5 -> 7.5 | J29: =C29*0.5 -> 7.5 | AG29: 7.5 | AH29: 7.5 | AI29: 15 | AJ29: 0.4394673454 | AK29: 0.8789346908 | AL29: 0.02929782303 | AM29: 0.05859564605 | AN29: 0.001953188202 | AO29: 0.003906376404 | AR29: COEFICIENTES NORMALIZADOS NAS COLUNAS 'AN E'AO SÃO PROPORCIONAIS AOS QUANTITATIVOS DA ATA VIGENTE
A30: SF-00028 | B30: =VLOOKUP(A30,'Itens ARP 2021'!$A$4:$M$425,6,FALSE) -> Remoção de fechadura/puxador de porta | C30: =VLOOKUP(A30,'Itens ARP 2021'!$A$4:$M$425,8,FALSE) -> 101 | D30: 101 | E30: 0.7397700314 | F30: 1.479540063 | O30: =C30*0.25 -> 25.25 | AG30: 25.25 | AH30: 0 | AI30: 25.25 | AJ30: 0.7397700314 | AK30: 1.479540063 | AL30: 0.007324455757 | AM30: 0.01464891151 | AN30: 0.0002900774557 | AO30: 0.0005801549114 | AR30: EM OUTRAS PALAVRAS, SE CALCULADA NOVA MÉDIA DE 'AN E 'AO, NÃO SERÁ IGUAL AOS VALORES EM 'AV23 E 'AV25
A31: SF-00029 | B31: =VLOOKUP(A31,'Itens ARP 2021'!$A$4:$M$425,6,FALSE) -> Remoção de folha de porta e dobradiças / pivôs | C31: =VLOOKUP(A31,'Itens ARP 2021'!$A$4:$M$425,8,FALSE) -> 82 | D31: 82 | E31: 0.9362236539 | F31: 1.872447308 | I31: =C31*0.1315 -> 10.783 | J31: =C31*0.2582 -> 21.1724 | AG31: 10.783 | AH31: 21.1724 | AI31: 31.9554 | AJ31: 0.9362236539 | AK31: 1.872447308 | AL31: 0.01141736163 | AM31: 0.02283472327 | AN31: 0.0003572905247 | AO31: 0.0007145810494
A32: SF-00030 | B32: =VLOOKUP(A32,'Itens ARP 2021'!$A$4:$M$425,6,FALSE) -> Remoção de laminado melamínico (LDAP), em PVC ou vinílico | C32: =VLOOKUP(A32,'Itens ARP 2021'!$A$4:$M$425,8,FALSE) -> 1000 | D32: 1000 | E32: 29.0048448 | F32: 58.00968959 | I32: =C32*0.09 -> 90 | J32: =C32*0.9 -> 900 | AG32: 90 | AH32: 900 | AI32: 990 | AJ32: 29.0048448 | AK32: 58.00968959 | AL32: 0.0290048448 | AM32: 0.05800968959 | AN32: 2.929782303e-05 | AO32: 5.859564605e-05
A33: SF-00031 | B33: =VLOOKUP(A33,'Itens ARP 2021'!$A$4:$M$425,6,FALSE) -> Remoção de louças | C33: =VLOOKUP(A33,'Itens ARP 2021'!$A$4:$M$425,8,FALSE) -> 80 | D33: 120 | E33: 1.219492586 | F33: 2.438985171 | J33: =C33*0.3448 -> 27.584 | N33: =C33*0.1755 -> 14.04 | AG33: 14.04 | AH33: 27.584 | AI33: 41.624 | AJ33: 1.219492586 | AK33: 2.438985171 | AL33: 0.01524365732 | AM33: 0.03048731464 | AN33: 0.0003662227878 | AO33: 0.0007324455757
A34: SF-00032 | B34: =VLOOKUP(A34,'Itens ARP 2021'!$A$4:$M$425,6,FALSE) -> Remoção de luminária | C34: =VLOOKUP(A34,'Itens ARP 2021'!$A$4:$M$425,8,FALSE) -> 500 | D34: 500 | E34: 3.96985502 | F34: 7.93971004 | J34: =C34*0.1795 -> 89.75 | L34: =C34*0.0915 -> 45.75 | AG34: 45.75 | AH34: 89.75 | AI34: 135.5 | AJ34: 3.96985502 | AK34: 7.93971004 | AL34: 0.00793971004 | AM34: 0.01587942008 | AN34: 5.859564605e-05 | AO34: 0.0001171912921
A35: SF-00033 | B35: =VLOOKUP(A35,'Itens ARP 2021'!$A$4:$M$425,6,FALSE) -> Remoção de metais e acessórios | C35: =VLOOKUP(A35,'Itens ARP 2021'!$A$4:$M$425,8,FALSE) -> 300 | D35: 300 | E35: 3.334678217 | F35: 6.669356434 | J35: =C35*0.2514 -> 75.42 | N35: =C35*0.128 -> 38.4 | AG35: 38.4 | AH35: 75.42 | AI35: 113.82 | AJ35: 3.334678217 | AK35: 6.669356434 | AL35: 0.01111559406 | AM35: 0.02223118811 | AN35: 9.765941009e-05 | AO35: 0.0001953188202
A36: SF-00034 | B36: =VLOOKUP(A36,'Itens ARP 2021'!$A$4:$M$425,6,FALSE) -> Remoção de painéis de vidro temperado | C36: =VLOOKUP(A36,'Itens ARP 2021'!$A$4:$M$425,8,FALSE) -> 586 | D36: 586 | E36: 12.01796701 | F36: 24.03593401 | I36: =C36*0.35 -> 205.1 | J36: =C36*0.35 -> 205.1 | AG36: 205.1 | AH36: 205.1 | AI36: 410.2 | AJ36: 12.01796701 | AK36: 24.03593401 | AL36: 0.02050847612 | AM36: 0.04101695224 | AN36: 4.999628503e-05 | AO36: 9.999257006e-05
A37: SF-00035 | B37: =VLOOKUP(A37,'Itens ARP 2021'!$A$4:$M$425,6,FALSE) -> Remoção de película | C37: =VLOOKUP(A37,'Itens ARP 2021'!$A$4:$M$425,8,FALSE) -> 196 | D37: 196 | E37: 0 | F37: 0 | AG37: 0 | AH37: 0 | AI37: 0 | AJ37: 0 | AK37: 0 | AL37: 0 | AM37: 0 | AN37: 0 | AO37: 0
A38: SF-00036 | B38: =VLOOKUP(A38,'Itens ARP 2021'!$A$4:$M$425,6,FALSE) -> Remoção de persianas | C38: =VLOOKUP(A38,'Itens ARP 2021'!$A$4:$M$425,8,FALSE) -> 400 | D38: 186 | E38: 1.953188202 | F38: 3.906376404 | P38: =C38*0.166666666666667 -> 66.66666667 | AG38: 0 | AH38: 66.66666667 | AI38: 66.66666667 | AJ38: =C38*AL38 -> 1.953188202 | AK38: =C38*AM38 -> 3.906376404 | AL38: 0.004882970504 | AM38: 0.009765941009 | AN38: 7.324455757e-05 | AO38: 0.0001464891151
A39: SF-00037 | B39: =VLOOKUP(A39,'Itens ARP 2021'!$A$4:$M$425,6,FALSE) -> Remoção de pintura ou textura | C39: =VLOOKUP(A39,'Itens ARP 2021'!$A$4:$M$425,8,FALSE) -> 4000 | D39: 5800 | E39: 46.87651684 | F39: 93.75303368 | J39: =C39*0.4 -> 1600 | AG39: 0 | AH39: 1600 | AI39: 1600 | AJ39: 46.87651684 | AK39: 93.75303368 | AL39: 0.01171912921 | AM39: 0.02343825842 | AN39: 7.324455757e-06 | AO39: 1.464891151e-05
A40: SF-00038 | B40: =VLOOKUP(A40,'Itens ARP 2021'!$A$4:$M$425,6,FALSE) -> Remoção de placas de forro | C40: =VLOOKUP(A40,'Itens ARP 2021'!$A$4:$M$425,8,FALSE) -> 500 | D40: 831 | E40: 3.361925192 | F40: 6.723850385 | J40: =C40*0.1521 -> 76.05 | S40: =C40*0.0774 -> 38.7 | AG40: 38.7 | AH40: 76.05 | AI40: 114.75 | AJ40: 3.361925192 | AK40: 6.723850385 | AL40: 0.006723850385 | AM40: 0.01344770077 | AN40: 5.859564605e-05 | AO40: 0.0001171912921
A41: SF-00039 | B41: =VLOOKUP(A41,'Itens ARP 2021'!$A$4:$M$425,6,FALSE) -> Remoção de quadros de elétricos ou de telecomunicações | C41: =VLOOKUP(A41,'Itens ARP 2021'!$A$4:$M$425,8,FALSE) -> 30 | D41: 30 | E41: 2.636804072 | F41: 5.273608145 | I41: =C41*1 -> 30 | J41: =C41*1 -> 30 | L41: =C41*0.5 -> 15 | T41: =C41*0.5 -> 15 | AG41: 45 | AH41: 45 | AI41: 90 | AJ41: 2.636804072 | AK41: 5.273608145 | AL41: 0.08789346908 | AM41: 0.1757869382 | AN41: 0.0009765941009 | AO41: 0.001953188202
A42: SF-00040 | B42: =VLOOKUP(A42,'Itens ARP 2021'!$A$4:$M$425,6,FALSE) -> Remoção de revestimento acústico | C42: =VLOOKUP(A42,'Itens ARP 2021'!$A$4:$M$425,8,FALSE) -> 300 | D42: 440 | E42: 1.757869382 | F42: 3.515738763 | J42: =C42*0.2 -> 60 | AG42: 0 | AH42: 60 | AI42: 60 | AJ42: 1.757869382 | AK42: 3.515738763 | AL42: 0.005859564605 | AM42: 0.01171912921 | AN42: 9.765941009e-05 | AO42: 0.0001953188202
A43: SF-00041 | B43: =VLOOKUP(A43,'Itens ARP 2021'!$A$4:$M$425,6,FALSE) -> Remoção de rodapé/rodabanca de mármore ou granito | C43: =VLOOKUP(A43,'Itens ARP 2021'!$A$4:$M$425,8,FALSE) -> 350 | D43: 333 | E43: 4.481102032 | F43: 8.962204064 | J43: =C43*0.437 -> 152.95 | AG43: 0 | AH43: 152.95 | AI43: 152.95 | AJ43: 4.481102032 | AK43: 8.962204064 | AL43: 0.01280314866 | AM43: 0.02560629733 | AN43: 8.370806579e-05 | AO43: 0.0001674161316
A44: SF-00042 | B44: =VLOOKUP(A44,'Itens ARP 2021'!$A$4:$M$425,6,FALSE) -> Remoção de rodapés de madeira | C44: =VLOOKUP(A44,'Itens ARP 2021'!$A$4:$M$425,8,FALSE) -> 10 | D44: 10 | E44: 0.08056901332 | F44: 0.1611380266 | J44: =C44*0.025 -> 0.25 | O44: =C44*0.25 -> 2.5 | AG44: 2.5 | AH44: 0.25 | AI44: 2.75 | AJ44: 0.08056901332 | AK44: 0.1611380266 | AL44: 0.008056901332 | AM44: 0.01611380266 | AN44: 0.002929782303 | AO44: 0.005859564605
A45: SF-00043 | B45: =VLOOKUP(A45,'Itens ARP 2021'!$A$4:$M$425,6,FALSE) -> Remoção de soleira de mármore ou granito | C45: =VLOOKUP(A45,'Itens ARP 2021'!$A$4:$M$425,8,FALSE) -> 20 | D45: 20 | E45: 0.3222760533 | F45: 0.6445521066 | J45: =C45*0.55 -> 11 | AG45: 0 | AH45: 11 | AI45: 11 | AJ45: 0.3222760533 | AK45: 0.6445521066 | AL45: 0.01611380266 | AM45: 0.03222760533 | AN45: 0.001464891151 | AO45: 0.002929782303
A46: SF-00044 | B46: =VLOOKUP(A46,'Itens ARP 2021'!$A$4:$M$425,6,FALSE) -> Remoção de split/fancolete/ACJ (equipamento unitário) | C46: =VLOOKUP(A46,'Itens ARP 2021'!$A$4:$M$425,8,FALSE) -> 150 | D46: 200 | E46: 8.789346908 | F46: 17.57869382 | Q46: =C46*1 -> 150 | U46: =C46*1 -> 150 | AG46: 150 | AH46: 150 | AI46: 300 | AJ46: 8.789346908 | AK46: 17.57869382 | AL46: 0.05859564605 | AM46: 0.1171912921 | AN46: 0.0001953188202 | AO46: 0.0003906376404
A47: SF-00045 | B47: =VLOOKUP(A47,'Itens ARP 2021'!$A$4:$M$425,6,FALSE) -> Remoção de vidro comum / espelho | C47: =VLOOKUP(A47,'Itens ARP 2021'!$A$4:$M$425,8,FALSE) -> 60 | D47: 53 | E47: 1.230508567 | F47: 2.461017134 | J47: =C47*0.2 -> 12 | V47: =C47*0.5 -> 30 | AG47: 30 | AH47: 12 | AI47: 42 | AJ47: 1.230508567 | AK47: 2.461017134 | AL47: 0.02050847612 | AM47: 0.04101695224 | AN47: 0.0004882970504 | AO47: 0.0009765941009
A48: SF-00046 | B48: =VLOOKUP(A48,'Itens ARP 2021'!$A$4:$M$425,6,FALSE) -> Retirada de entulhos | C48: =VLOOKUP(A48,'Itens ARP 2021'!$A$4:$M$425,8,FALSE) -> 410 | D48: 410 | E48: 12.01210744 | F48: 24.02421488 | J48: =C48*1 -> 410 | AG48: 0 | AH48: 410 | AI48: 410 | AJ48: 12.01210744 | AK48: 24.02421488 | AL48: 0.02929782303 | AM48: 0.05859564605 | AN48: 7.145810494e-05 | AO48: 0.0001429162099
A49: SF-00047 | B49: =VLOOKUP(A49,'Itens ARP 2021'!$A$4:$M$425,6,FALSE) -> Absorvedor de energia para linha de vida | C49: =VLOOKUP(A49,'Itens ARP 2021'!$A$4:$M$425,8,FALSE) -> 5 | D49: 5 | E49: 0.02490314957 | F49: 0.04980629915 | S49: =0.17*C49 -> 0.85 | AG49: 0.85 | AH49: 0 | AI49: 0.85 | AJ49: 0.02490314957 | AK49: 0.04980629915 | AL49: 0.004980629915 | AM49: 0.009961259829 | AN49: 0.005859564605 | AO49: 0.01171912921
A50: SF-00048 | B50: =VLOOKUP(A50,'Itens ARP 2021'!$A$4:$M$425,6,FALSE) -> Andaime fachadeiro | C50: =VLOOKUP(A50,'Itens ARP 2021'!$A$4:$M$425,8,FALSE) -> 400 | D50: 350 | E50: 0 | F50: 0 | AG50: 0 | AH50: 0 | AI50: 0 | AJ50: 0 | AK50: 0 | AL50: 0 | AM50: 0 | AN50: 0 | AO50: 0
A51: SF-00049 | B51: =VLOOKUP(A51,'Itens ARP 2021'!$A$4:$M$425,6,FALSE) -> Andaime tubular (aluguel/mês) | C51: =VLOOKUP(A51,'Itens ARP 2021'!$A$4:$M$425,8,FALSE) -> 70 | D51: 70 | E51: 0 | F51: 0 | AG51: 0 | AH51: 0 | AI51: 0 | AJ51: 0 | AK51: 0 | AL51: 0 | AM51: 0 | AN51: 0 | AO51: 0
A52: SF-00050 | B52: =VLOOKUP(A52,'Itens ARP 2021'!$A$4:$M$425,6,FALSE) -> Cabo de aço com 8 mm de diâmetro galvanizado para linha de vida | C52: =VLOOKUP(A52,'Itens ARP 2021'!$A$4:$M$425,8,FALSE) -> 280 | D52: 280 | E52: 1.367505188 | F52: 2.735010375 | S52: =0.1667*C52 -> 46.676 | AG52: 46.676 | AH52: 0 | AI52: 46.676 | AJ52: =C52*AL52 -> 1.367505188 | AK52: =C52*AM52 -> 2.735010375 | AL52: 0.004883947099 | AM52: 0.009767894197 | AN52: 0.0001046350822 | AO52: 0.0002092701645
A53: SF-00051 | B53: =VLOOKUP(A53,'Itens ARP 2021'!$A$4:$M$425,6,FALSE) -> Corda de poliamida 12 mm tipo bombeiro, para trabalho em altura | C53: =VLOOKUP(A53,'Itens ARP 2021'!$A$4:$M$425,8,FALSE) -> 84 | D53: 84 | E53: 0.1230508567 | F53: 0.2461017134 | S53: =0.05*C53 -> 4.2 | AG53: 4.2 | AH53: 0 | AI53: 4.2 | AJ53: =C53*AL53 -> 0.1230508567 | AK53: =C53*AM53 -> 0.2461017134 | AL53: 0.001464891151 | AM53: 0.002929782303 | AN53: 0.0003487836075 | AO53: 0.0006975672149
A54: SF-00052 | B54: =VLOOKUP(A54,'Itens ARP 2021'!$A$4:$M$425,6,FALSE) -> Ensaio de ponto de ancoragem existente | C54: =VLOOKUP(A54,'Itens ARP 2021'!$A$4:$M$425,8,FALSE) -> 20 | D54: 28 | E54: 0.5859564605 | F54: 1.171912921 | P54: =0.5*C54 -> 10 | S54: =0.5*C54 -> 10 | AG54: 10 | AH54: 10 | AI54: 20 | AJ54: =C54*AL54 -> 0.5859564605 | AK54: =C54*AM54 -> 1.171912921 | AL54: 0.02929782303 | AM54: 0.05859564605 | AN54: 0.001464891151 | AO54: 0.002929782303
A55: SF-00053 | B55: =VLOOKUP(A55,'Itens ARP 2021'!$A$4:$M$425,6,FALSE) ->  | C55: =VLOOKUP(A55,'Itens ARP 2021'!$A$4:$M$425,8,FALSE) ->  | D55: 40 | E55: 0 | F55: 0 | AG55: 0 | AH55: 0 | AI55: 0 | AJ55: 0 | AK55: 0 | AL55: 0 | AM55: 0 | AN55: 0 | AO55: 0
A56: SF-00054 | B56: =VLOOKUP(A56,'Itens ARP 2021'!$A$4:$M$425,6,FALSE) ->  | C56: =VLOOKUP(A56,'Itens ARP 2021'!$A$4:$M$425,8,FALSE) ->  | E56: 0 | F56: 0 | AG56: 0 | AH56: 0 | AI56: 0 | AJ56: 0 | AK56: 0 | AL56: 0 | AM56: 0 | AN56: 0 | AO56: 0
A57: SF-00055 | B57: =VLOOKUP(A57,'Itens ARP 2021'!$A$4:$M$425,6,FALSE) ->  | C57: =VLOOKUP(A57,'Itens ARP 2021'!$A$4:$M$425,8,FALSE) ->  | D57: 50 | E57: 0 | F57: 0 | AG57: 0 | AH57: 0 | AI57: 0 | AJ57: 0 | AK57: 0 | AL57: 0 | AM57: 0 | AN57: 0 | AO57: 0
A58: SF-00056 | B58: =VLOOKUP(A58,'Itens ARP 2021'!$A$4:$M$425,6,FALSE) ->  | C58: =VLOOKUP(A58,'Itens ARP 2021'!$A$4:$M$425,8,FALSE) ->  | E58: 0 | F58: 0 | AG58: 0 | AH58: 0 | AI58: 0 | AJ58: 0 | AK58: 0 | AL58: 0 | AM58: 0 | AN58: 0 | AO58: 0
A59: SF-00057 | B59: =VLOOKUP(A59,'Itens ARP 2021'!$A$4:$M$425,6,FALSE) -> Isolamento de obra com tela plástica com malha de 5mm e estrutura de madeira pontaleteada | C59: =VLOOKUP(A59,'Itens ARP 2021'!$A$4:$M$425,8,FALSE) -> 200 | D59: 280 | E59: 5.683777667 | F59: 11.36755533 | W59: =C59*0.53 -> 106 | X59: =C59*0.44 -> 88 | AG59: 88 | AH59: 106 | AI59: 194 | AJ59: =C59*AL59 -> 5.683777667 | AK59: =C59*AM59 -> 11.36755533 | AL59: 0.02841888834 | AM59: 0.05683777667 | AN59: 0.0001464891151 | AO59: 0.0002929782303
A60: SF-00058 | B60: =VLOOKUP(A60,'Itens ARP 2021'!$A$4:$M$425,6,FALSE) -> Suporte intermediário curvo para linha de vida | C60: =VLOOKUP(A60,'Itens ARP 2021'!$A$4:$M$425,8,FALSE) -> 5 | D60: 5 | E60: 0.09760569741 | F60: 0.1952113948 | P60: =0.333*C60 -> 1.665 | S60: =0.3333*C60 -> 1.6665 | AG60: 1.6665 | AH60: 1.665 | AI60: 3.3315 | AJ60: =C60*AL60 -> 0.09760569741 | AK60: =C60*AM60 -> 0.1952113948 | AL60: 0.01952113948 | AM60: 0.03904227897 | AN60: 0.005859564605 | AO60: 0.01171912921
A61: SF-00059 | B61: =VLOOKUP(A61,'Itens ARP 2021'!$A$4:$M$425,6,FALSE) ->  | C61: =VLOOKUP(A61,'Itens ARP 2021'!$A$4:$M$425,8,FALSE) ->  | E61: 0 | F61: 0 | AG61: 0 | AH61: 0 | AI61: 0 | AJ61: 0 | AK61: 0 | AL61: 0 | AM61: 0 | AN61: 0 | AO61: 0
A62: SF-00060 | B62: =VLOOKUP(A62,'Itens ARP 2021'!$A$4:$M$425,6,FALSE) -> Kit para montagem de dois olhais | C62: =VLOOKUP(A62,'Itens ARP 2021'!$A$4:$M$425,8,FALSE) -> 5 | D62: 5 | E62: 0 | F62: 0 | AG62: 0 | AH62: 0 | AI62: 0 | AJ62: 0 | AK62: 0 | AL62: 0 | AM62: 0 | AN62: 0 | AO62: 0
A63: SF-00061 | B63: =VLOOKUP(A63,'Itens ARP 2021'!$A$4:$M$425,6,FALSE) -> Manilha com travamento por porca e cupilha | C63: =VLOOKUP(A63,'Itens ARP 2021'!$A$4:$M$425,8,FALSE) -> 14 | D63: 14 | E63: 0.06833424243 | F63: 0.1366684849 | P63: =0.0833*C63 -> 1.1662 | S63: =0.0833*C63 -> 1.1662 | AG63: 1.1662 | AH63: 1.1662 | AI63: 2.3324 | AJ63: =C63*AL63 -> 0.06833424243 | AK63: =C63*AM63 -> 0.1366684849 | AL63: 0.004881017316 | AM63: 0.009762034632 | AN63: 0.002092701645 | AO63: 0.004185403289
A64: SF-00062 | B64: =VLOOKUP(A64,'Itens ARP 2021'!$A$4:$M$425,6,FALSE) -> Pilar de ancoragem para linha de vida | C64: =VLOOKUP(A64,'Itens ARP 2021'!$A$4:$M$425,8,FALSE) -> 14 | D64: 14 | E64: 0.4101695224 | F64: 0.8203390447 | P64: =0.5*C64 -> 7 | S64: =0.5*C64 -> 7 | AG64: 7 | AH64: 7 | AI64: 14 | AJ64: =C64*AL64 -> 0.4101695224 | AK64: =C64*AM64 -> 0.8203390447 | AL64: 0.02929782303 | AM64: 0.05859564605 | AN64: 0.002092701645 | AO64: 0.004185403289
A65: SF-00063 | B65: =VLOOKUP(A65,'Itens ARP 2021'!$A$4:$M$425,6,FALSE) ->  | C65: =VLOOKUP(A65,'Itens ARP 2021'!$A$4:$M$425,8,FALSE) ->  | D65: 50 | E65: 0 | F65: 0 | AG65: 0 | AH65: 0 | AI65: 0 | AJ65: 0 | AK65: 0 | AL65: 0 | AM65: 0 | AN65: 0 | AO65: 0
A66: SF-00064 | B66: =VLOOKUP(A66,'Itens ARP 2021'!$A$4:$M$425,6,FALSE) ->  | C66: =VLOOKUP(A66,'Itens ARP 2021'!$A$4:$M$425,8,FALSE) ->  | E66: 0 | F66: 0 | AG66: 0 | AH66: 0 | AI66: 0 | AJ66: 0 | AK66: 0 | AL66: 0 | AM66: 0 | AN66: 0 | AO66: 0
A67: SF-00065 | B67: =VLOOKUP(A67,'Itens ARP 2021'!$A$4:$M$425,6,FALSE) -> Placa de ancoragem para montagem no pilar | C67: =VLOOKUP(A67,'Itens ARP 2021'!$A$4:$M$425,8,FALSE) -> 10 | D67: 10 | E67: 0.04881017316 | F67: 0.09762034632 | P67: =0.0833*C67 -> 0.833 | S67: =0.0833*C67 -> 0.833 | AG67: =SUM(I67,K67,L67,M67,N67,O67,R67,S67,U67,V67,X67,Y67,AA67,AB67,AD67,AE67) -> 0.833 | AH67: =SUM(P67,Q67,T67,W67,Z67,AC67,AF67)+J67 -> 0.833 | AI67: 1.666 | AJ67: =C67*AL67 -> 0.04881017316 | AK67: =C67*AM67 -> 0.09762034632 | AL67: 0.004881017316 | AM67: 0.009762034632 | AN67: 0.002929782303 | AO67: 0.005859564605
A68: SF-00066 | B68: =VLOOKUP(A68,'Itens ARP 2021'!$A$4:$M$425,6,FALSE) -> Ponto de ancoragem | C68: =VLOOKUP(A68,'Itens ARP 2021'!$A$4:$M$425,8,FALSE) -> 25 | D68: 32 | E68: 0.7324455757 | F68: 1.464891151 | P68: =0.5*C68 -> 12.5 | S68: =0.5*C68 -> 12.5 | AG68: 12.5 | AH68: 12.5 | AI68: =AG68+AH68 -> 25 | AJ68: =C68*AL68 -> 0.7324455757 | AK68: =C68*AM68 -> 1.464891151 | AL68: 0.02929782303 | AM68: 0.05859564605 | AN68: =AL68/AI68 -> 0.001171912921 | AO68: =AM68/AI68 -> 0.002343825842
A69: SF-00067 | B69: =VLOOKUP(A69,'Itens ARP 2021'!$A$4:$M$425,6,FALSE) ->  | C69: =VLOOKUP(A69,'Itens ARP 2021'!$A$4:$M$425,8,FALSE) ->  | D69: 25 | E69: 0 | F69: 0 | AG69: 0 | AH69: 0 | AI69: 0 | AJ69: 0 | AK69: 0 | AL69: 0 | AM69: 0 | AN69: 0 | AO69: 0
A70: SF-00068 | B70: =VLOOKUP(A70,'Itens ARP 2021'!$A$4:$M$425,6,FALSE) -> Sistema Guarda-corpo-Rodapé (GcR) metálico | C70: =VLOOKUP(A70,'Itens ARP 2021'!$A$4:$M$425,8,FALSE) -> 280 | D70: 315 | E70: 0 | F70: 0 | AG70: 0 | AH70: 0 | AI70: 0 | AJ70: 0 | AK70: 0 | AL70: 0 | AM70: 0 | AN70: 0 | AO70: 0
A71: SF-00069 | B71: =VLOOKUP(A71,'Itens ARP 2021'!$A$4:$M$425,6,FALSE) -> Suporte intermediário para linha de vida | C71: =VLOOKUP(A71,'Itens ARP 2021'!$A$4:$M$425,8,FALSE) -> 15 | D71: 17 | E71: =IFERROR(AL71*C71,0) -> 0.2929489324 | F71: =IFERROR(AM71*C71,0) -> 0.5858978649 | P71: =0.3333*C71 -> 4.9995 | S71: =0.3333*C71 -> 4.9995 | AG71: 4.9995 | AH71: 4.9995 | AI71: 9.999 | AJ71: =C71*AL71 -> 0.2929489324 | AK71: =C71*AM71 -> 0.5858978649 | AL71: 0.01952992883 | AM71: 0.03905985766 | AN71: 0.001953188202 | AO71: 0.003906376404
A72: SF-00070 | B72: =VLOOKUP(A72,'Itens ARP 2021'!$A$4:$M$425,6,FALSE) -> Tapume | C72: =VLOOKUP(A72,'Itens ARP 2021'!$A$4:$M$425,8,FALSE) -> 300 | D72: 55 | E72: 18.01816116 | F72: 36.03632232 | J72: =C72*0.95 -> 285 | X72: =C72*0.8 -> 240 | Y72: =C72*0.3 -> 90 | AG72: 330 | AH72: 285 | AI72: 615 | AJ72: =C72*AL72 -> 18.01816116 | AK72: =C72*AM72 -> 36.03632232 | AL72: 0.0600605372 | AM72: 0.1201210744 | AN72: 9.765941009e-05 | AO72: 0.0001953188202
A73: SF-00071 | B73: =VLOOKUP(A73,'Itens ARP 2021'!$A$4:$M$425,6,FALSE) -> Trole para linha de vida horizontal | C73: =VLOOKUP(A73,'Itens ARP 2021'!$A$4:$M$425,8,FALSE) -> 5 | D73: 5 | E73: 0.002446368223 | F73: 0.004892736445 | S73: =0.0167*C73 -> 0.0835 | AG73: 0.0835 | AH73: 0 | AI73: 0.0835 | AJ73: =C73*AL73 -> 0.002446368223 | AK73: =C73*AM73 -> 0.004892736445 | AL73: 0.0004892736445 | AM73: 0.0009785472891 | AN73: 0.005859564605 | AO73: 0.01171912921
A74: SF-00072 | B74: =VLOOKUP(A74,'Itens ARP 2021'!$A$4:$M$425,6,FALSE) ->  | C74: =VLOOKUP(A74,'Itens ARP 2021'!$A$4:$M$425,8,FALSE) ->  | E74: 0 | F74: 0 | AG74: 0 | AH74: 0 | AI74: 0 | AJ74: 0 | AK74: 0 | AL74: 0 | AM74: 0 | AN74: 0 | AO74: 0
A75: SF-00073 | B75: =VLOOKUP(A75,'Itens ARP 2021'!$A$4:$M$425,6,FALSE) -> Limpeza final de obra | C75: =VLOOKUP(A75,'Itens ARP 2021'!$A$4:$M$425,8,FALSE) -> 10000 | D75: 5904 | E75: 29.29782303 | F75: 58.59564605 | J75: =C75*0.1 -> 1000 | AG75: 0 | AH75: 1000 | AI75: 1000 | AJ75: =C75*AL75 -> 29.29782303 | AK75: =C75*AM75 -> 58.59564605 | AL75: 0.002929782303 | AM75: 0.005859564605 | AN75: 2.929782303e-06 | AO75: 5.859564605e-06
A76: SF-00074 | B76: =VLOOKUP(A76,'Itens ARP 2021'!$A$4:$M$425,6,FALSE) -> Abertura/fechamento rasgo em alvenaria | C76: =VLOOKUP(A76,'Itens ARP 2021'!$A$4:$M$425,8,FALSE) -> 3000 | D76: 3000 | E76: 61.17385448 | F76: 122.347709 | L76: =C76*0.216 -> 648 | N76: =C76*0.391 -> 1173 | T76: =C76*0.034 -> 102 | Z76: =C76*0.055 -> 165 | AG76: 1821 | AH76: 267 | AI76: 2088 | AJ76: 61.17385448 | AK76: 122.347709 | AL76: 0.02039128483 | AM76: 0.04078256965 | AN76: 9.765941009e-06 | AO76: 1.953188202e-05
A77: SF-00075 | B77: =VLOOKUP(A77,'Itens ARP 2021'!$A$4:$M$425,6,FALSE) -> Furo em concreto de até 75mm de diâmetro | C77: =VLOOKUP(A77,'Itens ARP 2021'!$A$4:$M$425,8,FALSE) -> 25 | D77: 20 | E77: 1.589406899 | F77: 3.178813798 | N77: =C77*1.877 -> 46.925 | Z77: =C77*0.293 -> 7.325 | AG77: 46.925 | AH77: 7.325 | AI77: 54.25 | AJ77: 1.589406899 | AK77: 3.178813798 | AL77: 0.06357627597 | AM77: 0.1271525519 | AN77: 0.001171912921 | AO77: 0.002343825842
A78: SF-00076 | B78: =VLOOKUP(A78,'Itens ARP 2021'!$A$4:$M$425,6,FALSE) -> Furo em concreto para diâmetros maiores que 75mm | C78: =VLOOKUP(A78,'Itens ARP 2021'!$A$4:$M$425,8,FALSE) -> 40 | D78: 20 | E78: 3.248542617 | F78: 6.497085234 | N78: =C78*2.397 -> 95.88 | Z78: =C78*0.375 -> 15 | AG78: 95.88 | AH78: 15 | AI78: 110.88 | AJ78: 3.248542617 | AK78: 6.497085234 | AL78: 0.08121356543 | AM78: 0.1624271309 | AN78: 0.0007324455757 | AO78: 0.001464891151
A79: SF-00077 | B79: =VLOOKUP(A79,'Itens ARP 2021'!$A$4:$M$425,6,FALSE) -> Concreto virado em betoneira, fck = 15 MPa | C79: =VLOOKUP(A79,'Itens ARP 2021'!$A$4:$M$425,8,FALSE) -> 10 | D79: 10 | E79: 3.81750634 | F79: 7.635012681 | I79: =C79*1.846 -> 18.46 | J79: =C79*7.868 -> 78.68 | X79: =C79*1.846 -> 18.46 | AA79: =C79*1.47 -> 14.7 | AG79: 51.62 | AH79: 78.68 | AI79: 130.3 | AJ79: 3.81750634 | AK79: 7.635012681 | AL79: 0.381750634 | AM79: 0.7635012681 | AN79: 0.002929782303 | AO79: 0.005859564605
A80: SF-00078 | B80: =VLOOKUP(A80,'Itens ARP 2021'!$A$4:$M$425,6,FALSE) -> Concreto virado em betoneira, fck = 25MPa | C80: =VLOOKUP(A80,'Itens ARP 2021'!$A$4:$M$425,8,FALSE) -> 10 | D80: 10 | E80: 3.808716993 | F80: 7.617433987 | I80: =C80*1.846 -> 18.46 | J80: =C80*7.848 -> 78.48 | X80: =C80*1.846 -> 18.46 | AA80: =C80*1.46 -> 14.6 | AG80: 51.52 | AH80: 78.48 | AI80: 130 | AJ80: 3.808716993 | AK80: 7.617433987 | AL80: 0.3808716993 | AM80: 0.7617433987 | AN80: 0.002929782303 | AO80: 0.005859564605
A81: SF-00079 | B81: =VLOOKUP(A81,'Itens ARP 2021'!$A$4:$M$425,6,FALSE) -> Escoramento metálico | C81: =VLOOKUP(A81,'Itens ARP 2021'!$A$4:$M$425,8,FALSE) -> 100 | D81: 100 | E81: 0.5859564605 | F81: 1.171912921 | J81: =C81*0.2 -> 20 | AG81: 0 | AH81: 20 | AI81: 20 | AJ81: 0.5859564605 | AK81: 1.171912921 | AL81: 0.005859564605 | AM81: 0.01171912921 | AN81: 0.0002929782303 | AO81: 0.0005859564605
A82: SF-00080 | B82: =VLOOKUP(A82,'Itens ARP 2021'!$A$4:$M$425,6,FALSE) ->  | C82: =VLOOKUP(A82,'Itens ARP 2021'!$A$4:$M$425,8,FALSE) ->  | D82: 105 | E82: 0 | F82: 0 | J82: =C82*0.1 ->  | S82: =C82*0.4 ->  | AJ82: 0 | AK82: 0 | AL82: 0.01464891151 | AM82: 0.02929782303 | AN82: 0 | AO82: 0
A83: SF-00081 | B83: =VLOOKUP(A83,'Itens ARP 2021'!$A$4:$M$425,6,FALSE) -> Forma para estruturas de concreto | C83: =VLOOKUP(A83,'Itens ARP 2021'!$A$4:$M$425,8,FALSE) -> 100 | D83: 100 | E83: 3.881961551 | F83: 7.763923102 | W83: =C83*0.205 -> 20.5 | X83: =C83*1.12 -> 112 | AG83: 112 | AH83: 20.5 | AI83: 132.5 | AJ83: =C83*AL83 -> 3.881961551 | AK83: =C83*AM83 -> 7.763923102 | AL83: 0.03881961551 | AM83: 0.07763923102 | AN83: 0.0002929782303 | AO83: 0.0005859564605
A84: SF-00082 | B84: =VLOOKUP(A84,'Itens ARP 2021'!$A$4:$M$425,6,FALSE) -> Verga/contraverga/cinta em bloco de concreto canaleta 11,5 x 19 x 39 cm | C84: =VLOOKUP(A84,'Itens ARP 2021'!$A$4:$M$425,8,FALSE) -> 50 | D84: 20 | E84: 1.025423806 | F84: 2.050847612 | I84: =C84*0.4 -> 20 | J84: =C84*0.3 -> 15 | AG84: 20 | AH84: 15 | AI84: 35 | AJ84: 1.025423806 | AK84: 2.050847612 | AL84: 0.02050847612 | AM84: 0.04101695224 | AN84: 0.0005859564605 | AO84: 0.001171912921
A85: SF-00083 | B85: =VLOOKUP(A85,'Itens ARP 2021'!$A$4:$M$425,6,FALSE) -> Impermeabilização de superfície com revestimento bicomponente semi flexível | C85: =VLOOKUP(A85,'Itens ARP 2021'!$A$4:$M$425,8,FALSE) -> 500 | D85: 500 | E85: 9.375303368 | F85: 18.75060674 | P85: =C85*0.108 -> 54 | AB85: =C85*0.532 -> 266 | AG85: 266 | AH85: 54 | AI85: 320 | AJ85: 9.375303368 | AK85: 18.75060674 | AL85: 0.01875060674 | AM85: 0.03750121347 | AN85: 5.859564605e-05 | AO85: 0.0001171912921
A86: SF-00084 | B86: =VLOOKUP(A86,'Itens ARP 2021'!$A$4:$M$425,6,FALSE) -> Alvenaria de vedação | C86: =VLOOKUP(A86,'Itens ARP 2021'!$A$4:$M$425,8,FALSE) -> 500 | D86: 250 | E86: 30.10351316 | F86: 60.20702632 | I86: =C86*1.37 -> 685 | J86: =C86*0.685 -> 342.5 | AG86: 685 | AH86: 342.5 | AI86: 1027.5 | AJ86: 30.10351316 | AK86: 60.20702632 | AL86: 0.06020702632 | AM86: 0.1204140526 | AN86: 5.859564605e-05 | AO86: 0.0001171912921
A87: SF-00085 | B87: =VLOOKUP(A87,'Itens ARP 2021'!$A$4:$M$425,6,FALSE) -> Fechamento ou shaft em gesso acartonado tipo drywall | C87: =VLOOKUP(A87,'Itens ARP 2021'!$A$4:$M$425,8,FALSE) -> 50 | D87: 10 | E87: 0.6657930283 | F87: 1.331586057 | J87: =C87*0.0909 -> 4.545 | S87: =C87*0.3636 -> 18.18 | AG87: 18.18 | AH87: 4.545 | AI87: 22.725 | AJ87: 0.6657930283 | AK87: 1.331586057 | AL87: 0.01331586057 | AM87: 0.02663172113 | AN87: 0.0005859564605 | AO87: 0.001171912921
A88: SF-00086 | B88: =VLOOKUP(A88,'Itens ARP 2021'!$A$4:$M$425,6,FALSE) -> Fixação (encunhamento) de Alvenaria de Vedação | C88: =VLOOKUP(A88,'Itens ARP 2021'!$A$4:$M$425,8,FALSE) -> 300 | D88: 30 | E88: 5.581235287 | F88: 11.16247057 | I88: =C88*0.529 -> 158.7 | J88: =C88*0.106 -> 31.8 | AG88: 158.7 | AH88: 31.8 | AI88: 190.5 | AJ88: 5.581235287 | AK88: 11.16247057 | AL88: 0.01860411762 | AM88: 0.03720823524 | AN88: 9.765941009e-05 | AO88: 0.0001953188202
A89: SF-00087 | B89: =VLOOKUP(A89,'Itens ARP 2021'!$A$4:$M$425,6,FALSE) -> Parede em gesso acartonado (drywall) | C89: =VLOOKUP(A89,'Itens ARP 2021'!$A$4:$M$425,8,FALSE) -> 1000 | D89: 400 | E89: 19.95474726 | F89: 39.90949453 | J89: =C89*0.1362 -> 136.2 | S89: =C89*0.5449 -> 544.9 | AG89: 544.9 | AH89: 136.2 | AI89: 681.1 | AJ89: 19.95474726 | AK89: 39.90949453 | AL89: 0.01995474726 | AM89: 0.03990949453 | AN89: 2.929782303e-05 | AO89: 5.859564605e-05
A90: SF-00088 | B90: =VLOOKUP(A90,'Itens ARP 2021'!$A$4:$M$425,6,FALSE) -> Reparos superficiais em painéis de gesso acartonado | C90: =VLOOKUP(A90,'Itens ARP 2021'!$A$4:$M$425,8,FALSE) -> 20 | D90: 20 | E90: 0.1083023326 | F90: 0.2166046652 | J90: =C90*0.06363 -> 1.2726 | S90: =C90*0.1212 -> 2.424 | AG90: 2.424 | AH90: 1.2726 | AI90: 3.6966 | AJ90: 0.1083023326 | AK90: 0.2166046652 | AL90: 0.00541511663 | AM90: 0.01083023326 | AN90: 0.001464891151 | AO90: 0.002929782303
A91: SF-00089 | B91: =VLOOKUP(A91,'Itens ARP 2021'!$A$4:$M$425,6,FALSE) -> Sóculo h=10 cm | C91: =VLOOKUP(A91,'Itens ARP 2021'!$A$4:$M$425,8,FALSE) -> 40 | D91: 20 | E91: 0.7347894015 | F91: 1.469578803 | I91: =C91*0.46 -> 18.4 | J91: =C91*0.167 -> 6.68 | AG91: 18.4 | AH91: 6.68 | AI91: 25.08 | AJ91: 0.7347894015 | AK91: 1.469578803 | AL91: 0.01836973504 | AM91: 0.03673947008 | AN91: 0.0007324455757 | AO91: 0.001464891151
A92: SF-00090 | B92: =VLOOKUP(A92,'Itens ARP 2021'!$A$4:$M$425,6,FALSE) -> Chapisco colante industrializado em vigas e pilares | C92: =VLOOKUP(A92,'Itens ARP 2021'!$A$4:$M$425,8,FALSE) -> 40 | D92: 50 | E92: 0.1817636941 | F92: 0.3635273881 | I92: =C92*0.141 -> 5.64 | J92: =C92*0.0141 -> 0.564 | AG92: 5.64 | AH92: 0.564 | AI92: 6.204 | AJ92: 0.1817636941 | AK92: 0.3635273881 | AL92: 0.004544092351 | AM92: 0.009088184703 | AN92: 0.0007324455757 | AO92: 0.001464891151
A93: SF-00091 | B93: =VLOOKUP(A93,'Itens ARP 2021'!$A$4:$M$425,6,FALSE) -> Chapisco com argamassa traço 1:3 | C93: =VLOOKUP(A93,'Itens ARP 2021'!$A$4:$M$425,8,FALSE) -> 1000 | D93: 500 | E93: 2.255932373 | F93: 4.511864746 | I93: =C93*0.07 -> 70 | J93: =C93*0.007 -> 7 | AG93: 70 | AH93: 7 | AI93: 77 | AJ93: 2.255932373 | AK93: 4.511864746 | AL93: 0.002255932373 | AM93: 0.004511864746 | AN93: 2.929782303e-05 | AO93: 5.859564605e-05
A94: SF-00092 | B94: =VLOOKUP(A94,'Itens ARP 2021'!$A$4:$M$425,6,FALSE) -> Gesso cola | C94: =VLOOKUP(A94,'Itens ARP 2021'!$A$4:$M$425,8,FALSE) -> 440 | D94: 440 | E94: 6.187700223 | F94: 12.37540045 | J94: =C94*0.08 -> 35.2 | K94: =C94*0.4 -> 176 | AG94: 176 | AH94: 35.2 | AI94: 211.2 | AJ94: 6.187700223 | AK94: 12.37540045 | AL94: 0.01406295505 | AM94: 0.02812591011 | AN94: 6.658596142e-05 | AO94: 0.0001331719228
A95: SF-00093 | B95: =VLOOKUP(A95,'Itens ARP 2021'!$A$4:$M$425,6,FALSE) -> Reboco com argamassa industrializada e=2,0 cm | C95: =VLOOKUP(A95,'Itens ARP 2021'!$A$4:$M$425,8,FALSE) -> 1000 | D95: 600 | E95: 25.21956606 | F95: 50.43913212 | I95: =C95*0.43 -> 430 | J95: =C95*0.4308 -> 430.8 | AG95: 430 | AH95: 430.8 | AI95: 860.8 | AJ95: 25.21956606 | AK95: 50.43913212 | AL95: 0.02521956606 | AM95: 0.05043913212 | AN95: 2.929782303e-05 | AO95: 5.859564605e-05
A96: SF-00094 | B96: =VLOOKUP(A96,'Itens ARP 2021'!$A$4:$M$425,6,FALSE) -> Regularização com argamassa industrializada e=0,5 cm | C96: =VLOOKUP(A96,'Itens ARP 2021'!$A$4:$M$425,8,FALSE) -> 200 | D96: 200 | E96: 1.718024342 | F96: 3.436048685 | I96: =C96*0.2 -> 40 | J96: =C96*0.0932 -> 18.64 | AG96: 40 | AH96: 18.64 | AI96: 58.64 | AJ96: 1.718024342 | AK96: 3.436048685 | AL96: 0.008590121711 | AM96: 0.01718024342 | AN96: 0.0001464891151 | AO96: 0.0002929782303
A97: SF-00095 | B97: =VLOOKUP(A97,'Itens ARP 2021'!$A$4:$M$425,6,FALSE) -> Tratamento de trincas superficiais | C97: =VLOOKUP(A97,'Itens ARP 2021'!$A$4:$M$425,8,FALSE) -> 100 | D97: 100 | E97: 2.211985639 | F97: 4.423971277 | I97: =C97*0.155 -> 15.5 | J97: =C97*0.6 -> 60 | AG97: 15.5 | AH97: 60 | AI97: 75.5 | AJ97: 2.211985639 | AK97: 4.423971277 | AL97: 0.02211985639 | AM97: 0.04423971277 | AN97: 0.0002929782303 | AO97: 0.0005859564605
A98: SF-00096 | B98: =VLOOKUP(A98,'Itens ARP 2021'!$A$4:$M$425,6,FALSE) -> Aplicação de fundo selador base água | C98: =VLOOKUP(A98,'Itens ARP 2021'!$A$4:$M$425,8,FALSE) -> 5400 | D98: 5400 | E98: 21.0416965 | F98: 42.083393 | J98: =C98*0.027 -> 145.8 | Y98: =C98*0.106 -> 572.4 | AG98: 572.4 | AH98: 145.8 | AI98: 718.2 | AJ98: 21.0416965 | AK98: 42.083393 | AL98: 0.003896610463 | AM98: 0.007793220925 | AN98: 5.425522783e-06 | AO98: 1.085104557e-05
A99: SF-00097 | B99: =VLOOKUP(A99,'Itens ARP 2021'!$A$4:$M$425,6,FALSE) -> Fundo anticorrosivo e de aderência (base água) | C99: =VLOOKUP(A99,'Itens ARP 2021'!$A$4:$M$425,8,FALSE) -> 400 | D99: 400 | E99: 8.203390447 | F99: 16.40678089 | J99: =C99*0.3 -> 120 | Y99: =C99*0.4 -> 160 | AG99: 160 | AH99: 120 | AI99: 280 | AJ99: 8.203390447 | AK99: 16.40678089 | AL99: 0.02050847612 | AM99: 0.04101695224 | AN99: 7.324455757e-05 | AO99: 0.0001464891151
A100: SF-00098 | B100: =VLOOKUP(A100,'Itens ARP 2021'!$A$4:$M$425,6,FALSE) -> Massa acrílica | C100: =VLOOKUP(A100,'Itens ARP 2021'!$A$4:$M$425,8,FALSE) -> 1000 | D100: 500 | E100: 12.2171922 | F100: 24.4343844 | J100: =C100*0.083 -> 83 | Y100: =C100*0.334 -> 334 | AG100: 334 | AH100: 83 | AI100: 417 | AJ100: 12.2171922 | AK100: 24.4343844 | AL100: 0.0122171922 | AM100: 0.0244343844 | AN100: 2.929782303e-05 | AO100: 5.859564605e-05
A101: SF-00099 | B101: =VLOOKUP(A101,'Itens ARP 2021'!$A$4:$M$425,6,FALSE) -> Massa corrida | C101: =VLOOKUP(A101,'Itens ARP 2021'!$A$4:$M$425,8,FALSE) -> 3000 | D101: 2700 | E101: 37.44261783 | F101: 74.88523566 | J101: =C101*0.114 -> 342 | Y101: =C101*0.312 -> 936 | AG101: 936 | AH101: 342 | AI101: 1278 | AJ101: 37.44261783 | AK101: 74.88523566 | AL101: 0.01248087261 | AM101: 0.02496174522 | AN101: 9.765941009e-06 | AO101: 1.953188202e-05
A102: SF-00100 | B102: =VLOOKUP(A102,'Itens ARP 2021'!$A$4:$M$425,6,FALSE) -> Pintura com tinta látex acrílica Premium (paredes) | C102: =VLOOKUP(A102,'Itens ARP 2021'!$A$4:$M$425,8,FALSE) -> 9000 | D102: 9000 | E102: 67.50218425 | F102: 135.0043685 | J102: =C102*0.069 -> 621 | Y102: =C102*0.187 -> 1683 | AG102: 1683 | AH102: 621 | AI102: 2304 | AJ102: 67.50218425 | AK102: 135.0043685 | AL102: 0.007500242695 | AM102: 0.01500048539 | AN102: 3.25531367e-06 | AO102: 6.510627339e-06
A103: SF-00101 | B103: =VLOOKUP(A103,'Itens ARP 2021'!$A$4:$M$425,6,FALSE) -> Pintura em verniz sintético | C103: =VLOOKUP(A103,'Itens ARP 2021'!$A$4:$M$425,8,FALSE) -> 300 | D103: 300 | E103: 6.152542836 | F103: 12.30508567 | J103: =C103*0.3 -> 90 | Y103: =C103*0.4 -> 120 | AG103: 120 | AH103: 90 | AI103: 210 | AJ103: 6.152542836 | AK103: 12.30508567 | AL103: 0.02050847612 | AM103: 0.04101695224 | AN103: 9.765941009e-05 | AO103: 0.0001953188202
A104: SF-00102 | B104: =VLOOKUP(A104,'Itens ARP 2021'!$A$4:$M$425,6,FALSE) -> Pintura esmalte acetinado (metais e madeiras) | C104: =VLOOKUP(A104,'Itens ARP 2021'!$A$4:$M$425,8,FALSE) -> 500 | D104: 650 | E104: 14.64891151 | F104: 29.29782303 | J104: =C104*0.5 -> 250 | Y104: =C104*0.5 -> 250 | AG104: 250 | AH104: 250 | AI104: 500 | AJ104: 14.64891151 | AK104: 29.29782303 | AL104: 0.02929782303 | AM104: 0.05859564605 | AN104: 5.859564605e-05 | AO104: 0.0001171912921
A105: SF-00103 | B105: =VLOOKUP(A105,'Itens ARP 2021'!$A$4:$M$425,6,FALSE) -> Pintura tinta látex acrílica standard (tetos) | C105: =VLOOKUP(A105,'Itens ARP 2021'!$A$4:$M$425,8,FALSE) -> 6000 | D105: 6000 | E105: 58.53705041 | F105: 117.0741008 | J105: =C105*0.089 -> 534 | Y105: =C105*0.244 -> 1464 | AG105: 1464 | AH105: 534 | AI105: 1998 | AJ105: 58.53705041 | AK105: 117.0741008 | AL105: 0.009756175068 | AM105: 0.01951235014 | AN105: 4.882970504e-06 | AO105: 9.765941009e-06
A106: SF-00104 | B106: =VLOOKUP(A106,'Itens ARP 2021'!$A$4:$M$425,6,FALSE) -> Cerâmica para revestimento de superfícies internas ou externas – Linha Administrativa | C106: =VLOOKUP(A106,'Itens ARP 2021'!$A$4:$M$425,8,FALSE) -> 150 | D106: 200 | E106: 4.482566923 | F106: 8.965133846 | J106: =C106*0.36 -> 54 | M106: =C106*0.66 -> 99 | AG106: 99 | AH106: 54 | AI106: 153 | AJ106: 4.482566923 | AK106: 8.965133846 | AL106: 0.02988377949 | AM106: 0.05976755897 | AN106: 0.0001953188202 | AO106: 0.0003906376404
A107: SF-00105 | B107: =VLOOKUP(A107,'Itens ARP 2021'!$A$4:$M$425,6,FALSE) -> Contrapiso em argamassa | C107: =VLOOKUP(A107,'Itens ARP 2021'!$A$4:$M$425,8,FALSE) -> 60 | D107: 60 | E107: 0.9492494661 | F107: 1.898498932 | I107: =C107*0.36 -> 21.6 | J107: =C107*0.18 -> 10.8 | AG107: 21.6 | AH107: 10.8 | AI107: 32.4 | AJ107: 0.9492494661 | AK107: 1.898498932 | AL107: 0.01582082443 | AM107: 0.03164164887 | AN107: 0.0004882970504 | AO107: 0.0009765941009
A108: SF-00106 | B108: =VLOOKUP(A108,'Itens ARP 2021'!$A$4:$M$425,6,FALSE) -> Contrapiso em argamassa (e=2cm) ou Regularização de contrapiso existente | C108: =VLOOKUP(A108,'Itens ARP 2021'!$A$4:$M$425,8,FALSE) -> 550 | D108: 550 | E108: 7.009504159 | F108: 14.01900832 | I108: =C108*0.29 -> 159.5 | J108: =C108*0.145 -> 79.75 | AG108: 159.5 | AH108: 79.75 | AI108: 239.25 | AJ108: 7.009504159 | AK108: 14.01900832 | AL108: 0.01274455302 | AM108: 0.02548910603 | AN108: 5.326876914e-05 | AO108: 0.0001065375383
A109: SF-00107 | B109: =VLOOKUP(A109,'Itens ARP 2021'!$A$4:$M$425,6,FALSE) -> Granito cinza andorinha para piso | C109: =VLOOKUP(A109,'Itens ARP 2021'!$A$4:$M$425,8,FALSE) -> 800 | D109: 1050 | E109: 41.76697651 | F109: 83.53395301 | J109: =C109*0.594 -> 475.2 | R109: =C109*1.188 -> 950.4 | AG109: 950.4 | AH109: 475.2 | AI109: 1425.6 | AJ109: 41.76697651 | AK109: 83.53395301 | AL109: 0.05220872063 | AM109: 0.1044174413 | AN109: 3.662227878e-05 | AO109: 7.324455757e-05
A110: SF-00108 | B110: =VLOOKUP(A110,'Itens ARP 2021'!$A$4:$M$425,6,FALSE) -> Granito Cinza Andorinha para rodapé | C110: =VLOOKUP(A110,'Itens ARP 2021'!$A$4:$M$425,8,FALSE) -> 200 | D110: 270 | E110: 10.44174413 | F110: 20.88348825 | J110: =C110*0.594 -> 118.8 | R110: =C110*1.188 -> 237.6 | AG110: 237.6 | AH110: 118.8 | AI110: 356.4 | AJ110: 10.44174413 | AK110: 20.88348825 | AL110: 0.05220872063 | AM110: 0.1044174413 | AN110: 0.0001464891151 | AO110: 0.0002929782303
A111: SF-00109 | B111: =VLOOKUP(A111,'Itens ARP 2021'!$A$4:$M$425,6,FALSE) -> Granito Cinza Andorinha para soleira e peitoril | C111: =VLOOKUP(A111,'Itens ARP 2021'!$A$4:$M$425,8,FALSE) -> 20 | D111: 25 | E111: 3.203228651 | F111: 6.406457302 | J111: =C111*1.82 -> 36.4 | R111: =C111*3.64666666666667 -> 72.93333333 | AG111: 72.93333333 | AH111: 36.4 | AI111: 109.3333333 | AJ111: 3.203228651 | AK111: 6.406457302 | AL111: 0.1601614325 | AM111: 0.3203228651 | AN111: 0.001464891151 | AO111: 0.002929782303
A112: SF-00110 | B112: =VLOOKUP(A112,'Itens ARP 2021'!$A$4:$M$425,6,FALSE) -> Granito Preto São Gabriel para piso | C112: =VLOOKUP(A112,'Itens ARP 2021'!$A$4:$M$425,8,FALSE) -> 30 | D112: 30 | E112: 1.566261619 | F112: 3.132523238 | J112: =C112*0.594 -> 17.82 | R112: =C112*1.188 -> 35.64 | AG112: 35.64 | AH112: 17.82 | AI112: 53.46 | AJ112: 1.566261619 | AK112: 3.132523238 | AL112: 0.05220872063 | AM112: 0.1044174413 | AN112: 0.0009765941009 | AO112: 0.001953188202
A113: SF-00111 | B113: =VLOOKUP(A113,'Itens ARP 2021'!$A$4:$M$425,6,FALSE) -> Granito Preto São Gabriel para rodapé | C113: =VLOOKUP(A113,'Itens ARP 2021'!$A$4:$M$425,8,FALSE) -> 3 | D113: 3 | E113: 0.1566261619 | F113: 0.3132523238 | J113: =C113*0.594 -> 1.782 | R113: =C113*1.188 -> 3.564 | AG113: 3.564 | AH113: 1.782 | AI113: 5.346 | AJ113: 0.1566261619 | AK113: 0.3132523238 | AL113: 0.05220872063 | AM113: 0.1044174413 | AN113: 0.009765941009 | AO113: 0.01953188202
A114: SF-00112 | B114: =VLOOKUP(A114,'Itens ARP 2021'!$A$4:$M$425,6,FALSE) -> Granito Preto São Gabriel para soleira e peitoril | C114: =VLOOKUP(A114,'Itens ARP 2021'!$A$4:$M$425,8,FALSE) -> 2 | D114: 2 | E114: 0.3203228651 | F114: 0.6406457302 | J114: =C114*1.82 -> 3.64 | R114: =C114*3.64666666666667 -> 7.293333333 | AG114: 7.293333333 | AH114: 3.64 | AI114: 10.93333333 | AJ114: 0.3203228651 | AK114: 0.6406457302 | AL114: 0.1601614325 | AM114: 0.3203228651 | AN114: 0.01464891151 | AO114: 0.02929782303
A115: SF-00113 | B115: =VLOOKUP(A115,'Itens ARP 2021'!$A$4:$M$425,6,FALSE) -> Instalação de rodapé de madeira reaproveitado | C115: =VLOOKUP(A115,'Itens ARP 2021'!$A$4:$M$425,8,FALSE) -> 70 | D115: 70 | E115: 0.6152542836 | F115: 1.230508567 | O115: =C115*0.15 -> 10.5 | P115: =C115*0.15 -> 10.5 | AG115: 10.5 | AH115: 10.5 | AI115: 21 | AJ115: =C115*AL115 -> 0.6152542836 | AK115: =C115*AM115 -> 1.230508567 | AL115: 0.008789346908 | AM115: 0.01757869382 | AN115: 0.0004185403289 | AO115: 0.0008370806579
A116: SF-00114 | B116: =VLOOKUP(A116,'Itens ARP 2021'!$A$4:$M$425,6,FALSE) -> Mármore Bege Bahia para piso e parede | C116: =VLOOKUP(A116,'Itens ARP 2021'!$A$4:$M$425,8,FALSE) -> 10 | D116: 10 | E116: 0.5220872063 | F116: 1.044174413 | J116: =C116*0.594 -> 5.94 | R116: =C116*1.188 -> 11.88 | AG116: 11.88 | AH116: 5.94 | AI116: 17.82 | AJ116: 0.5220872063 | AK116: 1.044174413 | AL116: 0.05220872063 | AM116: 0.1044174413 | AN116: 0.002929782303 | AO116: 0.005859564605
A117: SF-00115 | B117: =VLOOKUP(A117,'Itens ARP 2021'!$A$4:$M$425,6,FALSE) -> Mármore Branco Especial para piso e parede | C117: =VLOOKUP(A117,'Itens ARP 2021'!$A$4:$M$425,8,FALSE) -> 40 | D117: 40 | E117: 2.088348825 | F117: 4.176697651 | J117: =C117*0.594 -> 23.76 | R117: =C117*1.188 -> 47.52 | AG117: 47.52 | AH117: 23.76 | AI117: 71.28 | AJ117: 2.088348825 | AK117: 4.176697651 | AL117: 0.05220872063 | AM117: 0.1044174413 | AN117: 0.0007324455757 | AO117: 0.001464891151
A118: SF-00116 | B118: =VLOOKUP(A118,'Itens ARP 2021'!$A$4:$M$425,6,FALSE) -> Rodapé de madeira | C118: =VLOOKUP(A118,'Itens ARP 2021'!$A$4:$M$425,8,FALSE) -> 70 | D118: 70 | E118: 0.6152542836 | F118: 1.230508567 | O118: =C118*0.15 -> 10.5 | P118: =C118*0.15 -> 10.5 | AG118: 10.5 | AH118: 10.5 | AI118: 21 | AJ118: 0.6152542836 | AK118: 1.230508567 | AL118: 0.008789346908 | AM118: 0.01757869382 | AN118: 0.0004185403289 | AO118: 0.0008370806579
A119: SF-00117 | B119: =VLOOKUP(A119,'Itens ARP 2021'!$A$4:$M$425,6,FALSE) -> Acabamento abaulado em placas de granito ou mármore reaproveitadas | C119: =VLOOKUP(A119,'Itens ARP 2021'!$A$4:$M$425,8,FALSE) -> 20 | D119: 20 | E119: 0.5220872063 | F119: 1.044174413 | J119: =C119*0.594*50% -> 5.94 | R119: =C119*1.188*50% -> 11.88 | AG119: 11.88 | AH119: 5.94 | AI119: 17.82 | AJ119: 0.5220872063 | AK119: 1.044174413 | AL119: 0.02610436032 | AM119: 0.05220872063 | AN119: 0.001464891151 | AO119: 0.002929782303
A120: SF-00118 | B120: =VLOOKUP(A120,'Itens ARP 2021'!$A$4:$M$425,6,FALSE) -> Acabamento em meia esquadria em placas de granito ou mármore reaproveitadas | C120: =VLOOKUP(A120,'Itens ARP 2021'!$A$4:$M$425,8,FALSE) -> 20 | D120: 20 | E120: 0.5220872063 | F120: 1.044174413 | J120: 5.94 | R120: 11.88 | AG120: 11.88 | AH120: 5.94 | AI120: 17.82 | AJ120: 0.5220872063 | AK120: 1.044174413 | AL120: 0.02610436032 | AM120: 0.05220872063 | AN120: 0.001464891151 | AO120: 0.002929782303
A121: SF-00119 | B121: =VLOOKUP(A121,'Itens ARP 2021'!$A$4:$M$425,6,FALSE) -> Acabamento reto em placas de granito ou mármore reaproveitadas | C121: =VLOOKUP(A121,'Itens ARP 2021'!$A$4:$M$425,8,FALSE) -> 20 | D121: 20 | E121: 0.5220872063 | F121: 1.044174413 | J121: 5.94 | R121: 11.88 | AG121: 11.88 | AH121: 5.94 | AI121: 17.82 | AJ121: 0.5220872063 | AK121: 1.044174413 | AL121: 0.02610436032 | AM121: 0.05220872063 | AN121: 0.001464891151 | AO121: 0.002929782303
A122: SF-00120 | B122: =VLOOKUP(A122,'Itens ARP 2021'!$A$4:$M$425,6,FALSE) -> Corte de peça de granito ou mármore reaproveitada | C122: =VLOOKUP(A122,'Itens ARP 2021'!$A$4:$M$425,8,FALSE) -> 20 | D122: 20 | E122: 0.5220872063 | F122: 1.044174413 | J122: 5.94 | R122: 11.88 | AG122: 11.88 | AH122: 5.94 | AI122: 17.82 | AJ122: 0.5220872063 | AK122: 1.044174413 | AL122: 0.02610436032 | AM122: 0.05220872063 | AN122: 0.001464891151 | AO122: 0.002929782303
A123: SF-00121 | B123: =VLOOKUP(A123,'Itens ARP 2021'!$A$4:$M$425,6,FALSE) -> Corte em placas de granito ou mármore reaproveitadas, para instalação de cubas | C123: =VLOOKUP(A123,'Itens ARP 2021'!$A$4:$M$425,8,FALSE) -> 20 | D123: 20 | E123: 0.5220872063 | F123: 1.044174413 | J123: 5.94 | R123: 11.88 | AG123: 11.88 | AH123: 5.94 | AI123: 17.82 | AJ123: 0.5220872063 | AK123: 1.044174413 | AL123: 0.02610436032 | AM123: 0.05220872063 | AN123: 0.001464891151 | AO123: 0.002929782303
A124: SF-00122 | B124: =VLOOKUP(A124,'Itens ARP 2021'!$A$4:$M$425,6,FALSE) -> Furo em placas de granito ou mármore reaproveitadas, para instalação de torneira ou misturador | C124: =VLOOKUP(A124,'Itens ARP 2021'!$A$4:$M$425,8,FALSE) -> 20 | D124: 20 | E124: 0.5220872063 | F124: 1.044174413 | J124: 5.94 | R124: 11.88 | AG124: 11.88 | AH124: 5.94 | AI124: 17.82 | AJ124: 0.5220872063 | AK124: 1.044174413 | AL124: 0.02610436032 | AM124: 0.05220872063 | AN124: 0.001464891151 | AO124: 0.002929782303
A125: SF-00123 | B125: =VLOOKUP(A125,'Itens ARP 2021'!$A$4:$M$425,6,FALSE) -> Granito Cinza Andorinha 20mm para rodabancada | C125: =VLOOKUP(A125,'Itens ARP 2021'!$A$4:$M$425,8,FALSE) -> 120 | D125: 30 | E125: 6.265046476 | F125: 12.53009295 | J125: =C125*0.594 -> 71.28 | R125: =C125*1.188 -> 142.56 | AG125: 142.56 | AH125: 71.28 | AI125: 213.84 | AJ125: 6.265046476 | AK125: 12.53009295 | AL125: 0.05220872063 | AM125: 0.1044174413 | AN125: 0.0002441485252 | AO125: 0.0004882970504
A126: SF-00124 | B126: =VLOOKUP(A126,'Itens ARP 2021'!$A$4:$M$425,6,FALSE) -> Granito Cinza Andorinha 20mm para bancadas | C126: =VLOOKUP(A126,'Itens ARP 2021'!$A$4:$M$425,8,FALSE) -> 50 | D126: 50 | E126: 2.622155161 | F126: 5.244310322 | J126: =C126*1.14 -> 57 | R126: =C126*0.65 -> 32.5 | AG126: 32.5 | AH126: 57 | AI126: 89.5 | AJ126: 2.622155161 | AK126: 5.244310322 | AL126: 0.05244310322 | AM126: 0.1048862064 | AN126: 0.0005859564605 | AO126: 0.001171912921
A127: SF-00125 | B127: =VLOOKUP(A127,'Itens ARP 2021'!$A$4:$M$425,6,FALSE) -> Granito Cinza Andorinha 20mm para divisória | C127: =VLOOKUP(A127,'Itens ARP 2021'!$A$4:$M$425,8,FALSE) -> 100 | D127: 100 | E127: 20.80145435 | F127: 41.6029087 | J127: =C127*2.3 -> 230 | R127: =C127*4.8 -> 480 | AG127: 480 | AH127: 230 | AI127: 710 | AJ127: 20.80145435 | AK127: 41.6029087 | AL127: 0.2080145435 | AM127: 0.416029087 | AN127: 0.0002929782303 | AO127: 0.0005859564605
A128: SF-00126 | B128: =VLOOKUP(A128,'Itens ARP 2021'!$A$4:$M$425,6,FALSE) -> Granito Preto São Gabriel 20mm para rodabancada | C128: =VLOOKUP(A128,'Itens ARP 2021'!$A$4:$M$425,8,FALSE) -> 30 | D128: 30 | E128: 1.573293097 | F128: 3.146586193 | J128: =C128*1.14 -> 34.2 | R128: =C128*0.65 -> 19.5 | AG128: 19.5 | AH128: 34.2 | AI128: 53.7 | AJ128: 1.573293097 | AK128: 3.146586193 | AL128: 0.05244310322 | AM128: 0.1048862064 | AN128: 0.0009765941009 | AO128: 0.001953188202
A129: SF-00127 | B129: =VLOOKUP(A129,'Itens ARP 2021'!$A$4:$M$425,6,FALSE) -> Granito Preto São Gabriel 20mm para bancadas | C129: =VLOOKUP(A129,'Itens ARP 2021'!$A$4:$M$425,8,FALSE) -> 8 | D129: 8 | E129: 0.4176697651 | F129: 0.8353395301 | J129: =C129*0.594 -> 4.752 | R129: =C129*1.188 -> 9.504 | AG129: 9.504 | AH129: 4.752 | AI129: 14.256 | AJ129: 0.4176697651 | AK129: 0.8353395301 | AL129: 0.05220872063 | AM129: 0.1044174413 | AN129: 0.003662227878 | AO129: 0.007324455757
A130: SF-00128 | B130: =VLOOKUP(A130,'Itens ARP 2021'!$A$4:$M$425,6,FALSE) -> Instalação de bancada de granito ou mármore reaproveitada | C130: =VLOOKUP(A130,'Itens ARP 2021'!$A$4:$M$425,8,FALSE) -> 30 | D130: 30 | E130: 1.573293097 | F130: 3.146586193 | J130: =C130*1.14 -> 34.2 | R130: =C130*0.65 -> 19.5 | AG130: 19.5 | AH130: 34.2 | AI130: 53.7 | AJ130: 1.573293097 | AK130: 3.146586193 | AL130: 0.05244310322 | AM130: 0.1048862064 | AN130: 0.0009765941009 | AO130: 0.001953188202
A131: SF-00129 | B131: =VLOOKUP(A131,'Itens ARP 2021'!$A$4:$M$425,6,FALSE) -> Instalação de rodapé/rodabanca reaproveitado, de mármore ou granito | C131: =VLOOKUP(A131,'Itens ARP 2021'!$A$4:$M$425,8,FALSE) -> 20 | D131: 15 | E131: 1.044174413 | F131: 2.088348825 | J131: =C131*0.594 -> 11.88 | R131: =C131*1.188 -> 23.76 | AG131: =SUM(I131,K131,L131,M131,N131,O131,R131,S131,U131,V131,X131,Y131,AA131,AB131,AD131,AE131) -> 23.76 | AH131: =SUM(P131,Q131,T131,W131,Z131,AC131,AF131)+J131 -> 11.88 | AI131: 35.64 | AJ131: 1.044174413 | AK131: 2.088348825 | AL131: 0.05220872063 | AM131: 0.1044174413 | AN131: 0.001464891151 | AO131: 0.002929782303
A132: SF-00130 | B132: =VLOOKUP(A132,'Itens ARP 2021'!$A$4:$M$425,6,FALSE) -> Instalação de soleira ou peitoril, de mármore ou granito, reaproveitados | C132: =VLOOKUP(A132,'Itens ARP 2021'!$A$4:$M$425,8,FALSE) -> 10 | D132: 10 | E132: 0.5220872063 | F132: 1.044174413 | J132: =C132*0.594 -> 5.94 | R132: 11.88 | AG132: 11.88 | AH132: 5.94 | AI132: =AG132+AH132 -> 17.82 | AJ132: 0.5220872063 | AK132: 1.044174413 | AL132: 0.05220872063 | AM132: 0.1044174413 | AN132: =AL132/AI132 -> 0.002929782303 | AO132: =AM132/AI132 -> 0.005859564605
A133: SF-00131 | B133: =VLOOKUP(A133,'Itens ARP 2021'!$A$4:$M$425,6,FALSE) -> Mármore Branco Especial 20mm para rodabancada | C133: =VLOOKUP(A133,'Itens ARP 2021'!$A$4:$M$425,8,FALSE) -> 1 | D133: 1 | E133: 0.05220872063 | F133: 0.1044174413 | J133: =C133*0.594 -> 0.594 | R133: 1.188 | AG133: 1.188 | AH133: 0.594 | AI133: 1.782 | AJ133: 0.05220872063 | AK133: 0.1044174413 | AL133: 0.05220872063 | AM133: 0.1044174413 | AN133: 0.02929782303 | AO133: 0.05859564605
A134: SF-00132 | B134: =VLOOKUP(A134,'Itens ARP 2021'!$A$4:$M$425,6,FALSE) -> Divisória em gesso acartonado revestido - Painel liso cego - Ed. Anexo I | C134: =VLOOKUP(A134,'Itens ARP 2021'!$A$4:$M$425,8,FALSE) -> 500 | D134: 500 | E134: 9.977373632 | F134: 19.95474726 | J134: =C134*0.1362 -> 68.1 | R134: 594 | S134: =C134*0.5449 -> 272.45 | AG134: 866.45 | AH134: 68.1 | AI134: 934.55 | AJ134: 9.977373632 | AK134: 19.95474726 | AL134: 0.01995474726 | AM134: 0.03990949453 | AN134: 2.135225217e-05 | AO134: 4.270450434e-05
A135: SF-00133 | B135: =VLOOKUP(A135,'Itens ARP 2021'!$A$4:$M$425,6,FALSE) -> Divisória em gesso acartonado revestido - Painel liso, painel de vidro e bandeira – ed. Anexo I | C135: =VLOOKUP(A135,'Itens ARP 2021'!$A$4:$M$425,8,FALSE) -> 300 | D135: 500 | E135: =IFERROR(AL135*C135,0) -> 5.986424179 | F135: =IFERROR(AM135*C135,0) -> 11.97284836 | J135: 40.86 | R135: 356.4 | S135: 163.47 | AG135: 519.87 | AH135: 40.86 | AI135: 560.73 | AJ135: 5.986424179 | AK135: 11.97284836 | AL135: 0.01995474726 | AM135: 0.03990949453 | AN135: 3.558708695e-05 | AO135: 7.117417389e-05
A136: SF-00134 | B136: =VLOOKUP(A136,'Itens ARP 2021'!$A$4:$M$425,6,FALSE) -> Divisória MDF com painel liso cego e bandeira | C136: =VLOOKUP(A136,'Itens ARP 2021'!$A$4:$M$425,8,FALSE) -> 900 | D136: 1000 | E136: 17.95927254 | F136: 35.91854507 | J136: 122.58 | R136: 1069.2 | S136: 490.41 | AG136: 1559.61 | AH136: 122.58 | AI136: 1682.19 | AJ136: 17.95927254 | AK136: 35.91854507 | AL136: 0.01995474726 | AM136: 0.03990949453 | AN136: 1.186236232e-05 | AO136: 2.372472463e-05
A137: SF-00135 | B137: =VLOOKUP(A137,'Itens ARP 2021'!$A$4:$M$425,6,FALSE) -> Divisória MDF com painel liso, painel de vidro e bandeira | C137: =VLOOKUP(A137,'Itens ARP 2021'!$A$4:$M$425,8,FALSE) -> 900 | D137: 1000 | E137: 17.95927254 | F137: 35.91854507 | J137: 122.58 | R137: 1069.2 | S137: 490.41 | AG137: 1559.61 | AH137: 122.58 | AI137: 1682.19 | AJ137: 17.95927254 | AK137: 35.91854507 | AL137: 0.01995474726 | AM137: 0.03990949453 | AN137: 1.186236232e-05 | AO137: 2.372472463e-05
A138: SF-00136 | B138: =VLOOKUP(A138,'Itens ARP 2021'!$A$4:$M$425,6,FALSE) -> Divisória MDF com painel paginado cego e bandeira - Interlegis | C138: =VLOOKUP(A138,'Itens ARP 2021'!$A$4:$M$425,8,FALSE) -> 200 | D138: 200 | E138: 3.990949453 | F138: 7.981898905 | J138: 27.24 | R138: 237.6 | S138: 108.98 | AG138: 346.58 | AH138: 27.24 | AI138: 373.82 | AJ138: 3.990949453 | AK138: 7.981898905 | AL138: 0.01995474726 | AM138: 0.03990949453 | AN138: 5.338063042e-05 | AO138: 0.0001067612608
A139: SF-00137 | B139: =VLOOKUP(A139,'Itens ARP 2021'!$A$4:$M$425,6,FALSE) -> Divisória MDF com painel paginado, painel de vidro e bandeira - Interlegis | C139: =VLOOKUP(A139,'Itens ARP 2021'!$A$4:$M$425,8,FALSE) -> 200 | D139: 200 | E139: 3.990949453 | F139: 7.981898905 | J139: 27.24 | R139: 237.6 | S139: 108.98 | AG139: 346.58 | AH139: 27.24 | AI139: 373.82 | AJ139: 3.990949453 | AK139: 7.981898905 | AL139: 0.01995474726 | AM139: 0.03990949453 | AN139: 5.338063042e-05 | AO139: 0.0001067612608
A140: SF-00138 | B140: =VLOOKUP(A140,'Itens ARP 2021'!$A$4:$M$425,6,FALSE) -> Instalação de divisória e porta de divisória com dobradiça reaproveitadas | C140: =VLOOKUP(A140,'Itens ARP 2021'!$A$4:$M$425,8,FALSE) -> 700 | D140: 700 | E140: 20.50847612 | F140: 41.01695224 | J140: 95.34 | P140: =C140*1 -> 700 | R140: 831.6 | S140: 381.43 | AG140: 1213.03 | AH140: 795.34 | AI140: 2008.37 | AJ140: 20.50847612 | AK140: 41.01695224 | AL140: 0.02929782303 | AM140: 0.05859564605 | AN140: 1.458786131e-05 | AO140: 2.917572263e-05
A141: SF-00139 | B141: =VLOOKUP(A141,'Itens ARP 2021'!$A$4:$M$425,6,FALSE) -> Alçapão em forro de gesso acartonado | C141: =VLOOKUP(A141,'Itens ARP 2021'!$A$4:$M$425,8,FALSE) -> 100 | D141: 100 | E141: 7.649987124 | F141: 15.29997425 | J141: =C141*1.80555555555556 -> 180.5555556 | K141: =C141*0.805555555555556 -> 80.55555556 | R141: 118.8 | S141: 54.49 | AG141: 253.8455556 | AH141: 180.5555556 | AI141: 434.4011111 | AJ141: 7.649987124 | AK141: 15.29997425 | AL141: 0.07649987124 | AM141: 0.1529997425 | AN141: 0.0001761042255 | AO141: 0.000352208451
A142: SF-00140 | B142: =VLOOKUP(A142,'Itens ARP 2021'!$A$4:$M$425,6,FALSE) -> Forro de PVC em réguas de 100 x 6000mm | C142: =VLOOKUP(A142,'Itens ARP 2021'!$A$4:$M$425,8,FALSE) -> 50 | D142: 50 | E142: 0.731566641 | F142: 1.463133282 | J142: =C142*1.80555555555556 -> 90.27777778 | R142: 59.4 | S142: =C142*0.4994 -> 24.97 | AG142: 84.37 | AH142: 90.27777778 | AI142: 174.6477778 | AJ142: 0.731566641 | AK142: 1.463133282 | AL142: 0.01463133282 | AM142: 0.02926266564 | AN142: 8.37762324e-05 | AO142: 0.0001675524648
A143: SF-00141 | B143: =VLOOKUP(A143,'Itens ARP 2021'!$A$4:$M$425,6,FALSE) -> Forro de PVC em réguas de 100 x 6000mm, sem estrutura | C143: =VLOOKUP(A143,'Itens ARP 2021'!$A$4:$M$425,8,FALSE) -> 100 | D143: 100 | E143: 0.487711094 | F143: 0.975422188 | R143: 118.8 | S143: =C143*0.166466666666667 -> 16.64666667 | AG143: 135.4466667 | AH143: 0 | AI143: 135.4466667 | AJ143: 0.487711094 | AK143: 0.975422188 | AL143: 0.00487711094 | AM143: 0.00975422188 | AN143: 3.600761141e-05 | AO143: 7.201522282e-05
A144: SF-00142 | B144: =VLOOKUP(A144,'Itens ARP 2021'!$A$4:$M$425,6,FALSE) -> Forro de PVC modular em placas | C144: =VLOOKUP(A144,'Itens ARP 2021'!$A$4:$M$425,8,FALSE) -> 20 | D144: 20 | E144: 0.2926266564 | F144: 0.5852533128 | R144: 23.76 | S144: =C144*0.4994 -> 9.988 | AG144: 33.748 | AH144: 0 | AI144: 33.748 | AJ144: 0.2926266564 | AK144: 0.5852533128 | AL144: 0.01463133282 | AM144: 0.02926266564 | AN144: 0.0004335466641 | AO144: 0.0008670933282
A145: SF-00143 | B145: =VLOOKUP(A145,'Itens ARP 2021'!$A$4:$M$425,6,FALSE) -> Forro em chapas metálicas | C145: =VLOOKUP(A145,'Itens ARP 2021'!$A$4:$M$425,8,FALSE) -> 500 | E145: 18.64992681 | F145: 37.29985361 | Q145: =C145*0.5 -> 250 | R145: 594 | S145: =C145*0.5 -> 250 | AG145: 844 | AH145: 250 | AI145: 1094 | AJ145: =AL145*C145 -> 18.64992681 | AK145: =AM145*C145 -> 37.29985361 | AL145: =AN145*AI145/C145 -> 0.03729985361 | AM145: =AO145*AI145/C145 -> 0.07459970722 | AN145: 0.01704746509 | AO145: 0.03409493018
A146: SF-00144 | B146: =VLOOKUP(A146,'Itens ARP 2021'!$A$4:$M$425,6,FALSE) -> Forro em gesso acartonado monolítico | C146: =VLOOKUP(A146,'Itens ARP 2021'!$A$4:$M$425,8,FALSE) -> 2500 | D146: 2500 | E146: 53.14625097 | F146: 106.2925019 | J146: =C146*0.3628 -> 907 | R146: 2970 | S146: =C146*0.3628 -> 907 | AG146: 3877 | AH146: 907 | AI146: 4784 | AJ146: =C146*AL146 -> 53.14625097 | AK146: =C146*AM146 -> 106.2925019 | AL146: 0.02125850039 | AM146: 0.04251700078 | AN146: 4.443666469e-06 | AO146: 8.887332938e-06
A147: SF-00145 | B147: =VLOOKUP(A147,'Itens ARP 2021'!$A$4:$M$425,6,FALSE) -> Forro em gesso acartonado monolítico, sem estrutura | C147: =VLOOKUP(A147,'Itens ARP 2021'!$A$4:$M$425,8,FALSE) -> 2300 | D147: 2300 | E147: 48.89455089 | F147: 97.78910178 | J147: =C147*0.3628 -> 834.44 | R147: 2732.4 | S147: =C147*0.3628 -> 834.44 | AG147: 3566.84 | AH147: 834.44 | AI147: 4401.28 | AJ147: 48.89455089 | AK147: 97.78910178 | AL147: 0.02125850039 | AM147: 0.04251700078 | AN147: 4.830072249e-06 | AO147: 9.660144498e-06
A148: SF-00146 | B148: =VLOOKUP(A148,'Itens ARP 2021'!$A$4:$M$425,6,FALSE) -> Forro mineral modulado | C148: =VLOOKUP(A148,'Itens ARP 2021'!$A$4:$M$425,8,FALSE) -> 300 | D148: 300 | E148: 6.377550116 | F148: 12.75510023 | J148: =C148*0.3628 -> 108.84 | R148: 356.4 | S148: =C148*0.3628 -> 108.84 | AG148: 465.24 | AH148: 108.84 | AI148: 574.08 | AJ148: 6.377550116 | AK148: 12.75510023 | AL148: 0.02125850039 | AM148: 0.04251700078 | AN148: 3.703055391e-05 | AO148: 7.406110782e-05
A149: SF-00147 | B149: =VLOOKUP(A149,'Itens ARP 2021'!$A$4:$M$425,6,FALSE) -> Forro mineral modulado, sem estrutura | C149: =VLOOKUP(A149,'Itens ARP 2021'!$A$4:$M$425,8,FALSE) -> 100 | D149: 100 | E149: 0.8789346908 | F149: 1.757869382 | P149: =C149*0.3 -> 30 | R149: 118.8 | AG149: 118.8 | AH149: 30 | AI149: 148.8 | AJ149: 0.8789346908 | AK149: 1.757869382 | AL149: 0.008789346908 | AM149: 0.01757869382 | AN149: 5.906819159e-05 | AO149: 0.0001181363832
A150: SF-00148 | B150: =VLOOKUP(A150,'Itens ARP 2021'!$A$4:$M$425,6,FALSE) -> Instalação de forro de PVC reaproveitado | C150: =VLOOKUP(A150,'Itens ARP 2021'!$A$4:$M$425,8,FALSE) -> 100 | D150: 100 | E150: 1.757869382 | F150: 3.515738763 | J150: =C150*0.3 -> 30 | O150: =C150*0.3 -> 30 | R150: 118.8 | AG150: 148.8 | AH150: 30 | AI150: 178.8 | AJ150: 1.757869382 | AK150: 3.515738763 | AL150: 0.01757869382 | AM150: 0.03515738763 | AN150: 9.831484237e-05 | AO150: 0.0001966296847
A151: SF-00149 | B151: =VLOOKUP(A151,'Itens ARP 2021'!$A$4:$M$425,6,FALSE) -> Instalação de forro mineral reaproveitado | C151: =VLOOKUP(A151,'Itens ARP 2021'!$A$4:$M$425,8,FALSE) -> 100 | D151: 100 | E151: 7.031477526 | F151: 14.06295505 | P151: =C151*1.2 -> 120 | R151: 118.8 | S151: =C151*1.2 -> 120 | AG151: 238.8 | AH151: 120 | AI151: 358.8 | AJ151: 7.031477526 | AK151: 14.06295505 | AL151: 0.07031477526 | AM151: 0.1406295505 | AN151: 0.0001959720604 | AO151: 0.0003919441208
A152: SF-00150 | B152: =VLOOKUP(A152,'Itens ARP 2021'!$A$4:$M$425,6,FALSE) -> Tabica metálica em forro de gesso acartonado | C152: =VLOOKUP(A152,'Itens ARP 2021'!$A$4:$M$425,8,FALSE) -> 2500 | D152: 3300 | E152: 10.75230105 | F152: 21.5046021 | R152: 2970 | S152: =C152*0.1468 -> 367 | AG152: 3337 | AH152: 0 | AI152: 3337 | AJ152: 10.75230105 | AK152: 21.5046021 | AL152: 0.00430092042 | AM152: 0.008601840841 | AN152: 1.288858382e-06 | AO152: 2.577716764e-06
A153: SF-00151 | B153: =VLOOKUP(A153,'Itens ARP 2021'!$A$4:$M$425,6,FALSE) -> Instalação de revestimento de piso têxtil (carpete) reaproveitado | C153: =VLOOKUP(A153,'Itens ARP 2021'!$A$4:$M$425,8,FALSE) -> 400 | D153: 400 | E153: 2.343825842 | F153: 4.687651684 | I153: =C153*0.1 -> 40 | J153: =C153*0.1 -> 40 | R153: 475.2 | AG153: 515.2 | AH153: 40 | AI153: 555.2 | AJ153: 2.343825842 | AK153: 4.687651684 | AL153: 0.005859564605 | AM153: 0.01171912921 | AN153: 1.055397083e-05 | AO153: 2.110794166e-05
A154: SF-00152 | B154: =VLOOKUP(A154,'Itens ARP 2021'!$A$4:$M$425,6,FALSE) ->  | C154: =VLOOKUP(A154,'Itens ARP 2021'!$A$4:$M$425,8,FALSE) ->  | E154: 0 | F154: 0 | V154: =C154*0.5 ->  | AH154: 0 | AJ154: 0 | AK154: 0 | AL154: 0 | AM154: 0 | AN154: 0 | AO154: 0
A155: SF-00153 | B155: =VLOOKUP(A155,'Itens ARP 2021'!$A$4:$M$425,6,FALSE) ->  | C155: =VLOOKUP(A155,'Itens ARP 2021'!$A$4:$M$425,8,FALSE) ->  | E155: 0 | F155: 0 | V155: =C155*0.5 ->  | AH155: 0 | AJ155: 0 | AK155: 0 | AL155: 0 | AM155: 0 | AN155: 0 | AO155: 0
A156: SF-00154 | B156: =VLOOKUP(A156,'Itens ARP 2021'!$A$4:$M$425,6,FALSE) -> Espelho cristal, e=5 mm | C156: =VLOOKUP(A156,'Itens ARP 2021'!$A$4:$M$425,8,FALSE) -> 130 | D156: 130 | E156: 9.140920784 | F156: 18.28184157 | J156: =C156*0.4 -> 52 | R156: 154.44 | V156: =C156*2 -> 260 | AG156: 414.44 | AH156: 52 | AI156: 466.44 | AJ156: =C156*AL156 -> 9.140920784 | AK156: =C156*AM156 -> 18.28184157 | AL156: 0.07031477526 | AM156: 0.1406295505 | AN156: 0.0001507477388 | AO156: 0.0003014954775
A157: SF-00155 | B157: =VLOOKUP(A157,'Itens ARP 2021'!$A$4:$M$425,6,FALSE) -> Instalação de vidro reaproveitado | C157: =VLOOKUP(A157,'Itens ARP 2021'!$A$4:$M$425,8,FALSE) -> 50 | D157: 50 | E157: 1.318402036 | F157: 2.636804072 | J157: =C157*0.45 -> 22.5 | R157: 59.4 | V157: =C157*0.45 -> 22.5 | AG157: 81.9 | AH157: 22.5 | AI157: 104.4 | AJ157: =C157*AL157 -> 1.318402036 | AK157: =C157*AM157 -> 2.636804072 | AL157: 0.02636804072 | AM157: 0.05273608145 | AN157: 0.0002525674399 | AO157: 0.0005051348798
A158: SF-00156 | B158: =VLOOKUP(A158,'Itens ARP 2021'!$A$4:$M$425,6,FALSE) ->  | C158: =VLOOKUP(A158,'Itens ARP 2021'!$A$4:$M$425,8,FALSE) ->  | E158: 0 | F158: 0 | V158: =C158*0.6 ->  | AH158: 0 | AJ158: 0 | AK158: 0 | AL158: 0 | AM158: 0 | AN158: 0 | AO158: 0
A159: SF-00157 | B159: =VLOOKUP(A159,'Itens ARP 2021'!$A$4:$M$425,6,FALSE) ->  | C159: =VLOOKUP(A159,'Itens ARP 2021'!$A$4:$M$425,8,FALSE) ->  | E159: 0 | F159: 0 | J159: =C159*0.45 ->  | V159: =C159*0.45 ->  | AJ159: 0 | AK159: 0 | AL159: 0 | AM159: 0 | AN159: 0 | AO159: 0
A160: SF-00158 | B160: =VLOOKUP(A160,'Itens ARP 2021'!$A$4:$M$425,6,FALSE) ->  | C160: =VLOOKUP(A160,'Itens ARP 2021'!$A$4:$M$425,8,FALSE) ->  | E160: 0 | F160: 0 | J160: =C160*0.2 ->  | V160: =C160*1 ->  | AJ160: 0 | AK160: 0 | AL160: 0 | AM160: 0 | AN160: 0 | AO160: 0
A161: SF-00159 | B161: =VLOOKUP(A161,'Itens ARP 2021'!$A$4:$M$425,6,FALSE) -> Instalação de painéis de vidro temperado reaproveitados | C161: =VLOOKUP(A161,'Itens ARP 2021'!$A$4:$M$425,8,FALSE) -> 70 | D161: 100 | E161: 4.511864746 | F161: 9.023729492 | J161: =C161*1.1 -> 77 | R161: 83.16 | V161: =C161*1.1 -> 77 | AG161: 160.16 | AH161: 77 | AI161: 237.16 | AJ161: =C161*AL161 -> 4.511864746 | AK161: =C161*AM161 -> 9.023729492 | AL161: 0.06445521066 | AM161: 0.1289104213 | AN161: 0.0002717794344 | AO161: 0.0005435588688
A162: SF-00160 | B162: =VLOOKUP(A162,'Itens ARP 2021'!$A$4:$M$425,6,FALSE) -> Mola hidráulica de piso | C162: =VLOOKUP(A162,'Itens ARP 2021'!$A$4:$M$425,8,FALSE) -> 25 | E162: 0 | F162: 0 | J162: =C162*0.3 -> 7.5 | R162: 29.7 | V162: =C162*0.75 -> 18.75 | AG162: 48.45 | AH162: 7.5 | AI162: 55.95 | AJ162: 0 | AK162: 0 | AL162: 0 | AM162: 0 | AN162: 0 | AO162: 0
A163: SF-00161 | B163: =VLOOKUP(A163,'Itens ARP 2021'!$A$4:$M$425,6,FALSE) -> Instalação de persianas reaproveitadas | C163: =VLOOKUP(A163,'Itens ARP 2021'!$A$4:$M$425,8,FALSE) -> 800 | D163: 1200 | E163: 7.812752807 | F163: 15.62550561 | P163: =C163*0.333333333333333 -> 266.6666667 | R163: =C163*1.188 -> 950.4 | AG163: 950.4 | AH163: 266.6666667 | AI163: 1217.066667 | AJ163: =C163*AL163 -> 7.812752807 | AK163: =C163*AM163 -> 15.62550561 | AL163: 0.009765941009 | AM163: 0.01953188202 | AN163: 8.024162748e-06 | AO163: 1.60483255e-05
A164: SF-00165 | B164: =VLOOKUP(A164,'Itens ARP 2021'!$A$4:$M$425,6,FALSE) -> Película jateada | C164: =VLOOKUP(A164,'Itens ARP 2021'!$A$4:$M$425,8,FALSE) -> 80 | D164: 80 | E164: 0.7812752807 | F164: 1.562550561 | P164: =C164*0.333333333333333 -> 26.66666667 | R164: 95.04 | AG164: 95.04 | AH164: 26.66666667 | AI164: 121.7066667 | AJ164: 0.7812752807 | AK164: 1.562550561 | AL164: 0.009765941009 | AM164: 0.01953188202 | AN164: 8.024162748e-05 | AO164: 0.000160483255
A165: SF-00166 | B165: =VLOOKUP(A165,'Itens ARP 2021'!$A$4:$M$425,6,FALSE) -> Tubo de ligação para bacia sanitária | C165: =VLOOKUP(A165,'Itens ARP 2021'!$A$4:$M$425,8,FALSE) -> 15 | D165: 15 | E165: 0.08789346908 | F165: 0.1757869382 | N165: =C165*0.2 -> 3 | R165: 17.82 | AG165: 20.82 | AH165: 0 | AI165: 20.82 | AJ165: 0.08789346908 | AK165: 0.1757869382 | AL165: 0.005859564605 | AM165: 0.01171912921 | AN165: 0.0002814392222 | AO165: 0.0005628784443
A166: SF-00167 | B166: =VLOOKUP(A166,'Itens ARP 2021'!$A$4:$M$425,6,FALSE) -> Tubo PVC esgoto ou aguas pluviais predial DN 100mm | C166: =VLOOKUP(A166,'Itens ARP 2021'!$A$4:$M$425,8,FALSE) -> 215 | D166: 215 | E166: 5.606138436 | F166: 11.21227687 | N166: =C166*0.445 -> 95.675 | R166: 255.42 | Z166: =C166*0.445 -> 95.675 | AG166: 351.095 | AH166: 95.675 | AI166: 446.77 | AJ166: 5.606138436 | AK166: 11.21227687 | AL166: 0.02607506249 | AM166: 0.05215012499 | AN166: 5.836350358e-05 | AO166: 0.0001167270072
A167: SF-00168 | B167: =VLOOKUP(A167,'Itens ARP 2021'!$A$4:$M$425,6,FALSE) -> Tubo PVC esgoto ou aguas pluviais predial DN 40mm | C167: =VLOOKUP(A167,'Itens ARP 2021'!$A$4:$M$425,8,FALSE) -> 80 | D167: 80 | E167: 0.7734625279 | F167: 1.546925056 | N167: =C167*0.165 -> 13.2 | R167: 95.04 | Z167: =C167*0.165 -> 13.2 | AG167: 108.24 | AH167: 13.2 | AI167: 121.44 | AJ167: 0.7734625279 | AK167: 1.546925056 | AL167: 0.009668281599 | AM167: 0.0193365632 | AN167: 7.961364953e-05 | AO167: 0.0001592272991
A168: SF-00169 | B168: =VLOOKUP(A168,'Itens ARP 2021'!$A$4:$M$425,6,FALSE) -> Tubo PVC esgoto ou aguas pluviais predial DN 50mm | C168: =VLOOKUP(A168,'Itens ARP 2021'!$A$4:$M$425,8,FALSE) -> 80 | D168: 80 | E168: 0.9844068537 | F168: 1.968813707 | N168: =C168*0.21 -> 16.8 | R168: 95.04 | Z168: =C168*0.21 -> 16.8 | AG168: 111.84 | AH168: 16.8 | AI168: 128.64 | AJ168: 0.9844068537 | AK168: 1.968813707 | AL168: 0.01230508567 | AM168: 0.02461017134 | AN168: 9.565520578e-05 | AO168: 0.0001913104116
A169: SF-00170 | B169: =VLOOKUP(A169,'Itens ARP 2021'!$A$4:$M$425,6,FALSE) -> Tubo PVC esgoto ou aguas pluviais predial DN 75mm | C169: =VLOOKUP(A169,'Itens ARP 2021'!$A$4:$M$425,8,FALSE) -> 100 | D169: 100 | E169: 1.904358497 | F169: 3.808716993 | N169: =C169*0.325 -> 32.5 | R169: 118.8 | Z169: =C169*0.325 -> 32.5 | AG169: 151.3 | AH169: 32.5 | AI169: 183.8 | AJ169: 1.904358497 | AK169: 3.808716993 | AL169: 0.01904358497 | AM169: 0.03808716993 | AN169: 0.0001036103643 | AO169: 0.0002072207287
A170: SF-00171 | B170: =VLOOKUP(A170,'Itens ARP 2021'!$A$4:$M$425,6,FALSE) -> Tubo PVC soldavel agua fria DN 25mm | C170: =VLOOKUP(A170,'Itens ARP 2021'!$A$4:$M$425,8,FALSE) -> 300 | D170: 200 | E170: 0.2812591011 | F170: 0.5625182021 | N170: =C170*0.016 -> 4.8 | R170: 356.4 | Z170: =C170*0.016 -> 4.8 | AG170: 361.2 | AH170: 4.8 | AI170: 366 | AJ170: 0.2812591011 | AK170: 0.5625182021 | AL170: 0.0009375303368 | AM170: 0.001875060674 | AN170: 2.561558297e-06 | AO170: 5.123116595e-06
A171: SF-00172 | B171: =VLOOKUP(A171,'Itens ARP 2021'!$A$4:$M$425,6,FALSE) -> Tubo PVC soldavel agua fria DN 32mm | C171: =VLOOKUP(A171,'Itens ARP 2021'!$A$4:$M$425,8,FALSE) -> 200 | D171: 100 | E171: 0.2343825842 | F171: 0.4687651684 | N171: =C171*0.02 -> 4 | R171: 237.6 | Z171: =C171*0.02 -> 4 | AG171: 241.6 | AH171: 4 | AI171: 245.6 | AJ171: 0.2343825842 | AK171: 0.4687651684 | AL171: 0.001171912921 | AM171: 0.002343825842 | AN171: 4.771632415e-06 | AO171: 9.543264829e-06
A172: SF-00173 | B172: =VLOOKUP(A172,'Itens ARP 2021'!$A$4:$M$425,6,FALSE) -> Tubo PVC soldavel agua fria DN 40mm | C172: =VLOOKUP(A172,'Itens ARP 2021'!$A$4:$M$425,8,FALSE) -> 100 | D172: 100 | E172: 0.1406295505 | F172: 0.2812591011 | N172: =C172*0.024 -> 2.4 | R172: 118.8 | Z172: =C172*0.024 -> 2.4 | AG172: 121.2 | AH172: 2.4 | AI172: 123.6 | AJ172: 0.1406295505 | AK172: 0.2812591011 | AL172: 0.001406295505 | AM172: 0.002812591011 | AN172: 1.137779535e-05 | AO172: 2.27555907e-05
A173: SF-00174 | B173: =VLOOKUP(A173,'Itens ARP 2021'!$A$4:$M$425,6,FALSE) -> Tubo PVC soldavel agua fria DN 50mm | C173: =VLOOKUP(A173,'Itens ARP 2021'!$A$4:$M$425,8,FALSE) -> 100 | D173: 100 | E173: 0.1699273736 | F173: 0.3398547471 | N173: =C173*0.029 -> 2.9 | R173: 118.8 | Z173: =C173*0.029 -> 2.9 | AG173: 121.7 | AH173: 2.9 | AI173: 124.6 | AJ173: 0.1699273736 | AK173: 0.3398547471 | AL173: 0.001699273736 | AM173: 0.003398547471 | AN173: 1.363783094e-05 | AO173: 2.727566189e-05
A174: SF-00175 | B174: =VLOOKUP(A174,'Itens ARP 2021'!$A$4:$M$425,6,FALSE) -> Base registro gaveta 3/4" | C174: =VLOOKUP(A174,'Itens ARP 2021'!$A$4:$M$425,8,FALSE) -> 60 | D174: 80 | E174: 0.9316707722 | F174: 1.863341544 | N174: =C174*0.3 -> 18 | R174: 71.28 | Z174: =C174*0.23 -> 13.8 | AG174: 89.28 | AH174: 13.8 | AI174: 103.08 | AJ174: 0.9316707722 | AK174: 1.863341544 | AL174: 0.0155278462 | AM174: 0.03105569241 | AN174: 0.0001506387874 | AO174: 0.0003012775748
A175: SF-00176 | B175: =VLOOKUP(A175,'Itens ARP 2021'!$A$4:$M$425,6,FALSE) -> Caixa sifonada de PVC DN 150mm | C175: =VLOOKUP(A175,'Itens ARP 2021'!$A$4:$M$425,8,FALSE) -> 45 | D175: 60 | E175: 1.001985548 | F175: 2.003971095 | N175: =C175*0.38 -> 17.1 | R175: 53.46 | Z175: =C175*0.38 -> 17.1 | AG175: 70.56 | AH175: 17.1 | AI175: 87.66 | AJ175: 1.001985548 | AK175: 2.003971095 | AL175: 0.0222663455 | AM175: 0.044532691 | AN175: 0.0002540080481 | AO175: 0.0005080160963
A176: SF-00177 | B176: =VLOOKUP(A176,'Itens ARP 2021'!$A$4:$M$425,6,FALSE) -> Caixa sifonada de PVC DN 250mm | C176: =VLOOKUP(A176,'Itens ARP 2021'!$A$4:$M$425,8,FALSE) -> 45 | D176: 60 | E176: 1.001985548 | F176: 2.003971095 | N176: =C176*0.38 -> 17.1 | R176: 53.46 | Z176: =C176*0.38 -> 17.1 | AG176: 70.56 | AH176: 17.1 | AI176: 87.66 | AJ176: 1.001985548 | AK176: 2.003971095 | AL176: 0.0222663455 | AM176: 0.044532691 | AN176: 0.0002540080481 | AO176: 0.0005080160963
A177: SF-00178 | B177: =VLOOKUP(A177,'Itens ARP 2021'!$A$4:$M$425,6,FALSE) -> Grelha quadrada para ralo 10x10cm | C177: =VLOOKUP(A177,'Itens ARP 2021'!$A$4:$M$425,8,FALSE) -> 45 | D177: 60 | E177: 0.1977603054 | F177: 0.3955206109 | J177: =C177*0.15 -> 6.75 | R177: 53.46 | AG177: 53.46 | AH177: 6.75 | AI177: 60.21 | AJ177: 0.1977603054 | AK177: 0.3955206109 | AL177: 0.004394673454 | AM177: 0.008789346908 | AN177: 7.298909573e-05 | AO177: 0.0001459781915
A178: SF-00179 | B178: =VLOOKUP(A178,'Itens ARP 2021'!$A$4:$M$425,6,FALSE) -> Grelha quadrada para ralo 15x15cm | C178: =VLOOKUP(A178,'Itens ARP 2021'!$A$4:$M$425,8,FALSE) -> 45 | D178: 60 | E178: 0.1977603054 | F178: 0.3955206109 | J178: =C178*0.15 -> 6.75 | R178: 53.46 | AG178: 53.46 | AH178: 6.75 | AI178: 60.21 | AJ178: 0.1977603054 | AK178: 0.3955206109 | AL178: 0.004394673454 | AM178: 0.008789346908 | AN178: 7.298909573e-05 | AO178: 0.0001459781915
A179: SF-00180 | B179: =VLOOKUP(A179,'Itens ARP 2021'!$A$4:$M$425,6,FALSE) -> Ralo seco PVC DN 100x40mm | C179: =VLOOKUP(A179,'Itens ARP 2021'!$A$4:$M$425,8,FALSE) -> 45 | D179: 60 | E179: 0.1845762851 | F179: 0.3691525701 | N179: =C179*0.07 -> 3.15 | R179: 53.46 | Z179: =C179*0.07 -> 3.15 | AG179: 56.61 | AH179: 3.15 | AI179: 59.76 | AJ179: 0.1845762851 | AK179: 0.3691525701 | AL179: 0.004101695224 | AM179: 0.008203390447 | AN179: 6.863613159e-05 | AO179: 0.0001372722632
A180: SF-00181 | B180: =VLOOKUP(A180,'Itens ARP 2021'!$A$4:$M$425,6,FALSE) -> Assento para bacia convencional - Linha Administrativa | C180: =VLOOKUP(A180,'Itens ARP 2021'!$A$4:$M$425,8,FALSE) -> 45 | D180: 60 | E180: 0.1318402036 | F180: 0.2636804072 | J180: =C180*0.1 -> 4.5 | R180: 53.46 | AG180: 53.46 | AH180: 4.5 | AI180: 57.96 | AJ180: 0.1318402036 | AK180: 0.2636804072 | AL180: 0.002929782303 | AM180: 0.005859564605 | AN180: 5.054834891e-05 | AO180: 0.0001010966978
A181: SF-00182 | B181: =VLOOKUP(A181,'Itens ARP 2021'!$A$4:$M$425,6,FALSE) -> Bacia convencional – Linha Administrativa | C181: =VLOOKUP(A181,'Itens ARP 2021'!$A$4:$M$425,8,FALSE) -> 45 | D181: 60 | E181: 1.608450484 | F181: 3.216900968 | J181: =C181*0.44 -> 19.8 | N181: =C181*0.78 -> 35.1 | R181: 53.46 | AG181: 88.56 | AH181: 19.8 | AI181: 108.36 | AJ181: 1.608450484 | AK181: 3.216900968 | AL181: 0.03574334409 | AM181: 0.07148668818 | AN181: 0.0003298573652 | AO181: 0.0006597147304
A182: SF-00183 | B182: =VLOOKUP(A182,'Itens ARP 2021'!$A$4:$M$425,6,FALSE) -> Bacia convencional com saída horizontal | C182: =VLOOKUP(A182,'Itens ARP 2021'!$A$4:$M$425,8,FALSE) -> 10 | D182: 2 | E182: 0.3574334409 | F182: 0.7148668818 | J182: =C182*0.44 -> 4.4 | N182: =C182*0.78 -> 7.8 | R182: 11.88 | AG182: 19.68 | AH182: 4.4 | AI182: 24.08 | AJ182: 0.3574334409 | AK182: 0.7148668818 | AL182: 0.03574334409 | AM182: 0.07148668818 | AN182: 0.001484358143 | AO182: 0.002968716287
A183: SF-00184 | B183: =VLOOKUP(A183,'Itens ARP 2021'!$A$4:$M$425,6,FALSE) -> Cuba oval de embutir | C183: =VLOOKUP(A183,'Itens ARP 2021'!$A$4:$M$425,8,FALSE) -> 45 | D183: 60 | E183: 1.476610281 | F183: 2.953220561 | J183: =C183*0.27 -> 12.15 | R183: =C183*0.85 -> 38.25 | AG183: 38.25 | AH183: 12.15 | AI183: 50.4 | AJ183: 1.476610281 | AK183: 2.953220561 | AL183: 0.03281356179 | AM183: 0.06562712358 | AN183: 0.0006510627339 | AO183: 0.001302125468
A184: SF-00185 | B184: =VLOOKUP(A184,'Itens ARP 2021'!$A$4:$M$425,6,FALSE) -> Cuba retangular em aço inox | C184: =VLOOKUP(A184,'Itens ARP 2021'!$A$4:$M$425,8,FALSE) -> 30 | D184: 20 | E184: 0.5537288552 | F184: 1.10745771 | J184: =C184*0.15 -> 4.5 | R184: =C184*0.48 -> 14.4 | AG184: 14.4 | AH184: 4.5 | AI184: 18.9 | AJ184: 0.5537288552 | AK184: 1.10745771 | AL184: 0.01845762851 | AM184: 0.03691525701 | AN184: 0.0009765941009 | AO184: 0.001953188202
A185: SF-00186 | B185: =VLOOKUP(A185,'Itens ARP 2021'!$A$4:$M$425,6,FALSE) -> Cuba semiencaixe quadrada com mesa | C185: =VLOOKUP(A185,'Itens ARP 2021'!$A$4:$M$425,8,FALSE) -> 15 | D185: 10 | E185: 0.4922034268 | F185: 0.9844068537 | J185: =C185*0.27 -> 4.05 | R185: =C185*0.85 -> 12.75 | AG185: 12.75 | AH185: 4.05 | AI185: 16.8 | AJ185: 0.4922034268 | AK185: 0.9844068537 | AL185: 0.03281356179 | AM185: 0.06562712358 | AN185: 0.001953188202 | AO185: 0.003906376404
A186: SF-00187 | B186: =VLOOKUP(A186,'Itens ARP 2021'!$A$4:$M$425,6,FALSE) -> Instalação de lavatório reaproveitado | C186: =VLOOKUP(A186,'Itens ARP 2021'!$A$4:$M$425,8,FALSE) -> 30 | D186: 60 | E186: 0.5097821207 | F186: 1.019564241 | J186: =C186*0.19 -> 5.7 | N186: =C186*0.39 -> 11.7 | AG186: 11.7 | AH186: 5.7 | AI186: 17.4 | AJ186: 0.5097821207 | AK186: 1.019564241 | AL186: 0.01699273736 | AM186: 0.03398547471 | AN186: 0.0009765941009 | AO186: 0.001953188202
A187: SF-00188 | B187: =VLOOKUP(A187,'Itens ARP 2021'!$A$4:$M$425,6,FALSE) -> Instalação de mictório reaproveitado | C187: =VLOOKUP(A187,'Itens ARP 2021'!$A$4:$M$425,8,FALSE) -> 30 | D187: 60 | E187: 4.087046312 | F187: 8.174092624 | N187: =C187*2.2 -> 66 | Z187: =C187*2.45 -> 73.5 | AG187: 66 | AH187: 73.5 | AI187: 139.5 | AJ187: 4.087046312 | AK187: 8.174092624 | AL187: 0.1362348771 | AM187: 0.2724697541 | AN187: 0.0009765941009 | AO187: 0.001953188202
A188: SF-00189 | B188: =VLOOKUP(A188,'Itens ARP 2021'!$A$4:$M$425,6,FALSE) -> Instalação de vaso sanitário reaproveitado | C188: =VLOOKUP(A188,'Itens ARP 2021'!$A$4:$M$425,8,FALSE) -> 30 | D188: 60 | E188: 1.072300323 | F188: 2.144600646 | J188: =C188*0.44 -> 13.2 | N188: =C188*0.78 -> 23.4 | AG188: 23.4 | AH188: 13.2 | AI188: 36.6 | AJ188: 1.072300323 | AK188: 2.144600646 | AL188: 0.03574334409 | AM188: 0.07148668818 | AN188: 0.0009765941009 | AO188: 0.001953188202
A189: SF-00190 | B189: =VLOOKUP(A189,'Itens ARP 2021'!$A$4:$M$425,6,FALSE) -> Lavatório suspenso | C189: =VLOOKUP(A189,'Itens ARP 2021'!$A$4:$M$425,8,FALSE) -> 10 | D189: 10 | E189: 0.1699273736 | F189: 0.3398547471 | J189: =C189*0.19 -> 1.9 | N189: =C189*0.39 -> 3.9 | AG189: 3.9 | AH189: 1.9 | AI189: 5.8 | AJ189: 0.1699273736 | AK189: 0.3398547471 | AL189: 0.01699273736 | AM189: 0.03398547471 | AN189: 0.002929782303 | AO189: 0.005859564605
A190: SF-00191 | B190: =VLOOKUP(A190,'Itens ARP 2021'!$A$4:$M$425,6,FALSE) -> Mictório – Linha Administrativa | C190: =VLOOKUP(A190,'Itens ARP 2021'!$A$4:$M$425,8,FALSE) -> 20 | D190: 20 | E190: 2.724697541 | F190: 5.449395083 | N190: =C190*2.2 -> 44 | Z190: =C190*2.45 -> 49 | AG190: 44 | AH190: 49 | AI190: 93 | AJ190: 2.724697541 | AK190: 5.449395083 | AL190: 0.1362348771 | AM190: 0.2724697541 | AN190: 0.001464891151 | AO190: 0.002929782303
A191: SF-00192 | B191: =VLOOKUP(A191,'Itens ARP 2021'!$A$4:$M$425,6,FALSE) -> Tanque 38 litros | C191: =VLOOKUP(A191,'Itens ARP 2021'!$A$4:$M$425,8,FALSE) -> 25 | D191: 5 | E191: 0.8496368678 | F191: 1.699273736 | J191: =C191*0.34 -> 8.5 | N191: =C191*0.82 -> 20.5 | AG191: 20.5 | AH191: 8.5 | AI191: 29 | AJ191: 0.8496368678 | AK191: 1.699273736 | AL191: 0.03398547471 | AM191: 0.06797094942 | AN191: 0.001171912921 | AO191: 0.002343825842
A192: SF-00193 | B192: =VLOOKUP(A192,'Itens ARP 2021'!$A$4:$M$425,6,FALSE) -> Acabamento para registro GD | C192: =VLOOKUP(A192,'Itens ARP 2021'!$A$4:$M$425,8,FALSE) -> 35 | D192: 40 | E192: 0.08203390447 | F192: 0.1640678089 | N192: =C192*0.08 -> 2.8 | AG192: 2.8 | AH192: 0 | AI192: 2.8 | AJ192: 0.08203390447 | AK192: 0.1640678089 | AL192: 0.002343825842 | AM192: 0.004687651684 | AN192: 0.0008370806579 | AO192: 0.001674161316
A193: SF-00194 | B193: =VLOOKUP(A193,'Itens ARP 2021'!$A$4:$M$425,6,FALSE) -> Acabamento para registro PQ | C193: =VLOOKUP(A193,'Itens ARP 2021'!$A$4:$M$425,8,FALSE) -> 70 | D193: 40 | E193: 0.1640678089 | F193: 0.3281356179 | N193: =C193*0.08 -> 5.6 | AG193: 5.6 | AH193: 0 | AI193: 5.6 | AJ193: 0.1640678089 | AK193: 0.3281356179 | AL193: 0.002343825842 | AM193: 0.004687651684 | AN193: 0.0004185403289 | AO193: 0.0008370806579
A194: SF-00195 | B194: =VLOOKUP(A194,'Itens ARP 2021'!$A$4:$M$425,6,FALSE) -> Ducha higiênica | C194: =VLOOKUP(A194,'Itens ARP 2021'!$A$4:$M$425,8,FALSE) -> 60 | D194: 60 | E194: 1.757869382 | F194: 3.515738763 | N194: =C194*0.5 -> 30 | Z194: =C194*0.5 -> 30 | AG194: 30 | AH194: 30 | AI194: 60 | AJ194: 1.757869382 | AK194: 3.515738763 | AL194: 0.02929782303 | AM194: 0.05859564605 | AN194: 0.0004882970504 | AO194: 0.0009765941009
A195: SF-00196 | B195: =VLOOKUP(A195,'Itens ARP 2021'!$A$4:$M$425,6,FALSE) -> Instalação de metais e acessórios reaproveitados | C195: =VLOOKUP(A195,'Itens ARP 2021'!$A$4:$M$425,8,FALSE) -> 200 | D195: 200 | E195: 1.082847539 | F195: 2.165695078 | N195: =C195*0.1621 -> 32.42 | Z195: =C195*0.0227 -> 4.54 | AG195: =SUM(I195,K195,L195,M195,N195,O195,R195,S195,U195,V195,X195,Y195,AA195,AB195,AD195,AE195) -> 32.42 | AH195: =SUM(P195,Q195,T195,W195,Z195,AC195,AF195)+J195 -> 4.54 | AI195: 36.96 | AJ195: 1.082847539 | AK195: 2.165695078 | AL195: 0.005414237695 | AM195: 0.01082847539 | AN195: 0.0001464891151 | AO195: 0.0002929782303
A196: SF-00197 | B196: =VLOOKUP(A196,'Itens ARP 2021'!$A$4:$M$425,6,FALSE) -> Ligação flexível 1/2” x 40 cm | C196: =VLOOKUP(A196,'Itens ARP 2021'!$A$4:$M$425,8,FALSE) -> 80 | D196: 60 | E196: 0.4687651684 | F196: 0.9375303368 | J196: =C196*0.05 -> 4 | N196: =C196*0.15 -> 12 | AG196: 12 | AH196: 4 | AI196: =AG196+AH196 -> 16 | AJ196: 0.4687651684 | AK196: 0.9375303368 | AL196: 0.005859564605 | AM196: 0.01171912921 | AN196: =AL196/AI196 -> 0.0003662227878 | AO196: =AM196/AI196 -> 0.0007324455757
A197: SF-00198 | B197: =VLOOKUP(A197,'Itens ARP 2021'!$A$4:$M$425,6,FALSE) -> Sifão articulado para cozinha | C197: =VLOOKUP(A197,'Itens ARP 2021'!$A$4:$M$425,8,FALSE) -> 50 | D197: 20 | E197: 0.5273608145 | F197: 1.054721629 | J197: =C197*0.09 -> 4.5 | N197: =C197*0.27 -> 13.5 | AG197: 13.5 | AH197: 4.5 | AI197: 18 | AJ197: 0.5273608145 | AK197: 1.054721629 | AL197: 0.01054721629 | AM197: 0.02109443258 | AN197: 0.0005859564605 | AO197: 0.001171912921
A198: SF-00199 | B198: =VLOOKUP(A198,'Itens ARP 2021'!$A$4:$M$425,6,FALSE) -> Sifão para lavatório 1 1/2" | C198: =VLOOKUP(A198,'Itens ARP 2021'!$A$4:$M$425,8,FALSE) -> 60 | D198: 60 | E198: 0.2812591011 | F198: 0.5625182021 | J198: =C198*0.04 -> 2.4 | N198: =C198*0.12 -> 7.2 | AG198: 7.2 | AH198: 2.4 | AI198: 9.6 | AJ198: 0.2812591011 | AK198: 0.5625182021 | AL198: 0.004687651684 | AM198: 0.009375303368 | AN198: 0.0004882970504 | AO198: 0.0009765941009
A199: SF-00200 | B199: =VLOOKUP(A199,'Itens ARP 2021'!$A$4:$M$425,6,FALSE) -> Sifão para tanque | C199: =VLOOKUP(A199,'Itens ARP 2021'!$A$4:$M$425,8,FALSE) -> 25 | D199: 5 | E199: =IFERROR(AL199*C199,0) -> 0.2636804072 | F199: =IFERROR(AM199*C199,0) -> 0.5273608145 | J199: =C199*0.09 -> 2.25 | N199: =C199*0.27 -> 6.75 | AG199: 6.75 | AH199: 2.25 | AI199: 9 | AJ199: 0.2636804072 | AK199: 0.5273608145 | AL199: 0.01054721629 | AM199: 0.02109443258 | AN199: 0.001171912921 | AO199: 0.002343825842
A200: SF-00201 | B200: =VLOOKUP(A200,'Itens ARP 2021'!$A$4:$M$425,6,FALSE) ->  | C200: =VLOOKUP(A200,'Itens ARP 2021'!$A$4:$M$425,8,FALSE) ->  | D200: 20 | E200: 0 | F200: 0 | J200: =C200*0.05 ->  | N200: =C200*0.17 ->  | AJ200: 0 | AK200: 0 | AL200: 0.006445521066 | AM200: 0.01289104213
... 254 more rows

Sheet Serviços de Engenharia
A1: SUBITEM | B1: GRANDE ÁREA | C1: CATEGORIA | D1: DISCRIMINAÇÃO | E1: UN | F1: QUANT. TOTAL | G1: PREÇO UNITÁRIO (R$) | H1: CUSTO DIRETO | I1: BDI (%) | J1: PREÇO UNITÁRIO COM BDI (R$) | K1: CUSTO TOTAL
A2: SF-00001 | B2: Serviços de Apoio | C2: Serviços Técnicos | D2: Engenheiro(a) /Arquiteto(a) júnior | E2: hh | F2: 3000 | G2: 82.935 | H2: 248805 | I2: 0.191 | J2: 98.78 | K2: 296340
A3: SF-00002 | B3: Serviços de Apoio | C3: Serviços Técnicos | D3: Mestre de obras | E3: hh | F3: 6000 | G3: 25.973 | H3: 155838 | I3: 0.191 | J3: 30.93 | K3: 185580
A4: SF-00004 | B4: Serviços de Apoio | C4: Serviços Técnicos | D4: Projetos de segurança do trabalho | E4: un | F4: 10 | G4: 2125.39 | H4: 21253.9 | I4: 0.191 | J4: 2531.34 | K4: 25313.4
A5: SF-00005 | B5: Serviços de Apoio | C5: Serviços Preliminares | D5: Demolição de alvenarias | E5: m3 | F5: 100 | G5: 42.1447322 | H5: 4214.47 | I5: 0.191 | J5: 50.19 | K5: 5019
A6: SF-00006 | B6: Serviços de Apoio | C6: Serviços Preliminares | D6: Demolição de concreto simples | E6: m3 | F6: 20 | G6: 236.5766 | H6: 4731.53 | I6: 0.191 | J6: 281.76 | K6: 5635.2
A7: SF-00007 | B7: Serviços de Apoio | C7: Serviços Preliminares | D7: Demolição de contrapiso | E7: m2 | F7: 400 | G7: 11.21855 | H7: 4487.42 | I7: 0.191 | J7: 13.36 | K7: 5344
A8: SF-00008 | B8: Serviços de Apoio | C8: Serviços Preliminares | D8: Demolição de fechamento ou parede em gesso acartonado | E8: m2 | F8: 200 | G8: 5.70091675 | H8: 1140.18 | I8: 0.191 | J8: 6.79 | K8: 1358
A9: SF-00009 | B9: Serviços de Apoio | C9: Serviços Preliminares | D9: Demolição de forro de gesso | E9: m2 | F9: 3000 | G9: 1.24073325 | H9: 3722.2 | I9: 0.191 | J9: 1.48 | K9: 4440
A10: SF-00010 | B10: Serviços de Apoio | C10: Serviços Preliminares | D10: Demolição de infraestrutura elétrica (eletrodutos, eletrocalhas, cabos) | E10: m | F10: 4000 | G10: 2.558483 | H10: 10233.93 | I10: 0.191 | J10: 3.05 | K10: 12200
A11: SF-00011 | B11: Serviços de Apoio | C11: Serviços Preliminares | D11: Demolição de revestimento cerâmico, granito, mármore ou granitina | E11: m2 | F11: 340 | G11: 9.3210352 | H11: 3169.15 | I11: 0.191 | J11: 11.1 | K11: 3774
A12: SF-00012 | B12: Serviços de Apoio | C12: Serviços Preliminares | D12: Demolição de revestimento em argamassa | E12: m2 | F12: 1000 | G12: 2.49980625 | H12: 2499.81 | I12: 0.191 | J12: 2.98 | K12: 2980
A13: SF-00013 | B13: Serviços de Apoio | C13: Serviços Preliminares | D13: Demolição de tubulação hidrossanitária embutida com conexões e acessórios | E13: m | F13: 100 | G13: 0.37566135 | H13: 37.57 | I13: 0.191 | J13: 0.45 | K13: 45
A14: SF-00014 | B14: Serviços de Apoio | C14: Serviços Preliminares | D14: Demolição em concreto armado | E14: m3 | F14: 10 | G14: 212.4172213 | H14: 2124.17 | I14: 0.191 | J14: 252.99 | K14: 2529.9
A15: SF-00015 | B15: Serviços de Apoio | C15: Serviços Preliminares | D15: Locação de caçambas | E15: un | F15: 110 | G15: 320.5 | H15: 35255 | I15: 0.1126 | J15: 356.59 | K15: 39224.9
A16: SF-00016 | B16: Serviços de Apoio | C16: Serviços Preliminares | D16: Remoção de armários | E16: m2 | F16: 240 | G16: 13.17365 | H16: 3161.68 | I16: 0.191 | J16: 15.69 | K16: 3765.6
A17: SF-00017 | B17: Serviços de Apoio | C17: Serviços Preliminares | D17: Remoção de bancadas | E17: m2 | F17: 40 | G17: 19.28405 | H17: 771.36 | I17: 0.191 | J17: 22.97 | K17: 918.8
A18: SF-00018 | B18: Serviços de Apoio | C18: Serviços Preliminares | D18: Remoção de batentes de madeira | E18: un | F18: 50 | G18: 7.27928 | H18: 363.96 | I18: 0.191 | J18: 8.67 | K18: 433.5
A19: SF-00019 | B19: Serviços de Apoio | C19: Serviços Preliminares | D19: Remoção de canaleta em alumínio | E19: m | F19: 200 | G19: 4.0477125 | H19: 809.54 | I19: 0.191 | J19: 4.82 | K19: 964
A20: SF-00020 | B20: Serviços de Apoio | C20: Serviços Preliminares | D20: Remoção de carpete | E20: m2 | F20: 300 | G20: 1.81982 | H20: 545.95 | I20: 0.191 | J20: 2.17 | K20: 651
A21: SF-00021 | B21: Serviços de Apoio | C21: Serviços Preliminares | D21: Remoção de cortinas | E21: m | F21: 50 | G21: 3.17838555 | H21: 158.92 | I21: 0.191 | J21: 3.79 | K21: 189.5
A22: SF-00022 | B22: Serviços de Apoio | C22: Serviços Preliminares | D22: Remoção de difusores, grelhas e acessórios de climatização | E22: un | F22: 120 | G22: 19.893 | H22: 2387.16 | I22: 0.191 | J22: 23.69 | K22: 2842.8
A23: SF-00023 | B23: Serviços de Apoio | C23: Serviços Preliminares | D23: Remoção de divisória de mármore ou granito | E23: m2 | F23: 40 | G23: 30.0789 | H23: 1203.16 | I23: 0.191 | J23: 35.82 | K23: 1432.8
A24: SF-00024 | B24: Serviços de Apoio | C24: Serviços Preliminares | D24: Remoção de divisórias de MDF e gesso acartonado | E24: m2 | F24: 1500 | G24: 25.935 | H24: 38902.5 | I24: 0.191 | J24: 30.89 | K24: 46335
A25: SF-00025 | B25: Serviços de Apoio | C25: Serviços Preliminares | D25: Remoção de dutos/tubulações | E25: m | F25: 1500 | G25: 8.5369375 | H25: 12805.41 | I25: 0.191 | J25: 10.17 | K25: 15255
A26: SF-00026 | B26: Serviços de Apoio | C26: Serviços Preliminares | D26: Remoção de esquadrias metálicas | E26: m2 | F26: 70 | G26: 9.0991 | H26: 636.94 | I26: 0.191 | J26: 10.84 | K26: 758.8
A27: SF-00027 | B27: Serviços de Apoio | C27: Serviços Preliminares | D27: Remoção de exaustor | E27: un | F27: 15 | G27: 6.57495 | H27: 98.62 | I27: 0.191 | J27: 7.83 | K27: 117.45
A28: SF-00028 | B28: Serviços de Apoio | C28: Serviços Preliminares | D28: Remoção de fechadura/puxador de porta | E28: un | F28: 101 | G28: 5.403125 | H28: 545.72 | I28: 0.191 | J28: 6.44 | K28: 650.44
A29: SF-00029 | B29: Serviços de Apoio | C29: Serviços Preliminares | D29: Remoção de folha de porta e dobradiças | E29: un | F29: 82 | G29: 6.9938278 | H29: 573.49 | I29: 0.191 | J29: 8.33 | K29: 683.06
A30: SF-00030 | B30: Serviços de Apoio | C30: Serviços Preliminares | D30: Remoção de laminado melamínico (LDAP), em PVC ou vinílico | E30: m2 | F30: 1000 | G30: 16.37838 | H30: 16378.38 | I30: 0.191 | J30: 19.51 | K30: 19510
A31: SF-00031 | B31: Serviços de Apoio | C31: Serviços Preliminares | D31: Remoção de louças | E31: un | F31: 80 | G31: 9.26557895 | H31: 741.25 | I31: 0.191 | J31: 11.04 | K31: 883.2
A32: SF-00032 | B32: Serviços de Apoio | C32: Serviços Preliminares | D32: Remoção de luminária | E32: un | F32: 500 | G32: 4.8821165 | H32: 2441.06 | I32: 0.191 | J32: 5.81 | K32: 2905
A33: SF-00033 | B33: Serviços de Apoio | C33: Serviços Preliminares | D33: Remoção de metais e acessórios | E33: un | F33: 300 | G33: 6.7565501 | H33: 2026.97 | I33: 0.191 | J33: 8.05 | K33: 2415
A34: SF-00034 | B34: Serviços de Apoio | C34: Serviços Preliminares | D34: Remoção de painéis de vidro temperado | E34: m2 | F34: 586 | G34: 13.210225 | H34: 7741.19 | I34: 0.191 | J34: 15.73 | K34: 9217.78
A35: SF-00035 | B35: Serviços de Apoio | C35: Serviços Preliminares | D35: Remoção de película | E35: m2 | F35: 196 | G35: 8.0712 | H35: 1581.96 | I35: 0.191 | J35: 9.61 | K35: 1883.56
A36: SF-00036 | B36: Serviços de Apoio | C36: Serviços Preliminares | D36: Remoção de persianas | E36: m | F36: 400 | G36: 3.17838555 | H36: 1271.35 | I36: 0.191 | J36: 3.79 | K36: 1516
A37: SF-00037 | B37: Serviços de Apoio | C37: Serviços Preliminares | D37: Remoção de pintura ou textura | E37: m2 | F37: 4000 | G37: 6.4106 | H37: 25642.4 | I37: 0.191 | J37: 7.64 | K37: 30560
A38: SF-00038 | B38: Serviços de Apoio | C38: Serviços Preliminares | D38: Remoção de placas de forro | E38: m2 | F38: 500 | G38: 3.72219975 | H38: 1861.1 | I38: 0.191 | J38: 4.43 | K38: 2215
A39: SF-00039 | B39: Serviços de Apoio | C39: Serviços Preliminares | D39: Remoção de quadros de elétricos ou de telecomunicações | E39: un | F39: 30 | G39: 57.22325 | H39: 1716.7 | I39: 0.191 | J39: 68.15 | K39: 2044.5
A40: SF-00040 | B40: Serviços de Apoio | C40: Serviços Preliminares | D40: Remoção de revestimento acústico | E40: m2 | F40: 300 | G40: 3.2053 | H40: 961.59 | I40: 0.191 | J40: 3.82 | K40: 1146
A41: SF-00041 | B41: Serviços de Apoio | C41: Serviços Preliminares | D41: Remoção de rodapé/rodabanca de mármore ou granito | E41: m | F41: 350 | G41: 1.4007161 | H41: 490.25 | I41: 0.191 | J41: 1.67 | K41: 584.5
A42: SF-00042 | B42: Serviços de Apoio | C42: Serviços Preliminares | D42: Remoção de rodapés de madeira | E42: m2 | F42: 10 | G42: 5.7942875 | H42: 57.94 | I42: 0.191 | J42: 6.9 | K42: 69
A43: SF-00043 | B43: Serviços de Apoio | C43: Serviços Preliminares | D43: Remoção de soleira de mármore ou granito | E43: m | F43: 20 | G43: 8.814575 | H43: 176.29 | I43: 0.191 | J43: 10.5 | K43: 210
A44: SF-00044 | B44: Serviços de Apoio | C44: Serviços Preliminares | D44: Remoção de split/fancolete/ACJ (equipamento unitário) | E44: un | F44: 150 | G44: 39.8335 | H44: 5975.03 | I44: 0.191 | J44: 47.44 | K44: 7116
A45: SF-00045 | B45: Serviços de Apoio | C45: Serviços Preliminares | D45: Remoção de vidro comum / espelho | E45: m2 | F45: 60 | G45: 13.2943 | H45: 797.66 | I45: 0.191 | J45: 15.83 | K45: 949.8
A46: SF-00046 | B46: Serviços de Apoio | C46: Serviços Preliminares | D46: Retirada de entulhos | E46: m3 | F46: 410 | G46: 16.0265 | H46: 6570.87 | I46: 0.191 | J46: 19.09 | K46: 7826.9
A47: SF-00047 | B47: Serviços de Apoio | C47: Segurança do Trabalho | D47: Absorvedor de energia para linha de vida | E47: un | F47: 5 | G47: 688.63 | H47: 3443.15 | I47: 0.191 | J47: 820.16 | K47: 4100.8
A48: SF-00048 | B48: Serviços de Apoio | C48: Segurança do Trabalho | D48: Andaime fachadeiro | E48: m2 x mês | F48: 400 | G48: 3.7905 | H48: 1516.2 | I48: 0.191 | J48: 4.51 | K48: 1804
A49: SF-00049 | B49: Serviços de Apoio | C49: Segurança do Trabalho | D49: Andaime tubular (aluguel/mês) | E49: m x mês | F49: 70 | G49: 11.4 | H49: 798 | I49: 0.191 | J49: 13.58 | K49: 950.6
A50: SF-00050 | B50: Serviços de Apoio | C50: Segurança do Trabalho | D50: Cabo de aço com 8 mm de diâmetro galvanizado para linha de vida | E50: m | F50: 280 | G50: 19.08 | H50: 5342.4 | I50: 0.191 | J50: 22.72 | K50: 6361.6
A51: SF-00051 | B51: Serviços de Apoio | C51: Segurança do Trabalho | D51: Corda de poliamida 12 mm tipo bombeiro, para trabalho em altura | E51: m | F51: 84 | G51: 4.41978 | H51: 371.26 | I51: 0.191 | J51: 5.26 | K51: 441.84
A52: SF-00052 | B52: Serviços de Apoio | C52: Segurança do Trabalho | D52: Ensaio de ponto de ancoragem existente | E52: un | F52: 20 | G52: 351.79 | H52: 7035.8 | I52: 0.1126 | J52: 391.4 | K52: 7828
A53: SF-00057 | B53: Serviços de Apoio | C53: Segurança do Trabalho | D53: Isolamento de obra com tela plástica com malha de 5mm e estrutura de madeira pontaleteada | E53: m2 | F53: 200 | G53: 17.6035 | H53: 3520.7 | I53: 0.191 | J53: 20.97 | K53: 4194
A54: SF-00058 | B54: Serviços de Apoio | C54: Segurança do Trabalho | D54: Suporte intermediário curvo para linha de vida | E54: un | F54: 5 | G54: 600 | H54: 3000 | I54: 0.191 | J54: 714.6 | K54: 3573
A55: SF-00060 | B55: Serviços de Apoio | C55: Segurança do Trabalho | D55: Kit para montagem de dois olhais | E55: un | F55: 5 | G55: 224.72 | H55: 1123.6 | I55: 0.191 | J55: 267.64 | K55: 1338.2
A56: SF-00061 | B56: Serviços de Apoio | C56: Segurança do Trabalho | D56: Manilha com travamento por porca e cupilha | E56: un | F56: 14 | G56: 67.42 | H56: 943.88 | I56: 0.191 | J56: 80.3 | K56: 1124.2
A57: SF-00062 | B57: Serviços de Apoio | C57: Segurança do Trabalho | D57: Pilar de ancoragem para linha de vida | E57: un | F57: 14 | G57: 635.87 | H57: 8902.18 | I57: 0.191 | J57: 757.32 | K57: 10602.48
A58: SF-00065 | B58: Serviços de Apoio | C58: Segurança do Trabalho | D58: Placa de ancoragem para montagem no pilar | E58: un | F58: 10 | G58: 224.72 | H58: 2247.2 | I58: 0.191 | J58: 267.64 | K58: 2676.4
A59: SF-00066 | B59: Serviços de Apoio | C59: Segurança do Trabalho | D59: Ponto de ancoragem | E59: un | F59: 25 | G59: 405.54 | H59: 10138.5 | I59: 0.1126 | J59: 451.2 | K59: 11280
A60: SF-00068 | B60: Serviços de Apoio | C60: Segurança do Trabalho | D60: Sistema Guarda-corpo-Rodapé (GcR) metálico | E60: m x mês | F60: 280 | G60: 9 | H60: 2520 | I60: 0.1126 | J60: 10.01 | K60: 2802.8
A61: SF-00069 | B61: Serviços de Apoio | C61: Segurança do Trabalho | D61: Suporte intermediário para linha de vida | E61: un | F61: 15 | G61: 370.5 | H61: 5557.5 | I61: 0.191 | J61: 441.27 | K61: 6619.05
A62: SF-00070 | B62: Serviços de Apoio | C62: Segurança do Trabalho | D62: Tapume | E62: m2 | F62: 300 | G62: 67.0538215 | H62: 20116.15 | I62: 0.191 | J62: 79.86 | K62: 23958
A63: SF-00071 | B63: Serviços de Apoio | C63: Segurança do Trabalho | D63: Trole para linha de vida horizontal | E63: un | F63: 5 | G63: 700 | H63: 3500 | I63: 0.191 | J63: 833.7 | K63: 4168.5
A64: SF-00073 | B64: Serviços de Apoio | C64: Limpeza | D64: Limpeza final de obra | E64: m2 | F64: 10000 | G64: 1.955233 | H64: 19552.33 | I64: 0.191 | J64: 2.33 | K64: 23300
A65: SF-00074 | B65: Civil | C65: Furos, Rasgos e Escariação | D65: Abertura/fechamento rasgo em alvenaria | E65: m | F65: 3000 | G65: 16.03194589 | H65: 48095.84 | I65: 0.191 | J65: 19.09 | K65: 57270
A66: SF-00075 | B66: Civil | C66: Furos, Rasgos e Escariação | D66: Furo em concreto de até 75mm de diâmetro | E66: un | F66: 25 | G66: 80.3106535 | H66: 2007.77 | I66: 0.191 | J66: 95.65 | K66: 2391.25
A67: SF-00076 | B67: Civil | C67: Furos, Rasgos e Escariação | D67: Furo em concreto para diâmetros maiores que 75mm | E67: un | F67: 40 | G67: 102.5739795 | H67: 4102.96 | I67: 0.191 | J67: 122.17 | K67: 4886.8
A68: SF-00077 | B68: Civil | C68: Estrutural | D68: Concreto virado em betoneira, fck = 15 MPa | E68: m3 | F68: 10 | G68: 522.6980939 | H68: 5226.98 | I68: 0.191 | J68: 622.53 | K68: 6225.3
A69: SF-00078 | B69: Civil | C69: Estrutural | D69: Concreto virado em betoneira, fck = 25MPa | E69: m3 | F69: 10 | G69: 553.1676969 | H69: 5531.68 | I69: 0.191 | J69: 658.82 | K69: 6588.2
A70: SF-00079 | B70: Civil | C70: Estrutural | D70: Escoramento metálico | E70: m2 x mês | F70: 100 | G70: 12.122475 | H70: 1212.25 | I70: 0.191 | J70: 14.44 | K70: 1444
A71: SF-00081 | B71: Civil | C71: Estrutural | D71: Forma para estruturas de concreto | E71: m2 | F71: 100 | G71: 111.5996247 | H71: 11159.96 | I71: 0.191 | J71: 132.92 | K71: 13292
A72: SF-00082 | B72: Civil | C72: Estrutural | D72: Verga/contraverga/cinta em bloco de concreto canaleta 11,5 x 19 x 39 cm | E72: m | F72: 50 | G72: 25.57928472 | H72: 1278.96 | I72: 0.191 | J72: 30.46 | K72: 1523
A73: SF-00083 | B73: Civil | C73: Impermeabilização | D73: Impermeabilização de superfície com revestimento bicomponente semi flexível | E73: m2 | F73: 500 | G73: 21.060626 | H73: 10530.31 | I73: 0.191 | J73: 25.08 | K73: 12540
A74: SF-00084 | B74: Civil | C74: Vedações | D74: Alvenaria de vedação | E74: m2 | F74: 500 | G74: 65.24016038 | H74: 32620.08 | I74: 0.191 | J74: 77.7 | K74: 38850
A75: SF-00085 | B75: Civil | C75: Vedações | D75: Fechamento ou shaft em gesso acartonado tipo drywall | E75: m2 | F75: 50 | G75: 47.76204705 | H75: 2388.1 | I75: 0.191 | J75: 56.88 | K75: 2844
A76: SF-00086 | B76: Civil | C76: Vedações | D76: Fixação (encunhamento) de Alvenaria de Vedação | E76: m | F76: 300 | G76: 22.01297999 | H76: 6603.89 | I76: 0.191 | J76: 26.22 | K76: 7866
A77: SF-00087 | B77: Civil | C77: Vedações | D77: Parede em gesso acartonado (drywall) | E77: m2 | F77: 1000 | G77: 75.85988165 | H77: 75859.88 | I77: 0.191 | J77: 90.35 | K77: 90350
A78: SF-00088 | B78: Civil | C78: Vedações | D78: Reparos superficiais em painéis de gesso acartonado | E78: m2 | F78: 20 | G78: 5.3863252 | H78: 107.73 | I78: 0.191 | J78: 6.42 | K78: 128.4
A79: SF-00089 | B79: Civil | C79: Vedações | D79: Sóculo h=10 cm | E79: m2 | F79: 40 | G79: 69.78405276 | H79: 2791.36 | I79: 0.191 | J79: 83.11 | K79: 3324.4
A80: SF-00090 | B80: Civil | C80: Revestimentos | D80: Chapisco colante industrializado em vigas e pilares | E80: m2 | F80: 40 | G80: 8.791489962 | H80: 351.66 | I80: 0.191 | J80: 10.47 | K80: 418.8
A81: SF-00091 | B81: Civil | C81: Revestimentos | D81: Chapisco com argamassa traço 1:3 | E81: m2 | F81: 1000 | G81: 3.775531848 | H81: 3775.53 | I81: 0.191 | J81: 4.5 | K81: 4500
A82: SF-00092 | B82: Civil | C82: Revestimentos | D82: Gesso cola | E82: m2 | F82: 440 | G82: 12.87462 | H82: 5664.83 | I82: 0.191 | J82: 15.33 | K82: 6745.2
A83: SF-00093 | B83: Civil | C83: Revestimentos | D83: Reboco com argamassa industrializada e=2,0 cm | E83: m2 | F83: 1000 | G83: 32.7836697 | H83: 32783.67 | I83: 0.191 | J83: 39.05 | K83: 39050
A84: SF-00094 | B84: Civil | C84: Revestimentos | D84: Regularização com argamassa industrializada e=0,5 cm | E84: m2 | F84: 200 | G84: 11.37685657 | H84: 2275.37 | I84: 0.191 | J84: 13.55 | K84: 2710
A85: SF-00095 | B85: Civil | C85: Revestimentos | D85: Tratamento de trincas superficiais | E85: m | F85: 100 | G85: 21.8973594 | H85: 2189.74 | I85: 0.191 | J85: 26.08 | K85: 2608
A86: SF-00096 | B86: Civil | C86: Pinturas | D86: Aplicação de fundo selador base água | E86: m2 | F86: 5400 | G86: 4.0886875 | H86: 22078.91 | I86: 0.191 | J86: 4.87 | K86: 26298
A87: SF-00097 | B87: Civil | C87: Pinturas | D87: Fundo anticorrosivo e de aderência (base água) | E87: m2 | F87: 400 | G87: 15.0359076 | H87: 6014.36 | I87: 0.191 | J87: 17.91 | K87: 7164
A88: SF-00098 | B88: Civil | C88: Pinturas | D88: Massa acrílica | E88: m2 | F88: 1000 | G88: 16.2781455 | H88: 16278.15 | I88: 0.191 | J88: 19.39 | K88: 19390
A89: SF-00099 | B89: Civil | C89: Pinturas | D89: Massa corrida | E89: m2 | F89: 3000 | G89: 12.635437 | H89: 37906.31 | I89: 0.191 | J89: 15.05 | K89: 45150
A90: SF-00100 | B90: Civil | C90: Pinturas | D90: Pintura com tinta látex acrílica Premium (paredes) | E90: m2 | F90: 9000 | G90: 11.9082025 | H90: 107173.82 | I90: 0.191 | J90: 14.18 | K90: 127620
A91: SF-00101 | B91: Civil | C91: Pinturas | D91: Pintura em verniz sintético | E91: m2 | F91: 300 | G91: 18.07415 | H91: 5422.25 | I91: 0.191 | J91: 21.53 | K91: 6459
A92: SF-00102 | B92: Civil | C92: Pinturas | D92: Pintura esmalte acetinado (metais e madeiras) | E92: m2 | F92: 500 | G92: 16.41906 | H92: 8209.53 | I92: 0.191 | J92: 19.56 | K92: 9780
A93: SF-00103 | B93: Civil | C93: Pinturas | D93: Pintura tinta látex acrílica standard (tetos) | E93: m2 | F93: 6000 | G93: 13.5261665 | H93: 81157 | I93: 0.191 | J93: 16.11 | K93: 96660
A94: SF-00104 | B94: Civil | C94: Pisos, Revestimentos e Pavimentação | D94: Cerâmica para revestimento de superfícies internas ou externas – Linha Administrativa | E94: m2 | F94: 150 | G94: 63.03953 | H94: 9455.93 | I94: 0.191 | J94: 75.08 | K94: 11262
A95: SF-00105 | B95: Civil | C95: Pisos, Revestimentos e Pavimentação | D95: Contrapiso em argamassa | E95: m2 | F95: 60 | G95: 45.25182098 | H95: 2715.11 | I95: 0.191 | J95: 53.89 | K95: 3233.4
A96: SF-00106 | B96: Civil | C96: Pisos, Revestimentos e Pavimentação | D96: Contrapiso em argamassa (e=2cm) ou Regularização de contrapiso existente | E96: m2 | F96: 550 | G96: 30.97904506 | H96: 17038.47 | I96: 0.191 | J96: 36.9 | K96: 20295
A97: SF-00107 | B97: Civil | C97: Pisos, Revestimentos e Pavimentação | D97: Granito cinza andorinha para piso | E97: m2 | F97: 800 | G97: 220.630839 | H97: 176504.67 | I97: 0.191 | J97: 262.77 | K97: 210216
A98: SF-00108 | B98: Civil | C98: Pisos, Revestimentos e Pavimentação | D98: Granito Cinza Andorinha para rodapé | E98: m2 | F98: 200 | G98: 604.339171 | H98: 120867.83 | I98: 0.191 | J98: 719.77 | K98: 143954
A99: SF-00109 | B99: Civil | C99: Pisos, Revestimentos e Pavimentação | D99: Granito Cinza Andorinha para soleira e peitoril | E99: m2 | F99: 20 | G99: 407.747672 | H99: 8154.95 | I99: 0.191 | J99: 485.63 | K99: 9712.6
A100: SF-00110 | B100: Civil | C100: Pisos, Revestimentos e Pavimentação | D100: Granito Preto São Gabriel para piso | E100: m2 | F100: 30 | G100: 299.696439 | H100: 8990.89 | I100: 0.191 | J100: 356.94 | K100: 10708.2
A101: SF-00111 | B101: Civil | C101: Pisos, Revestimentos e Pavimentação | D101: Granito Preto São Gabriel para rodapé | E101: m2 | F101: 3 | G101: 667.594221 | H101: 2002.78 | I101: 0.191 | J101: 795.1 | K101: 2385.3
A102: SF-00112 | B102: Civil | C102: Pisos, Revestimentos e Pavimentação | D102: Granito Preto São Gabriel para soleira e peitoril | E102: m2 | F102: 2 | G102: 465.8812959 | H102: 931.76 | I102: 0.191 | J102: 554.86 | K102: 1109.72
A103: SF-00113 | B103: Civil | C103: Pisos, Revestimentos e Pavimentação | D103: Instalação de rodapé de madeira reaproveitado | E103: m | F103: 70 | G103: 12.25329285 | H103: 857.73 | I103: 0.191 | J103: 14.59 | K103: 1021.3
A104: SF-00114 | B104: Civil | C104: Pisos, Revestimentos e Pavimentação | D104: Mármore Bege Bahia para piso e parede | E104: m2 | F104: 10 | G104: 276.902439 | H104: 2769.02 | I104: 0.191 | J104: 329.79 | K104: 3297.9
A105: SF-00115 | B105: Civil | C105: Pisos, Revestimentos e Pavimentação | D105: Mármore Branco Especial para piso e parede | E105: m2 | F105: 40 | G105: 378.541639 | H105: 15141.67 | I105: 0.191 | J105: 450.84 | K105: 18033.6
A106: SF-00116 | B106: Civil | C106: Pisos, Revestimentos e Pavimentação | D106: Rodapé de madeira | E106: m | F106: 70 | G106: 22.21361535 | H106: 1554.95 | I106: 0.191 | J106: 26.46 | K106: 1852.2
A107: SF-00117 | B107: Civil | C107: Mármores e Granitos | D107: Acabamento abaulado em placas de granito ou mármore reaproveitadas | E107: m | F107: 20 | G107: 36.157 | H107: 723.14 | I107: 0.191 | J107: 43.06 | K107: 861.2
A108: SF-00118 | B108: Civil | C108: Mármores e Granitos | D108: Acabamento em meia esquadria em placas de granito ou mármore reaproveitadas | E108: m | F108: 20 | G108: 31.637375 | H108: 632.75 | I108: 0.191 | J108: 37.68 | K108: 753.6
A109: SF-00119 | B109: Civil | C109: Mármores e Granitos | D109: Acabamento reto em placas de granito ou mármore reaproveitadas | E109: m | F109: 20 | G109: 18.0785 | H109: 361.57 | I109: 0.191 | J109: 21.53 | K109: 430.6
A110: SF-00120 | B110: Civil | C110: Mármores e Granitos | D110: Corte de peça de granito ou mármore reaproveitada | E110: m | F110: 20 | G110: 22.598125 | H110: 451.96 | I110: 0.191 | J110: 26.91 | K110: 538.2
A111: SF-00121 | B111: Civil | C111: Mármores e Granitos | D111: Corte em placas de granito ou mármore reaproveitadas, para instalação de cubas | E111: un | F111: 20 | G111: 69.597 | H111: 1391.94 | I111: 0.191 | J111: 82.89 | K111: 1657.8
A112: SF-00122 | B112: Civil | C112: Mármores e Granitos | D112: Furo em placas de granito ou mármore reaproveitadas, para instalação de torneira ou misturador | E112: un | F112: 20 | G112: 10.431 | H112: 208.62 | I112: 0.191 | J112: 12.42 | K112: 248.4
A113: SF-00123 | B113: Civil | C113: Mármores e Granitos | D113: Granito Cinza Andorinha 20mm para rodabancada | E113: m2 | F113: 120 | G113: 373.5240849 | H113: 44822.89 | I113: 0.191 | J113: 444.87 | K113: 53384.4
A114: SF-00124 | B114: Civil | C114: Mármores e Granitos | D114: Granito Cinza Andorinha 20mm para bancadas | E114: m2 | F114: 50 | G114: 367.4933024 | H114: 18374.67 | I114: 0.191 | J114: 437.68 | K114: 21884
A115: SF-00125 | B115: Civil | C115: Mármores e Granitos | D115: Granito Cinza Andorinha 20mm para divisória | E115: m2 | F115: 100 | G115: 367.5529305 | H115: 36755.29 | I115: 0.191 | J115: 437.76 | K115: 43776
A116: SF-00126 | B116: Civil | C116: Mármores e Granitos | D116: Granito Preto São Gabriel 20mm para rodabancada | E116: m2 | F116: 30 | G116: 428.6438199 | H116: 12859.31 | I116: 0.191 | J116: 510.51 | K116: 15315.3
A117: SF-00127 | B117: Civil | C117: Mármores e Granitos | D117: Granito Preto São Gabriel 20mm para bancadas | E117: m2 | F117: 8 | G117: 464.1883554 | H117: 3713.51 | I117: 0.191 | J117: 552.85 | K117: 4422.8
A118: SF-00128 | B118: Civil | C118: Mármores e Granitos | D118: Instalação de bancada de granito ou mármore reaproveitada | E118: m2 | F118: 30 | G118: 96.4702124 | H118: 2894.11 | I118: 0.191 | J118: 114.9 | K118: 3447
A119: SF-00129 | B119: Civil | C119: Mármores e Granitos | D119: Instalação de rodapé reaproveitado, de mármore ou granito | E119: m2 | F119: 20 | G119: 9.1769221 | H119: 183.54 | I119: 0.191 | J119: 10.93 | K119: 218.6
A120: SF-00130 | B120: Civil | C120: Mármores e Granitos | D120: Instalação de soleira ou peitoril, de mármore ou granito, reaproveitados | E120: m2 | F120: 10 | G120: 41.806479 | H120: 418.06 | I120: 0.191 | J120: 49.79 | K120: 497.9
A121: SF-00131 | B121: Civil | C121: Mármores e Granitos | D121: Mármore Branco Especial 20mm para rodabancada | E121: m2 | F121: 1 | G121: 437.82507 | H121: 437.83 | I121: 0.191 | J121: 521.45 | K121: 521.45
A122: SF-00132 | B122: Civil | C122: Divisórias | D122: Divisória em gesso acartonado revestido - Painel liso cego - Ed. Anexo I | E122: m2 | F122: 500 | G122: 450 | H122: 225000 | I122: 0.1126 | J122: 500.67 | K122: 250335
A123: SF-00133 | B123: Civil | C123: Divisórias | D123: Divisória em gesso acartonado revestido - Painel liso, painel de vidro e bandeira – ed. Anexo I | E123: m2 | F123: 300 | G123: 850 | H123: 255000 | I123: 0.1126 | J123: 945.71 | K123: 283713
A124: SF-00134 | B124: Civil | C124: Divisórias | D124: Divisória MDF com painel liso cego e bandeira | E124: m2 | F124: 900 | G124: 558.92 | H124: 503028 | I124: 0.1126 | J124: 621.85 | K124: 559665
A125: SF-00135 | B125: Civil | C125: Divisórias | D125: Divisória MDF com painel liso, painel de vidro e bandeira | E125: m2 | F125: 900 | G125: 798.88 | H125: 718992 | I125: 0.1126 | J125: 888.83 | K125: 799947
A126: SF-00136 | B126: Civil | C126: Divisórias | D126: Divisória MDF com painel paginado cego e bandeira - Interlegis | E126: m2 | F126: 200 | G126: 657.37 | H126: 131474 | I126: 0.1126 | J126: 731.39 | K126: 146278
A127: SF-00137 | B127: Civil | C127: Divisórias | D127: Divisória MDF com painel paginado, painel de vidro e bandeira - Interlegis | E127: m2 | F127: 200 | G127: 847.03 | H127: 169406 | I127: 0.1126 | J127: 942.41 | K127: 188482
A128: SF-00138 | B128: Civil | C128: Divisórias | D128: Instalação de divisória e porta de divisória com dobradiça reaproveitadas | E128: m2 | F128: 700 | G128: 13.9175 | H128: 9742.25 | I128: 0.191 | J128: 16.58 | K128: 11606
A129: SF-00139 | B129: Civil | C129: Forros | D129: Alçapão em forro de gesso acartonado | E129: m2 | F129: 100 | G129: 106.11356 | H129: 10611.36 | I129: 0.191 | J129: 126.38 | K129: 12638
A130: SF-00140 | B130: Civil | C130: Forros | D130: Forro de PVC em réguas de 100 x 6000mm | E130: m2 | F130: 50 | G130: 40.33617825 | H130: 2016.81 | I130: 0.191 | J130: 48.04 | K130: 2402
A131: SF-00141 | B131: Civil | C131: Forros | D131: Forro de PVC em réguas de 100 x 6000mm, sem estrutura | E131: m2 | F131: 100 | G131: 19.0143773 | H131: 1901.44 | I131: 0.191 | J131: 22.65 | K131: 2265
A132: SF-00142 | B132: Civil | C132: Forros | D132: Forro de PVC modular em placas | E132: m2 | F132: 20 | G132: 63.15204825 | H132: 1263.04 | I132: 0.191 | J132: 75.21 | K132: 1504.2
A133: SF-00143 | B133: Civil | C133: Forros | D133: Forro em chapas metálicas | E133: m2 | F133: 500 | G133: 115.1625 | H133: 57581.25 | I133: 0.191 | J133: 137.16 | K133: 68580
A134: SF-00144 | B134: Civil | C134: Forros | D134: Forro em gesso acartonado monolítico | E134: m2 | F134: 2500 | G134: 55.668898 | H134: 139172.25 | I134: 0.191 | J134: 66.3 | K134: 165750
A135: SF-00145 | B135: Civil | C135: Forros | D135: Forro em gesso acartonado monolítico, sem estrutura | E135: m2 | F135: 2300 | G135: 41.3438651 | H135: 95090.89 | I135: 0.191 | J135: 49.24 | K135: 113252
A136: SF-00146 | B136: Civil | C136: Forros | D136: Forro mineral modulado | E136: m2 | F136: 300 | G136: 89.2145 | H136: 26764.35 | I136: 0.191 | J136: 106.25 | K136: 31875
A137: SF-00147 | B137: Civil | C137: Forros | D137: Forro mineral modulado, sem estrutura | E137: m2 | F137: 100 | G137: 25.59395 | H137: 2559.4 | I137: 0.191 | J137: 30.48 | K137: 3048
A138: SF-00148 | B138: Civil | C138: Forros | D138: Instalação de forro de PVC reaproveitado | E138: m2 | F138: 100 | G138: 2.4861557 | H138: 248.62 | I138: 0.191 | J138: 2.96 | K138: 296
A139: SF-00149 | B139: Civil | C139: Forros | D139: Instalação de forro mineral reaproveitado | E139: m2 | F139: 100 | G139: 42.7956 | H139: 4279.56 | I139: 0.191 | J139: 50.97 | K139: 5097
A140: SF-00150 | B140: Civil | C140: Forros | D140: Tabica metálica em forro de gesso acartonado | E140: m | F140: 2500 | G140: 8.6703213 | H140: 21675.8 | I140: 0.191 | J140: 10.33 | K140: 25825
A141: SF-00151 | B141: Civil | C141: Carpete | D141: Instalação de revestimento de piso têxtil (carpete) reaproveitado | E141: m2 | F141: 400 | G141: 6.1541 | H141: 2461.64 | I141: 0.191 | J141: 7.33 | K141: 2932
A142: SF-00155 | B142: Civil | C142: Vidro Comum Reaproveitado | D142: Instalação de vidro reaproveitado | E142: m2 | F142: 50 | G142: 26.673625 | H142: 1333.68 | I142: 0.191 | J142: 31.77 | K142: 1588.5
A143: SF-00159 | B143: Civil | C143: Vidro Tremperado Reaproveitado | D143: Instalação de painéis de vidro temperado reaproveitados | E143: m2 | F143: 70 | G143: 39.82495 | H143: 2787.75 | I143: 0.191 | J143: 47.43 | K143: 3320.1
A144: SF-00161 | B144: Civil | C144: Persianas Reaproveitada | D144: Instalação de persianas reaproveitadas | E144: m | F144: 800 | G144: 6.35486445 | H144: 5083.89 | I144: 0.191 | J144: 7.57 | K144: 6056
A145: SF-00166 | B145: Hidrossanitário | C145: Tubos | D145: Tubo de ligação para bacia sanitária | E145: un | F145: 15 | G145: 100.7582 | H145: 1511.37 | I145: 0.191 | J145: 120 | K145: 1800
A146: SF-00167 | B146: Hidrossanitário | C146: Tubos | D146: Tubo PVC esgoto ou aguas pluviais predial DN 100mm | E146: m | F146: 215 | G146: 46.0443663 | H146: 9899.54 | I146: 0.191 | J146: 54.84 | K146: 11790.6
A147: SF-00168 | B147: Hidrossanitário | C147: Tubos | D147: Tubo PVC esgoto ou aguas pluviais predial DN 40mm | E147: m | F147: 80 | G147: 14.4555515 | H147: 1156.44 | I147: 0.191 | J147: 17.22 | K147: 1377.6
A148: SF-00169 | B148: Hidrossanitário | C148: Tubos | D148: Tubo PVC esgoto ou aguas pluviais predial DN 50mm | E148: m | F148: 80 | G148: 19.7701802 | H148: 1581.61 | I148: 0.191 | J148: 23.55 | K148: 1884
A149: SF-00170 | B149: Hidrossanitário | C149: Tubos | D149: Tubo PVC esgoto ou aguas pluviais predial DN 75mm | E149: m | F149: 100 | G149: 29.5359389 | H149: 2953.59 | I149: 0.191 | J149: 35.18 | K149: 3518
A150: SF-00171 | B150: Hidrossanitário | C150: Tubos | D150: Tubo PVC soldável agua fria DN 25mm | E150: m | F150: 300 | G150: 3.4186605 | H150: 1025.6 | I150: 0.191 | J150: 4.07 | K150: 1221
A151: SF-00172 | B151: Hidrossanitário | C151: Tubos | D151: Tubo PVC soldável agua fria DN 32mm | E151: m | F151: 200 | G151: 7.067867 | H151: 1413.57 | I151: 0.191 | J151: 8.42 | K151: 1684
A152: SF-00173 | B152: Hidrossanitário | C152: Tubos | D152: Tubo PVC soldável agua fria DN 40mm | E152: m | F152: 100 | G152: 10.11522 | H152: 1011.52 | I152: 0.191 | J152: 12.05 | K152: 1205
A153: SF-00174 | B153: Hidrossanitário | C153: Tubos | D153: Tubo PVC soldável agua fria DN 50mm | E153: m | F153: 100 | G153: 11.6485675 | H153: 1164.86 | I153: 0.191 | J153: 13.87 | K153: 1387
A154: SF-00175 | B154: Hidrossanitário | C154: Registros e Válvulas | D154: Base registro gaveta 3/4" | E154: un | F154: 60 | G154: 42.1322675 | H154: 2527.94 | I154: 0.191 | J154: 50.18 | K154: 3010.8
A155: SF-00176 | B155: Hidrossanitário | C155: Ralos e Caixas | D155: Caixa sifonada de PVC DN 150mm | E155: un | F155: 45 | G155: 54.0711044 | H155: 2433.2 | I155: 0.191 | J155: 64.4 | K155: 2898
A156: SF-00177 | B156: Hidrossanitário | C156: Ralos e Caixas | D156: Caixa sifonada de PVC DN 250mm | E156: un | F156: 45 | G156: 92.0046044 | H156: 4140.21 | I156: 0.191 | J156: 109.58 | K156: 4931.1
A157: SF-00178 | B157: Hidrossanitário | C157: Ralos e Caixas | D157: Grelha quadrada para ralo 10x10cm | E157: un | F157: 45 | G157: 35.943975 | H157: 1617.48 | I157: 0.191 | J157: 42.81 | K157: 1926.45
A158: SF-00179 | B158: Hidrossanitário | C158: Ralos e Caixas | D158: Grelha quadrada para ralo 15x15cm | E158: un | F158: 45 | G158: 61.843975 | H158: 2782.98 | I158: 0.191 | J158: 73.66 | K158: 3314.7
A159: SF-00180 | B159: Hidrossanitário | C159: Ralos e Caixas | D159: Ralo seco PVC DN 100x40mm | E159: un | F159: 45 | G159: 8.93347795 | H159: 402.01 | I159: 0.191 | J159: 10.64 | K159: 478.8
A160: SF-00181 | B160: Hidrossanitário | C160: Louças | D160: Assento para bacia convencional – Linha Administrativa | E160: un | F160: 45 | G160: 61.24265 | H160: 2755.92 | I160: 0.191 | J160: 72.94 | K160: 3282.3
A161: SF-00182 | B161: Hidrossanitário | C161: Louças | D161: Bacia convencional – Linha Administrativa | E161: un | F161: 45 | G161: 261.866743 | H161: 11784 | I161: 0.191 | J161: 311.88 | K161: 14034.6
A162: SF-00183 | B162: Hidrossanitário | C162: Louças | D162: Bacia convencional com saída horizontal | E162: un | F162: 10 | G162: 292.764243 | H162: 2927.64 | I162: 0.191 | J162: 348.68 | K162: 3486.8
A163: SF-00184 | B163: Hidrossanitário | C163: Louças | D163: Cuba oval de embutir | E163: un | F163: 45 | G163: 95.1667863 | H163: 4282.51 | I163: 0.191 | J163: 113.34 | K163: 5100.3
A164: SF-00185 | B164: Hidrossanitário | C164: Louças | D164: Cuba retangular em aço inox – Linha Administrativa | E164: un | F164: 30 | G164: 205.298739 | H164: 6158.96 | I164: 0.191 | J164: 244.51 | K164: 7335.3
A165: SF-00186 | B165: Hidrossanitário | C165: Louças | D165: Cuba semiencaixe quadrada com mesa | E165: un | F165: 15 | G165: 701.1567863 | H165: 10517.35 | I165: 0.191 | J165: 835.08 | K165: 12526.2
A166: SF-00187 | B166: Hidrossanitário | C166: Louças | D166: Instalação de lavatório reaproveitado | E166: un | F166: 30 | G166: 38.416537 | H166: 1152.5 | I166: 0.191 | J166: 45.75 | K166: 1372.5
A167: SF-00188 | B167: Hidrossanitário | C167: Louças | D167: Instalação de mictório reaproveitado | E167: un | F167: 30 | G167: 39.026513 | H167: 1170.8 | I167: 0.191 | J167: 46.48 | K167: 1394.4
A168: SF-00189 | B168: Hidrossanitário | C168: Louças | D168: Instalação de vaso sanitário reaproveitado | E168: un | F168: 30 | G168: 56.9558877 | H168: 1708.68 | I168: 0.191 | J168: 67.83 | K168: 2034.9
A169: SF-00190 | B169: Hidrossanitário | C169: Louças | D169: Lavatório suspenso | E169: un | F169: 10 | G169: 110.303037 | H169: 1103.03 | I169: 0.191 | J169: 131.37 | K169: 1313.7
A170: SF-00191 | B170: Hidrossanitário | C170: Louças | D170: Mictório – Linha Administrativa | E170: un | F170: 20 | G170: 289.4751555 | H170: 5789.5 | I170: 0.191 | J170: 344.76 | K170: 6895.2
A171: SF-00192 | B171: Hidrossanitário | C171: Louças | D171: Tanque 38 litros – Linha Administrativa | E171: un | F171: 25 | G171: 443.1950525 | H171: 11079.88 | I171: 0.191 | J171: 527.85 | K171: 13196.25
A172: SF-00193 | B172: Hidrossanitário | C172: Metais | D172: Acabamento para registro GD – Linha Administrativa | E172: un | F172: 35 | G172: 47.28468 | H172: 1654.96 | I172: 0.191 | J172: 56.32 | K172: 1971.2
A173: SF-00194 | B173: Hidrossanitário | C173: Metais | D173: Acabamento para registro PQ – Linha Administrativa | E173: un | F173: 70 | G173: 35.68468 | H173: 2497.93 | I173: 0.191 | J173: 42.5 | K173: 2975
A174: SF-00195 | B174: Hidrossanitário | C174: Metais | D174: Ducha higiênica – Linha Administrativa | E174: un | F174: 60 | G174: 263.5025 | H174: 15810.15 | I174: 0.191 | J174: 313.83 | K174: 18829.8
A175: SF-00196 | B175: Hidrossanitário | C175: Metais | D175: Instalação de metais e acessórios reaproveitados | E175: un | F175: 200 | G175: 3.8308484 | H175: 766.17 | I175: 0.191 | J175: 4.56 | K175: 912
A176: SF-00197 | B176: Hidrossanitário | C176: Metais | D176: Ligação flexível 1/2” x 40 cm – Linha Administrativa | E176: un | F176: 80 | G176: 31.58429375 | H176: 2526.74 | I176: 0.191 | J176: 37.62 | K176: 3009.6
A177: SF-00198 | B177: Hidrossanitário | C177: Metais | D177: Sifão articulado para cozinha – Linha Administrativa | E177: un | F177: 50 | G177: 215.0228872 | H177: 10751.14 | I177: 0.191 | J177: 256.09 | K177: 12804.5
A178: SF-00199 | B178: Hidrossanitário | C178: Metais | D178: Sifão para lavatório 1 1/2" | E178: un | F178: 60 | G178: 117.032305 | H178: 7021.94 | I178: 0.191 | J178: 139.39 | K178: 8363.4
A179: SF-00200 | B179: Hidrossanitário | C179: Metais | D179: Sifão para tanque – Linha Administrativa | E179: un | F179: 25 | G179: 123.4693872 | H179: 3086.73 | I179: 0.191 | J179: 147.05 | K179: 3676.25
A180: SF-00202 | B180: Hidrossanitário | C180: Metais | D180: Torneira de mesa para cozinha bica móvel com arejador – Linha Administrativa | E180: un | F180: 40 | G180: 180.8203507 | H180: 7232.81 | I180: 0.191 | J180: 215.36 | K180: 8614.4
A181: SF-00203 | B181: Hidrossanitário | C181: Metais | D181: Torneira de mesa para lavatório – Linha Acessibilidade | E181: un | F181: 10 | G181: 287.2980514 | H181: 2872.98 | I181: 0.191 | J181: 342.17 | K181: 3421.7
A182: SF-00204 | B182: Hidrossanitário | C182: Metais | D182: Torneira de mesa para lavatório bica alta – Linha Administrativa | E182: un | F182: 75 | G182: 162.4780514 | H182: 12185.85 | I182: 0.191 | J182: 193.51 | K182: 14513.25
A183: SF-00205 | B183: Hidrossanitário | C183: Metais | D183: Torneira de mesa para lavatório bica baixa – Linha Administrativa | E183: un | F183: 75 | G183: 137.4480514 | H183: 10308.6 | I183: 0.191 | J183: 163.7 | K183: 12277.5
A184: SF-00206 | B184: Hidrossanitário | C184: Metais | D184: Torneira de mesa para lavatório com fechamento automático – Linha Administrativa | E184: un | F184: 60 | G184: 151.8715514 | H184: 9112.29 | I184: 0.191 | J184: 180.88 | K184: 10852.8
A185: SF-00207 | B185: Hidrossanitário | C185: Metais | D185: Torneira de parede para cozinha bica móvel – Linha Administrativa | E185: un | F185: 35 | G185: 211.8953145 | H185: 7416.34 | I185: 0.191 | J185: 252.37 | K185: 8832.95
A186: SF-00208 | B186: Hidrossanitário | C186: Metais | D186: Torneira de parede para tanque – Linha Administrativa | E186: un | F186: 25 | G186: 57.2017534 | H186: 1430.04 | I186: 0.191 | J186: 68.13 | K186: 1703.25
A187: SF-00209 | B187: Hidrossanitário | C187: Metais | D187: Válvula de descarga 1 1/2" – Linha Acessibilidade | E187: un | F187: 10 | G187: 464.6399625 | H187: 4646.4 | I187: 0.191 | J187: 553.39 | K187: 5533.9
A188: SF-00210 | B188: Hidrossanitário | C188: Metais | D188: Válvula de descarga 1 1/2" – Linha Administrativa | E188: un | F188: 65 | G188: 209.1194625 | H188: 13592.77 | I188: 0.191 | J188: 249.06 | K188: 16188.9
A189: SF-00211 | B189: Hidrossanitário | C189: Metais | D189: Válvula de descarga 1 1/4" – Linha Acessibilidade | E189: un | F189: 10 | G189: 430.3099625 | H189: 4303.1 | I189: 0.191 | J189: 512.5 | K189: 5125
A190: SF-00212 | B190: Hidrossanitário | C190: Metais | D190: Válvula de descarga 1 1/4" – Linha Administrativa | E190: un | F190: 65 | G190: 175.1284625 | H190: 11383.35 | I190: 0.191 | J190: 208.58 | K190: 13557.7
A191: SF-00213 | B191: Hidrossanitário | C191: Metais | D191: Válvula de escoamento para lavatório – Linha Administrativa | E191: un | F191: 65 | G191: 32.1556912 | H191: 2090.12 | I191: 0.191 | J191: 38.3 | K191: 2489.5
A192: SF-00214 | B192: Hidrossanitário | C192: Metais | D192: Válvula de escoamento para tanque – Linha Administrativa | E192: un | F192: 25 | G192: 23.5496944 | H192: 588.74 | I192: 0.191 | J192: 28.05 | K192: 701.25
A193: SF-00215 | B193: Hidrossanitário | C193: Metais | D193: Válvula descarga para mictório – Linha Administrativa | E193: un | F193: 40 | G193: 184.2009625 | H193: 7368.04 | I193: 0.191 | J193: 219.38 | K193: 8775.2
A194: SF-00216 | B194: Hidrossanitário | C194: Acessibilidade | D194: Alarme de emergência para sanitários PNE | E194: un | F194: 15 | G194: 328.298255 | H194: 4924.47 | I194: 0.191 | J194: 391 | K194: 5865
A195: SF-00217 | B195: Hidrossanitário | C195: Acessibilidade | D195: Barra de apoio 40cm – Linha Acessibilidade | E195: un | F195: 25 | G195: 85.7505 | H195: 2143.76 | I195: 0.191 | J195: 102.13 | K195: 2553.25
A196: SF-00218 | B196: Hidrossanitário | C196: Acessibilidade | D196: Barra de apoio 70cm – Linha Acessibilidade | E196: un | F196: 20 | G196: 98.4905 | H196: 1969.81 | I196: 0.191 | J196: 117.3 | K196: 2346
A197: SF-00219 | B197: Hidrossanitário | C197: Acessibilidade | D197: Barra de apoio 80cm – Linha Acessibilidade | E197: un | F197: 25 | G197: 98.6505 | H197: 2466.26 | I197: 0.191 | J197: 117.49 | K197: 2937.25
A198: SF-00220 | B198: Hidrossanitário | C198: Acessibilidade | D198: Barra de apoio lateral fixa 30cm – Linha Acessibilidade | E198: un | F198: 25 | G198: 116.7005 | H198: 2917.51 | I198: 0.191 | J198: 138.99 | K198: 3474.75
A199: SF-00221 | B199: Hidrossanitário | C199: Acessibilidade | D199: Lavatório suspenso – Linha Acessibilidade | E199: un | F199: 10 | G199: 202.276537 | H199: 2022.77 | I199: 0.191 | J199: 240.91 | K199: 2409.1
A200: SF-00222 | B200: Hidrossanitário | C200: Acessibilidade | D200: Lavatório suspenso com Coluna – Linha Acessibilidade | E200: un | F200: 10 | G200: 435.9679429 | H200: 4359.68 | I200: 0.191 | J200: 519.24 | K200: 5192.4
... 210 more rows

Sheet Armário
A1: SUBITEM | B1: GRANDE ÁREA | C1: CATEGORIA | D1: DISCRIMINAÇÃO | E1: UN | F1: QUANT. TOTAL | G1: PREÇO UNITÁRIO (R$) | H1: CUSTO DIRETO | I1: BDI (%) | J1: PREÇO UNITÁRIO COM BDI (R$) | K1: CUSTO TOTAL
A2: SF-00352 | B2: Marcenaria e Serralheria | C2: Armários | D2: Armário em MDF laminado com porta e prateleiras | E2: m2 | F2: 500 | G2: 500 | H2: 250000 | I2: 0 | J2: 500 | K2: 250000
A3: SF-00353 | B3: Marcenaria e Serralheria | C3: Armários | D3: Armários em MDF laminado com porta e gavetas | E3: m2 | F3: 100 | G3: 500 | H3: 50000 | I3: 0 | J3: 500 | K3: 50000
A4: SF-00355 | B4: Marcenaria e Serralheria | C4: Armários | D4: Mesa/tampo de MDF, fixada em parede com mão-francesa | E4: m2 | F4: 20 | G4: 150.2973625 | H4: 3005.95 | I4: 0.191 | J4: 179 | K4: 3580
A5: SF-00356 | B5: Marcenaria e Serralheria | C5: Armários | D5: Painel para TV de 120 x 180 cm | E5: m2 | F5: 50 | G5: 289.578 | H5: 14478.9 | I5: 0.191 | J5: 344.89 | K5: 17244.5
A6: SF-00357 | B6: Marcenaria e Serralheria | C6: Armários | D6: Painel para TV de 160 x 160 cm | E6: m2 | F6: 50 | G6: 577.078 | H6: 28853.9 | I6: 0.191 | J6: 687.3 | K6: 34365
A7: SF-01291 | B7: Marcenaria e Serralheria | C7: Armários | D7: Armário em MDF laminado com porta e módulo de gaveta – Linha Residencial | E7: m2 | F7: 300 | G7: 500 | H7: 150000 | I7: 0 | J7: 500 | K7: 150000
K8: =SUM(K2:K7) -> 505189.5

Sheet Vidros e Película
A1: SUBITEM | B1: GRANDE ÁREA | C1: CATEGORIA | D1: DISCRIMINAÇÃO | E1: UN | F1: QUANT. TOTAL | G1: PREÇO UNITÁRIO (R$) | H1: CUSTO DIRETO | I1: BDI (%) | J1: PREÇO UNITÁRIO COM BDI (R$) | K1: CUSTO TOTAL
A2: SF-00154 | B2: Civil | C2: Vidro Comum | D2: Espelho cristal, e=5 mm | E2: m2 | F2: 130 | G2: 430.6616 | H2: 55986.01 | I2: 0.191 | J2: 512.92 | K2: 66679.6
A3: SF-00160 | B3: Civil | C3: Vidro Temperado | D3: Mola hidráulica de piso | E3: un | F3: 25 | G3: 924.21145 | H3: 23105.29 | I3: 0.191 | J3: 1100.74 | K3: 27518.5
A4: SF-00165 | B4: Civil | C4: Película | D4: Película jateada | E4: m2 | F4: 80 | G4: 64.27 | H4: 5141.6 | I4: 0 | J4: 64.27 | K4: 5141.6
A5: SF-01253 | B5: Civil | C5: Vidro Temperado | D5: Divisória de Vidro temperado para box de CORRER e ferragens – Linha Residencial | E5: m2 | F5: 25 | G5: 205.56 | H5: 5139 | I5: 0 | J5: 205.56 | K5: 5139
A6: SF-01254 | B6: Civil | C6: Vidro Temperado | D6: Divisória de Vidro temperado para box com porta de GIRO e ferragens – Linha Residencial | E6: m2 | F6: 25 | G6: 220 | H6: 5500 | I6: 0 | J6: 220 | K6: 5500
K7: =SUM(K2:K6) -> 109978.7

Sheet Cortinas e Persianas
A1: SUBITEM | B1: GRANDE ÁREA | C1: CATEGORIA | D1: DISCRIMINAÇÃO | E1: UN | F1: QUANT. TOTAL | G1: PREÇO UNITÁRIO (R$) | H1: CUSTO DIRETO | I1: BDI (%) | J1: PREÇO UNITÁRIO COM BDI (R$) | K1: CUSTO TOTAL
A2: SF-00163 | B2: Civil | C2: Persiana em Juta | D2: Persiana vertical em tecido Juta Resinado sem blecaute de 90mm, cor bege | E2: m2 | F2: 300 | G2: 111.02 | H2: 33306 | I2: 0 | J2: 111.02 | K2: 33306
A3: SF-00164 | B3: Civil | C3: Persiana em Tecido Sintético | D3: Persiana vertical em tecido sintético sem blecaute de 90mm, cores verde escuro ou branca | E3: m2 | F3: 300 | G3: 92.64 | H3: 27792 | I3: 0 | J3: 92.64 | K3: 27792
A4: SF-01274 | B4: Civil | C4: Cortinas | D4: Cortina de linho sintético / BLECAUTE COM VARÃO – Linha Residencial | E4: m | F4: 65 | G4: 511.67 | H4: 33258.55 | I4: 0 | J4: 511.67 | K4: 33258.55
A5: SF-01275 | B5: Civil | C5: Cortinas | D5: Cortina de linho sintético / BLECAUTE SEM VARÃO – Linha Residencial | E5: m | F5: 65 | G5: 440.75 | H5: 28648.75 | I5: 0 | J5: 440.75 | K5: 28648.75
A6: SF-01276 | B6: Civil | C6: Cortinas | D6: Cortina de linho sintético / FORRO COM VARÃO – Linha Residencial | E6: m | F6: 50 | G6: 414.43 | H6: 20721.5 | I6: 0 | J6: 414.43 | K6: 20721.5
A7: SF-01277 | B7: Civil | C7: Cortinas | D7: Cortina de linho sintético / FORRO SEM VARÃO – Linha Residencial | E7: m | F7: 50 | G7: 375.26 | H7: 18763 | I7: 0 | J7: 375.26 | K7: 18763
K8: =SUM(K2:K7) -> 162489.8

Sheet BDI
A1: =[2]Orçamentária!A1 -> Execução de serviços comuns de engenharia nas edificações do CASF
A2: BENEFÍCIOS E DESPESAS INDIRETAS - BDI
A4: BDI Edificações | F4: BDI mero fornecimento
A5: Componentes do BDI | B5: Cálculo sem CPRB | C5: Cálculo com CPRB | F5: Componentes do BDI | G5: Cálculo sem CPRB | H5: Cálculo com CPRB
B6: não-desonerado | C6: desonerado | G6: não-desonerado | H6: desonerado
B7: % considerado | C7: % considerado | G7: % considerado | H7: % considerado
A8: AC | B8: 0.035 | C8: 0.035 | F8: AC | G8: 0.0175 | H8: 0.0175
A9: S+G | B9: 0.008 | C9: 0.008 | F9: S+G | G9: 0.0039 | H9: 0.0039
A10: R | B10: 0.0125 | C10: 0.0125 | F10: R | G10: 0.0056 | H10: 0.0056
A11: DF | B11: 0.0076 | C11: 0.0076 | F11: DF | G11: 0.0085 | H11: 0.0085
A12: L | B12: 0.0678 | C12: 0.0678 | F12: L | G12: 0.035 | H12: 0.035
A13: PIS | B13: 0.0065 | C13: 0.0065 | F13: PIS | G13: 0.0065 | H13: 0.0065
A14: COFINS | B14: 0.03 | C14: 0.03 | F14: COFINS | G14: 0.03 | H14: 0.03
A15: CPRB | B15: 0 | C15: 0.045 | F15: CPRB | G15: 0 | H15: 0.045
A16: ISS | B16: 0.01 | C16: 0.01 | F16: ISS | G16: 0 | H16: 0
A17: BDI Edificações | B17: =ROUND(((1+B8+B9+B10)*(1+B11)*(1+B12))/(1-(B13+B14+B15+B16))-1,4) -> 0.191 | C17: =ROUND(((1+C8+C9+C10)*(1+C11)*(1+C12))/(1-(C13+C14+C15+C16))-1,4) -> 0.25 | F17: BDI mero fornecimento | G17: =ROUND(((1+G8+G9+G10)*(1+G11)*(1+G12))/(1-(G13+G14+G15+G16))-1,4) -> 0.1126 | H17: =ROUND(((1+H8+H9+H10)*(1+H11)*(1+H12))/(1-(H13+H14+H15+H16))-1,4) -> 0.1671
A19: Referências TCU - BDI Edificações | F19: Referências TCU - BDI mero fornecimento
A20: Componentes do BDI | B20: 1º Quartil | C20: Médio | D20: 3º Quartil | F20: Componentes do BDI | G20: 1º Quartil | H20: Médio | I20: 3º Quartil
A21: AC | B21: 0.03 | C21: 0.04 | D21: 0.055 | F21: AC | G21: 0.015 | H21: 0.0345 | I21: 0.0449
A22: S+G | B22: 0.008 | C22: 0.008 | D22: 0.01 | F22: S+G | G22: 0.003 | H22: 0.0048 | I22: 0.0082
A23: R | B23: 0.0097 | C23: 0.0127 | D23: 0.0127 | F23: R | G23: 0.0056 | H23: 0.0085 | I23: 0.0089
A24: DF | B24: 0.0059 | C24: 0.0123 | D24: 0.0139 | F24: DF | G24: 0.0085 | H24: 0.0085 | I24: 0.0111
A25: L | B25: 0.0616 | C25: 0.074 | D25: 0.0896 | F25: L | G25: 0.035 | H25: 0.0511 | I25: 0.0622
A26: BDI Edificações | B26: 0.2034 | C26: 0.2212 | D26: 0.25 | F26: BDI mero fornecimento | G26: 0.111 | H26: 0.1402 | I26: 0.168
A48: Fontes: Acórdãos 2.369/2011-TCU-Plenário e 2.622/2013-TCU-Plenário.

Sheet Levantamento_SEPROARQQQ (hidden)
A1: ARP 2018/2019 - Levantamento arquitetura
A2: Nº | B2: Item | C2: Discriminação | D2: Und. | E2: Qtd. | F2: Observação / Ambiente
A4: =IF(B4="","",COUNTA($B$4:B4)) ->  | C4: =IF(B4="","",IF(LEFT(B4,2)=LEFT("FA",2),F4,INDEX(#REF!,MATCH(Levantamento_SEPROARQQQ!B4,#REF!,0),4))) ->  | D4: =IF(LEFT(B4,2)=LEFT("FA",8),"",IFERROR(VLOOKUP(B4,#REF!,5,FALSE),"")) -> 
A5: =IF(B5="","",COUNTA($B$4:B5)) ->  | C5: =IF(B5="","",IF(LEFT(B5,2)=LEFT("FA",2),F5,INDEX(#REF!,MATCH(Levantamento_SEPROARQQQ!B5,#REF!,0),4))) ->  | D5: =IF(LEFT(B5,2)=LEFT("FA",8),"",IFERROR(VLOOKUP(B5,#REF!,5,FALSE),"")) -> 
A6: =IF(B6="","",COUNTA($B$4:B6)) ->  | C6: =IF(B6="","",IF(LEFT(B6,2)=LEFT("FA",2),F6,INDEX(#REF!,MATCH(Levantamento_SEPROARQQQ!B6,#REF!,0),4))) ->  | D6: =IF(LEFT(B6,2)=LEFT("FA",8),"",IFERROR(VLOOKUP(B6,#REF!,5,FALSE),"")) -> 
A7: =IF(B7="","",COUNTA($B$4:B7)) ->  | C7: =IF(B7="","",IF(LEFT(B7,2)=LEFT("FA",2),F7,INDEX(#REF!,MATCH(Levantamento_SEPROARQQQ!B7,#REF!,0),4))) ->  | D7: =IF(LEFT(B7,2)=LEFT("FA",8),"",IFERROR(VLOOKUP(B7,#REF!,5,FALSE),"")) -> 
A8: =IF(B8="","",COUNTA($B$4:B8)) ->  | C8: =IF(B8="","",IF(LEFT(B8,2)=LEFT("FA",2),F8,INDEX(#REF!,MATCH(Levantamento_SEPROARQQQ!B8,#REF!,0),4))) ->  | D8: =IF(LEFT(B8,2)=LEFT("FA",8),"",IFERROR(VLOOKUP(B8,#REF!,5,FALSE),"")) -> 
A9: =IF(B9="","",COUNTA($B$4:B9)) ->  | C9: =IF(B9="","",IF(LEFT(B9,2)=LEFT("FA",2),F9,INDEX(#REF!,MATCH(Levantamento_SEPROARQQQ!B9,#REF!,0),4))) ->  | D9: =IF(LEFT(B9,2)=LEFT("FA",8),"",IFERROR(VLOOKUP(B9,#REF!,5,FALSE),"")) -> 
A10: =IF(B10="","",COUNTA($B$4:B10)) ->  | C10: =IF(B10="","",IF(LEFT(B10,2)=LEFT("FA",2),F10,INDEX(#REF!,MATCH(Levantamento_SEPROARQQQ!B10,#REF!,0),4))) ->  | D10: =IF(LEFT(B10,2)=LEFT("FA",8),"",IFERROR(VLOOKUP(B10,#REF!,5,FALSE),"")) -> 
A11: =IF(B11="","",COUNTA($B$4:B11)) ->  | C11: =IF(B11="","",IF(LEFT(B11,2)=LEFT("FA",2),F11,INDEX(#REF!,MATCH(Levantamento_SEPROARQQQ!B11,#REF!,0),4))) ->  | D11: =IF(LEFT(B11,2)=LEFT("FA",8),"",IFERROR(VLOOKUP(B11,#REF!,5,FALSE),"")) -> 
A12: =IF(B12="","",COUNTA($B$4:B12)) ->  | C12: =IF(B12="","",IF(LEFT(B12,2)=LEFT("FA",2),F12,INDEX(#REF!,MATCH(Levantamento_SEPROARQQQ!B12,#REF!,0),4))) ->  | D12: =IF(LEFT(B12,2)=LEFT("FA",8),"",IFERROR(VLOOKUP(B12,#REF!,5,FALSE),"")) -> 
A13: =IF(B13="","",COUNTA($B$4:B13)) ->  | C13: =IF(B13="","",IF(LEFT(B13,2)=LEFT("FA",2),F13,INDEX(#REF!,MATCH(Levantamento_SEPROARQQQ!B13,#REF!,0),4))) ->  | D13: =IF(LEFT(B13,2)=LEFT("FA",8),"",IFERROR(VLOOKUP(B13,#REF!,5,FALSE),"")) -> 
A14: =IF(B14="","",COUNTA($B$4:B14)) ->  | C14: =IF(B14="","",IF(LEFT(B14,2)=LEFT("FA",2),F14,INDEX(#REF!,MATCH(Levantamento_SEPROARQQQ!B14,#REF!,0),4))) ->  | D14: =IF(LEFT(B14,2)=LEFT("FA",8),"",IFERROR(VLOOKUP(B14,#REF!,5,FALSE),"")) -> 
A15: =IF(B15="","",COUNTA($B$4:B15)) ->  | C15: =IF(B15="","",IF(LEFT(B15,2)=LEFT("FA",2),F15,INDEX(#REF!,MATCH(Levantamento_SEPROARQQQ!B15,#REF!,0),4))) ->  | D15: =IF(LEFT(B15,2)=LEFT("FA",8),"",IFERROR(VLOOKUP(B15,#REF!,5,FALSE),"")) -> 
A16: =IF(B16="","",COUNTA($B$4:B16)) ->  | C16: =IF(B16="","",IF(LEFT(B16,2)=LEFT("FA",2),F16,INDEX(#REF!,MATCH(Levantamento_SEPROARQQQ!B16,#REF!,0),4))) ->  | D16: =IF(LEFT(B16,2)=LEFT("FA",8),"",IFERROR(VLOOKUP(B16,#REF!,5,FALSE),"")) -> 
A17: =IF(B17="","",COUNTA($B$4:B17)) ->  | C17: =IF(B17="","",IF(LEFT(B17,2)=LEFT("FA",2),F17,INDEX(#REF!,MATCH(Levantamento_SEPROARQQQ!B17,#REF!,0),4))) ->  | D17: =IF(LEFT(B17,2)=LEFT("FA",8),"",IFERROR(VLOOKUP(B17,#REF!,5,FALSE),"")) -> 
A18: =IF(B18="","",COUNTA($B$4:B18)) ->  | C18: =IF(B18="","",IF(LEFT(B18,2)=LEFT("FA",2),F18,INDEX(#REF!,MATCH(Levantamento_SEPROARQQQ!B18,#REF!,0),4))) ->  | D18: =IF(LEFT(B18,2)=LEFT("FA",8),"",IFERROR(VLOOKUP(B18,#REF!,5,FALSE),"")) -> 
A19: =IF(B19="","",COUNTA($B$4:B19)) ->  | C19: =IF(B19="","",IF(LEFT(B19,2)=LEFT("FA",2),F19,INDEX(#REF!,MATCH(Levantamento_SEPROARQQQ!B19,#REF!,0),4))) ->  | D19: =IF(LEFT(B19,2)=LEFT("FA",8),"",IFERROR(VLOOKUP(B19,#REF!,5,FALSE),"")) -> 
A20: =IF(B20="","",COUNTA($B$4:B20)) ->  | C20: =IF(B20="","",IF(LEFT(B20,2)=LEFT("FA",2),F20,INDEX(#REF!,MATCH(Levantamento_SEPROARQQQ!B20,#REF!,0),4))) ->  | D20: =IF(LEFT(B20,2)=LEFT("FA",8),"",IFERROR(VLOOKUP(B20,#REF!,5,FALSE),"")) -> 
A21: =IF(B21="","",COUNTA($B$4:B21)) ->  | C21: =IF(B21="","",IF(LEFT(B21,2)=LEFT("FA",2),F21,INDEX(#REF!,MATCH(Levantamento_SEPROARQQQ!B21,#REF!,0),4))) ->  | D21: =IF(LEFT(B21,2)=LEFT("FA",8),"",IFERROR(VLOOKUP(B21,#REF!,5,FALSE),"")) -> 
A22: =IF(B22="","",COUNTA($B$4:B22)) ->  | C22: =IF(B22="","",IF(LEFT(B22,2)=LEFT("FA",2),F22,INDEX(#REF!,MATCH(Levantamento_SEPROARQQQ!B22,#REF!,0),4))) ->  | D22: =IF(LEFT(B22,2)=LEFT("FA",8),"",IFERROR(VLOOKUP(B22,#REF!,5,FALSE),"")) -> 
A23: =IF(B23="","",COUNTA($B$4:B23)) ->  | C23: =IF(B23="","",IF(LEFT(B23,2)=LEFT("FA",2),F23,INDEX(#REF!,MATCH(Levantamento_SEPROARQQQ!B23,#REF!,0),4))) ->  | D23: =IF(LEFT(B23,2)=LEFT("FA",8),"",IFERROR(VLOOKUP(B23,#REF!,5,FALSE),"")) -> 
A24: =IF(B24="","",COUNTA($B$4:B24)) ->  | C24: =IF(B24="","",IF(LEFT(B24,2)=LEFT("FA",2),F24,INDEX(#REF!,MATCH(Levantamento_SEPROARQQQ!B24,#REF!,0),4))) ->  | D24: =IF(LEFT(B24,2)=LEFT("FA",8),"",IFERROR(VLOOKUP(B24,#REF!,5,FALSE),"")) -> 
A25: =IF(B25="","",COUNTA($B$4:B25)) ->  | C25: =IF(B25="","",IF(LEFT(B25,2)=LEFT("FA",2),F25,INDEX(#REF!,MATCH(Levantamento_SEPROARQQQ!B25,#REF!,0),4))) ->  | D25: =IF(LEFT(B25,2)=LEFT("FA",8),"",IFERROR(VLOOKUP(B25,#REF!,5,FALSE),"")) -> 
A26: =IF(B26="","",COUNTA($B$4:B26)) ->  | C26: =IF(B26="","",IF(LEFT(B26,2)=LEFT("FA",2),F26,INDEX(#REF!,MATCH(Levantamento_SEPROARQQQ!B26,#REF!,0),4))) ->  | D26: =IF(LEFT(B26,2)=LEFT("FA",8),"",IFERROR(VLOOKUP(B26,#REF!,5,FALSE),"")) -> 
A27: =IF(B27="","",COUNTA($B$4:B27)) ->  | C27: =IF(B27="","",IF(LEFT(B27,2)=LEFT("FA",2),F27,INDEX(#REF!,MATCH(Levantamento_SEPROARQQQ!B27,#REF!,0),4))) ->  | D27: =IF(LEFT(B27,2)=LEFT("FA",8),"",IFERROR(VLOOKUP(B27,#REF!,5,FALSE),"")) -> 
A28: =IF(B28="","",COUNTA($B$4:B28)) ->  | C28: =IF(B28="","",IF(LEFT(B28,2)=LEFT("FA",2),F28,INDEX(#REF!,MATCH(Levantamento_SEPROARQQQ!B28,#REF!,0),4))) ->  | D28: =IF(LEFT(B28,2)=LEFT("FA",8),"",IFERROR(VLOOKUP(B28,#REF!,5,FALSE),"")) -> 
A29: =IF(B29="","",COUNTA($B$4:B29)) ->  | C29: =IF(B29="","",IF(LEFT(B29,2)=LEFT("FA",2),F29,INDEX(#REF!,MATCH(Levantamento_SEPROARQQQ!B29,#REF!,0),4))) ->  | D29: =IF(LEFT(B29,2)=LEFT("FA",8),"",IFERROR(VLOOKUP(B29,#REF!,5,FALSE),"")) -> 
A30: =IF(B30="","",COUNTA($B$4:B30)) ->  | C30: =IF(B30="","",IF(LEFT(B30,2)=LEFT("FA",2),F30,INDEX(#REF!,MATCH(Levantamento_SEPROARQQQ!B30,#REF!,0),4))) ->  | D30: =IF(LEFT(B30,2)=LEFT("FA",8),"",IFERROR(VLOOKUP(B30,#REF!,5,FALSE),"")) -> 
A31: =IF(B31="","",COUNTA($B$4:B31)) ->  | C31: =IF(B31="","",IF(LEFT(B31,2)=LEFT("FA",2),F31,INDEX(#REF!,MATCH(Levantamento_SEPROARQQQ!B31,#REF!,0),4))) ->  | D31: =IF(LEFT(B31,2)=LEFT("FA",8),"",IFERROR(VLOOKUP(B31,#REF!,5,FALSE),"")) -> 
A32: =IF(B32="","",COUNTA($B$4:B32)) ->  | C32: =IF(B32="","",IF(LEFT(B32,2)=LEFT("FA",2),F32,INDEX(#REF!,MATCH(Levantamento_SEPROARQQQ!B32,#REF!,0),4))) ->  | D32: =IF(LEFT(B32,2)=LEFT("FA",8),"",IFERROR(VLOOKUP(B32,#REF!,5,FALSE),"")) -> 
A33: =IF(B33="","",COUNTA($B$4:B33)) ->  | C33: =IF(B33="","",IF(LEFT(B33,2)=LEFT("FA",2),F33,INDEX(#REF!,MATCH(Levantamento_SEPROARQQQ!B33,#REF!,0),4))) ->  | D33: =IF(LEFT(B33,2)=LEFT("FA",8),"",IFERROR(VLOOKUP(B33,#REF!,5,FALSE),"")) -> 
A34: =IF(B34="","",COUNTA($B$4:B34)) ->  | C34: =IF(B34="","",IF(LEFT(B34,2)=LEFT("FA",2),F34,INDEX(#REF!,MATCH(Levantamento_SEPROARQQQ!B34,#REF!,0),4))) ->  | D34: =IF(LEFT(B34,2)=LEFT("FA",8),"",IFERROR(VLOOKUP(B34,#REF!,5,FALSE),"")) -> 
A35: =IF(B35="","",COUNTA($B$4:B35)) ->  | C35: =IF(B35="","",IF(LEFT(B35,2)=LEFT("FA",2),F35,INDEX(#REF!,MATCH(Levantamento_SEPROARQQQ!B35,#REF!,0),4))) ->  | D35: =IF(LEFT(B35,2)=LEFT("FA",8),"",IFERROR(VLOOKUP(B35,#REF!,5,FALSE),"")) -> 
A36: =IF(B36="","",COUNTA($B$4:B36)) ->  | C36: =IF(B36="","",IF(LEFT(B36,2)=LEFT("FA",2),F36,INDEX(#REF!,MATCH(Levantamento_SEPROARQQQ!B36,#REF!,0),4))) ->  | D36: =IF(LEFT(B36,2)=LEFT("FA",8),"",IFERROR(VLOOKUP(B36,#REF!,5,FALSE),"")) -> 
A37: =IF(B37="","",COUNTA($B$4:B37)) ->  | C37: =IF(B37="","",IF(LEFT(B37,2)=LEFT("FA",2),F37,INDEX(#REF!,MATCH(Levantamento_SEPROARQQQ!B37,#REF!,0),4))) ->  | D37: =IF(LEFT(B37,2)=LEFT("FA",8),"",IFERROR(VLOOKUP(B37,#REF!,5,FALSE),"")) -> 
A38: =IF(B38="","",COUNTA($B$4:B38)) ->  | C38: =IF(B38="","",IF(LEFT(B38,2)=LEFT("FA",2),F38,INDEX(#REF!,MATCH(Levantamento_SEPROARQQQ!B38,#REF!,0),4))) ->  | D38: =IF(LEFT(B38,2)=LEFT("FA",8),"",IFERROR(VLOOKUP(B38,#REF!,5,FALSE),"")) -> 
A39: =IF(B39="","",COUNTA($B$4:B39)) ->  | C39: =IF(B39="","",IF(LEFT(B39,2)=LEFT("FA",2),F39,INDEX(#REF!,MATCH(Levantamento_SEPROARQQQ!B39,#REF!,0),4))) ->  | D39: =IF(LEFT(B39,2)=LEFT("FA",8),"",IFERROR(VLOOKUP(B39,#REF!,5,FALSE),"")) -> 
A40: =IF(B40="","",COUNTA($B$4:B40)) ->  | C40: =IF(B40="","",IF(LEFT(B40,2)=LEFT("FA",2),F40,INDEX(#REF!,MATCH(Levantamento_SEPROARQQQ!B40,#REF!,0),4))) ->  | D40: =IF(LEFT(B40,2)=LEFT("FA",8),"",IFERROR(VLOOKUP(B40,#REF!,5,FALSE),"")) -> 
A41: =IF(B41="","",COUNTA($B$4:B41)) ->  | C41: =IF(B41="","",IF(LEFT(B41,2)=LEFT("FA",2),F41,INDEX(#REF!,MATCH(Levantamento_SEPROARQQQ!B41,#REF!,0),4))) ->  | D41: =IF(LEFT(B41,2)=LEFT("FA",8),"",IFERROR(VLOOKUP(B41,#REF!,5,FALSE),"")) -> 
A42: =IF(B42="","",COUNTA($B$4:B42)) ->  | C42: =IF(B42="","",IF(LEFT(B42,2)=LEFT("FA",2),F42,INDEX(#REF!,MATCH(Levantamento_SEPROARQQQ!B42,#REF!,0),4))) ->  | D42: =IF(LEFT(B42,2)=LEFT("FA",8),"",IFERROR(VLOOKUP(B42,#REF!,5,FALSE),"")) -> 
A43: =IF(B43="","",COUNTA($B$4:B43)) ->  | C43: =IF(B43="","",IF(LEFT(B43,2)=LEFT("FA",2),F43,INDEX(#REF!,MATCH(Levantamento_SEPROARQQQ!B43,#REF!,0),4))) ->  | D43: =IF(LEFT(B43,2)=LEFT("FA",8),"",IFERROR(VLOOKUP(B43,#REF!,5,FALSE),"")) -> 
A44: =IF(B44="","",COUNTA($B$4:B44)) ->  | C44: =IF(B44="","",IF(LEFT(B44,2)=LEFT("FA",2),F44,INDEX(#REF!,MATCH(Levantamento_SEPROARQQQ!B44,#REF!,0),4))) ->  | D44: =IF(LEFT(B44,2)=LEFT("FA",8),"",IFERROR(VLOOKUP(B44,#REF!,5,FALSE),"")) -> 
A45: =IF(B45="","",COUNTA($B$4:B45)) ->  | C45: =IF(B45="","",IF(LEFT(B45,2)=LEFT("FA",2),F45,INDEX(#REF!,MATCH(Levantamento_SEPROARQQQ!B45,#REF!,0),4))) ->  | D45: =IF(LEFT(B45,2)=LEFT("FA",8),"",IFERROR(VLOOKUP(B45,#REF!,5,FALSE),"")) -> 
A46: =IF(B46="","",COUNTA($B$4:B46)) ->  | C46: =IF(B46="","",IF(LEFT(B46,2)=LEFT("FA",2),F46,INDEX(#REF!,MATCH(Levantamento_SEPROARQQQ!B46,#REF!,0),4))) ->  | D46: =IF(LEFT(B46,2)=LEFT("FA",8),"",IFERROR(VLOOKUP(B46,#REF!,5,FALSE),"")) -> 
A47: =IF(B47="","",COUNTA($B$4:B47)) ->  | C47: =IF(B47="","",IF(LEFT(B47,2)=LEFT("FA",2),F47,INDEX(#REF!,MATCH(Levantamento_SEPROARQQQ!B47,#REF!,0),4))) ->  | D47: =IF(LEFT(B47,2)=LEFT("FA",8),"",IFERROR(VLOOKUP(B47,#REF!,5,FALSE),"")) -> 
A48: =IF(B48="","",COUNTA($B$4:B48)) ->  | C48: =IF(B48="","",IF(LEFT(B48,2)=LEFT("FA",2),F48,INDEX(#REF!,MATCH(Levantamento_SEPROARQQQ!B48,#REF!,0),4))) ->  | D48: =IF(LEFT(B48,2)=LEFT("FA",8),"",IFERROR(VLOOKUP(B48,#REF!,5,FALSE),"")) -> 
A49: =IF(B49="","",COUNTA($B$4:B49)) ->  | C49: =IF(B49="","",IF(LEFT(B49,2)=LEFT("FA",2),F49,INDEX(#REF!,MATCH(Levantamento_SEPROARQQQ!B49,#REF!,0),4))) ->  | D49: =IF(LEFT(B49,2)=LEFT("FA",8),"",IFERROR(VLOOKUP(B49,#REF!,5,FALSE),"")) -> 
A50: =IF(B50="","",COUNTA($B$4:B50)) ->  | C50: =IF(B50="","",IF(LEFT(B50,2)=LEFT("FA",2),F50,INDEX(#REF!,MATCH(Levantamento_SEPROARQQQ!B50,#REF!,0),4))) ->  | D50: =IF(LEFT(B50,2)=LEFT("FA",8),"",IFERROR(VLOOKUP(B50,#REF!,5,FALSE),"")) -> 
A51: =IF(B51="","",COUNTA($B$4:B51)) ->  | C51: =IF(B51="","",IF(LEFT(B51,2)=LEFT("FA",2),F51,INDEX(#REF!,MATCH(Levantamento_SEPROARQQQ!B51,#REF!,0),4))) ->  | D51: =IF(LEFT(B51,2)=LEFT("FA",8),"",IFERROR(VLOOKUP(B51,#REF!,5,FALSE),"")) -> 
A52: =IF(B52="","",COUNTA($B$4:B52)) ->  | C52: =IF(B52="","",IF(LEFT(B52,2)=LEFT("FA",2),F52,INDEX(#REF!,MATCH(Levantamento_SEPROARQQQ!B52,#REF!,0),4))) ->  | D52: =IF(LEFT(B52,2)=LEFT("FA",8),"",IFERROR(VLOOKUP(B52,#REF!,5,FALSE),"")) -> 
A53: =IF(B53="","",COUNTA($B$4:B53)) ->  | C53: =IF(B53="","",IF(LEFT(B53,2)=LEFT("FA",2),F53,INDEX(#REF!,MATCH(Levantamento_SEPROARQQQ!B53,#REF!,0),4))) ->  | D53: =IF(LEFT(B53,2)=LEFT("FA",8),"",IFERROR(VLOOKUP(B53,#REF!,5,FALSE),"")) -> 
A54: =IF(B54="","",COUNTA($B$4:B54)) ->  | C54: =IF(B54="","",IF(LEFT(B54,2)=LEFT("FA",2),F54,INDEX(#REF!,MATCH(Levantamento_SEPROARQQQ!B54,#REF!,0),4))) ->  | D54: =IF(LEFT(B54,2)=LEFT("FA",8),"",IFERROR(VLOOKUP(B54,#REF!,5,FALSE),"")) -> 
A55: =IF(B55="","",COUNTA($B$4:B55)) ->  | C55: =IF(B55="","",IF(LEFT(B55,2)=LEFT("FA",2),F55,INDEX(#REF!,MATCH(Levantamento_SEPROARQQQ!B55,#REF!,0),4))) ->  | D55: =IF(LEFT(B55,2)=LEFT("FA",8),"",IFERROR(VLOOKUP(B55,#REF!,5,FALSE),"")) -> 
A56: =IF(B56="","",COUNTA($B$4:B56)) ->  | C56: =IF(B56="","",IF(LEFT(B56,2)=LEFT("FA",2),F56,INDEX(#REF!,MATCH(Levantamento_SEPROARQQQ!B56,#REF!,0),4))) ->  | D56: =IF(LEFT(B56,2)=LEFT("FA",8),"",IFERROR(VLOOKUP(B56,#REF!,5,FALSE),"")) -> 
A57: =IF(B57="","",COUNTA($B$4:B57)) ->  | C57: =IF(B57="","",IF(LEFT(B57,2)=LEFT("FA",2),F57,INDEX(#REF!,MATCH(Levantamento_SEPROARQQQ!B57,#REF!,0),4))) ->  | D57: =IF(LEFT(B57,2)=LEFT("FA",8),"",IFERROR(VLOOKUP(B57,#REF!,5,FALSE),"")) -> 
A58: =IF(B58="","",COUNTA($B$4:B58)) ->  | C58: =IF(B58="","",IF(LEFT(B58,2)=LEFT("FA",2),F58,INDEX(#REF!,MATCH(Levantamento_SEPROARQQQ!B58,#REF!,0),4))) ->  | D58: =IF(LEFT(B58,2)=LEFT("FA",8),"",IFERROR(VLOOKUP(B58,#REF!,5,FALSE),"")) -> 
A59: =IF(B59="","",COUNTA($B$4:B59)) ->  | C59: =IF(B59="","",IF(LEFT(B59,2)=LEFT("FA",2),F59,INDEX(#REF!,MATCH(Levantamento_SEPROARQQQ!B59,#REF!,0),4))) ->  | D59: =IF(LEFT(B59,2)=LEFT("FA",8),"",IFERROR(VLOOKUP(B59,#REF!,5,FALSE),"")) -> 
A60: =IF(B60="","",COUNTA($B$4:B60)) ->  | C60: =IF(B60="","",IF(LEFT(B60,2)=LEFT("FA",2),F60,INDEX(#REF!,MATCH(Levantamento_SEPROARQQQ!B60,#REF!,0),4))) ->  | D60: =IF(LEFT(B60,2)=LEFT("FA",8),"",IFERROR(VLOOKUP(B60,#REF!,5,FALSE),"")) -> 
A61: =IF(B61="","",COUNTA($B$4:B61)) ->  | C61: =IF(B61="","",IF(LEFT(B61,2)=LEFT("FA",2),F61,INDEX(#REF!,MATCH(Levantamento_SEPROARQQQ!B61,#REF!,0),4))) ->  | D61: =IF(LEFT(B61,2)=LEFT("FA",8),"",IFERROR(VLOOKUP(B61,#REF!,5,FALSE),"")) -> 
A62: =IF(B62="","",COUNTA($B$4:B62)) ->  | C62: =IF(B62="","",IF(LEFT(B62,2)=LEFT("FA",2),F62,INDEX(#REF!,MATCH(Levantamento_SEPROARQQQ!B62,#REF!,0),4))) ->  | D62: =IF(LEFT(B62,2)=LEFT("FA",8),"",IFERROR(VLOOKUP(B62,#REF!,5,FALSE),"")) -> 
A63: =IF(B63="","",COUNTA($B$4:B63)) ->  | C63: =IF(B63="","",IF(LEFT(B63,2)=LEFT("FA",2),F63,INDEX(#REF!,MATCH(Levantamento_SEPROARQQQ!B63,#REF!,0),4))) ->  | D63: =IF(LEFT(B63,2)=LEFT("FA",8),"",IFERROR(VLOOKUP(B63,#REF!,5,FALSE),"")) -> 
A64: =IF(B64="","",COUNTA($B$4:B64)) ->  | C64: =IF(B64="","",IF(LEFT(B64,2)=LEFT("FA",2),F64,INDEX(#REF!,MATCH(Levantamento_SEPROARQQQ!B64,#REF!,0),4))) ->  | D64: =IF(LEFT(B64,2)=LEFT("FA",8),"",IFERROR(VLOOKUP(B64,#REF!,5,FALSE),"")) -> 
A65: =IF(B65="","",COUNTA($B$4:B65)) ->  | C65: =IF(B65="","",IF(LEFT(B65,2)=LEFT("FA",2),F65,INDEX(#REF!,MATCH(Levantamento_SEPROARQQQ!B65,#REF!,0),4))) ->  | D65: =IF(LEFT(B65,2)=LEFT("FA",8),"",IFERROR(VLOOKUP(B65,#REF!,5,FALSE),"")) -> 
A66: =IF(B66="","",COUNTA($B$4:B66)) ->  | C66: =IF(B66="","",IF(LEFT(B66,2)=LEFT("FA",2),F66,INDEX(#REF!,MATCH(Levantamento_SEPROARQQQ!B66,#REF!,0),4))) ->  | D66: =IF(LEFT(B66,2)=LEFT("FA",8),"",IFERROR(VLOOKUP(B66,#REF!,5,FALSE),"")) -> 
A67: =IF(B67="","",COUNTA($B$4:B67)) ->  | C67: =IF(B67="","",IF(LEFT(B67,2)=LEFT("FA",2),F67,INDEX(#REF!,MATCH(Levantamento_SEPROARQQQ!B67,#REF!,0),4))) ->  | D67: =IF(LEFT(B67,2)=LEFT("FA",8),"",IFERROR(VLOOKUP(B67,#REF!,5,FALSE),"")) -> 
A68: =IF(B68="","",COUNTA($B$4:B68)) ->  | C68: =IF(B68="","",IF(LEFT(B68,2)=LEFT("FA",2),F68,INDEX(#REF!,MATCH(Levantamento_SEPROARQQQ!B68,#REF!,0),4))) ->  | D68: =IF(LEFT(B68,2)=LEFT("FA",8),"",IFERROR(VLOOKUP(B68,#REF!,5,FALSE),"")) -> 
A69: =IF(B69="","",COUNTA($B$4:B69)) ->  | C69: =IF(B69="","",IF(LEFT(B69,2)=LEFT("FA",2),F69,INDEX(#REF!,MATCH(Levantamento_SEPROARQQQ!B69,#REF!,0),4))) ->  | D69: =IF(LEFT(B69,2)=LEFT("FA",8),"",IFERROR(VLOOKUP(B69,#REF!,5,FALSE),"")) -> 
A70: =IF(B70="","",COUNTA($B$4:B70)) ->  | C70: =IF(B70="","",IF(LEFT(B70,2)=LEFT("FA",2),F70,INDEX(#REF!,MATCH(Levantamento_SEPROARQQQ!B70,#REF!,0),4))) ->  | D70: =IF(LEFT(B70,2)=LEFT("FA",8),"",IFERROR(VLOOKUP(B70,#REF!,5,FALSE),"")) -> 
A71: =IF(B71="","",COUNTA($B$4:B71)) ->  | C71: =IF(B71="","",IF(LEFT(B71,2)=LEFT("FA",2),F71,INDEX(#REF!,MATCH(Levantamento_SEPROARQQQ!B71,#REF!,0),4))) ->  | D71: =IF(LEFT(B71,2)=LEFT("FA",8),"",IFERROR(VLOOKUP(B71,#REF!,5,FALSE),"")) -> 
A72: =IF(B72="","",COUNTA($B$4:B72)) ->  | C72: =IF(B72="","",IF(LEFT(B72,2)=LEFT("FA",2),F72,INDEX(#REF!,MATCH(Levantamento_SEPROARQQQ!B72,#REF!,0),4))) ->  | D72: =IF(LEFT(B72,2)=LEFT("FA",8),"",IFERROR(VLOOKUP(B72,#REF!,5,FALSE),"")) -> 
A73: =IF(B73="","",COUNTA($B$4:B73)) ->  | C73: =IF(B73="","",IF(LEFT(B73,2)=LEFT("FA",2),F73,INDEX(#REF!,MATCH(Levantamento_SEPROARQQQ!B73,#REF!,0),4))) ->  | D73: =IF(LEFT(B73,2)=LEFT("FA",8),"",IFERROR(VLOOKUP(B73,#REF!,5,FALSE),"")) -> 
A74: =IF(B74="","",COUNTA($B$4:B74)) ->  | C74: =IF(B74="","",IF(LEFT(B74,2)=LEFT("FA",2),F74,INDEX(#REF!,MATCH(Levantamento_SEPROARQQQ!B74,#REF!,0),4))) ->  | D74: =IF(LEFT(B74,2)=LEFT("FA",8),"",IFERROR(VLOOKUP(B74,#REF!,5,FALSE),"")) -> 
A75: =IF(B75="","",COUNTA($B$4:B75)) ->  | C75: =IF(B75="","",IF(LEFT(B75,2)=LEFT("FA",2),F75,INDEX(#REF!,MATCH(Levantamento_SEPROARQQQ!B75,#REF!,0),4))) ->  | D75: =IF(LEFT(B75,2)=LEFT("FA",8),"",IFERROR(VLOOKUP(B75,#REF!,5,FALSE),"")) -> 
A76: =IF(B76="","",COUNTA($B$4:B76)) ->  | C76: =IF(B76="","",IF(LEFT(B76,2)=LEFT("FA",2),F76,INDEX(#REF!,MATCH(Levantamento_SEPROARQQQ!B76,#REF!,0),4))) ->  | D76: =IF(LEFT(B76,2)=LEFT("FA",8),"",IFERROR(VLOOKUP(B76,#REF!,5,FALSE),"")) -> 
A77: =IF(B77="","",COUNTA($B$4:B77)) ->  | C77: =IF(B77="","",IF(LEFT(B77,2)=LEFT("FA",2),F77,INDEX(#REF!,MATCH(Levantamento_SEPROARQQQ!B77,#REF!,0),4))) ->  | D77: =IF(LEFT(B77,2)=LEFT("FA",8),"",IFERROR(VLOOKUP(B77,#REF!,5,FALSE),"")) -> 
A78: =IF(B78="","",COUNTA($B$4:B78)) ->  | C78: =IF(B78="","",IF(LEFT(B78,2)=LEFT("FA",2),F78,INDEX(#REF!,MATCH(Levantamento_SEPROARQQQ!B78,#REF!,0),4))) ->  | D78: =IF(LEFT(B78,2)=LEFT("FA",8),"",IFERROR(VLOOKUP(B78,#REF!,5,FALSE),"")) -> 
A79: =IF(B79="","",COUNTA($B$4:B79)) ->  | C79: =IF(B79="","",IF(LEFT(B79,2)=LEFT("FA",2),F79,INDEX(#REF!,MATCH(Levantamento_SEPROARQQQ!B79,#REF!,0),4))) ->  | D79: =IF(LEFT(B79,2)=LEFT("FA",8),"",IFERROR(VLOOKUP(B79,#REF!,5,FALSE),"")) -> 
A80: =IF(B80="","",COUNTA($B$4:B80)) ->  | C80: =IF(B80="","",IF(LEFT(B80,2)=LEFT("FA",2),F80,INDEX(#REF!,MATCH(Levantamento_SEPROARQQQ!B80,#REF!,0),4))) ->  | D80: =IF(LEFT(B80,2)=LEFT("FA",8),"",IFERROR(VLOOKUP(B80,#REF!,5,FALSE),"")) -> 
A81: =IF(B81="","",COUNTA($B$4:B81)) ->  | C81: =IF(B81="","",IF(LEFT(B81,2)=LEFT("FA",2),F81,INDEX(#REF!,MATCH(Levantamento_SEPROARQQQ!B81,#REF!,0),4))) ->  | D81: =IF(LEFT(B81,2)=LEFT("FA",8),"",IFERROR(VLOOKUP(B81,#REF!,5,FALSE),"")) -> 
A82: =IF(B82="","",COUNTA($B$4:B82)) ->  | C82: =IF(B82="","",IF(LEFT(B82,2)=LEFT("FA",2),F82,INDEX(#REF!,MATCH(Levantamento_SEPROARQQQ!B82,#REF!,0),4))) ->  | D82: =IF(LEFT(B82,2)=LEFT("FA",8),"",IFERROR(VLOOKUP(B82,#REF!,5,FALSE),"")) -> 
A83: =IF(B83="","",COUNTA($B$4:B83)) ->  | C83: =IF(B83="","",IF(LEFT(B83,2)=LEFT("FA",2),F83,INDEX(#REF!,MATCH(Levantamento_SEPROARQQQ!B83,#REF!,0),4))) ->  | D83: =IF(LEFT(B83,2)=LEFT("FA",8),"",IFERROR(VLOOKUP(B83,#REF!,5,FALSE),"")) -> 
A84: =IF(B84="","",COUNTA($B$4:B84)) ->  | C84: =IF(B84="","",IF(LEFT(B84,2)=LEFT("FA",2),F84,INDEX(#REF!,MATCH(Levantamento_SEPROARQQQ!B84,#REF!,0),4))) ->  | D84: =IF(LEFT(B84,2)=LEFT("FA",8),"",IFERROR(VLOOKUP(B84,#REF!,5,FALSE),"")) -> 
A85: =IF(B85="","",COUNTA($B$4:B85)) ->  | C85: =IF(B85="","",IF(LEFT(B85,2)=LEFT("FA",2),F85,INDEX(#REF!,MATCH(Levantamento_SEPROARQQQ!B85,#REF!,0),4))) ->  | D85: =IF(LEFT(B85,2)=LEFT("FA",8),"",IFERROR(VLOOKUP(B85,#REF!,5,FALSE),"")) -> 
A86: =IF(B86="","",COUNTA($B$4:B86)) ->  | C86: =IF(B86="","",IF(LEFT(B86,2)=LEFT("FA",2),F86,INDEX(#REF!,MATCH(Levantamento_SEPROARQQQ!B86,#REF!,0),4))) ->  | D86: =IF(LEFT(B86,2)=LEFT("FA",8),"",IFERROR(VLOOKUP(B86,#REF!,5,FALSE),"")) -> 
A87: =IF(B87="","",COUNTA($B$4:B87)) ->  | C87: =IF(B87="","",IF(LEFT(B87,2)=LEFT("FA",2),F87,INDEX(#REF!,MATCH(Levantamento_SEPROARQQQ!B87,#REF!,0),4))) ->  | D87: =IF(LEFT(B87,2)=LEFT("FA",8),"",IFERROR(VLOOKUP(B87,#REF!,5,FALSE),"")) -> 
A88: =IF(B88="","",COUNTA($B$4:B88)) ->  | C88: =IF(B88="","",IF(LEFT(B88,2)=LEFT("FA",2),F88,INDEX(#REF!,MATCH(Levantamento_SEPROARQQQ!B88,#REF!,0),4))) ->  | D88: =IF(LEFT(B88,2)=LEFT("FA",8),"",IFERROR(VLOOKUP(B88,#REF!,5,FALSE),"")) -> 
A89: =IF(B89="","",COUNTA($B$4:B89)) ->  | C89: =IF(B89="","",IF(LEFT(B89,2)=LEFT("FA",2),F89,INDEX(#REF!,MATCH(Levantamento_SEPROARQQQ!B89,#REF!,0),4))) ->  | D89: =IF(LEFT(B89,2)=LEFT("FA",8),"",IFERROR(VLOOKUP(B89,#REF!,5,FALSE),"")) -> 
A90: =IF(B90="","",COUNTA($B$4:B90)) ->  | C90: =IF(B90="","",IF(LEFT(B90,2)=LEFT("FA",2),F90,INDEX(#REF!,MATCH(Levantamento_SEPROARQQQ!B90,#REF!,0),4))) ->  | D90: =IF(LEFT(B90,2)=LEFT("FA",8),"",IFERROR(VLOOKUP(B90,#REF!,5,FALSE),"")) -> 
A91: =IF(B91="","",COUNTA($B$4:B91)) ->  | C91: =IF(B91="","",IF(LEFT(B91,2)=LEFT("FA",2),F91,INDEX(#REF!,MATCH(Levantamento_SEPROARQQQ!B91,#REF!,0),4))) ->  | D91: =IF(LEFT(B91,2)=LEFT("FA",8),"",IFERROR(VLOOKUP(B91,#REF!,5,FALSE),"")) -> 
A92: =IF(B92="","",COUNTA($B$4:B92)) ->  | C92: =IF(B92="","",IF(LEFT(B92,2)=LEFT("FA",2),F92,INDEX(#REF!,MATCH(Levantamento_SEPROARQQQ!B92,#REF!,0),4))) ->  | D92: =IF(LEFT(B92,2)=LEFT("FA",8),"",IFERROR(VLOOKUP(B92,#REF!,5,FALSE),"")) -> 
A93: =IF(B93="","",COUNTA($B$4:B93)) ->  | C93: =IF(B93="","",IF(LEFT(B93,2)=LEFT("FA",2),F93,INDEX(#REF!,MATCH(Levantamento_SEPROARQQQ!B93,#REF!,0),4))) ->  | D93: =IF(LEFT(B93,2)=LEFT("FA",8),"",IFERROR(VLOOKUP(B93,#REF!,5,FALSE),"")) -> 
A94: =IF(B94="","",COUNTA($B$4:B94)) ->  | C94: =IF(B94="","",IF(LEFT(B94,2)=LEFT("FA",2),F94,INDEX(#REF!,MATCH(Levantamento_SEPROARQQQ!B94,#REF!,0),4))) ->  | D94: =IF(LEFT(B94,2)=LEFT("FA",8),"",IFERROR(VLOOKUP(B94,#REF!,5,FALSE),"")) -> 
A95: =IF(B95="","",COUNTA($B$4:B95)) ->  | C95: =IF(B95="","",IF(LEFT(B95,2)=LEFT("FA",2),F95,INDEX(#REF!,MATCH(Levantamento_SEPROARQQQ!B95,#REF!,0),4))) ->  | D95: =IF(LEFT(B95,2)=LEFT("FA",8),"",IFERROR(VLOOKUP(B95,#REF!,5,FALSE),"")) -> 
A96: =IF(B96="","",COUNTA($B$4:B96)) ->  | C96: =IF(B96="","",IF(LEFT(B96,2)=LEFT("FA",2),F96,INDEX(#REF!,MATCH(Levantamento_SEPROARQQQ!B96,#REF!,0),4))) ->  | D96: =IF(LEFT(B96,2)=LEFT("FA",8),"",IFERROR(VLOOKUP(B96,#REF!,5,FALSE),"")) -> 
A97: =IF(B97="","",COUNTA($B$4:B97)) ->  | C97: =IF(B97="","",IF(LEFT(B97,2)=LEFT("FA",2),F97,INDEX(#REF!,MATCH(Levantamento_SEPROARQQQ!B97,#REF!,0),4))) ->  | D97: =IF(LEFT(B97,2)=LEFT("FA",8),"",IFERROR(VLOOKUP(B97,#REF!,5,FALSE),"")) -> 
A98: =IF(B98="","",COUNTA($B$4:B98)) ->  | C98: =IF(B98="","",IF(LEFT(B98,2)=LEFT("FA",2),F98,INDEX(#REF!,MATCH(Levantamento_SEPROARQQQ!B98,#REF!,0),4))) ->  | D98: =IF(LEFT(B98,2)=LEFT("FA",8),"",IFERROR(VLOOKUP(B98,#REF!,5,FALSE),"")) -> 
A99: =IF(B99="","",COUNTA($B$4:B99)) ->  | C99: =IF(B99="","",IF(LEFT(B99,2)=LEFT("FA",2),F99,INDEX(#REF!,MATCH(Levantamento_SEPROARQQQ!B99,#REF!,0),4))) ->  | D99: =IF(LEFT(B99,2)=LEFT("FA",8),"",IFERROR(VLOOKUP(B99,#REF!,5,FALSE),"")) -> 
A100: =IF(B100="","",COUNTA($B$4:B100)) ->  | C100: =IF(B100="","",IF(LEFT(B100,2)=LEFT("FA",2),F100,INDEX(#REF!,MATCH(Levantamento_SEPROARQQQ!B100,#REF!,0),4))) ->  | D100: =IF(LEFT(B100,2)=LEFT("FA",8),"",IFERROR(VLOOKUP(B100,#REF!,5,FALSE),"")) -> 
A101: =IF(B101="","",COUNTA($B$4:B101)) ->  | C101: =IF(B101="","",IF(LEFT(B101,2)=LEFT("FA",2),F101,INDEX(#REF!,MATCH(Levantamento_SEPROARQQQ!B101,#REF!,0),4))) ->  | D101: =IF(LEFT(B101,2)=LEFT("FA",8),"",IFERROR(VLOOKUP(B101,#REF!,5,FALSE),"")) -> 
A102: =IF(B102="","",COUNTA($B$4:B102)) ->  | C102: =IF(B102="","",IF(LEFT(B102,2)=LEFT("FA",2),F102,INDEX(#REF!,MATCH(Levantamento_SEPROARQQQ!B102,#REF!,0),4))) ->  | D102: =IF(LEFT(B102,2)=LEFT("FA",8),"",IFERROR(VLOOKUP(B102,#REF!,5,FALSE),"")) -> 
A103: =IF(B103="","",COUNTA($B$4:B103)) ->  | C103: =IF(B103="","",IF(LEFT(B103,2)=LEFT("FA",2),F103,INDEX(#REF!,MATCH(Levantamento_SEPROARQQQ!B103,#REF!,0),4))) ->  | D103: =IF(LEFT(B103,2)=LEFT("FA",8),"",IFERROR(VLOOKUP(B103,#REF!,5,FALSE),"")) -> 
A104: =IF(B104="","",COUNTA($B$4:B104)) ->  | C104: =IF(B104="","",IF(LEFT(B104,2)=LEFT("FA",2),F104,INDEX(#REF!,MATCH(Levantamento_SEPROARQQQ!B104,#REF!,0),4))) ->  | D104: =IF(LEFT(B104,2)=LEFT("FA",8),"",IFERROR(VLOOKUP(B104,#REF!,5,FALSE),"")) -> 
A105: =IF(B105="","",COUNTA($B$4:B105)) ->  | C105: =IF(B105="","",IF(LEFT(B105,2)=LEFT("FA",2),F105,INDEX(#REF!,MATCH(Levantamento_SEPROARQQQ!B105,#REF!,0),4))) ->  | D105: =IF(LEFT(B105,2)=LEFT("FA",8),"",IFERROR(VLOOKUP(B105,#REF!,5,FALSE),"")) -> 
A106: =IF(B106="","",COUNTA($B$4:B106)) ->  | C106: =IF(B106="","",IF(LEFT(B106,2)=LEFT("FA",2),F106,INDEX(#REF!,MATCH(Levantamento_SEPROARQQQ!B106,#REF!,0),4))) ->  | D106: =IF(LEFT(B106,2)=LEFT("FA",8),"",IFERROR(VLOOKUP(B106,#REF!,5,FALSE),"")) -> 
A107: =IF(B107="","",COUNTA($B$4:B107)) ->  | C107: =IF(B107="","",IF(LEFT(B107,2)=LEFT("FA",2),F107,INDEX(#REF!,MATCH(Levantamento_SEPROARQQQ!B107,#REF!,0),4))) ->  | D107: =IF(LEFT(B107,2)=LEFT("FA",8),"",IFERROR(VLOOKUP(B107,#REF!,5,FALSE),"")) -> 
A108: =IF(B108="","",COUNTA($B$4:B108)) ->  | C108: =IF(B108="","",IF(LEFT(B108,2)=LEFT("FA",2),F108,INDEX(#REF!,MATCH(Levantamento_SEPROARQQQ!B108,#REF!,0),4))) ->  | D108: =IF(LEFT(B108,2)=LEFT("FA",8),"",IFERROR(VLOOKUP(B108,#REF!,5,FALSE),"")) -> 
A109: =IF(B109="","",COUNTA($B$4:B109)) ->  | C109: =IF(B109="","",IF(LEFT(B109,2)=LEFT("FA",2),F109,INDEX(#REF!,MATCH(Levantamento_SEPROARQQQ!B109,#REF!,0),4))) ->  | D109: =IF(LEFT(B109,2)=LEFT("FA",8),"",IFERROR(VLOOKUP(B109,#REF!,5,FALSE),"")) -> 
A110: =IF(B110="","",COUNTA($B$4:B110)) ->  | C110: =IF(B110="","",IF(LEFT(B110,2)=LEFT("FA",2),F110,INDEX(#REF!,MATCH(Levantamento_SEPROARQQQ!B110,#REF!,0),4))) ->  | D110: =IF(LEFT(B110,2)=LEFT("FA",8),"",IFERROR(VLOOKUP(B110,#REF!,5,FALSE),"")) -> 
A111: =IF(B111="","",COUNTA($B$4:B111)) ->  | C111: =IF(B111="","",IF(LEFT(B111,2)=LEFT("FA",2),F111,INDEX(#REF!,MATCH(Levantamento_SEPROARQQQ!B111,#REF!,0),4))) ->  | D111: =IF(LEFT(B111,2)=LEFT("FA",8),"",IFERROR(VLOOKUP(B111,#REF!,5,FALSE),"")) -> 
A112: =IF(B112="","",COUNTA($B$4:B112)) ->  | C112: =IF(B112="","",IF(LEFT(B112,2)=LEFT("FA",2),F112,INDEX(#REF!,MATCH(Levantamento_SEPROARQQQ!B112,#REF!,0),4))) ->  | D112: =IF(LEFT(B112,2)=LEFT("FA",8),"",IFERROR(VLOOKUP(B112,#REF!,5,FALSE),"")) -> 
A113: =IF(B113="","",COUNTA($B$4:B113)) ->  | C113: =IF(B113="","",IF(LEFT(B113,2)=LEFT("FA",2),F113,INDEX(#REF!,MATCH(Levantamento_SEPROARQQQ!B113,#REF!,0),4))) ->  | D113: =IF(LEFT(B113,2)=LEFT("FA",8),"",IFERROR(VLOOKUP(B113,#REF!,5,FALSE),"")) -> 
A114: =IF(B114="","",COUNTA($B$4:B114)) ->  | C114: =IF(B114="","",IF(LEFT(B114,2)=LEFT("FA",2),F114,INDEX(#REF!,MATCH(Levantamento_SEPROARQQQ!B114,#REF!,0),4))) ->  | D114: =IF(LEFT(B114,2)=LEFT("FA",8),"",IFERROR(VLOOKUP(B114,#REF!,5,FALSE),"")) -> 
A115: =IF(B115="","",COUNTA($B$4:B115)) ->  | C115: =IF(B115="","",IF(LEFT(B115,2)=LEFT("FA",2),F115,INDEX(#REF!,MATCH(Levantamento_SEPROARQQQ!B115,#REF!,0),4))) ->  | D115: =IF(LEFT(B115,2)=LEFT("FA",8),"",IFERROR(VLOOKUP(B115,#REF!,5,FALSE),"")) -> 
A116: =IF(B116="","",COUNTA($B$4:B116)) ->  | C116: =IF(B116="","",IF(LEFT(B116,2)=LEFT("FA",2),F116,INDEX(#REF!,MATCH(Levantamento_SEPROARQQQ!B116,#REF!,0),4))) ->  | D116: =IF(LEFT(B116,2)=LEFT("FA",8),"",IFERROR(VLOOKUP(B116,#REF!,5,FALSE),"")) -> 
A117: =IF(B117="","",COUNTA($B$4:B117)) ->  | C117: =IF(B117="","",IF(LEFT(B117,2)=LEFT("FA",2),F117,INDEX(#REF!,MATCH(Levantamento_SEPROARQQQ!B117,#REF!,0),4))) ->  | D117: =IF(LEFT(B117,2)=LEFT("FA",8),"",IFERROR(VLOOKUP(B117,#REF!,5,FALSE),"")) -> 
A118: =IF(B118="","",COUNTA($B$4:B118)) ->  | C118: =IF(B118="","",IF(LEFT(B118,2)=LEFT("FA",2),F118,INDEX(#REF!,MATCH(Levantamento_SEPROARQQQ!B118,#REF!,0),4))) ->  | D118: =IF(LEFT(B118,2)=LEFT("FA",8),"",IFERROR(VLOOKUP(B118,#REF!,5,FALSE),"")) -> 
A119: =IF(B119="","",COUNTA($B$4:B119)) ->  | C119: =IF(B119="","",IF(LEFT(B119,2)=LEFT("FA",2),F119,INDEX(#REF!,MATCH(Levantamento_SEPROARQQQ!B119,#REF!,0),4))) ->  | D119: =IF(LEFT(B119,2)=LEFT("FA",8),"",IFERROR(VLOOKUP(B119,#REF!,5,FALSE),"")) -> 
A120: =IF(B120="","",COUNTA($B$4:B120)) ->  | C120: =IF(B120="","",IF(LEFT(B120,2)=LEFT("FA",2),F120,INDEX(#REF!,MATCH(Levantamento_SEPROARQQQ!B120,#REF!,0),4))) ->  | D120: =IF(LEFT(B120,2)=LEFT("FA",8),"",IFERROR(VLOOKUP(B120,#REF!,5,FALSE),"")) -> 
A121: =IF(B121="","",COUNTA($B$4:B121)) ->  | C121: =IF(B121="","",IF(LEFT(B121,2)=LEFT("FA",2),F121,INDEX(#REF!,MATCH(Levantamento_SEPROARQQQ!B121,#REF!,0),4))) ->  | D121: =IF(LEFT(B121,2)=LEFT("FA",8),"",IFERROR(VLOOKUP(B121,#REF!,5,FALSE),"")) -> 
A122: =IF(B122="","",COUNTA($B$4:B122)) ->  | C122: =IF(B122="","",IF(LEFT(B122,2)=LEFT("FA",2),F122,INDEX(#REF!,MATCH(Levantamento_SEPROARQQQ!B122,#REF!,0),4))) ->  | D122: =IF(LEFT(B122,2)=LEFT("FA",8),"",IFERROR(VLOOKUP(B122,#REF!,5,FALSE),"")) -> 
A123: =IF(B123="","",COUNTA($B$4:B123)) ->  | C123: =IF(B123="","",IF(LEFT(B123,2)=LEFT("FA",2),F123,INDEX(#REF!,MATCH(Levantamento_SEPROARQQQ!B123,#REF!,0),4))) ->  | D123: =IF(LEFT(B123,2)=LEFT("FA",8),"",IFERROR(VLOOKUP(B123,#REF!,5,FALSE),"")) -> 
A124: =IF(B124="","",COUNTA($B$4:B124)) ->  | C124: =IF(B124="","",IF(LEFT(B124,2)=LEFT("FA",2),F124,INDEX(#REF!,MATCH(Levantamento_SEPROARQQQ!B124,#REF!,0),4))) ->  | D124: =IF(LEFT(B124,2)=LEFT("FA",8),"",IFERROR(VLOOKUP(B124,#REF!,5,FALSE),"")) -> 
A125: =IF(B125="","",COUNTA($B$4:B125)) ->  | C125: =IF(B125="","",IF(LEFT(B125,2)=LEFT("FA",2),F125,INDEX(#REF!,MATCH(Levantamento_SEPROARQQQ!B125,#REF!,0),4))) ->  | D125: =IF(LEFT(B125,2)=LEFT("FA",8),"",IFERROR(VLOOKUP(B125,#REF!,5,FALSE),"")) -> 
A126: =IF(B126="","",COUNTA($B$4:B126)) ->  | C126: =IF(B126="","",IF(LEFT(B126,2)=LEFT("FA",2),F126,INDEX(#REF!,MATCH(Levantamento_SEPROARQQQ!B126,#REF!,0),4))) ->  | D126: =IF(LEFT(B126,2)=LEFT("FA",8),"",IFERROR(VLOOKUP(B126,#REF!,5,FALSE),"")) -> 
A127: =IF(B127="","",COUNTA($B$4:B127)) ->  | C127: =IF(B127="","",IF(LEFT(B127,2)=LEFT("FA",2),F127,INDEX(#REF!,MATCH(Levantamento_SEPROARQQQ!B127,#REF!,0),4))) ->  | D127: =IF(LEFT(B127,2)=LEFT("FA",8),"",IFERROR(VLOOKUP(B127,#REF!,5,FALSE),"")) -> 
A128: =IF(B128="","",COUNTA($B$4:B128)) ->  | C128: =IF(B128="","",IF(LEFT(B128,2)=LEFT("FA",2),F128,INDEX(#REF!,MATCH(Levantamento_SEPROARQQQ!B128,#REF!,0),4))) ->  | D128: =IF(LEFT(B128,2)=LEFT("FA",8),"",IFERROR(VLOOKUP(B128,#REF!,5,FALSE),"")) -> 
A129: =IF(B129="","",COUNTA($B$4:B129)) ->  | C129: =IF(B129="","",IF(LEFT(B129,2)=LEFT("FA",2),F129,INDEX(#REF!,MATCH(Levantamento_SEPROARQQQ!B129,#REF!,0),4))) ->  | D129: =IF(LEFT(B129,2)=LEFT("FA",8),"",IFERROR(VLOOKUP(B129,#REF!,5,FALSE),"")) -> 
A130: =IF(B130="","",COUNTA($B$4:B130)) ->  | C130: =IF(B130="","",IF(LEFT(B130,2)=LEFT("FA",2),F130,INDEX(#REF!,MATCH(Levantamento_SEPROARQQQ!B130,#REF!,0),4))) ->  | D130: =IF(LEFT(B130,2)=LEFT("FA",8),"",IFERROR(VLOOKUP(B130,#REF!,5,FALSE),"")) -> 
A131: =IF(B131="","",COUNTA($B$4:B131)) ->  | C131: =IF(B131="","",IF(LEFT(B131,2)=LEFT("FA",2),F131,INDEX(#REF!,MATCH(Levantamento_SEPROARQQQ!B131,#REF!,0),4))) ->  | D131: =IF(LEFT(B131,2)=LEFT("FA",8),"",IFERROR(VLOOKUP(B131,#REF!,5,FALSE),"")) -> 
A132: =IF(B132="","",COUNTA($B$4:B132)) ->  | C132: =IF(B132="","",IF(LEFT(B132,2)=LEFT("FA",2),F132,INDEX(#REF!,MATCH(Levantamento_SEPROARQQQ!B132,#REF!,0),4))) ->  | D132: =IF(LEFT(B132,2)=LEFT("FA",8),"",IFERROR(VLOOKUP(B132,#REF!,5,FALSE),"")) -> 
A133: =IF(B133="","",COUNTA($B$4:B133)) ->  | C133: =IF(B133="","",IF(LEFT(B133,2)=LEFT("FA",2),F133,INDEX(#REF!,MATCH(Levantamento_SEPROARQQQ!B133,#REF!,0),4))) ->  | D133: =IF(LEFT(B133,2)=LEFT("FA",8),"",IFERROR(VLOOKUP(B133,#REF!,5,FALSE),"")) -> 
A134: =IF(B134="","",COUNTA($B$4:B134)) ->  | C134: =IF(B134="","",IF(LEFT(B134,2)=LEFT("FA",2),F134,INDEX(#REF!,MATCH(Levantamento_SEPROARQQQ!B134,#REF!,0),4))) ->  | D134: =IF(LEFT(B134,2)=LEFT("FA",8),"",IFERROR(VLOOKUP(B134,#REF!,5,FALSE),"")) -> 
A135: =IF(B135="","",COUNTA($B$4:B135)) ->  | C135: =IF(B135="","",IF(LEFT(B135,2)=LEFT("FA",2),F135,INDEX(#REF!,MATCH(Levantamento_SEPROARQQQ!B135,#REF!,0),4))) ->  | D135: =IF(LEFT(B135,2)=LEFT("FA",8),"",IFERROR(VLOOKUP(B135,#REF!,5,FALSE),"")) -> 
A136: =IF(B136="","",COUNTA($B$4:B136)) ->  | C136: =IF(B136="","",IF(LEFT(B136,2)=LEFT("FA",2),F136,INDEX(#REF!,MATCH(Levantamento_SEPROARQQQ!B136,#REF!,0),4))) ->  | D136: =IF(LEFT(B136,2)=LEFT("FA",8),"",IFERROR(VLOOKUP(B136,#REF!,5,FALSE),"")) -> 
A137: =IF(B137="","",COUNTA($B$4:B137)) ->  | C137: =IF(B137="","",IF(LEFT(B137,2)=LEFT("FA",2),F137,INDEX(#REF!,MATCH(Levantamento_SEPROARQQQ!B137,#REF!,0),4))) ->  | D137: =IF(LEFT(B137,2)=LEFT("FA",8),"",IFERROR(VLOOKUP(B137,#REF!,5,FALSE),"")) -> 
A138: =IF(B138="","",COUNTA($B$4:B138)) ->  | C138: =IF(B138="","",IF(LEFT(B138,2)=LEFT("FA",2),F138,INDEX(#REF!,MATCH(Levantamento_SEPROARQQQ!B138,#REF!,0),4))) ->  | D138: =IF(LEFT(B138,2)=LEFT("FA",8),"",IFERROR(VLOOKUP(B138,#REF!,5,FALSE),"")) -> 
A139: =IF(B139="","",COUNTA($B$4:B139)) ->  | C139: =IF(B139="","",IF(LEFT(B139,2)=LEFT("FA",2),F139,INDEX(#REF!,MATCH(Levantamento_SEPROARQQQ!B139,#REF!,0),4))) ->  | D139: =IF(LEFT(B139,2)=LEFT("FA",8),"",IFERROR(VLOOKUP(B139,#REF!,5,FALSE),"")) -> 
A140: =IF(B140="","",COUNTA($B$4:B140)) ->  | C140: =IF(B140="","",IF(LEFT(B140,2)=LEFT("FA",2),F140,INDEX(#REF!,MATCH(Levantamento_SEPROARQQQ!B140,#REF!,0),4))) ->  | D140: =IF(LEFT(B140,2)=LEFT("FA",8),"",IFERROR(VLOOKUP(B140,#REF!,5,FALSE),"")) -> 
A141: =IF(B141="","",COUNTA($B$4:B141)) ->  | C141: =IF(B141="","",IF(LEFT(B141,2)=LEFT("FA",2),F141,INDEX(#REF!,MATCH(Levantamento_SEPROARQQQ!B141,#REF!,0),4))) ->  | D141: =IF(LEFT(B141,2)=LEFT("FA",8),"",IFERROR(VLOOKUP(B141,#REF!,5,FALSE),"")) -> 
A142: =IF(B142="","",COUNTA($B$4:B142)) ->  | C142: =IF(B142="","",IF(LEFT(B142,2)=LEFT("FA",2),F142,INDEX(#REF!,MATCH(Levantamento_SEPROARQQQ!B142,#REF!,0),4))) ->  | D142: =IF(LEFT(B142,2)=LEFT("FA",8),"",IFERROR(VLOOKUP(B142,#REF!,5,FALSE),"")) -> 
A143: =IF(B143="","",COUNTA($B$4:B143)) ->  | C143: =IF(B143="","",IF(LEFT(B143,2)=LEFT("FA",2),F143,INDEX(#REF!,MATCH(Levantamento_SEPROARQQQ!B143,#REF!,0),4))) ->  | D143: =IF(LEFT(B143,2)=LEFT("FA",8),"",IFERROR(VLOOKUP(B143,#REF!,5,FALSE),"")) -> 
A144: =IF(B144="","",COUNTA($B$4:B144)) ->  | C144: =IF(B144="","",IF(LEFT(B144,2)=LEFT("FA",2),F144,INDEX(#REF!,MATCH(Levantamento_SEPROARQQQ!B144,#REF!,0),4))) ->  | D144: =IF(LEFT(B144,2)=LEFT("FA",8),"",IFERROR(VLOOKUP(B144,#REF!,5,FALSE),"")) -> 
A145: =IF(B145="","",COUNTA($B$4:B145)) ->  | C145: =IF(B145="","",IF(LEFT(B145,2)=LEFT("FA",2),F145,INDEX(#REF!,MATCH(Levantamento_SEPROARQQQ!B145,#REF!,0),4))) ->  | D145: =IF(LEFT(B145,2)=LEFT("FA",8),"",IFERROR(VLOOKUP(B145,#REF!,5,FALSE),"")) -> 
A146: =IF(B146="","",COUNTA($B$4:B146)) ->  | C146: =IF(B146="","",IF(LEFT(B146,2)=LEFT("FA",2),F146,INDEX(#REF!,MATCH(Levantamento_SEPROARQQQ!B146,#REF!,0),4))) ->  | D146: =IF(LEFT(B146,2)=LEFT("FA",8),"",IFERROR(VLOOKUP(B146,#REF!,5,FALSE),"")) -> 
A147: =IF(B147="","",COUNTA($B$4:B147)) ->  | C147: =IF(B147="","",IF(LEFT(B147,2)=LEFT("FA",2),F147,INDEX(#REF!,MATCH(Levantamento_SEPROARQQQ!B147,#REF!,0),4))) ->  | D147: =IF(LEFT(B147,2)=LEFT("FA",8),"",IFERROR(VLOOKUP(B147,#REF!,5,FALSE),"")) -> 
A148: =IF(B148="","",COUNTA($B$4:B148)) ->  | C148: =IF(B148="","",IF(LEFT(B148,2)=LEFT("FA",2),F148,INDEX(#REF!,MATCH(Levantamento_SEPROARQQQ!B148,#REF!,0),4))) ->  | D148: =IF(LEFT(B148,2)=LEFT("FA",8),"",IFERROR(VLOOKUP(B148,#REF!,5,FALSE),"")) -> 
A149: =IF(B149="","",COUNTA($B$4:B149)) ->  | C149: =IF(B149="","",IF(LEFT(B149,2)=LEFT("FA",2),F149,INDEX(#REF!,MATCH(Levantamento_SEPROARQQQ!B149,#REF!,0),4))) ->  | D149: =IF(LEFT(B149,2)=LEFT("FA",8),"",IFERROR(VLOOKUP(B149,#REF!,5,FALSE),"")) -> 
A150: =IF(B150="","",COUNTA($B$4:B150)) ->  | C150: =IF(B150="","",IF(LEFT(B150,2)=LEFT("FA",2),F150,INDEX(#REF!,MATCH(Levantamento_SEPROARQQQ!B150,#REF!,0),4))) ->  | D150: =IF(LEFT(B150,2)=LEFT("FA",8),"",IFERROR(VLOOKUP(B150,#REF!,5,FALSE),"")) -> 
A151: =IF(B151="","",COUNTA($B$4:B151)) ->  | C151: =IF(B151="","",IF(LEFT(B151,2)=LEFT("FA",2),F151,INDEX(#REF!,MATCH(Levantamento_SEPROARQQQ!B151,#REF!,0),4))) ->  | D151: =IF(LEFT(B151,2)=LEFT("FA",8),"",IFERROR(VLOOKUP(B151,#REF!,5,FALSE),"")) -> 
A152: =IF(B152="","",COUNTA($B$4:B152)) ->  | C152: =IF(B152="","",IF(LEFT(B152,2)=LEFT("FA",2),F152,INDEX(#REF!,MATCH(Levantamento_SEPROARQQQ!B152,#REF!,0),4))) ->  | D152: =IF(LEFT(B152,2)=LEFT("FA",8),"",IFERROR(VLOOKUP(B152,#REF!,5,FALSE),"")) -> 
A153: =IF(B153="","",COUNTA($B$4:B153)) ->  | C153: =IF(B153="","",IF(LEFT(B153,2)=LEFT("FA",2),F153,INDEX(#REF!,MATCH(Levantamento_SEPROARQQQ!B153,#REF!,0),4))) ->  | D153: =IF(LEFT(B153,2)=LEFT("FA",8),"",IFERROR(VLOOKUP(B153,#REF!,5,FALSE),"")) -> 
A154: =IF(B154="","",COUNTA($B$4:B154)) ->  | C154: =IF(B154="","",IF(LEFT(B154,2)=LEFT("FA",2),F154,INDEX(#REF!,MATCH(Levantamento_SEPROARQQQ!B154,#REF!,0),4))) ->  | D154: =IF(LEFT(B154,2)=LEFT("FA",8),"",IFERROR(VLOOKUP(B154,#REF!,5,FALSE),"")) -> 
A155: =IF(B155="","",COUNTA($B$4:B155)) ->  | C155: =IF(B155="","",IF(LEFT(B155,2)=LEFT("FA",2),F155,INDEX(#REF!,MATCH(Levantamento_SEPROARQQQ!B155,#REF!,0),4))) ->  | D155: =IF(LEFT(B155,2)=LEFT("FA",8),"",IFERROR(VLOOKUP(B155,#REF!,5,FALSE),"")) -> 
A156: =IF(B156="","",COUNTA($B$4:B156)) ->  | C156: =IF(B156="","",IF(LEFT(B156,2)=LEFT("FA",2),F156,INDEX(#REF!,MATCH(Levantamento_SEPROARQQQ!B156,#REF!,0),4))) ->  | D156: =IF(LEFT(B156,2)=LEFT("FA",8),"",IFERROR(VLOOKUP(B156,#REF!,5,FALSE),"")) -> 
A157: =IF(B157="","",COUNTA($B$4:B157)) ->  | C157: =IF(B157="","",IF(LEFT(B157,2)=LEFT("FA",2),F157,INDEX(#REF!,MATCH(Levantamento_SEPROARQQQ!B157,#REF!,0),4))) ->  | D157: =IF(LEFT(B157,2)=LEFT("FA",8),"",IFERROR(VLOOKUP(B157,#REF!,5,FALSE),"")) -> 
A158: =IF(B158="","",COUNTA($B$4:B158)) ->  | C158: =IF(B158="","",IF(LEFT(B158,2)=LEFT("FA",2),F158,INDEX(#REF!,MATCH(Levantamento_SEPROARQQQ!B158,#REF!,0),4))) ->  | D158: =IF(LEFT(B158,2)=LEFT("FA",8),"",IFERROR(VLOOKUP(B158,#REF!,5,FALSE),"")) -> 
A159: =IF(B159="","",COUNTA($B$4:B159)) ->  | C159: =IF(B159="","",IF(LEFT(B159,2)=LEFT("FA",2),F159,INDEX(#REF!,MATCH(Levantamento_SEPROARQQQ!B159,#REF!,0),4))) ->  | D159: =IF(LEFT(B159,2)=LEFT("FA",8),"",IFERROR(VLOOKUP(B159,#REF!,5,FALSE),"")) -> 
A160: =IF(B160="","",COUNTA($B$4:B160)) ->  | C160: =IF(B160="","",IF(LEFT(B160,2)=LEFT("FA",2),F160,INDEX(#REF!,MATCH(Levantamento_SEPROARQQQ!B160,#REF!,0),4))) ->  | D160: =IF(LEFT(B160,2)=LEFT("FA",8),"",IFERROR(VLOOKUP(B160,#REF!,5,FALSE),"")) -> 
A161: =IF(B161="","",COUNTA($B$4:B161)) ->  | C161: =IF(B161="","",IF(LEFT(B161,2)=LEFT("FA",2),F161,INDEX(#REF!,MATCH(Levantamento_SEPROARQQQ!B161,#REF!,0),4))) ->  | D161: =IF(LEFT(B161,2)=LEFT("FA",8),"",IFERROR(VLOOKUP(B161,#REF!,5,FALSE),"")) -> 
A162: =IF(B162="","",COUNTA($B$4:B162)) ->  | C162: =IF(B162="","",IF(LEFT(B162,2)=LEFT("FA",2),F162,INDEX(#REF!,MATCH(Levantamento_SEPROARQQQ!B162,#REF!,0),4))) ->  | D162: =IF(LEFT(B162,2)=LEFT("FA",8),"",IFERROR(VLOOKUP(B162,#REF!,5,FALSE),"")) -> 
A163: =IF(B163="","",COUNTA($B$4:B163)) ->  | C163: =IF(B163="","",IF(LEFT(B163,2)=LEFT("FA",2),F163,INDEX(#REF!,MATCH(Levantamento_SEPROARQQQ!B163,#REF!,0),4))) ->  | D163: =IF(LEFT(B163,2)=LEFT("FA",8),"",IFERROR(VLOOKUP(B163,#REF!,5,FALSE),"")) -> 
A164: =IF(B164="","",COUNTA($B$4:B164)) ->  | C164: =IF(B164="","",IF(LEFT(B164,2)=LEFT("FA",2),F164,INDEX(#REF!,MATCH(Levantamento_SEPROARQQQ!B164,#REF!,0),4))) ->  | D164: =IF(LEFT(B164,2)=LEFT("FA",8),"",IFERROR(VLOOKUP(B164,#REF!,5,FALSE),"")) -> 
A165: =IF(B165="","",COUNTA($B$4:B165)) ->  | C165: =IF(B165="","",IF(LEFT(B165,2)=LEFT("FA",2),F165,INDEX(#REF!,MATCH(Levantamento_SEPROARQQQ!B165,#REF!,0),4))) ->  | D165: =IF(LEFT(B165,2)=LEFT("FA",8),"",IFERROR(VLOOKUP(B165,#REF!,5,FALSE),"")) -> 
A166: =IF(B166="","",COUNTA($B$4:B166)) ->  | C166: =IF(B166="","",IF(LEFT(B166,2)=LEFT("FA",2),F166,INDEX(#REF!,MATCH(Levantamento_SEPROARQQQ!B166,#REF!,0),4))) ->  | D166: =IF(LEFT(B166,2)=LEFT("FA",8),"",IFERROR(VLOOKUP(B166,#REF!,5,FALSE),"")) -> 
A167: =IF(B167="","",COUNTA($B$4:B167)) ->  | C167: =IF(B167="","",IF(LEFT(B167,2)=LEFT("FA",2),F167,INDEX(#REF!,MATCH(Levantamento_SEPROARQQQ!B167,#REF!,0),4))) ->  | D167: =IF(LEFT(B167,2)=LEFT("FA",8),"",IFERROR(VLOOKUP(B167,#REF!,5,FALSE),"")) -> 
A168: =IF(B168="","",COUNTA($B$4:B168)) ->  | C168: =IF(B168="","",IF(LEFT(B168,2)=LEFT("FA",2),F168,INDEX(#REF!,MATCH(Levantamento_SEPROARQQQ!B168,#REF!,0),4))) ->  | D168: =IF(LEFT(B168,2)=LEFT("FA",8),"",IFERROR(VLOOKUP(B168,#REF!,5,FALSE),"")) -> 
A169: =IF(B169="","",COUNTA($B$4:B169)) ->  | C169: =IF(B169="","",IF(LEFT(B169,2)=LEFT("FA",2),F169,INDEX(#REF!,MATCH(Levantamento_SEPROARQQQ!B169,#REF!,0),4))) ->  | D169: =IF(LEFT(B169,2)=LEFT("FA",8),"",IFERROR(VLOOKUP(B169,#REF!,5,FALSE),"")) -> 
A170: =IF(B170="","",COUNTA($B$4:B170)) ->  | C170: =IF(B170="","",IF(LEFT(B170,2)=LEFT("FA",2),F170,INDEX(#REF!,MATCH(Levantamento_SEPROARQQQ!B170,#REF!,0),4))) ->  | D170: =IF(LEFT(B170,2)=LEFT("FA",8),"",IFERROR(VLOOKUP(B170,#REF!,5,FALSE),"")) -> 
A171: =IF(B171="","",COUNTA($B$4:B171)) ->  | C171: =IF(B171="","",IF(LEFT(B171,2)=LEFT("FA",2),F171,INDEX(#REF!,MATCH(Levantamento_SEPROARQQQ!B171,#REF!,0),4))) ->  | D171: =IF(LEFT(B171,2)=LEFT("FA",8),"",IFERROR(VLOOKUP(B171,#REF!,5,FALSE),"")) -> 
A172: =IF(B172="","",COUNTA($B$4:B172)) ->  | C172: =IF(B172="","",IF(LEFT(B172,2)=LEFT("FA",2),F172,INDEX(#REF!,MATCH(Levantamento_SEPROARQQQ!B172,#REF!,0),4))) ->  | D172: =IF(LEFT(B172,2)=LEFT("FA",8),"",IFERROR(VLOOKUP(B172,#REF!,5,FALSE),"")) -> 
A173: =IF(B173="","",COUNTA($B$4:B173)) ->  | C173: =IF(B173="","",IF(LEFT(B173,2)=LEFT("FA",2),F173,INDEX(#REF!,MATCH(Levantamento_SEPROARQQQ!B173,#REF!,0),4))) ->  | D173: =IF(LEFT(B173,2)=LEFT("FA",8),"",IFERROR(VLOOKUP(B173,#REF!,5,FALSE),"")) -> 
A174: =IF(B174="","",COUNTA($B$4:B174)) ->  | C174: =IF(B174="","",IF(LEFT(B174,2)=LEFT("FA",2),F174,INDEX(#REF!,MATCH(Levantamento_SEPROARQQQ!B174,#REF!,0),4))) ->  | D174: =IF(LEFT(B174,2)=LEFT("FA",8),"",IFERROR(VLOOKUP(B174,#REF!,5,FALSE),"")) -> 
A175: =IF(B175="","",COUNTA($B$4:B175)) ->  | C175: =IF(B175="","",IF(LEFT(B175,2)=LEFT("FA",2),F175,INDEX(#REF!,MATCH(Levantamento_SEPROARQQQ!B175,#REF!,0),4))) ->  | D175: =IF(LEFT(B175,2)=LEFT("FA",8),"",IFERROR(VLOOKUP(B175,#REF!,5,FALSE),"")) -> 
A176: =IF(B176="","",COUNTA($B$4:B176)) ->  | C176: =IF(B176="","",IF(LEFT(B176,2)=LEFT("FA",2),F176,INDEX(#REF!,MATCH(Levantamento_SEPROARQQQ!B176,#REF!,0),4))) ->  | D176: =IF(LEFT(B176,2)=LEFT("FA",8),"",IFERROR(VLOOKUP(B176,#REF!,5,FALSE),"")) -> 
A177: =IF(B177="","",COUNTA($B$4:B177)) ->  | C177: =IF(B177="","",IF(LEFT(B177,2)=LEFT("FA",2),F177,INDEX(#REF!,MATCH(Levantamento_SEPROARQQQ!B177,#REF!,0),4))) ->  | D177: =IF(LEFT(B177,2)=LEFT("FA",8),"",IFERROR(VLOOKUP(B177,#REF!,5,FALSE),"")) -> 
A178: =IF(B178="","",COUNTA($B$4:B178)) ->  | C178: =IF(B178="","",IF(LEFT(B178,2)=LEFT("FA",2),F178,INDEX(#REF!,MATCH(Levantamento_SEPROARQQQ!B178,#REF!,0),4))) ->  | D178: =IF(LEFT(B178,2)=LEFT("FA",8),"",IFERROR(VLOOKUP(B178,#REF!,5,FALSE),"")) -> 
A179: =IF(B179="","",COUNTA($B$4:B179)) ->  | C179: =IF(B179="","",IF(LEFT(B179,2)=LEFT("FA",2),F179,INDEX(#REF!,MATCH(Levantamento_SEPROARQQQ!B179,#REF!,0),4))) ->  | D179: =IF(LEFT(B179,2)=LEFT("FA",8),"",IFERROR(VLOOKUP(B179,#REF!,5,FALSE),"")) -> 
A180: =IF(B180="","",COUNTA($B$4:B180)) ->  | C180: =IF(B180="","",IF(LEFT(B180,2)=LEFT("FA",2),F180,INDEX(#REF!,MATCH(Levantamento_SEPROARQQQ!B180,#REF!,0),4))) ->  | D180: =IF(LEFT(B180,2)=LEFT("FA",8),"",IFERROR(VLOOKUP(B180,#REF!,5,FALSE),"")) -> 
A181: =IF(B181="","",COUNTA($B$4:B181)) ->  | C181: =IF(B181="","",IF(LEFT(B181,2)=LEFT("FA",2),F181,INDEX(#REF!,MATCH(Levantamento_SEPROARQQQ!B181,#REF!,0),4))) ->  | D181: =IF(LEFT(B181,2)=LEFT("FA",8),"",IFERROR(VLOOKUP(B181,#REF!,5,FALSE),"")) -> 
A182: =IF(B182="","",COUNTA($B$4:B182)) ->  | C182: =IF(B182="","",IF(LEFT(B182,2)=LEFT("FA",2),F182,INDEX(#REF!,MATCH(Levantamento_SEPROARQQQ!B182,#REF!,0),4))) ->  | D182: =IF(LEFT(B182,2)=LEFT("FA",8),"",IFERROR(VLOOKUP(B182,#REF!,5,FALSE),"")) -> 
A183: =IF(B183="","",COUNTA($B$4:B183)) ->  | C183: =IF(B183="","",IF(LEFT(B183,2)=LEFT("FA",2),F183,INDEX(#REF!,MATCH(Levantamento_SEPROARQQQ!B183,#REF!,0),4))) ->  | D183: =IF(LEFT(B183,2)=LEFT("FA",8),"",IFERROR(VLOOKUP(B183,#REF!,5,FALSE),"")) -> 
A184: =IF(B184="","",COUNTA($B$4:B184)) ->  | C184: =IF(B184="","",IF(LEFT(B184,2)=LEFT("FA",2),F184,INDEX(#REF!,MATCH(Levantamento_SEPROARQQQ!B184,#REF!,0),4))) ->  | D184: =IF(LEFT(B184,2)=LEFT("FA",8),"",IFERROR(VLOOKUP(B184,#REF!,5,FALSE),"")) -> 
A185: =IF(B185="","",COUNTA($B$4:B185)) ->  | C185: =IF(B185="","",IF(LEFT(B185,2)=LEFT("FA",2),F185,INDEX(#REF!,MATCH(Levantamento_SEPROARQQQ!B185,#REF!,0),4))) ->  | D185: =IF(LEFT(B185,2)=LEFT("FA",8),"",IFERROR(VLOOKUP(B185,#REF!,5,FALSE),"")) -> 
A186: =IF(B186="","",COUNTA($B$4:B186)) ->  | C186: =IF(B186="","",IF(LEFT(B186,2)=LEFT("FA",2),F186,INDEX(#REF!,MATCH(Levantamento_SEPROARQQQ!B186,#REF!,0),4))) ->  | D186: =IF(LEFT(B186,2)=LEFT("FA",8),"",IFERROR(VLOOKUP(B186,#REF!,5,FALSE),"")) -> 
A187: =IF(B187="","",COUNTA($B$4:B187)) ->  | C187: =IF(B187="","",IF(LEFT(B187,2)=LEFT("FA",2),F187,INDEX(#REF!,MATCH(Levantamento_SEPROARQQQ!B187,#REF!,0),4))) ->  | D187: =IF(LEFT(B187,2)=LEFT("FA",8),"",IFERROR(VLOOKUP(B187,#REF!,5,FALSE),"")) -> 
A188: =IF(B188="","",COUNTA($B$4:B188)) ->  | C188: =IF(B188="","",IF(LEFT(B188,2)=LEFT("FA",2),F188,INDEX(#REF!,MATCH(Levantamento_SEPROARQQQ!B188,#REF!,0),4))) ->  | D188: =IF(LEFT(B188,2)=LEFT("FA",8),"",IFERROR(VLOOKUP(B188,#REF!,5,FALSE),"")) -> 
A189: =IF(B189="","",COUNTA($B$4:B189)) ->  | C189: =IF(B189="","",IF(LEFT(B189,2)=LEFT("FA",2),F189,INDEX(#REF!,MATCH(Levantamento_SEPROARQQQ!B189,#REF!,0),4))) ->  | D189: =IF(LEFT(B189,2)=LEFT("FA",8),"",IFERROR(VLOOKUP(B189,#REF!,5,FALSE),"")) -> 
A190: =IF(B190="","",COUNTA($B$4:B190)) ->  | C190: =IF(B190="","",IF(LEFT(B190,2)=LEFT("FA",2),F190,INDEX(#REF!,MATCH(Levantamento_SEPROARQQQ!B190,#REF!,0),4))) ->  | D190: =IF(LEFT(B190,2)=LEFT("FA",8),"",IFERROR(VLOOKUP(B190,#REF!,5,FALSE),"")) -> 
A191: =IF(B191="","",COUNTA($B$4:B191)) ->  | C191: =IF(B191="","",IF(LEFT(B191,2)=LEFT("FA",2),F191,INDEX(#REF!,MATCH(Levantamento_SEPROARQQQ!B191,#REF!,0),4))) ->  | D191: =IF(LEFT(B191,2)=LEFT("FA",8),"",IFERROR(VLOOKUP(B191,#REF!,5,FALSE),"")) -> 
A192: =IF(B192="","",COUNTA($B$4:B192)) ->  | C192: =IF(B192="","",IF(LEFT(B192,2)=LEFT("FA",2),F192,INDEX(#REF!,MATCH(Levantamento_SEPROARQQQ!B192,#REF!,0),4))) ->  | D192: =IF(LEFT(B192,2)=LEFT("FA",8),"",IFERROR(VLOOKUP(B192,#REF!,5,FALSE),"")) -> 
A193: =IF(B193="","",COUNTA($B$4:B193)) ->  | C193: =IF(B193="","",IF(LEFT(B193,2)=LEFT("FA",2),F193,INDEX(#REF!,MATCH(Levantamento_SEPROARQQQ!B193,#REF!,0),4))) ->  | D193: =IF(LEFT(B193,2)=LEFT("FA",8),"",IFERROR(VLOOKUP(B193,#REF!,5,FALSE),"")) -> 
A194: =IF(B194="","",COUNTA($B$4:B194)) ->  | C194: =IF(B194="","",IF(LEFT(B194,2)=LEFT("FA",2),F194,INDEX(#REF!,MATCH(Levantamento_SEPROARQQQ!B194,#REF!,0),4))) ->  | D194: =IF(LEFT(B194,2)=LEFT("FA",8),"",IFERROR(VLOOKUP(B194,#REF!,5,FALSE),"")) -> 
A195: =IF(B195="","",COUNTA($B$4:B195)) ->  | C195: =IF(B195="","",IF(LEFT(B195,2)=LEFT("FA",2),F195,INDEX(#REF!,MATCH(Levantamento_SEPROARQQQ!B195,#REF!,0),4))) ->  | D195: =IF(LEFT(B195,2)=LEFT("FA",8),"",IFERROR(VLOOKUP(B195,#REF!,5,FALSE),"")) -> 
A196: =IF(B196="","",COUNTA($B$4:B196)) ->  | C196: =IF(B196="","",IF(LEFT(B196,2)=LEFT("FA",2),F196,INDEX(#REF!,MATCH(Levantamento_SEPROARQQQ!B196,#REF!,0),4))) ->  | D196: =IF(LEFT(B196,2)=LEFT("FA",8),"",IFERROR(VLOOKUP(B196,#REF!,5,FALSE),"")) -> 
A197: =IF(B197="","",COUNTA($B$4:B197)) ->  | C197: =IF(B197="","",IF(LEFT(B197,2)=LEFT("FA",2),F197,INDEX(#REF!,MATCH(Levantamento_SEPROARQQQ!B197,#REF!,0),4))) ->  | D197: =IF(LEFT(B197,2)=LEFT("FA",8),"",IFERROR(VLOOKUP(B197,#REF!,5,FALSE),"")) -> 
A198: =IF(B198="","",COUNTA($B$4:B198)) ->  | C198: =IF(B198="","",IF(LEFT(B198,2)=LEFT("FA",2),F198,INDEX(#REF!,MATCH(Levantamento_SEPROARQQQ!B198,#REF!,0),4))) ->  | D198: =IF(LEFT(B198,2)=LEFT("FA",8),"",IFERROR(VLOOKUP(B198,#REF!,5,FALSE),"")) -> 
A199: =IF(B199="","",COUNTA($B$4:B199)) ->  | C199: =IF(B199="","",IF(LEFT(B199,2)=LEFT("FA",2),F199,INDEX(#REF!,MATCH(Levantamento_SEPROARQQQ!B199,#REF!,0),4))) ->  | D199: =IF(LEFT(B199,2)=LEFT("FA",8),"",IFERROR(VLOOKUP(B199,#REF!,5,FALSE),"")) -> 
A200: =IF(B200="","",COUNTA($B$4:B200)) ->  | C200: =IF(B200="","",IF(LEFT(B200,2)=LEFT("FA",2),F200,INDEX(#REF!,MATCH(Levantamento_SEPROARQQQ!B200,#REF!,0),4))) ->  | D200: =IF(LEFT(B200,2)=LEFT("FA",8),"",IFERROR(VLOOKUP(B200,#REF!,5,FALSE),"")) -> 
A201: =IF(B201="","",COUNTA($B$4:B201)) ->  | C201: =IF(B201="","",IF(LEFT(B201,2)=LEFT("FA",2),F201,INDEX(#REF!,MATCH(Levantamento_SEPROARQQQ!B201,#REF!,0),4))) ->  | D201: =IF(LEFT(B201,2)=LEFT("FA",8),"",IFERROR(VLOOKUP(B201,#REF!,5,FALSE),"")) -> 
... 298 more rows

Sheet Cálculo de Hh e Prazo (hidden)
A1: Número-SF | B1: Discriminação | C1: Qtd. | D1: Composição do Hh
D2: Engenheiro civil de obra júnior com encargos complementares | E2: Mestre de obras com encargos complementares | F2: Engenheiro Civil de Obra Pleno | G2: Engenheiro de Segurança do Trabalho | H2: Pedreiro com Encargos Complementares | I2: Servente com Encargos Complementares | J2: Gesseiro com encargos complementares | K2: Eletricista com encargos complementares | L2: Azulejista ou ladrilhista com encargos complementares | M2: Encanador ou Bombeiro Hidráulico com Encargos Complementares | N2: Carpinteiro de esquadria com encargos complementares | O2: Ajudante especializado com encargos complementares | P2: Ajudante de operação em geral com encargos complementares | Q2: Marmorista/graniteiro com encargos complementares | R2: Montador de estrutura metálica com encargos complementares | S2: Auxiliar de eletricista com encargos complementares | T2: Montador eletromecânico com encargos complementares | U2: Vidraceiro com encargos complementares | V2: Ajudante de carpinteiro com encargos complementares | W2: Carpinteiro de formas com encargos complementares | X2: Pintor com encargos complementares | Y2: Auxiliar de encanador ou bombeiro hidráulico com encargos complementares | Z2: Operador de betoneira estacionária/misturador com encargos complementares | AA2: Impermeabilizador com encargos complementares | AB2: Ajudante de Pedreiro com Encargos Complementares | AC2: Marceneiro com encargos complementares | AD2: Serralheiro com encargos complementares | AE2: Auxiliar de serralheiro com encargos complementares | AG2: Subtotal Profissional | AH2: Subtotal Auxiliar | AI2: Total Hh | AJ2: Hh Total Engenheiro | AK2: Hh Total Mestre | AL2: Coef. Engenheiro | AM2: Coef. Mestre
A3: 1 | B3: =VLOOKUP(A3,#REF!,5,FALSE) ->  | C3: =IFERROR(VLOOKUP(A3,#REF!,7,FALSE),0) -> 0 | AG3: =SUM(H3,J3,K3,L3,M3,N3,Q3,R3,T3,U3,W3,X3,Z3,AA3,AC3,AD3) -> 0 | AH3: =SUM(O3,P3,S3,V3,Y3,AB3,AE3)+I3 -> 0 | AI3: =AG3+AH3 -> 0 | AJ3: 0 | AK3: 0 | AL3: 0 | AM3: 0
A4: 2 | B4: =VLOOKUP(A4,#REF!,5,FALSE) ->  | C4: =IFERROR(VLOOKUP(A4,#REF!,7,FALSE),0) -> 0 | AG4: =SUM(H4,J4,K4,L4,M4,N4,Q4,R4,T4,U4,W4,X4,Z4,AA4,AC4,AD4) -> 0 | AH4: =SUM(O4,P4,S4,V4,Y4,AB4,AE4)+I4 -> 0 | AI4: =AG4+AH4 -> 0 | AJ4: 0 | AK4: 0 | AL4: 0 | AM4: 0
A5: 3 | B5: =VLOOKUP(A5,#REF!,5,FALSE) ->  | C5: =IFERROR(VLOOKUP(A5,#REF!,7,FALSE),0) -> 0 | F5: =C5*16 -> 0 | AG5: 0 | AH5: 0 | AI5: 0 | AJ5: 0 | AK5: 0 | AL5: 0 | AM5: 0
A6: 4 | B6: =VLOOKUP(A6,#REF!,5,FALSE) ->  | C6: =IFERROR(VLOOKUP(A6,#REF!,7,FALSE),0) -> 0 | G6: =C6*20 -> 0 | AG6: 0 | AH6: 0 | AI6: 0 | AJ6: 0 | AK6: 0 | AL6: 0 | AM6: 0
A7: 5 | B7: =VLOOKUP(A7,#REF!,5,FALSE) ->  | C7: =IFERROR(VLOOKUP(A7,#REF!,7,FALSE),0) -> 0 | D7: =IFERROR(AL7*C7,0) -> 0 | E7: =IFERROR(AM7*C7,0) -> 0 | H7: =C7*0.225 -> 0 | I7: =C7*2.3248 -> 0 | AG7: 0 | AH7: 0 | AI7: 0 | AJ7: 3.735179458 | AK7: 7.470358915 | AL7: 0.07470358915 | AM7: 0.1494071783
A8: 6 | B8: =VLOOKUP(A8,#REF!,5,FALSE) ->  | C8: =IFERROR(VLOOKUP(A8,#REF!,7,FALSE),0) -> 0 | D8: =IFERROR(AL8*C8,0) -> 0 | E8: =IFERROR(AM8*C8,0) -> 0 | H8: =C8*1.3 -> 0 | I8: =C8*13 -> 0 | AG8: 0 | AH8: 0 | AI8: 0 | AJ8: 8.379177386 | AK8: 16.75835477 | AL8: 0.4189588693 | AM8: 0.8379177386
A9: 7 | B9: =VLOOKUP(A9,#REF!,5,FALSE) ->  | C9: =IFERROR(VLOOKUP(A9,#REF!,7,FALSE),0) -> 0 | D9: 0 | E9: 0 | I9: =C9*0.7 -> 0 | AG9: 0 | AH9: 0 | AI9: 0 | AJ9: 13.00237386 | AK9: 26.00474772 | AL9: 0.02050847612 | AM9: 0.04101695224
A10: 8 | B10: =VLOOKUP(A10,#REF!,5,FALSE) ->  | C10: =IFERROR(VLOOKUP(A10,#REF!,7,FALSE),0) -> 0 | D10: 0 | E10: 0 | I10: =C10*0.3515 -> 0 | AG10: 0 | AH10: 0 | AI10: 0 | AJ10: 1.029818479 | AK10: 2.059636959 | AL10: 0.01029818479 | AM10: 0.02059636959
A11: 9 | B11: =VLOOKUP(A11,#REF!,5,FALSE) ->  | C11: =IFERROR(VLOOKUP(A11,#REF!,7,FALSE),0) -> 0 | D11: 0 | E11: 0 | I11: =C11*0.1401 -> 0 | J11: =C11*0.0713 -> 0 | AG11: 0 | AH11: 0 | AI11: 0 | AJ11: 20.4387473 | AK11: 40.8774946 | AL11: 0.006193559788 | AM11: 0.01238711958
A12: 10 | B12: =VLOOKUP(A12,#REF!,5,FALSE) ->  | C12: =IFERROR(VLOOKUP(A12,#REF!,7,FALSE),0) -> 0 | D12: 0 | E12: 0 | I12: =C12*0.094 -> 0 | K12: =C12*0.048 -> 0 | AG12: 0 | AH12: 0 | AI12: 0 | AJ12: 20.80145435 | AK12: 41.6029087 | AL12: 0.00416029087 | AM12: 0.00832058174
A13: 11 | B13: =VLOOKUP(A13,#REF!,5,FALSE) ->  | C13: =IFERROR(VLOOKUP(A13,#REF!,7,FALSE),0) -> 0 | D13: 0 | E13: 0 | I13: =C13*0.2972 -> 0 | L13: =C13*0.1055 -> 0 | AG13: 0 | AH13: 0 | AI13: 0 | AJ13: 4.011399333 | AK13: 8.022798666 | AL13: 0.01179823333 | AM13: 0.02359646667
A14: 12 | B14: =VLOOKUP(A14,#REF!,5,FALSE) ->  | C14: =IFERROR(VLOOKUP(A14,#REF!,7,FALSE),0) -> 0 | D14: 0 | E14: 0 | H14: =C14*0.0374 -> 0 | I14: =C14*0.1053 -> 0 | AG14: 0 | AH14: 0 | AI14: 0 | AJ14: 8.361598692 | AK14: 16.72319738 | AL14: 0.004180799346 | AM14: 0.008361598692
A15: 13 | B15: =VLOOKUP(A15,#REF!,5,FALSE) ->  | C15: =IFERROR(VLOOKUP(A15,#REF!,7,FALSE),0) -> 0 | D15: 0 | E15: 0 | I15: =C15*0.014 -> 0 | M15: =C15*0.0071 -> 0 | AG15: 0 | AH15: 0 | AI15: 0 | AJ15: 0.06181840659 | AK15: 0.1236368132 | AL15: 0.0006181840659 | AM15: 0.001236368132
A16: 14 | B16: =VLOOKUP(A16,#REF!,5,FALSE) ->  | C16: =IFERROR(VLOOKUP(A16,#REF!,7,FALSE),0) -> 0 | D16: 0 | E16: 0 | H16: =C16*0.6366 -> 0 | I16: =C16*6.5785 -> 0 | AG16: 0 | AH16: 0 | AI16: 0 | AJ16: 2.113867229 | AK16: 4.227734458 | AL16: 0.2113867229 | AM16: 0.4227734458
A17: 15 | B17: =VLOOKUP(A17,#REF!,5,FALSE) ->  | C17: =IFERROR(VLOOKUP(A17,#REF!,7,FALSE),0) -> 0 | D17: 0 | E17: 0 | AG17: 0 | AH17: 0 | AI17: 0 | AJ17: 0 | AK17: 0 | AL17: 0 | AM17: 0
A18: 16 | B18: =VLOOKUP(A18,#REF!,5,FALSE) ->  | C18: =IFERROR(VLOOKUP(A18,#REF!,7,FALSE),0) -> 0 | D18: 0 | E18: 0 | I18: =C18*0.35 -> 0 | N18: =C18*0.35 -> 0 | AG18: 0 | AH18: 0 | AI18: 0 | AJ18: 4.922034268 | AK18: 9.844068537 | AL18: 0.02050847612 | AM18: 0.04101695224
A19: 17 | B19: =VLOOKUP(A19,#REF!,5,FALSE) ->  | C19: =IFERROR(VLOOKUP(A19,#REF!,7,FALSE),0) -> 0 | D19: 0 | E19: 0 | H19: =C19*0.15 -> 0 | I19: =C19*1 -> 0 | AG19: 0 | AH19: 0 | AI19: 0 | AJ19: 1.347699859 | AK19: 2.695399718 | AL19: 0.03369249648 | AM19: 0.06738499296
A20: 18 | B20: =VLOOKUP(A20,#REF!,5,FALSE) ->  | C20: =IFERROR(VLOOKUP(A20,#REF!,7,FALSE),0) -> 0 | D20: 0 | E20: 0 | H20: =C20*0.09205 -> 0 | I20: =C20*0.18074 -> 0 | AG20: 0 | AH20: 0 | AI20: 0 | AJ20: 0.3436625852 | AK20: 0.6873251703 | AL20: 0.007992153143 | AM20: 0.01598430629
A21: 19 | B21: =VLOOKUP(A21,#REF!,5,FALSE) ->  | C21: =IFERROR(VLOOKUP(A21,#REF!,7,FALSE),0) -> 0 | D21: 0 | E21: 0 | I21: =C21*0.15 -> 0 | K21: =C21*0.075 -> 0 | AG21: 0 | AH21: 0 | AI21: 0 | AJ21: 1.977603054 | AK21: 3.955206109 | AL21: 0.006592010181 | AM21: 0.01318402036
A22: 20 | B22: =VLOOKUP(A22,#REF!,5,FALSE) ->  | C22: =IFERROR(VLOOKUP(A22,#REF!,7,FALSE),0) -> 0 | D22: 0 | E22: 0 | H22: =C22*0.01 -> 0 | I22: =C22*0.1 -> 0 | AG22: 0 | AH22: 0 | AI22: 0 | AJ22: 1.289104213 | AK22: 2.578208426 | AL22: 0.003222760533 | AM22: 0.006445521066
A23: 21 | B23: =VLOOKUP(A23,#REF!,5,FALSE) ->  | C23: =IFERROR(VLOOKUP(A23,#REF!,7,FALSE),0) -> 0 | D23: 0 | E23: 0 | O23: =C23*0.17 -> 0 | AG23: 0 | AH23: 0 | AI23: 0 | AJ23: 0.2490314957 | AK23: 0.4980629915 | AL23: 0.004980629915 | AM23: 0.009961259829
A24: 22 | B24: =VLOOKUP(A24,#REF!,5,FALSE) ->  | C24: =IFERROR(VLOOKUP(A24,#REF!,7,FALSE),0) -> 0 | D24: 0 | E24: 0 | I24: =C24*0.6 -> 0 | P24: =C24*0.6 -> 0 | AG24: 0 | AH24: 0 | AI24: 0 | AJ24: 4.218886516 | AK24: 8.437773032 | AL24: 0.03515738763 | AM24: 0.07031477526
A25: 23 | B25: =VLOOKUP(A25,#REF!,5,FALSE) ->  | C25: =IFERROR(VLOOKUP(A25,#REF!,7,FALSE),0) -> 0 | D25: 0 | E25: 0 | I25: =C25*1.2 -> 0 | Q25: =C25*0.6 -> 0 | AG25: 0 | AH25: 0 | AI25: 0 | AJ25: 3.164164887 | AK25: 6.328329774 | AL25: 0.05273608145 | AM25: 0.1054721629
A26: 24 | B26: =VLOOKUP(A26,#REF!,5,FALSE) ->  | C26: =IFERROR(VLOOKUP(A26,#REF!,7,FALSE),0) -> 0 | D26: 0 | E26: 0 | N26: =C26*1.2 -> 0 | AG26: 0 | AH26: 0 | AI26: 0 | AJ26: 48.76329665 | AK26: 97.52659329 | AL26: 0.03515738763 | AM26: 0.07031477526
A27: 25 | B27: =VLOOKUP(A27,#REF!,5,FALSE) ->  | C27: =IFERROR(VLOOKUP(A27,#REF!,7,FALSE),0) -> 0 | D27: 0 | E27: 0 | I27: =C27*0.3 -> 0 | M27: =C27*0.175 -> 0 | AG27: 0 | AH27: 0 | AI27: 0 | AJ27: 27.83293188 | AK27: 55.66586375 | AL27: 0.01391646594 | AM27: 0.02783293188
A28: 26 | B28: =VLOOKUP(A28,#REF!,5,FALSE) ->  | C28: =IFERROR(VLOOKUP(A28,#REF!,7,FALSE),0) -> 0 | D28: 0 | E28: 0 | H28: =C28*0.05 -> 0 | I28: =C28*0.5 -> 0 | AG28: 0 | AH28: 0 | AI28: 0 | AJ28: 1.611380266 | AK28: 3.222760533 | AL28: 0.01611380266 | AM28: 0.03222760533
A29: 27 | B29: =VLOOKUP(A29,#REF!,5,FALSE) ->  | C29: =IFERROR(VLOOKUP(A29,#REF!,7,FALSE),0) -> 0 | D29: 0 | E29: 0 | H29: =C29*0.5 -> 0 | I29: =C29*0.5 -> 0 | AG29: 0 | AH29: 0 | AI29: 0 | AJ29: 0.5859564605 | AK29: 1.171912921 | AL29: 0.02929782303 | AM29: 0.05859564605
A30: 28 | B30: =VLOOKUP(A30,#REF!,5,FALSE) ->  | C30: =IFERROR(VLOOKUP(A30,#REF!,7,FALSE),0) -> 0 | D30: 0 | E30: 0 | N30: =C30*0.25 -> 0 | AG30: 0 | AH30: 0 | AI30: 0 | AJ30: 0.7397700314 | AK30: 1.479540063 | AL30: 0.007324455757 | AM30: 0.01464891151
A31: 29 | B31: =VLOOKUP(A31,#REF!,5,FALSE) ->  | C31: =IFERROR(VLOOKUP(A31,#REF!,7,FALSE),0) -> 0 | D31: 0 | E31: 0 | H31: =C31*0.1315 -> 0 | I31: =C31*0.2582 -> 0 | AG31: 0 | AH31: 0 | AI31: 0 | AJ31: 0.9362236539 | AK31: 1.872447308 | AL31: 0.01141736163 | AM31: 0.02283472327
A32: 30 | B32: =VLOOKUP(A32,#REF!,5,FALSE) ->  | C32: =IFERROR(VLOOKUP(A32,#REF!,7,FALSE),0) -> 0 | D32: 0 | E32: 0 | H32: =C32*0.09 -> 0 | I32: =C32*0.9 -> 0 | AG32: 0 | AH32: 0 | AI32: 0 | AJ32: 29.0048448 | AK32: 58.00968959 | AL32: 0.0290048448 | AM32: 0.05800968959
A33: 31 | B33: =VLOOKUP(A33,#REF!,5,FALSE) ->  | C33: =IFERROR(VLOOKUP(A33,#REF!,7,FALSE),0) -> 0 | D33: 0 | E33: 0 | I33: =C33*0.3448 -> 0 | M33: =C33*0.1755 -> 0 | AG33: 0 | AH33: 0 | AI33: 0 | AJ33: 1.829238878 | AK33: 3.658477757 | AL33: 0.01524365732 | AM33: 0.03048731464
A34: 32 | B34: =VLOOKUP(A34,#REF!,5,FALSE) ->  | C34: =IFERROR(VLOOKUP(A34,#REF!,7,FALSE),0) -> 0 | D34: 0 | E34: 0 | I34: =C34*0.1795 -> 0 | K34: =C34*0.0915 -> 0 | AG34: 0 | AH34: 0 | AI34: 0 | AJ34: 3.96985502 | AK34: 7.93971004 | AL34: 0.00793971004 | AM34: 0.01587942008
A35: 33 | B35: =VLOOKUP(A35,#REF!,5,FALSE) ->  | C35: =IFERROR(VLOOKUP(A35,#REF!,7,FALSE),0) -> 0 | D35: 0 | E35: 0 | I35: =C35*0.2514 -> 0 | M35: =C35*0.128 -> 0 | AG35: 0 | AH35: 0 | AI35: 0 | AJ35: 3.334678217 | AK35: 6.669356434 | AL35: 0.01111559406 | AM35: 0.02223118811
A36: 34 | B36: =VLOOKUP(A36,#REF!,5,FALSE) ->  | C36: =IFERROR(VLOOKUP(A36,#REF!,7,FALSE),0) -> 0 | D36: 0 | E36: 0 | H36: =C36*0.35 -> 0 | I36: =C36*0.35 -> 0 | AG36: 0 | AH36: 0 | AI36: 0 | AJ36: 12.01796701 | AK36: 24.03593401 | AL36: 0.02050847612 | AM36: 0.04101695224
A37: 35 | B37: =VLOOKUP(A37,#REF!,5,FALSE) ->  | C37: =IFERROR(VLOOKUP(A37,#REF!,7,FALSE),0) -> 0 | D37: 0 | E37: 0 | AG37: 0 | AH37: 0 | AI37: 0 | AJ37: 0 | AK37: 0 | AL37: 0 | AM37: 0
A38: 36 | B38: =VLOOKUP(A38,#REF!,5,FALSE) ->  | C38: =IFERROR(VLOOKUP(A38,#REF!,7,FALSE),0) -> 0 | D38: 0 | E38: 0 | O38: =C38*0.166666666666667 -> 0 | AG38: 0 | AH38: 0 | AI38: 0 | AJ38: 0.9082325138 | AK38: 1.816465028 | AL38: 0.004882970504 | AM38: 0.009765941009
A39: 37 | B39: =VLOOKUP(A39,#REF!,5,FALSE) ->  | C39: =IFERROR(VLOOKUP(A39,#REF!,7,FALSE),0) -> 0 | D39: 0 | E39: 0 | I39: =C39*0.4 -> 0 | AG39: 0 | AH39: 0 | AI39: 0 | AJ39: 67.97094942 | AK39: 135.9418988 | AL39: 0.01171912921 | AM39: 0.02343825842
A40: 38 | B40: =VLOOKUP(A40,#REF!,5,FALSE) ->  | C40: =IFERROR(VLOOKUP(A40,#REF!,7,FALSE),0) -> 0 | D40: 0 | E40: 0 | I40: =C40*0.1521 -> 0 | R40: =C40*0.0774 -> 0 | AG40: 0 | AH40: 0 | AI40: 0 | AJ40: 5.58751967 | AK40: 11.17503934 | AL40: 0.006723850385 | AM40: 0.01344770077
A41: 39 | B41: =VLOOKUP(A41,#REF!,5,FALSE) ->  | C41: =IFERROR(VLOOKUP(A41,#REF!,7,FALSE),0) -> 0 | D41: 0 | E41: 0 | H41: =C41*1 -> 0 | I41: =C41*1 -> 0 | K41: =C41*0.5 -> 0 | S41: =C41*0.5 -> 0 | AG41: 0 | AH41: 0 | AI41: 0 | AJ41: 2.636804072 | AK41: 5.273608145 | AL41: 0.08789346908 | AM41: 0.1757869382
A42: 40 | B42: =VLOOKUP(A42,#REF!,5,FALSE) ->  | C42: =IFERROR(VLOOKUP(A42,#REF!,7,FALSE),0) -> 0 | D42: 0 | E42: 0 | I42: =C42*0.2 -> 0 | AG42: 0 | AH42: 0 | AI42: 0 | AJ42: 2.578208426 | AK42: 5.156416853 | AL42: 0.005859564605 | AM42: 0.01171912921
A43: 41 | B43: =VLOOKUP(A43,#REF!,5,FALSE) ->  | C43: =IFERROR(VLOOKUP(A43,#REF!,7,FALSE),0) -> 0 | D43: 0 | E43: 0 | I43: =C43*0.437 -> 0 | AG43: 0 | AH43: 0 | AI43: 0 | AJ43: 4.263448505 | AK43: 8.526897009 | AL43: 0.01280314866 | AM43: 0.02560629733
A44: 42 | B44: =VLOOKUP(A44,#REF!,5,FALSE) ->  | C44: =IFERROR(VLOOKUP(A44,#REF!,7,FALSE),0) -> 0 | D44: 0 | E44: 0 | I44: =C44*0.025 -> 0 | N44: =C44*0.25 -> 0 | AG44: 0 | AH44: 0 | AI44: 0 | AJ44: 0.08056901332 | AK44: 0.1611380266 | AL44: 0.008056901332 | AM44: 0.01611380266
A45: 43 | B45: =VLOOKUP(A45,#REF!,5,FALSE) ->  | C45: =IFERROR(VLOOKUP(A45,#REF!,7,FALSE),0) -> 0 | D45: 0 | E45: 0 | I45: =C45*0.55 -> 0 | AG45: 0 | AH45: 0 | AI45: 0 | AJ45: 0.3222760533 | AK45: 0.6445521066 | AL45: 0.01611380266 | AM45: 0.03222760533
A46: 44 | B46: =VLOOKUP(A46,#REF!,5,FALSE) ->  | C46: =IFERROR(VLOOKUP(A46,#REF!,7,FALSE),0) -> 0 | D46: 0 | E46: 0 | P46: =C46*1 -> 0 | T46: =C46*1 -> 0 | AG46: 0 | AH46: 0 | AI46: 0 | AJ46: 11.71912921 | AK46: 23.43825842 | AL46: 0.05859564605 | AM46: 0.1171912921
A47: 45 | B47: =VLOOKUP(A47,#REF!,5,FALSE) ->  | C47: =IFERROR(VLOOKUP(A47,#REF!,7,FALSE),0) -> 0 | D47: 0 | E47: 0 | I47: =C47*0.2 -> 0 | U47: =C47*0.5 -> 0 | AG47: 0 | AH47: 0 | AI47: 0 | AJ47: 1.086949234 | AK47: 2.173898469 | AL47: 0.02050847612 | AM47: 0.04101695224
A48: 46 | B48: =VLOOKUP(A48,#REF!,5,FALSE) ->  | C48: =IFERROR(VLOOKUP(A48,#REF!,7,FALSE),0) -> 0 | D48: 0 | E48: 0 | I48: =C48*1 -> 0 | AG48: 0 | AH48: 0 | AI48: 0 | AJ48: 34.789114 | AK48: 69.57822799 | AL48: 0.02929782303 | AM48: 0.05859564605
A49: 47 | B49: =VLOOKUP(A49,#REF!,5,FALSE) ->  | C49: =IFERROR(VLOOKUP(A49,#REF!,7,FALSE),0) -> 0 | D49: 0 | E49: 0 | R49: =0.17*C49 -> 0 | AG49: 0 | AH49: 0 | AI49: 0 | AJ49: 0.02490314957 | AK49: 0.04980629915 | AL49: 0.004980629915 | AM49: 0.009961259829
A50: 48 | B50: =VLOOKUP(A50,#REF!,5,FALSE) ->  | C50: =IFERROR(VLOOKUP(A50,#REF!,7,FALSE),0) -> 0 | D50: 0 | E50: 0 | AG50: 0 | AH50: 0 | AI50: 0 | AJ50: 0 | AK50: 0 | AL50: 0 | AM50: 0
A51: 49 | B51: =VLOOKUP(A51,#REF!,5,FALSE) ->  | C51: =IFERROR(VLOOKUP(A51,#REF!,7,FALSE),0) -> 0 | D51: 0 | E51: 0 | AG51: 0 | AH51: 0 | AI51: 0 | AJ51: 0 | AK51: 0 | AL51: 0 | AM51: 0
A52: 50 | B52: =VLOOKUP(A52,#REF!,5,FALSE) ->  | C52: =IFERROR(VLOOKUP(A52,#REF!,7,FALSE),0) -> 0 | D52: 0 | E52: 0 | R52: =0.1667*C52 -> 0 | AG52: 0 | AH52: 0 | AI52: 0 | AJ52: 1.367505188 | AK52: 2.735010375 | AL52: 0.004883947099 | AM52: 0.009767894197
A53: 51 | B53: =VLOOKUP(A53,#REF!,5,FALSE) ->  | C53: =IFERROR(VLOOKUP(A53,#REF!,7,FALSE),0) -> 0 | D53: 0 | E53: 0 | R53: =0.05*C53 -> 0 | AG53: 0 | AH53: 0 | AI53: 0 | AJ53: 0.1230508567 | AK53: 0.2461017134 | AL53: 0.001464891151 | AM53: 0.002929782303
A54: 52 | B54: =VLOOKUP(A54,#REF!,5,FALSE) ->  | C54: =IFERROR(VLOOKUP(A54,#REF!,7,FALSE),0) -> 0 | D54: 0 | E54: 0 | O54: =0.5*C54 -> 0 | R54: =0.5*C54 -> 0 | AG54: 0 | AH54: 0 | AI54: 0 | AJ54: 0.8203390447 | AK54: 1.640678089 | AL54: 0.02929782303 | AM54: 0.05859564605
A55: 53 | B55: =VLOOKUP(A55,#REF!,5,FALSE) ->  | C55: =IFERROR(VLOOKUP(A55,#REF!,7,FALSE),0) -> 0 | D55: 0 | E55: 0 | AG55: 0 | AH55: 0 | AI55: 0 | AJ55: 0 | AK55: 0 | AL55: 0 | AM55: 0
A56: 54 | B56: =VLOOKUP(A56,#REF!,5,FALSE) ->  | C56: =IFERROR(VLOOKUP(A56,#REF!,7,FALSE),0) -> 0 | D56: 0 | E56: 0 | AG56: 0 | AH56: 0 | AI56: 0 | AJ56: 0 | AK56: 0 | AL56: 0 | AM56: 0
A57: 55 | B57: =VLOOKUP(A57,#REF!,5,FALSE) ->  | C57: =IFERROR(VLOOKUP(A57,#REF!,7,FALSE),0) -> 0 | D57: 0 | E57: 0 | AG57: 0 | AH57: 0 | AI57: 0 | AJ57: 0 | AK57: 0 | AL57: 0 | AM57: 0
A58: 56 | B58: =VLOOKUP(A58,#REF!,5,FALSE) ->  | C58: =IFERROR(VLOOKUP(A58,#REF!,7,FALSE),0) -> 0 | D58: 0 | E58: 0 | AG58: 0 | AH58: 0 | AI58: 0 | AJ58: 0 | AK58: 0 | AL58: 0 | AM58: 0
A59: 57 | B59: =VLOOKUP(A59,#REF!,5,FALSE) ->  | C59: =IFERROR(VLOOKUP(A59,#REF!,7,FALSE),0) -> 0 | D59: 0 | E59: 0 | V59: =C59*0.53 -> 0 | W59: =C59*0.44 -> 0 | AG59: 0 | AH59: 0 | AI59: 0 | AJ59: 7.957288734 | AK59: 15.91457747 | AL59: 0.02841888834 | AM59: 0.05683777667
A60: 58 | B60: =VLOOKUP(A60,#REF!,5,FALSE) ->  | C60: =IFERROR(VLOOKUP(A60,#REF!,7,FALSE),0) -> 0 | D60: 0 | E60: 0 | O60: =0.333*C60 -> 0 | R60: =0.3333*C60 -> 0 | AG60: 0 | AH60: 0 | AI60: 0 | AJ60: 0.09760569741 | AK60: 0.1952113948 | AL60: 0.01952113948 | AM60: 0.03904227897
A61: 59 | B61: =VLOOKUP(A61,#REF!,5,FALSE) ->  | C61: =IFERROR(VLOOKUP(A61,#REF!,7,FALSE),0) -> 0 | D61: 0 | E61: 0 | AG61: 0 | AH61: 0 | AI61: 0 | AJ61: 0 | AK61: 0 | AL61: 0 | AM61: 0
A62: 60 | B62: =VLOOKUP(A62,#REF!,5,FALSE) ->  | C62: =IFERROR(VLOOKUP(A62,#REF!,7,FALSE),0) -> 0 | D62: 0 | E62: 0 | AG62: 0 | AH62: 0 | AI62: 0 | AJ62: 0 | AK62: 0 | AL62: 0 | AM62: 0
A63: 61 | B63: =VLOOKUP(A63,#REF!,5,FALSE) ->  | C63: =IFERROR(VLOOKUP(A63,#REF!,7,FALSE),0) -> 0 | D63: 0 | E63: 0 | O63: =0.0833*C63 -> 0 | R63: =0.0833*C63 -> 0 | AG63: 0 | AH63: 0 | AI63: 0 | AJ63: 0.06833424243 | AK63: 0.1366684849 | AL63: 0.004881017316 | AM63: 0.009762034632
A64: 62 | B64: =VLOOKUP(A64,#REF!,5,FALSE) ->  | C64: =IFERROR(VLOOKUP(A64,#REF!,7,FALSE),0) -> 0 | D64: 0 | E64: 0 | O64: =0.5*C64 -> 0 | R64: =0.5*C64 -> 0 | AG64: 0 | AH64: 0 | AI64: 0 | AJ64: 0.4101695224 | AK64: 0.8203390447 | AL64: 0.02929782303 | AM64: 0.05859564605
A65: 63 | B65: =VLOOKUP(A65,#REF!,5,FALSE) ->  | C65: =IFERROR(VLOOKUP(A65,#REF!,7,FALSE),0) -> 0 | D65: 0 | E65: 0 | AG65: 0 | AH65: 0 | AI65: 0 | AJ65: 0 | AK65: 0 | AL65: 0 | AM65: 0
A66: 64 | B66: =VLOOKUP(A66,#REF!,5,FALSE) ->  | C66: =IFERROR(VLOOKUP(A66,#REF!,7,FALSE),0) -> 0 | D66: 0 | E66: 0 | AG66: 0 | AH66: 0 | AI66: 0 | AJ66: 0 | AK66: 0 | AL66: 0 | AM66: 0
A67: 65 | B67: =VLOOKUP(A67,#REF!,5,FALSE) ->  | C67: =IFERROR(VLOOKUP(A67,#REF!,7,FALSE),0) -> 0 | D67: 0 | E67: 0 | O67: =0.0833*C67 -> 0 | R67: =0.0833*C67 -> 0 | AG67: 0 | AH67: 0 | AI67: 0 | AJ67: 0.04881017316 | AK67: 0.09762034632 | AL67: 0.004881017316 | AM67: 0.009762034632
A68: 66 | B68: =VLOOKUP(A68,#REF!,5,FALSE) ->  | C68: =IFERROR(VLOOKUP(A68,#REF!,7,FALSE),0) -> 0 | D68: 0 | E68: 0 | O68: =0.5*C68 -> 0 | R68: =0.5*C68 -> 0 | AG68: =SUM(H68,J68,K68,L68,M68,N68,Q68,R68,T68,U68,W68,X68,Z68,AA68,AC68,AD68) -> 0 | AH68: =SUM(O68,P68,S68,V68,Y68,AB68,AE68)+I68 -> 0 | AI68: =AG68+AH68 -> 0 | AJ68: 0.9375303368 | AK68: 1.875060674 | AL68: 0.02929782303 | AM68: 0.05859564605
A69: 67 | B69: =VLOOKUP(A69,#REF!,5,FALSE) ->  | C69: =IFERROR(VLOOKUP(A69,#REF!,7,FALSE),0) -> 0 | D69: 0 | E69: 0 | AG69: 0 | AH69: 0 | AI69: 0 | AJ69: 0 | AK69: 0 | AL69: 0 | AM69: 0
A70: 68 | B70: =VLOOKUP(A70,#REF!,5,FALSE) ->  | C70: =IFERROR(VLOOKUP(A70,#REF!,7,FALSE),0) -> 0 | D70: 0 | E70: 0 | AG70: 0 | AH70: 0 | AI70: 0 | AJ70: 0 | AK70: 0 | AL70: 0 | AM70: 0
A71: 69 | B71: =VLOOKUP(A71,#REF!,5,FALSE) ->  | C71: =IFERROR(VLOOKUP(A71,#REF!,7,FALSE),0) -> 0 | D71: 0 | E71: 0 | O71: =0.3333*C71 -> 0 | R71: =0.3333*C71 -> 0 | AG71: 0 | AH71: 0 | AI71: 0 | AJ71: 0.3320087901 | AK71: 0.6640175802 | AL71: 0.01952992883 | AM71: 0.03905985766
A72: 70 | B72: =VLOOKUP(A72,#REF!,5,FALSE) ->  | C72: =IFERROR(VLOOKUP(A72,#REF!,7,FALSE),0) -> 0 | D72: =IFERROR(AL72*C72,0) -> 0 | E72: =IFERROR(AM72*C72,0) -> 0 | I72: =C72*0.95 -> 0 | W72: =C72*0.8 -> 0 | X72: =C72*0.3 -> 0 | AG72: 0 | AH72: 0 | AI72: 0 | AJ72: 3.303329546 | AK72: 6.606659092 | AL72: 0.0600605372 | AM72: 0.1201210744
A73: 71 | B73: =VLOOKUP(A73,#REF!,5,FALSE) ->  | C73: =IFERROR(VLOOKUP(A73,#REF!,7,FALSE),0) -> 0 | D73: 0 | E73: 0 | R73: =0.0167*C73 -> 0 | AG73: 0 | AH73: 0 | AI73: 0 | AJ73: 0.002446368223 | AK73: 0.004892736445 | AL73: 0.0004892736445 | AM73: 0.0009785472891
A74: 72 | B74: =VLOOKUP(A74,#REF!,5,FALSE) ->  | C74: =IFERROR(VLOOKUP(A74,#REF!,7,FALSE),0) -> 0 | D74: 0 | E74: 0 | AG74: 0 | AH74: 0 | AI74: 0 | AJ74: 0 | AK74: 0 | AL74: 0 | AM74: 0
A75: 73 | B75: =VLOOKUP(A75,#REF!,5,FALSE) ->  | C75: =IFERROR(VLOOKUP(A75,#REF!,7,FALSE),0) -> 0 | D75: 0 | E75: 0 | I75: =C75*0.1 -> 0 | AG75: 0 | AH75: 0 | AI75: 0 | AJ75: 17.29743471 | AK75: 34.59486943 | AL75: 0.002929782303 | AM75: 0.005859564605
A76: 74 | B76: =VLOOKUP(A76,#REF!,5,FALSE) ->  | C76: =IFERROR(VLOOKUP(A76,#REF!,7,FALSE),0) -> 0 | D76: 0 | E76: 0 | K76: =C76*0.216 -> 0 | M76: =C76*0.391 -> 0 | S76: =C76*0.034 -> 0 | Y76: =C76*0.055 -> 0 | AG76: 0 | AH76: 0 | AI76: 0 | AJ76: 61.17385448 | AK76: 122.347709 | AL76: 0.02039128483 | AM76: 0.04078256965
A77: 75 | B77: =VLOOKUP(A77,#REF!,5,FALSE) ->  | C77: =IFERROR(VLOOKUP(A77,#REF!,7,FALSE),0) -> 0 | D77: 0 | E77: 0 | M77: =C77*1.877 -> 0 | Y77: =C77*0.293 -> 0 | AG77: 0 | AH77: 0 | AI77: 0 | AJ77: 1.271525519 | AK77: 2.543051039 | AL77: 0.06357627597 | AM77: 0.1271525519
A78: 76 | B78: =VLOOKUP(A78,#REF!,5,FALSE) ->  | C78: =IFERROR(VLOOKUP(A78,#REF!,7,FALSE),0) -> 0 | D78: 0 | E78: 0 | M78: =C78*2.397 -> 0 | Y78: =C78*0.375 -> 0 | AG78: 0 | AH78: 0 | AI78: 0 | AJ78: 1.624271309 | AK78: 3.248542617 | AL78: 0.08121356543 | AM78: 0.1624271309
A79: 77 | B79: =VLOOKUP(A79,#REF!,5,FALSE) ->  | C79: =IFERROR(VLOOKUP(A79,#REF!,7,FALSE),0) -> 0 | D79: 0 | E79: 0 | H79: =C79*1.846 -> 0 | I79: =C79*7.868 -> 0 | W79: =C79*1.846 -> 0 | Z79: =C79*1.47 -> 0 | AG79: 0 | AH79: 0 | AI79: 0 | AJ79: 3.81750634 | AK79: 7.635012681 | AL79: 0.381750634 | AM79: 0.7635012681
A80: 78 | B80: =VLOOKUP(A80,#REF!,5,FALSE) ->  | C80: =IFERROR(VLOOKUP(A80,#REF!,7,FALSE),0) -> 0 | D80: 0 | E80: 0 | H80: =C80*1.846 -> 0 | I80: =C80*7.848 -> 0 | W80: =C80*1.846 -> 0 | Z80: =C80*1.46 -> 0 | AG80: 0 | AH80: 0 | AI80: 0 | AJ80: 3.808716993 | AK80: 7.617433987 | AL80: 0.3808716993 | AM80: 0.7617433987
A81: 79 | B81: =VLOOKUP(A81,#REF!,5,FALSE) ->  | C81: =IFERROR(VLOOKUP(A81,#REF!,7,FALSE),0) -> 0 | D81: 0 | E81: 0 | I81: =C81*0.2 -> 0 | AG81: 0 | AH81: 0 | AI81: 0 | AJ81: 0.5859564605 | AK81: 1.171912921 | AL81: 0.005859564605 | AM81: 0.01171912921
A82: 80 | B82: =VLOOKUP(A82,#REF!,5,FALSE) ->  | C82: =IFERROR(VLOOKUP(A82,#REF!,7,FALSE),0) -> 0 | D82: 0 | E82: 0 | I82: =C82*0.1 -> 0 | R82: =C82*0.4 -> 0 | AG82: 0 | AH82: 0 | AI82: 0 | AJ82: 1.538135709 | AK82: 3.076271418 | AL82: 0.01464891151 | AM82: 0.02929782303
A83: 81 | B83: =VLOOKUP(A83,#REF!,5,FALSE) ->  | C83: =IFERROR(VLOOKUP(A83,#REF!,7,FALSE),0) -> 0 | D83: 0 | E83: 0 | V83: =C83*0.205 -> 0 | W83: =C83*1.12 -> 0 | AG83: 0 | AH83: 0 | AI83: 0 | AJ83: 3.881961551 | AK83: 7.763923102 | AL83: 0.03881961551 | AM83: 0.07763923102
A84: 82 | B84: =VLOOKUP(A84,#REF!,5,FALSE) ->  | C84: =IFERROR(VLOOKUP(A84,#REF!,7,FALSE),0) -> 0 | D84: 0 | E84: 0 | H84: =C84*0.4 -> 0 | I84: =C84*0.3 -> 0 | AG84: 0 | AH84: 0 | AI84: 0 | AJ84: 0.4101695224 | AK84: 0.8203390447 | AL84: 0.02050847612 | AM84: 0.04101695224
A85: 83 | B85: =VLOOKUP(A85,#REF!,5,FALSE) ->  | C85: =IFERROR(VLOOKUP(A85,#REF!,7,FALSE),0) -> 0 | D85: 0 | E85: 0 | O85: =C85*0.108 -> 0 | AA85: =C85*0.532 -> 0 | AG85: 0 | AH85: 0 | AI85: 0 | AJ85: 9.375303368 | AK85: 18.75060674 | AL85: 0.01875060674 | AM85: 0.03750121347
A86: 84 | B86: =VLOOKUP(A86,#REF!,5,FALSE) ->  | C86: =IFERROR(VLOOKUP(A86,#REF!,7,FALSE),0) -> 0 | D86: 0 | E86: 0 | H86: =C86*1.37 -> 0 | I86: =C86*0.685 -> 0 | AG86: 0 | AH86: 0 | AI86: 0 | AJ86: 15.05175658 | AK86: 30.10351316 | AL86: 0.06020702632 | AM86: 0.1204140526
A87: 85 | B87: =VLOOKUP(A87,#REF!,5,FALSE) ->  | C87: =IFERROR(VLOOKUP(A87,#REF!,7,FALSE),0) -> 0 | D87: 0 | E87: 0 | I87: =C87*0.0909 -> 0 | R87: =C87*0.3636 -> 0 | AG87: 0 | AH87: 0 | AI87: 0 | AJ87: 0.1331586057 | AK87: 0.2663172113 | AL87: 0.01331586057 | AM87: 0.02663172113
A88: 86 | B88: =VLOOKUP(A88,#REF!,5,FALSE) ->  | C88: =IFERROR(VLOOKUP(A88,#REF!,7,FALSE),0) -> 0 | D88: 0 | E88: 0 | H88: =C88*0.529 -> 0 | I88: =C88*0.106 -> 0 | AG88: 0 | AH88: 0 | AI88: 0 | AJ88: 0.5581235287 | AK88: 1.116247057 | AL88: 0.01860411762 | AM88: 0.03720823524
A89: 87 | B89: =VLOOKUP(A89,#REF!,5,FALSE) ->  | C89: =IFERROR(VLOOKUP(A89,#REF!,7,FALSE),0) -> 0 | D89: 0 | E89: 0 | I89: =C89*0.1362 -> 0 | R89: =C89*0.5449 -> 0 | AG89: 0 | AH89: 0 | AI89: 0 | AJ89: 7.981898905 | AK89: 15.96379781 | AL89: 0.01995474726 | AM89: 0.03990949453
A90: 88 | B90: =VLOOKUP(A90,#REF!,5,FALSE) ->  | C90: =IFERROR(VLOOKUP(A90,#REF!,7,FALSE),0) -> 0 | D90: 0 | E90: 0 | I90: =C90*0.06363 -> 0 | R90: =C90*0.1212 -> 0 | AG90: 0 | AH90: 0 | AI90: 0 | AJ90: 0.1083023326 | AK90: 0.2166046652 | AL90: 0.00541511663 | AM90: 0.01083023326
A91: 89 | B91: =VLOOKUP(A91,#REF!,5,FALSE) ->  | C91: =IFERROR(VLOOKUP(A91,#REF!,7,FALSE),0) -> 0 | D91: 0 | E91: 0 | H91: =C91*0.46 -> 0 | I91: =C91*0.167 -> 0 | AG91: 0 | AH91: 0 | AI91: 0 | AJ91: 0.3673947008 | AK91: 0.7347894015 | AL91: 0.01836973504 | AM91: 0.03673947008
A92: 90 | B92: =VLOOKUP(A92,#REF!,5,FALSE) ->  | C92: =IFERROR(VLOOKUP(A92,#REF!,7,FALSE),0) -> 0 | D92: 0 | E92: 0 | H92: =C92*0.141 -> 0 | I92: =C92*0.0141 -> 0 | AG92: 0 | AH92: 0 | AI92: 0 | AJ92: 0.2272046176 | AK92: 0.4544092351 | AL92: 0.004544092351 | AM92: 0.009088184703
A93: 91 | B93: =VLOOKUP(A93,#REF!,5,FALSE) ->  | C93: =IFERROR(VLOOKUP(A93,#REF!,7,FALSE),0) -> 0 | D93: 0 | E93: 0 | H93: =C93*0.07 -> 0 | I93: =C93*0.007 -> 0 | AG93: 0 | AH93: 0 | AI93: 0 | AJ93: 1.127966187 | AK93: 2.255932373 | AL93: 0.002255932373 | AM93: 0.004511864746
A94: 92 | B94: =VLOOKUP(A94,#REF!,5,FALSE) ->  | C94: =IFERROR(VLOOKUP(A94,#REF!,7,FALSE),0) -> 0 | D94: 0 | E94: 0 | I94: =C94*0.08 -> 0 | J94: =C94*0.4 -> 0 | AG94: 0 | AH94: 0 | AI94: 0 | AJ94: 6.187700223 | AK94: 12.37540045 | AL94: 0.01406295505 | AM94: 0.02812591011
A95: 93 | B95: =VLOOKUP(A95,#REF!,5,FALSE) ->  | C95: =IFERROR(VLOOKUP(A95,#REF!,7,FALSE),0) -> 0 | D95: 0 | E95: 0 | H95: =C95*0.43 -> 0 | I95: =C95*0.4308 -> 0 | AG95: 0 | AH95: 0 | AI95: 0 | AJ95: 15.13173964 | AK95: 30.26347927 | AL95: 0.02521956606 | AM95: 0.05043913212
A96: 94 | B96: =VLOOKUP(A96,#REF!,5,FALSE) ->  | C96: =IFERROR(VLOOKUP(A96,#REF!,7,FALSE),0) -> 0 | D96: 0 | E96: 0 | H96: =C96*0.2 -> 0 | I96: =C96*0.0932 -> 0 | AG96: 0 | AH96: 0 | AI96: 0 | AJ96: 1.718024342 | AK96: 3.436048685 | AL96: 0.008590121711 | AM96: 0.01718024342
A97: 95 | B97: =VLOOKUP(A97,#REF!,5,FALSE) ->  | C97: =IFERROR(VLOOKUP(A97,#REF!,7,FALSE),0) -> 0 | D97: 0 | E97: 0 | H97: =C97*0.155 -> 0 | I97: =C97*0.6 -> 0 | AG97: 0 | AH97: 0 | AI97: 0 | AJ97: 2.211985639 | AK97: 4.423971277 | AL97: 0.02211985639 | AM97: 0.04423971277
A98: 96 | B98: =VLOOKUP(A98,#REF!,5,FALSE) ->  | C98: =IFERROR(VLOOKUP(A98,#REF!,7,FALSE),0) -> 0 | D98: 0 | E98: 0 | I98: =C98*0.027 -> 0 | X98: =C98*0.106 -> 0 | AG98: 0 | AH98: 0 | AI98: 0 | AJ98: 21.0416965 | AK98: 42.083393 | AL98: 0.003896610463 | AM98: 0.007793220925
A99: 97 | B99: =VLOOKUP(A99,#REF!,5,FALSE) ->  | C99: =IFERROR(VLOOKUP(A99,#REF!,7,FALSE),0) -> 0 | D99: 0 | E99: 0 | I99: =C99*0.3 -> 0 | X99: =C99*0.4 -> 0 | AG99: 0 | AH99: 0 | AI99: 0 | AJ99: 8.203390447 | AK99: 16.40678089 | AL99: 0.02050847612 | AM99: 0.04101695224
A100: 98 | B100: =VLOOKUP(A100,#REF!,5,FALSE) ->  | C100: =IFERROR(VLOOKUP(A100,#REF!,7,FALSE),0) -> 0 | D100: 0 | E100: 0 | I100: =C100*0.083 -> 0 | X100: =C100*0.334 -> 0 | AG100: 0 | AH100: 0 | AI100: 0 | AJ100: 6.108596101 | AK100: 12.2171922 | AL100: 0.0122171922 | AM100: 0.0244343844
A101: 99 | B101: =VLOOKUP(A101,#REF!,5,FALSE) ->  | C101: =IFERROR(VLOOKUP(A101,#REF!,7,FALSE),0) -> 0 | D101: 0 | E101: 0 | I101: =C101*0.114 -> 0 | X101: =C101*0.312 -> 0 | AG101: 0 | AH101: 0 | AI101: 0 | AJ101: 33.69835605 | AK101: 67.39671209 | AL101: 0.01248087261 | AM101: 0.02496174522
A102: 100 | B102: =VLOOKUP(A102,#REF!,5,FALSE) ->  | C102: =IFERROR(VLOOKUP(A102,#REF!,7,FALSE),0) -> 0 | D102: 0 | E102: 0 | I102: =C102*0.069 -> 0 | X102: =C102*0.187 -> 0 | AG102: 0 | AH102: 0 | AI102: 0 | AJ102: 67.50218425 | AK102: 135.0043685 | AL102: 0.007500242695 | AM102: 0.01500048539
A103: 101 | B103: =VLOOKUP(A103,#REF!,5,FALSE) ->  | C103: =IFERROR(VLOOKUP(A103,#REF!,7,FALSE),0) -> 0 | D103: 0 | E103: 0 | I103: =C103*0.3 -> 0 | X103: =C103*0.4 -> 0 | AG103: 0 | AH103: 0 | AI103: 0 | AJ103: 6.152542836 | AK103: 12.30508567 | AL103: 0.02050847612 | AM103: 0.04101695224
A104: 102 | B104: =VLOOKUP(A104,#REF!,5,FALSE) ->  | C104: =IFERROR(VLOOKUP(A104,#REF!,7,FALSE),0) -> 0 | D104: 0 | E104: 0 | I104: =C104*0.5 -> 0 | X104: =C104*0.5 -> 0 | AG104: 0 | AH104: 0 | AI104: 0 | AJ104: 19.04358497 | AK104: 38.08716993 | AL104: 0.02929782303 | AM104: 0.05859564605
A105: 103 | B105: =VLOOKUP(A105,#REF!,5,FALSE) ->  | C105: =IFERROR(VLOOKUP(A105,#REF!,7,FALSE),0) -> 0 | D105: 0 | E105: 0 | I105: =C105*0.089 -> 0 | X105: =C105*0.244 -> 0 | AG105: 0 | AH105: 0 | AI105: 0 | AJ105: 58.53705041 | AK105: 117.0741008 | AL105: 0.009756175068 | AM105: 0.01951235014
A106: 104 | B106: =VLOOKUP(A106,#REF!,5,FALSE) ->  | C106: =IFERROR(VLOOKUP(A106,#REF!,7,FALSE),0) -> 0 | D106: 0 | E106: 0 | I106: =C106*0.36 -> 0 | L106: =C106*0.66 -> 0 | AG106: 0 | AH106: 0 | AI106: 0 | AJ106: 5.976755897 | AK106: 11.95351179 | AL106: 0.02988377949 | AM106: 0.05976755897
A107: 105 | B107: =VLOOKUP(A107,#REF!,5,FALSE) ->  | C107: =IFERROR(VLOOKUP(A107,#REF!,7,FALSE),0) -> 0 | D107: 0 | E107: 0 | H107: =C107*0.36 -> 0 | I107: =C107*0.18 -> 0 | AG107: 0 | AH107: 0 | AI107: 0 | AJ107: 0.9492494661 | AK107: 1.898498932 | AL107: 0.01582082443 | AM107: 0.03164164887
A108: 106 | B108: =VLOOKUP(A108,#REF!,5,FALSE) ->  | C108: =IFERROR(VLOOKUP(A108,#REF!,7,FALSE),0) -> 0 | D108: 0 | E108: 0 | H108: =C108*0.29 -> 0 | I108: =C108*0.145 -> 0 | AG108: 0 | AH108: 0 | AI108: 0 | AJ108: 7.009504159 | AK108: 14.01900832 | AL108: 0.01274455302 | AM108: 0.02548910603
A109: 107 | B109: =VLOOKUP(A109,#REF!,5,FALSE) ->  | C109: =IFERROR(VLOOKUP(A109,#REF!,7,FALSE),0) -> 0 | D109: 0 | E109: 0 | I109: =C109*0.594 -> 0 | Q109: =C109*1.188 -> 0 | AG109: 0 | AH109: 0 | AI109: 0 | AJ109: 54.81915666 | AK109: 109.6383133 | AL109: 0.05220872063 | AM109: 0.1044174413
A110: 108 | B110: =VLOOKUP(A110,#REF!,5,FALSE) ->  | C110: =IFERROR(VLOOKUP(A110,#REF!,7,FALSE),0) -> 0 | D110: 0 | E110: 0 | I110: =C110*0.594 -> 0 | Q110: =C110*1.188 -> 0 | AG110: 0 | AH110: 0 | AI110: 0 | AJ110: 14.09635457 | AK110: 28.19270914 | AL110: 0.05220872063 | AM110: 0.1044174413
A111: 109 | B111: =VLOOKUP(A111,#REF!,5,FALSE) ->  | C111: =IFERROR(VLOOKUP(A111,#REF!,7,FALSE),0) -> 0 | D111: 0 | E111: 0 | I111: =C111*1.82 -> 0 | Q111: =C111*3.64666666666667 -> 0 | AG111: 0 | AH111: 0 | AI111: 0 | AJ111: 4.004035814 | AK111: 8.008071627 | AL111: 0.1601614325 | AM111: 0.3203228651
A112: 110 | B112: =VLOOKUP(A112,#REF!,5,FALSE) ->  | C112: =IFERROR(VLOOKUP(A112,#REF!,7,FALSE),0) -> 0 | D112: 0 | E112: 0 | I112: =C112*0.594 -> 0 | Q112: =C112*1.188 -> 0 | AG112: 0 | AH112: 0 | AI112: 0 | AJ112: 1.566261619 | AK112: 3.132523238 | AL112: 0.05220872063 | AM112: 0.1044174413
A113: 111 | B113: =VLOOKUP(A113,#REF!,5,FALSE) ->  | C113: =IFERROR(VLOOKUP(A113,#REF!,7,FALSE),0) -> 0 | D113: 0 | E113: 0 | I113: =C113*0.594 -> 0 | Q113: =C113*1.188 -> 0 | AG113: 0 | AH113: 0 | AI113: 0 | AJ113: 0.1566261619 | AK113: 0.3132523238 | AL113: 0.05220872063 | AM113: 0.1044174413
A114: 112 | B114: =VLOOKUP(A114,#REF!,5,FALSE) ->  | C114: =IFERROR(VLOOKUP(A114,#REF!,7,FALSE),0) -> 0 | D114: 0 | E114: 0 | I114: =C114*1.82 -> 0 | Q114: =C114*3.64666666666667 -> 0 | AG114: 0 | AH114: 0 | AI114: 0 | AJ114: 0.3203228651 | AK114: 0.6406457302 | AL114: 0.1601614325 | AM114: 0.3203228651
A115: 113 | B115: =VLOOKUP(A115,#REF!,5,FALSE) ->  | C115: =IFERROR(VLOOKUP(A115,#REF!,7,FALSE),0) -> 0 | D115: 0 | E115: 0 | N115: =C115*0.15 -> 0 | O115: =C115*0.15 -> 0 | AG115: 0 | AH115: 0 | AI115: 0 | AJ115: 0.6152542836 | AK115: 1.230508567 | AL115: 0.008789346908 | AM115: 0.01757869382
A116: 114 | B116: =VLOOKUP(A116,#REF!,5,FALSE) ->  | C116: =IFERROR(VLOOKUP(A116,#REF!,7,FALSE),0) -> 0 | D116: 0 | E116: 0 | I116: =C116*0.594 -> 0 | Q116: =C116*1.188 -> 0 | AG116: 0 | AH116: 0 | AI116: 0 | AJ116: 0.5220872063 | AK116: 1.044174413 | AL116: 0.05220872063 | AM116: 0.1044174413
A117: 115 | B117: =VLOOKUP(A117,#REF!,5,FALSE) ->  | C117: =IFERROR(VLOOKUP(A117,#REF!,7,FALSE),0) -> 0 | D117: 0 | E117: 0 | I117: =C117*0.594 -> 0 | Q117: =C117*1.188 -> 0 | AG117: 0 | AH117: 0 | AI117: 0 | AJ117: 2.088348825 | AK117: 4.176697651 | AL117: 0.05220872063 | AM117: 0.1044174413
A118: 116 | B118: =VLOOKUP(A118,#REF!,5,FALSE) ->  | C118: =IFERROR(VLOOKUP(A118,#REF!,7,FALSE),0) -> 0 | D118: 0 | E118: 0 | N118: =C118*0.15 -> 0 | O118: =C118*0.15 -> 0 | AG118: 0 | AH118: 0 | AI118: 0 | AJ118: 0.6152542836 | AK118: 1.230508567 | AL118: 0.008789346908 | AM118: 0.01757869382
A119: 117 | B119: =VLOOKUP(A119,#REF!,5,FALSE) ->  | C119: =IFERROR(VLOOKUP(A119,#REF!,7,FALSE),0) -> 0 | D119: 0 | E119: 0 | I119: =C119*0.594*50% -> 0 | Q119: =C119*1.188*50% -> 0 | AG119: 0 | AH119: 0 | AI119: 0 | AJ119: 0.5220872063 | AK119: 1.044174413 | AL119: 0.02610436032 | AM119: 0.05220872063
A120: 118 | B120: =VLOOKUP(A120,#REF!,5,FALSE) ->  | C120: =IFERROR(VLOOKUP(A120,#REF!,7,FALSE),0) -> 0 | D120: 0 | E120: 0 | I120: 0 | Q120: =C120*1.188*50% -> 0 | AG120: 0 | AH120: 0 | AI120: 0 | AJ120: 0.5220872063 | AK120: 1.044174413 | AL120: 0.02610436032 | AM120: 0.05220872063
A121: 119 | B121: =VLOOKUP(A121,#REF!,5,FALSE) ->  | C121: =IFERROR(VLOOKUP(A121,#REF!,7,FALSE),0) -> 0 | D121: 0 | E121: 0 | I121: 0 | Q121: 0 | AG121: 0 | AH121: 0 | AI121: 0 | AJ121: 0.5220872063 | AK121: 1.044174413 | AL121: 0.02610436032 | AM121: 0.05220872063
A122: 120 | B122: =VLOOKUP(A122,#REF!,5,FALSE) ->  | C122: =IFERROR(VLOOKUP(A122,#REF!,7,FALSE),0) -> 0 | D122: 0 | E122: 0 | I122: 0 | Q122: 0 | AG122: 0 | AH122: 0 | AI122: 0 | AJ122: 0.5220872063 | AK122: 1.044174413 | AL122: 0.02610436032 | AM122: 0.05220872063
A123: 121 | B123: =VLOOKUP(A123,#REF!,5,FALSE) ->  | C123: =IFERROR(VLOOKUP(A123,#REF!,7,FALSE),0) -> 0 | D123: 0 | E123: 0 | I123: 0 | Q123: 0 | AG123: 0 | AH123: 0 | AI123: 0 | AJ123: 0.5220872063 | AK123: 1.044174413 | AL123: 0.02610436032 | AM123: 0.05220872063
A124: 122 | B124: =VLOOKUP(A124,#REF!,5,FALSE) ->  | C124: =IFERROR(VLOOKUP(A124,#REF!,7,FALSE),0) -> 0 | D124: 0 | E124: 0 | I124: 0 | Q124: 0 | AG124: 0 | AH124: 0 | AI124: 0 | AJ124: 0.5220872063 | AK124: 1.044174413 | AL124: 0.02610436032 | AM124: 0.05220872063
A125: 123 | B125: =VLOOKUP(A125,#REF!,5,FALSE) ->  | C125: =IFERROR(VLOOKUP(A125,#REF!,7,FALSE),0) -> 0 | D125: 0 | E125: 0 | I125: =C125*0.594 -> 0 | Q125: =C125*1.188 -> 0 | AG125: 0 | AH125: 0 | AI125: 0 | AJ125: 1.566261619 | AK125: 3.132523238 | AL125: 0.05220872063 | AM125: 0.1044174413
A126: 124 | B126: =VLOOKUP(A126,#REF!,5,FALSE) ->  | C126: =IFERROR(VLOOKUP(A126,#REF!,7,FALSE),0) -> 0 | D126: 0 | E126: 0 | I126: =C126*1.14 -> 0 | Q126: =C126*0.65 -> 0 | AG126: 0 | AH126: 0 | AI126: 0 | AJ126: 2.622155161 | AK126: 5.244310322 | AL126: 0.05244310322 | AM126: 0.1048862064
A127: 125 | B127: =VLOOKUP(A127,#REF!,5,FALSE) ->  | C127: =IFERROR(VLOOKUP(A127,#REF!,7,FALSE),0) -> 0 | D127: 0 | E127: 0 | I127: =C127*2.3 -> 0 | Q127: =C127*4.8 -> 0 | AG127: 0 | AH127: 0 | AI127: 0 | AJ127: 20.80145435 | AK127: 41.6029087 | AL127: 0.2080145435 | AM127: 0.416029087
A128: 126 | B128: =VLOOKUP(A128,#REF!,5,FALSE) ->  | C128: =IFERROR(VLOOKUP(A128,#REF!,7,FALSE),0) -> 0 | D128: 0 | E128: 0 | I128: =C128*1.14 -> 0 | Q128: =C128*0.65 -> 0 | AG128: 0 | AH128: 0 | AI128: 0 | AJ128: 1.573293097 | AK128: 3.146586193 | AL128: 0.05244310322 | AM128: 0.1048862064
A129: 127 | B129: =VLOOKUP(A129,#REF!,5,FALSE) ->  | C129: =IFERROR(VLOOKUP(A129,#REF!,7,FALSE),0) -> 0 | D129: 0 | E129: 0 | I129: =C129*0.594 -> 0 | Q129: =C129*1.188 -> 0 | AG129: 0 | AH129: 0 | AI129: 0 | AJ129: 0.4176697651 | AK129: 0.8353395301 | AL129: 0.05220872063 | AM129: 0.1044174413
A130: 128 | B130: =VLOOKUP(A130,#REF!,5,FALSE) ->  | C130: =IFERROR(VLOOKUP(A130,#REF!,7,FALSE),0) -> 0 | D130: 0 | E130: 0 | I130: =C130*1.14 -> 0 | Q130: =C130*0.65 -> 0 | AG130: 0 | AH130: 0 | AI130: 0 | AJ130: 1.573293097 | AK130: 3.146586193 | AL130: 0.05244310322 | AM130: 0.1048862064
A131: 129 | B131: =VLOOKUP(A131,#REF!,5,FALSE) ->  | C131: =IFERROR(VLOOKUP(A131,#REF!,7,FALSE),0) -> 0 | D131: 0 | E131: 0 | I131: =C131*0.594 -> 0 | Q131: =C131*1.188 -> 0 | AG131: 0 | AH131: 0 | AI131: 0 | AJ131: 0.7831308095 | AK131: 1.566261619 | AL131: 0.05220872063 | AM131: 0.1044174413
A132: 130 | B132: =VLOOKUP(A132,#REF!,5,FALSE) ->  | C132: =IFERROR(VLOOKUP(A132,#REF!,7,FALSE),0) -> 0 | D132: 0 | E132: 0 | I132: =C132*0.594 -> 0 | Q132: =C132*1.188 -> 0 | AG132: =SUM(H132,J132,K132,L132,M132,N132,Q132,R132,T132,U132,W132,X132,Z132,AA132,AC132,AD132) -> 0 | AH132: =SUM(O132,P132,S132,V132,Y132,AB132,AE132)+I132 -> 0 | AI132: =AG132+AH132 -> 0 | AJ132: 0.5220872063 | AK132: 1.044174413 | AL132: 0.05220872063 | AM132: 0.1044174413
A133: 131 | B133: =VLOOKUP(A133,#REF!,5,FALSE) ->  | C133: =IFERROR(VLOOKUP(A133,#REF!,7,FALSE),0) -> 0 | D133: 0 | E133: 0 | I133: =C133*0.594 -> 0 | Q133: =C133*1.188 -> 0 | AG133: 0 | AH133: 0 | AI133: 0 | AJ133: 0.05220872063 | AK133: 0.1044174413 | AL133: 0.05220872063 | AM133: 0.1044174413
A134: 132 | B134: =VLOOKUP(A134,#REF!,5,FALSE) ->  | C134: =IFERROR(VLOOKUP(A134,#REF!,7,FALSE),0) -> 0 | D134: 0 | E134: 0 | I134: =C134*0.1362 -> 0 | R134: =C134*0.5449 -> 0 | AG134: 0 | AH134: 0 | AI134: 0 | AJ134: 9.977373632 | AK134: 19.95474726 | AL134: 0.01995474726 | AM134: 0.03990949453
A135: 133 | B135: =VLOOKUP(A135,#REF!,5,FALSE) ->  | C135: =IFERROR(VLOOKUP(A135,#REF!,7,FALSE),0) -> 0 | D135: 0 | E135: 0 | I135: 0 | R135: 0 | AG135: 0 | AH135: 0 | AI135: 0 | AJ135: 9.977373632 | AK135: 19.95474726 | AL135: 0.01995474726 | AM135: 0.03990949453
A136: 134 | B136: =VLOOKUP(A136,#REF!,5,FALSE) ->  | C136: =IFERROR(VLOOKUP(A136,#REF!,7,FALSE),0) -> 0 | D136: =IFERROR(AL136*C136,0) -> 0 | E136: =IFERROR(AM136*C136,0) -> 0 | I136: 0 | R136: 0 | AG136: 0 | AH136: 0 | AI136: 0 | AJ136: 19.95474726 | AK136: 39.90949453 | AL136: 0.01995474726 | AM136: 0.03990949453
A137: 135 | B137: =VLOOKUP(A137,#REF!,5,FALSE) ->  | C137: =IFERROR(VLOOKUP(A137,#REF!,7,FALSE),0) -> 0 | D137: 0 | E137: 0 | I137: 0 | R137: 0 | AG137: 0 | AH137: 0 | AI137: 0 | AJ137: 19.95474726 | AK137: 39.90949453 | AL137: 0.01995474726 | AM137: 0.03990949453
A138: 136 | B138: =VLOOKUP(A138,#REF!,5,FALSE) ->  | C138: =IFERROR(VLOOKUP(A138,#REF!,7,FALSE),0) -> 0 | D138: 0 | E138: 0 | I138: 0 | R138: 0 | AG138: 0 | AH138: 0 | AI138: 0 | AJ138: 3.990949453 | AK138: 7.981898905 | AL138: 0.01995474726 | AM138: 0.03990949453
A139: 137 | B139: =VLOOKUP(A139,#REF!,5,FALSE) ->  | C139: =IFERROR(VLOOKUP(A139,#REF!,7,FALSE),0) -> 0 | D139: 0 | E139: 0 | I139: 0 | R139: 0 | AG139: 0 | AH139: 0 | AI139: 0 | AJ139: 3.990949453 | AK139: 7.981898905 | AL139: 0.01995474726 | AM139: 0.03990949453
A140: 138 | B140: =VLOOKUP(A140,#REF!,5,FALSE) ->  | C140: =IFERROR(VLOOKUP(A140,#REF!,7,FALSE),0) -> 0 | D140: 0 | E140: 0 | O140: =C140*1 -> 0 | AG140: 0 | AH140: 0 | AI140: 0 | AJ140: 20.50847612 | AK140: 41.01695224 | AL140: 0.02929782303 | AM140: 0.05859564605
A141: 139 | B141: =VLOOKUP(A141,#REF!,5,FALSE) ->  | C141: =IFERROR(VLOOKUP(A141,#REF!,7,FALSE),0) -> 0 | D141: 0 | E141: 0 | I141: =C141*1.80555555555556 -> 0 | J141: =C141*0.805555555555556 -> 0 | AG141: 0 | AH141: 0 | AI141: 0 | AJ141: 7.649987124 | AK141: 15.29997425 | AL141: 0.07649987124 | AM141: 0.1529997425
A142: 140 | B142: =VLOOKUP(A142,#REF!,5,FALSE) ->  | C142: =IFERROR(VLOOKUP(A142,#REF!,7,FALSE),0) -> 0 | D142: 0 | E142: 0 | R142: =C142*0.4994 -> 0 | AG142: 0 | AH142: 0 | AI142: 0 | AJ142: 0.731566641 | AK142: 1.463133282 | AL142: 0.01463133282 | AM142: 0.02926266564
A143: 141 | B143: =VLOOKUP(A143,#REF!,5,FALSE) ->  | C143: =IFERROR(VLOOKUP(A143,#REF!,7,FALSE),0) -> 0 | D143: 0 | E143: 0 | R143: =C143*0.166466666666667 -> 0 | AG143: 0 | AH143: 0 | AI143: 0 | AJ143: 0.487711094 | AK143: 0.975422188 | AL143: 0.00487711094 | AM143: 0.00975422188
A144: 142 | B144: =VLOOKUP(A144,#REF!,5,FALSE) ->  | C144: =IFERROR(VLOOKUP(A144,#REF!,7,FALSE),0) -> 0 | D144: 0 | E144: 0 | R144: =C144*0.4994 -> 0 | AG144: 0 | AH144: 0 | AI144: 0 | AJ144: 0.2926266564 | AK144: 0.5852533128 | AL144: 0.01463133282 | AM144: 0.02926266564
A145: 143 | B145: =VLOOKUP(A145,#REF!,5,FALSE) ->  | C145: =IFERROR(VLOOKUP(A145,#REF!,7,FALSE),0) -> 0 | D145: 0 | E145: 0 | P145: =C145*0.5 -> 0 | R145: =C145*0.5 -> 0 | AG145: 0 | AH145: 0 | AI145: 0 | AJ145: 0 | AK145: 0 | AL145: 0 | AM145: 0
A146: 144 | B146: =VLOOKUP(A146,#REF!,5,FALSE) ->  | C146: =IFERROR(VLOOKUP(A146,#REF!,7,FALSE),0) -> 0 | D146: 0 | E146: 0 | I146: =C146*0.3628 -> 0 | R146: =C146*0.3628 -> 0 | AG146: 0 | AH146: 0 | AI146: 0 | AJ146: 53.14625097 | AK146: 106.2925019 | AL146: 0.02125850039 | AM146: 0.04251700078
A147: 145 | B147: =VLOOKUP(A147,#REF!,5,FALSE) ->  | C147: =IFERROR(VLOOKUP(A147,#REF!,7,FALSE),0) -> 0 | D147: 0 | E147: 0 | I147: =C147*0.3628 -> 0 | R147: =C147*0.3628 -> 0 | AG147: 0 | AH147: 0 | AI147: 0 | AJ147: 48.89455089 | AK147: 97.78910178 | AL147: 0.02125850039 | AM147: 0.04251700078
A148: 146 | B148: =VLOOKUP(A148,#REF!,5,FALSE) ->  | C148: =IFERROR(VLOOKUP(A148,#REF!,7,FALSE),0) -> 0 | D148: 0 | E148: 0 | I148: =C148*0.3628 -> 0 | R148: =C148*0.3628 -> 0 | AG148: 0 | AH148: 0 | AI148: 0 | AJ148: 6.377550116 | AK148: 12.75510023 | AL148: 0.02125850039 | AM148: 0.04251700078
A149: 147 | B149: =VLOOKUP(A149,#REF!,5,FALSE) ->  | C149: =IFERROR(VLOOKUP(A149,#REF!,7,FALSE),0) -> 0 | D149: 0 | E149: 0 | O149: =C149*0.3 -> 0 | AG149: 0 | AH149: 0 | AI149: 0 | AJ149: 0.8789346908 | AK149: 1.757869382 | AL149: 0.008789346908 | AM149: 0.01757869382
A150: 148 | B150: =VLOOKUP(A150,#REF!,5,FALSE) ->  | C150: =IFERROR(VLOOKUP(A150,#REF!,7,FALSE),0) -> 0 | D150: 0 | E150: 0 | I150: =C150*0.3 -> 0 | N150: =C150*0.3 -> 0 | AG150: 0 | AH150: 0 | AI150: 0 | AJ150: 1.757869382 | AK150: 3.515738763 | AL150: 0.01757869382 | AM150: 0.03515738763
A151: 149 | B151: =VLOOKUP(A151,#REF!,5,FALSE) ->  | C151: =IFERROR(VLOOKUP(A151,#REF!,7,FALSE),0) -> 0 | D151: 0 | E151: 0 | O151: =C151*1.2 -> 0 | R151: =C151*1.2 -> 0 | AG151: 0 | AH151: 0 | AI151: 0 | AJ151: 7.031477526 | AK151: 14.06295505 | AL151: 0.07031477526 | AM151: 0.1406295505
A152: 150 | B152: =VLOOKUP(A152,#REF!,5,FALSE) ->  | C152: =IFERROR(VLOOKUP(A152,#REF!,7,FALSE),0) -> 0 | D152: 0 | E152: 0 | R152: =C152*0.1468 -> 0 | AG152: 0 | AH152: 0 | AI152: 0 | AJ152: 14.19303739 | AK152: 28.38607477 | AL152: 0.00430092042 | AM152: 0.008601840841
A153: 151 | B153: =VLOOKUP(A153,#REF!,5,FALSE) ->  | C153: =IFERROR(VLOOKUP(A153,#REF!,7,FALSE),0) -> 0 | D153: 0 | E153: 0 | H153: =C153*0.1 -> 0 | I153: =C153*0.1 -> 0 | AG153: 0 | AH153: 0 | AI153: 0 | AJ153: 2.343825842 | AK153: 4.687651684 | AL153: 0.005859564605 | AM153: 0.01171912921
A154: 152 | B154: =VLOOKUP(A154,#REF!,5,FALSE) ->  | C154: =IFERROR(VLOOKUP(A154,#REF!,7,FALSE),0) -> 0 | D154: 0 | E154: 0 | U154: =C154*0.5 -> 0 | AG154: 0 | AH154: 0 | AI154: 0 | AJ154: 0 | AK154: 0 | AL154: 0 | AM154: 0
A155: 153 | B155: =VLOOKUP(A155,#REF!,5,FALSE) ->  | C155: =IFERROR(VLOOKUP(A155,#REF!,7,FALSE),0) -> 0 | D155: 0 | E155: 0 | U155: =C155*0.5 -> 0 | AG155: 0 | AH155: 0 | AI155: 0 | AJ155: 0 | AK155: 0 | AL155: 0 | AM155: 0
A156: 154 | B156: =VLOOKUP(A156,#REF!,5,FALSE) ->  | C156: =IFERROR(VLOOKUP(A156,#REF!,7,FALSE),0) -> 0 | D156: 0 | E156: 0 | I156: =C156*0.4 -> 0 | U156: =C156*2 -> 0 | AG156: 0 | AH156: 0 | AI156: 0 | AJ156: 9.140920784 | AK156: 18.28184157 | AL156: 0.07031477526 | AM156: 0.1406295505
A157: 155 | B157: =VLOOKUP(A157,#REF!,5,FALSE) ->  | C157: =IFERROR(VLOOKUP(A157,#REF!,7,FALSE),0) -> 0 | D157: 0 | E157: 0 | I157: =C157*0.45 -> 0 | U157: =C157*0.45 -> 0 | AG157: 0 | AH157: 0 | AI157: 0 | AJ157: 1.318402036 | AK157: 2.636804072 | AL157: 0.02636804072 | AM157: 0.05273608145
A158: 156 | B158: =VLOOKUP(A158,#REF!,5,FALSE) ->  | C158: =IFERROR(VLOOKUP(A158,#REF!,7,FALSE),0) -> 0 | D158: 0 | E158: 0 | U158: =C158*0.6 -> 0 | AG158: 0 | AH158: 0 | AI158: 0 | AJ158: 0 | AK158: 0 | AL158: 0 | AM158: 0
A159: 157 | B159: =VLOOKUP(A159,#REF!,5,FALSE) ->  | C159: =IFERROR(VLOOKUP(A159,#REF!,7,FALSE),0) -> 0 | D159: 0 | E159: 0 | I159: =C159*0.45 -> 0 | U159: =C159*0.45 -> 0 | AG159: 0 | AH159: 0 | AI159: 0 | AJ159: 0 | AK159: 0 | AL159: 0 | AM159: 0
A160: 158 | B160: =VLOOKUP(A160,#REF!,5,FALSE) ->  | C160: =IFERROR(VLOOKUP(A160,#REF!,7,FALSE),0) -> 0 | D160: 0 | E160: 0 | I160: =C160*0.2 -> 0 | U160: =C160*1 -> 0 | AG160: 0 | AH160: 0 | AI160: 0 | AJ160: 0 | AK160: 0 | AL160: 0 | AM160: 0
A161: 159 | B161: =VLOOKUP(A161,#REF!,5,FALSE) ->  | C161: =IFERROR(VLOOKUP(A161,#REF!,7,FALSE),0) -> 0 | D161: 0 | E161: 0 | I161: =C161*1.1 -> 0 | U161: =C161*1.1 -> 0 | AG161: 0 | AH161: 0 | AI161: 0 | AJ161: 6.445521066 | AK161: 12.89104213 | AL161: 0.06445521066 | AM161: 0.1289104213
A162: 160 | B162: =VLOOKUP(A162,#REF!,5,FALSE) ->  | C162: =IFERROR(VLOOKUP(A162,#REF!,7,FALSE),0) -> 0 | D162: 0 | E162: 0 | I162: =C162*0.3 -> 0 | U162: =C162*0.75 -> 0 | AG162: 0 | AH162: 0 | AI162: 0 | AJ162: 0 | AK162: 0 | AL162: 0 | AM162: 0
A163: 161 | B163: =VLOOKUP(A163,#REF!,5,FALSE) ->  | C163: =IFERROR(VLOOKUP(A163,#REF!,7,FALSE),0) -> 0 | D163: 0 | E163: 0 | O163: =C163*0.333333333333333 -> 0 | AG163: 0 | AH163: 0 | AI163: 0 | AJ163: 11.71912921 | AK163: 23.43825842 | AL163: 0.009765941009 | AM163: 0.01953188202
A164: 165 | B164: =VLOOKUP(A164,#REF!,5,FALSE) ->  | C164: =IFERROR(VLOOKUP(A164,#REF!,7,FALSE),0) -> 0 | D164: 0 | E164: 0 | O164: =C164*0.333333333333333 -> 0 | AG164: 0 | AH164: 0 | AI164: 0 | AJ164: 0.7812752807 | AK164: 1.562550561 | AL164: 0.009765941009 | AM164: 0.01953188202
A165: 166 | B165: =VLOOKUP(A165,#REF!,5,FALSE) ->  | C165: =IFERROR(VLOOKUP(A165,#REF!,7,FALSE),0) -> 0 | D165: 0 | E165: 0 | M165: =C165*0.2 -> 0 | AG165: 0 | AH165: 0 | AI165: 0 | AJ165: 0.08789346908 | AK165: 0.1757869382 | AL165: 0.005859564605 | AM165: 0.01171912921
A166: 167 | B166: =VLOOKUP(A166,#REF!,5,FALSE) ->  | C166: =IFERROR(VLOOKUP(A166,#REF!,7,FALSE),0) -> 0 | D166: 0 | E166: 0 | M166: =C166*0.445 -> 0 | Y166: =C166*0.445 -> 0 | AG166: 0 | AH166: 0 | AI166: 0 | AJ166: 5.606138436 | AK166: 11.21227687 | AL166: 0.02607506249 | AM166: 0.05215012499
A167: 168 | B167: =VLOOKUP(A167,#REF!,5,FALSE) ->  | C167: =IFERROR(VLOOKUP(A167,#REF!,7,FALSE),0) -> 0 | D167: 0 | E167: 0 | M167: =C167*0.165 -> 0 | Y167: =C167*0.165 -> 0 | AG167: 0 | AH167: 0 | AI167: 0 | AJ167: 0.7734625279 | AK167: 1.546925056 | AL167: 0.009668281599 | AM167: 0.0193365632
A168: 169 | B168: =VLOOKUP(A168,#REF!,5,FALSE) ->  | C168: =IFERROR(VLOOKUP(A168,#REF!,7,FALSE),0) -> 0 | D168: 0 | E168: 0 | M168: =C168*0.21 -> 0 | Y168: =C168*0.21 -> 0 | AG168: 0 | AH168: 0 | AI168: 0 | AJ168: 0.9844068537 | AK168: 1.968813707 | AL168: 0.01230508567 | AM168: 0.02461017134
A169: 170 | B169: =VLOOKUP(A169,#REF!,5,FALSE) ->  | C169: =IFERROR(VLOOKUP(A169,#REF!,7,FALSE),0) -> 0 | D169: 0 | E169: 0 | M169: =C169*0.325 -> 0 | Y169: =C169*0.325 -> 0 | AG169: 0 | AH169: 0 | AI169: 0 | AJ169: 1.904358497 | AK169: 3.808716993 | AL169: 0.01904358497 | AM169: 0.03808716993
A170: 171 | B170: =VLOOKUP(A170,#REF!,5,FALSE) ->  | C170: =IFERROR(VLOOKUP(A170,#REF!,7,FALSE),0) -> 0 | D170: 0 | E170: 0 | M170: =C170*0.016 -> 0 | Y170: =C170*0.016 -> 0 | AG170: 0 | AH170: 0 | AI170: 0 | AJ170: 0.1875060674 | AK170: 0.3750121347 | AL170: 0.0009375303368 | AM170: 0.001875060674
A171: 172 | B171: =VLOOKUP(A171,#REF!,5,FALSE) ->  | C171: =IFERROR(VLOOKUP(A171,#REF!,7,FALSE),0) -> 0 | D171: 0 | E171: 0 | M171: =C171*0.02 -> 0 | Y171: =C171*0.02 -> 0 | AG171: 0 | AH171: 0 | AI171: 0 | AJ171: 0.1171912921 | AK171: 0.2343825842 | AL171: 0.001171912921 | AM171: 0.002343825842
A172: 173 | B172: =VLOOKUP(A172,#REF!,5,FALSE) ->  | C172: =IFERROR(VLOOKUP(A172,#REF!,7,FALSE),0) -> 0 | D172: 0 | E172: 0 | M172: =C172*0.024 -> 0 | Y172: =C172*0.024 -> 0 | AG172: 0 | AH172: 0 | AI172: 0 | AJ172: 0.1406295505 | AK172: 0.2812591011 | AL172: 0.001406295505 | AM172: 0.002812591011
A173: 174 | B173: =VLOOKUP(A173,#REF!,5,FALSE) ->  | C173: =IFERROR(VLOOKUP(A173,#REF!,7,FALSE),0) -> 0 | D173: 0 | E173: 0 | M173: =C173*0.029 -> 0 | Y173: =C173*0.029 -> 0 | AG173: 0 | AH173: 0 | AI173: 0 | AJ173: 0.1699273736 | AK173: 0.3398547471 | AL173: 0.001699273736 | AM173: 0.003398547471
A174: 175 | B174: =VLOOKUP(A174,#REF!,5,FALSE) ->  | C174: =IFERROR(VLOOKUP(A174,#REF!,7,FALSE),0) -> 0 | D174: 0 | E174: 0 | M174: =C174*0.3 -> 0 | Y174: =C174*0.23 -> 0 | AG174: 0 | AH174: 0 | AI174: 0 | AJ174: 1.242227696 | AK174: 2.484455393 | AL174: 0.0155278462 | AM174: 0.03105569241
A175: 176 | B175: =VLOOKUP(A175,#REF!,5,FALSE) ->  | C175: =IFERROR(VLOOKUP(A175,#REF!,7,FALSE),0) -> 0 | D175: 0 | E175: 0 | M175: =C175*0.38 -> 0 | Y175: =C175*0.38 -> 0 | AG175: 0 | AH175: 0 | AI175: 0 | AJ175: 1.33598073 | AK175: 2.67196146 | AL175: 0.0222663455 | AM175: 0.044532691
A176: 177 | B176: =VLOOKUP(A176,#REF!,5,FALSE) ->  | C176: =IFERROR(VLOOKUP(A176,#REF!,7,FALSE),0) -> 0 | D176: 0 | E176: 0 | M176: =C176*0.38 -> 0 | Y176: =C176*0.38 -> 0 | AG176: 0 | AH176: 0 | AI176: 0 | AJ176: 1.33598073 | AK176: 2.67196146 | AL176: 0.0222663455 | AM176: 0.044532691
A177: 178 | B177: =VLOOKUP(A177,#REF!,5,FALSE) ->  | C177: =IFERROR(VLOOKUP(A177,#REF!,7,FALSE),0) -> 0 | D177: 0 | E177: 0 | I177: =C177*0.15 -> 0 | AG177: 0 | AH177: 0 | AI177: 0 | AJ177: 0.2636804072 | AK177: 0.5273608145 | AL177: 0.004394673454 | AM177: 0.008789346908
A178: 179 | B178: =VLOOKUP(A178,#REF!,5,FALSE) ->  | C178: =IFERROR(VLOOKUP(A178,#REF!,7,FALSE),0) -> 0 | D178: 0 | E178: 0 | I178: =C178*0.15 -> 0 | AG178: 0 | AH178: 0 | AI178: 0 | AJ178: 0.2636804072 | AK178: 0.5273608145 | AL178: 0.004394673454 | AM178: 0.008789346908
A179: 180 | B179: =VLOOKUP(A179,#REF!,5,FALSE) ->  | C179: =IFERROR(VLOOKUP(A179,#REF!,7,FALSE),0) -> 0 | D179: 0 | E179: 0 | M179: =C179*0.07 -> 0 | Y179: =C179*0.07 -> 0 | AG179: 0 | AH179: 0 | AI179: 0 | AJ179: 0.2461017134 | AK179: 0.4922034268 | AL179: 0.004101695224 | AM179: 0.008203390447
A180: 181 | B180: =VLOOKUP(A180,#REF!,5,FALSE) ->  | C180: =IFERROR(VLOOKUP(A180,#REF!,7,FALSE),0) -> 0 | D180: 0 | E180: 0 | I180: =C180*0.1 -> 0 | AG180: 0 | AH180: 0 | AI180: 0 | AJ180: 0.1757869382 | AK180: 0.3515738763 | AL180: 0.002929782303 | AM180: 0.005859564605
A181: 182 | B181: =VLOOKUP(A181,#REF!,5,FALSE) ->  | C181: =IFERROR(VLOOKUP(A181,#REF!,7,FALSE),0) -> 0 | D181: 0 | E181: 0 | I181: =C181*0.44 -> 0 | M181: =C181*0.78 -> 0 | AG181: 0 | AH181: 0 | AI181: 0 | AJ181: 2.144600646 | AK181: 4.289201291 | AL181: 0.03574334409 | AM181: 0.07148668818
A182: 183 | B182: =VLOOKUP(A182,#REF!,5,FALSE) ->  | C182: =IFERROR(VLOOKUP(A182,#REF!,7,FALSE),0) -> 0 | D182: 0 | E182: 0 | I182: =C182*0.44 -> 0 | M182: =C182*0.78 -> 0 | AG182: 0 | AH182: 0 | AI182: 0 | AJ182: 0.07148668818 | AK182: 0.1429733764 | AL182: 0.03574334409 | AM182: 0.07148668818
A183: 184 | B183: =VLOOKUP(A183,#REF!,5,FALSE) ->  | C183: =IFERROR(VLOOKUP(A183,#REF!,7,FALSE),0) -> 0 | D183: 0 | E183: 0 | I183: =C183*0.27 -> 0 | Q183: =C183*0.85 -> 0 | AG183: 0 | AH183: 0 | AI183: 0 | AJ183: 1.968813707 | AK183: 3.937627415 | AL183: 0.03281356179 | AM183: 0.06562712358
A184: 185 | B184: =VLOOKUP(A184,#REF!,5,FALSE) ->  | C184: =IFERROR(VLOOKUP(A184,#REF!,7,FALSE),0) -> 0 | D184: 0 | E184: 0 | I184: =C184*0.15 -> 0 | Q184: =C184*0.48 -> 0 | AG184: 0 | AH184: 0 | AI184: 0 | AJ184: 0.3691525701 | AK184: 0.7383051403 | AL184: 0.01845762851 | AM184: 0.03691525701
A185: 186 | B185: =VLOOKUP(A185,#REF!,5,FALSE) ->  | C185: =IFERROR(VLOOKUP(A185,#REF!,7,FALSE),0) -> 0 | D185: 0 | E185: 0 | I185: =C185*0.27 -> 0 | Q185: =C185*0.85 -> 0 | AG185: 0 | AH185: 0 | AI185: 0 | AJ185: 0.3281356179 | AK185: 0.6562712358 | AL185: 0.03281356179 | AM185: 0.06562712358
A186: 187 | B186: =VLOOKUP(A186,#REF!,5,FALSE) ->  | C186: =IFERROR(VLOOKUP(A186,#REF!,7,FALSE),0) -> 0 | D186: 0 | E186: 0 | I186: =C186*0.19 -> 0 | M186: =C186*0.39 -> 0 | AG186: 0 | AH186: 0 | AI186: 0 | AJ186: 1.019564241 | AK186: 2.039128483 | AL186: 0.01699273736 | AM186: 0.03398547471
A187: 188 | B187: =VLOOKUP(A187,#REF!,5,FALSE) ->  | C187: =IFERROR(VLOOKUP(A187,#REF!,7,FALSE),0) -> 0 | D187: 0 | E187: 0 | M187: =C187*2.2 -> 0 | Y187: =C187*2.45 -> 0 | AG187: 0 | AH187: 0 | AI187: 0 | AJ187: 8.174092624 | AK187: 16.34818525 | AL187: 0.1362348771 | AM187: 0.2724697541
A188: 189 | B188: =VLOOKUP(A188,#REF!,5,FALSE) ->  | C188: =IFERROR(VLOOKUP(A188,#REF!,7,FALSE),0) -> 0 | D188: 0 | E188: 0 | I188: =C188*0.44 -> 0 | M188: =C188*0.78 -> 0 | AG188: 0 | AH188: 0 | AI188: 0 | AJ188: 2.144600646 | AK188: 4.289201291 | AL188: 0.03574334409 | AM188: 0.07148668818
A189: 190 | B189: =VLOOKUP(A189,#REF!,5,FALSE) ->  | C189: =IFERROR(VLOOKUP(A189,#REF!,7,FALSE),0) -> 0 | D189: 0 | E189: 0 | I189: =C189*0.19 -> 0 | M189: =C189*0.39 -> 0 | AG189: 0 | AH189: 0 | AI189: 0 | AJ189: 0.1699273736 | AK189: 0.3398547471 | AL189: 0.01699273736 | AM189: 0.03398547471
A190: 191 | B190: =VLOOKUP(A190,#REF!,5,FALSE) ->  | C190: =IFERROR(VLOOKUP(A190,#REF!,7,FALSE),0) -> 0 | D190: 0 | E190: 0 | M190: =C190*2.2 -> 0 | Y190: =C190*2.45 -> 0 | AG190: 0 | AH190: 0 | AI190: 0 | AJ190: 2.724697541 | AK190: 5.449395083 | AL190: 0.1362348771 | AM190: 0.2724697541
A191: 192 | B191: =VLOOKUP(A191,#REF!,5,FALSE) ->  | C191: =IFERROR(VLOOKUP(A191,#REF!,7,FALSE),0) -> 0 | D191: 0 | E191: 0 | I191: =C191*0.34 -> 0 | M191: =C191*0.82 -> 0 | AG191: 0 | AH191: 0 | AI191: 0 | AJ191: 0.1699273736 | AK191: 0.3398547471 | AL191: 0.03398547471 | AM191: 0.06797094942
A192: 193 | B192: =VLOOKUP(A192,#REF!,5,FALSE) ->  | C192: =IFERROR(VLOOKUP(A192,#REF!,7,FALSE),0) -> 0 | D192: 0 | E192: 0 | M192: =C192*0.08 -> 0 | AG192: 0 | AH192: 0 | AI192: 0 | AJ192: 0.09375303368 | AK192: 0.1875060674 | AL192: 0.002343825842 | AM192: 0.004687651684
A193: 194 | B193: =VLOOKUP(A193,#REF!,5,FALSE) ->  | C193: =IFERROR(VLOOKUP(A193,#REF!,7,FALSE),0) -> 0 | D193: 0 | E193: 0 | M193: =C193*0.08 -> 0 | AG193: 0 | AH193: 0 | AI193: 0 | AJ193: 0.09375303368 | AK193: 0.1875060674 | AL193: 0.002343825842 | AM193: 0.004687651684
A194: 195 | B194: =VLOOKUP(A194,#REF!,5,FALSE) ->  | C194: =IFERROR(VLOOKUP(A194,#REF!,7,FALSE),0) -> 0 | D194: 0 | E194: 0 | M194: =C194*0.5 -> 0 | Y194: =C194*0.5 -> 0 | AG194: 0 | AH194: 0 | AI194: 0 | AJ194: 1.757869382 | AK194: 3.515738763 | AL194: 0.02929782303 | AM194: 0.05859564605
A195: 196 | B195: =VLOOKUP(A195,#REF!,5,FALSE) ->  | C195: =IFERROR(VLOOKUP(A195,#REF!,7,FALSE),0) -> 0 | D195: 0 | E195: 0 | M195: =C195*0.1621 -> 0 | Y195: =C195*0.0227 -> 0 | AG195: 0 | AH195: 0 | AI195: 0 | AJ195: 1.082847539 | AK195: 2.165695078 | AL195: 0.005414237695 | AM195: 0.01082847539
A196: 197 | B196: =VLOOKUP(A196,#REF!,5,FALSE) ->  | C196: =IFERROR(VLOOKUP(A196,#REF!,7,FALSE),0) -> 0 | D196: 0 | E196: 0 | I196: =C196*0.05 -> 0 | M196: =C196*0.15 -> 0 | AG196: =SUM(H196,J196,K196,L196,M196,N196,Q196,R196,T196,U196,W196,X196,Z196,AA196,AC196,AD196) -> 0 | AH196: =SUM(O196,P196,S196,V196,Y196,AB196,AE196)+I196 -> 0 | AI196: =AG196+AH196 -> 0 | AJ196: 0.3515738763 | AK196: 0.7031477526 | AL196: 0.005859564605 | AM196: 0.01171912921
A197: 198 | B197: =VLOOKUP(A197,#REF!,5,FALSE) ->  | C197: =IFERROR(VLOOKUP(A197,#REF!,7,FALSE),0) -> 0 | D197: 0 | E197: 0 | I197: =C197*0.09 -> 0 | M197: =C197*0.27 -> 0 | AG197: 0 | AH197: 0 | AI197: 0 | AJ197: 0.2109443258 | AK197: 0.4218886516 | AL197: 0.01054721629 | AM197: 0.02109443258
A198: 199 | B198: =VLOOKUP(A198,#REF!,5,FALSE) ->  | C198: =IFERROR(VLOOKUP(A198,#REF!,7,FALSE),0) -> 0 | D198: 0 | E198: 0 | I198: =C198*0.04 -> 0 | M198: =C198*0.12 -> 0 | AG198: 0 | AH198: 0 | AI198: 0 | AJ198: 0.2812591011 | AK198: 0.5625182021 | AL198: 0.004687651684 | AM198: 0.009375303368
A199: 200 | B199: =VLOOKUP(A199,#REF!,5,FALSE) ->  | C199: =IFERROR(VLOOKUP(A199,#REF!,7,FALSE),0) -> 0 | D199: 0 | E199: 0 | I199: =C199*0.09 -> 0 | M199: =C199*0.27 -> 0 | AG199: 0 | AH199: 0 | AI199: 0 | AJ199: 0.05273608145 | AK199: 0.1054721629 | AL199: 0.01054721629 | AM199: 0.02109443258
A200: 201 | B200: =VLOOKUP(A200,#REF!,5,FALSE) ->  | C200: =IFERROR(VLOOKUP(A200,#REF!,7,FALSE),0) -> 0 | D200: =IFERROR(AL200*C200,0) -> 0 | E200: =IFERROR(AM200*C200,0) -> 0 | I200: =C200*0.05 -> 0 | M200: =C200*0.17 -> 0 | AG200: 0 | AH200: 0 | AI200: 0 | AJ200: 0.1289104213 | AK200: 0.2578208426 | AL200: 0.006445521066 | AM200: 0.01289104213
... 209 more rows

Sheet SETORES (hidden)
A1: Setor | B1: COEMANT | C1: SINFRA | D1: COOTELE | E1: PRODASEN | I1: Responsável | L1: Unidades
A2: Subsetor | B2: Elétrica | C2: Marcenaria | D2: Telefonia | E2: Rack | I2: SEPROARQ | L2: hh
B3: Mecânica | C3: Serralheria | I3: SEPINF | L3: un
B4: Obra Civil | L4: m3
B5: Hidrossanitário | L5: m2
L6: m
L7: m2/mês
L8: m/mês
L9: mês
L10: kg
L11: cj
A20: =B$1 -> COEMANT
A21: =C1 -> SINFRA
A22: =D1 -> COOTELE | C22: COEMANT | E22: =OFFSET(SETORES!$A$20,0,0,COUNTA(SETORES!$A:$A),1) -> COOTELE
A23: =E1 -> PRODASEN
